Workbook

Sheet CRONOGRAMA FISICO-FINANCEIRO
C1: CRONOGRAMA FÍSICO FINANCEIRO | AC1: UNAEN-FF-003
AC3: Revisão: 00 | AD3: Data: 11/05/2017
A4: SESI - SERVIÇO SOCIAL DA INDUSTRIA - DR/MT
A5: ='[1]PLANILHA RESUMO LIC'!$A$7 -> UNIDADE OPERACIONAL: SESI ESCOLA VARZEA GRANDE | D5: ='[1]PLANILHA RESUMO LIC'!$A$8 -> ENDEREÇO: Av. Dom Orlando Chaves, 1086, Ponte Nova CIDADE: Varzea Grande - MT.
A6: CONSTRUTORA: | D6: =CONCATENATE(" VALOR: ","R$ ",TEXT(SUM(C44),"#.##0,00")) -> VALOR: R$ 4.904.720,75 | H6: PRAZO: 10 MESES
A7: RESPONSÁVEL TÉCNICO:
A9: ='1_IMPLANTAÇÃO'!B14 -> IMPLANTAÇÃO
A11: ITEM | B11: DESCRIÇÃO | C11: ETAPA TOTAL | E11: 1 MÊS | G11: 2 MESES | I11: 3 MESES | K11: 4 MESES | M11: 5 MESES | O11: 6 MESES | Q11: 7 MESES | S11: 8 MESES | U11: 9 MESES | W11: 10 MESES | AC11: TOTAL
C12: (R$) | D12: (%) | E12: (R$) | F12: (%) | G12: (R$) | H12: (%) | I12: (R$) | J12: (%) | K12: (R$) | L12: (%) | M12: (R$) | N12: (%) | O12: (R$) | P12: (%) | Q12: (R$) | R12: (%) | S12: (R$) | T12: (%) | U12: (R$) | V12: (%) | W12: (R$) | X12: (%) | Y12: (R$) | Z12: (%) | AA12: (R$) | AB12: (%) | AC12: (R$) | AD12: (%)
A13: 1.0 | B13: ='1_IMPLANTAÇÃO'!B16 -> DEMOLIÇÕES E RETIRADAS | C13: ='1_IMPLANTAÇÃO'!F16 -> 115000.08 | D13: =C13/$C$44*100 -> 2.344681499 | E13: =F13*$C13/100 -> 0 | F13: 0 | G13: =H13*$C13/100 -> 0 | H13: 0 | I13: =J13*$C13/100 -> 0 | J13: 0 | K13: =L13*$C13/100 -> 0 | M13: =N13*$C13/100 -> 28750.02 | N13: 25 | O13: =P13*$C13/100 -> 17250.012 | P13: 15 | Q13: =R13*$C13/100 -> 17250.012 | R13: 15 | S13: =T13*$C13/100 -> 23000.016 | T13: 20 | U13: =V13*$C13/100 -> 17250.012 | V13: 15 | W13: =X13*$C13/100 -> 11500.008 | X13: 10 | Y13: =Z13*$C13/100 -> 0 | AA13: =AB13*$C13/100 -> 0 | AC13: =AD13*$C13/100 -> 115000.08 | AD13: =N13+L13+J13+H13+F13+P13+R13+T13+V13+X13+Z13+AB13 -> 100
A14: 1.1 | B14: ='1_IMPLANTAÇÃO'!B41 -> INSTALAÇÕES DE CANTEIRO | C14: ='1_IMPLANTAÇÃO'!F41 -> 84941.44 | D14: =C14/$C$44*100 -> 1.731830298 | E14: =F14*$C14/100 -> 8494.144 | F14: 10 | G14: =H14*$C14/100 -> 8494.144 | H14: 10 | I14: =J14*$C14/100 -> 8494.144 | J14: 10 | K14: =L14*$C14/100 -> 8494.144 | L14: 10 | M14: 8494.144 | N14: 10 | O14: 8494.144 | P14: 10 | Q14: =R14*$C14/100 -> 8494.144 | R14: 10 | S14: 8494.144 | T14: 10 | U14: 8494.144 | V14: 10 | W14: 8494.144 | X14: 10 | Y14: 0 | AA14: 0 | AC14: =AD14*$C14/100 -> 84941.44 | AD14: =N14+L14+J14+H14+F14+P14+R14+T14+V14+X14+Z14+AB14 -> 100
A15: 1.2 | B15: ='1_IMPLANTAÇÃO'!B67 -> ADMINISTRAÇÃO | C15: ='1_IMPLANTAÇÃO'!F67 -> 827019.2 | D15: 16.86169799 | E15: 82701.92 | F15: 10 | G15: =H15*$C15/100 -> 82701.92 | H15: 10 | I15: =J15*$C15/100 -> 82701.92 | J15: 10 | K15: =L15*$C15/100 -> 82701.92 | L15: 10 | M15: 82701.92 | N15: 10 | O15: 82701.92 | P15: 10 | Q15: =R15*$C15/100 -> 82701.92 | R15: 10 | S15: 82701.92 | T15: 10 | U15: 82701.92 | V15: 10 | W15: 82701.92 | X15: 10 | Y15: 0 | AA15: 0 | AC15: =AD15*$C15/100 -> 827019.2 | AD15: 100
A16: 1.3 | B16: ='1_IMPLANTAÇÃO'!B78 -> TERRAPLENAGEM E PAVIMENTAÇÃO | C16: ='1_IMPLANTAÇÃO'!F78 -> 183162.96 | D16: 3.734421781 | E16: 0 | G16: 0 | I16: 0 | K16: 0 | M16: 0 | O16: 0 | Q16: 0 | S16: 45790.74 | T16: 25 | U16: 45790.74 | V16: 25 | W16: 91581.48 | X16: 50 | Y16: 0 | AA16: 0 | AC16: 183162.96 | AD16: 100
A17: 1.4 | B17: ='1_IMPLANTAÇÃO'!B89 -> FUNDAÇÕES | C17: ='1_IMPLANTAÇÃO'!F89 -> 224565.52 | D17: 4.578558728 | E17: 0 | G17: 22456.552 | H17: 10 | I17: 22456.552 | J17: 10 | K17: 0 | M17: 44913.104 | N17: 20 | O17: 44913.104 | P17: 20 | Q17: 44913.104 | R17: 20 | S17: 44913.104 | T17: 20 | U17: 0 | W17: 0 | Y17: 0 | AA17: 0 | AC17: 224565.52 | AD17: 100
A18: 1.5 | B18: ='1_IMPLANTAÇÃO'!B124 -> IMPERMEABILIZAÇÃO | C18: ='1_IMPLANTAÇÃO'!F124 -> 13902.87 | D18: 0.2834589513 | E18: 0 | G18: 0 | I18: 2780.574 | J18: 20 | K18: 0 | M18: 0 | O18: 5561.148 | P18: 40 | Q18: 5561.148 | R18: 40 | S18: 0 | U18: 0 | W18: 0 | Y18: 0 | AA18: 0 | AC18: 13902.87 | AD18: 100
A19: 1.6 | B19: ='1_IMPLANTAÇÃO'!B127 -> ESTRUTURAS DE CONCRETO ARMADO | C19: ='1_IMPLANTAÇÃO'!F127 -> 121791.44 | D19: 2.483147282 | E19: 0 | G19: 12179.144 | H19: 10 | I19: 0 | K19: 0 | M19: 0 | O19: 0 | Q19: 54806.148 | R19: 45 | S19: 54806.148 | T19: 45 | U19: 0 | W19: 0 | Y19: 0 | AA19: 0 | AC19: =AD19*$C19/100 -> 121791.44 | AD19: =N19+L19+J19+H19+F19+P19+R19+T19+V19+X19+Z19+AB19 -> 100
A20: 1.7 | B20: ='1_IMPLANTAÇÃO'!B145 -> ALVENARIAS E PAINÉIS | C20: ='1_IMPLANTAÇÃO'!F145 -> 0 | D20: 0 | E20: 0 | G20: 0 | I20: 0 | K20: 0 | M20: 0 | O20: 0 | Q20: 0 | S20: 0 | U20: 0 | W20: 0 | Y20: 0 | AA20: 0 | AC20: 0 | AD20: 0
A21: 1.8 | B21: ='1_IMPLANTAÇÃO'!B147 -> ESTRUTURA METALICA | C21: ='1_IMPLANTAÇÃO'!F147 -> 0 | D21: 0 | E21: 0 | G21: 0 | I21: 0 | K21: 0 | M21: 0 | O21: 0 | Q21: 0 | S21: 0 | U21: 0 | W21: 0 | Y21: 0 | AA21: 0 | AC21: 0 | AD21: 0
A22: 1.9 | B22: ='1_IMPLANTAÇÃO'!B149 -> COBERTURA | C22: ='1_IMPLANTAÇÃO'!F149 -> 0 | D22: 0 | E22: 0 | G22: 0 | I22: 0 | K22: 0 | M22: 0 | O22: 0 | Q22: 0 | S22: 0 | U22: 0 | W22: 0 | Y22: 0 | AA22: 0 | AC22: 0 | AD22: 0
A23: 1.10 | B23: ='1_IMPLANTAÇÃO'!B151 -> ESQUADRIAS | C23: ='1_IMPLANTAÇÃO'!F151 -> 151136.52 | D23: 3.08145005 | E23: 0 | G23: 0 | I23: 0 | K23: 0 | M23: 0 | O23: 0 | Q23: 90681.912 | R23: 60 | S23: 30227.304 | T23: 20 | U23: 30227.304 | V23: 20 | W23: 0 | Y23: 0 | AA23: 0 | AC23: 151136.52 | AD23: 100
A24: 1.11 | B24: ='1_IMPLANTAÇÃO'!B158 -> PISOS | C24: ='1_IMPLANTAÇÃO'!F158 -> 0 | D24: 0 | E24: 0 | G24: 0 | I24: 0 | K24: 0 | M24: 0 | O24: 0 | Q24: 0 | S24: 0 | U24: 0 | W24: 0 | Y24: 0 | AA24: 0 | AC24: 0 | AD24: 0
A25: 1.12 | B25: ='1_IMPLANTAÇÃO'!B160 -> REVESTIMENTOS | C25: ='1_IMPLANTAÇÃO'!F160 -> 21579.22 | D25: 0.4399683713 | E25: 0 | G25: 0 | I25: 0 | K25: 0 | M25: 0 | O25: 0 | Q25: 10789.61 | R25: 50 | S25: 10789.61 | T25: 50 | U25: 0 | W25: 0 | Y25: 0 | AA25: 0 | AC25: 21579.22 | AD25: 100
A26: 1.13 | B26: ='1_IMPLANTAÇÃO'!B164 -> GRANITO | C26: ='1_IMPLANTAÇÃO'!F164 -> 0 | D26: 0 | E26: 0 | G26: 0 | I26: 0 | K26: 0 | M26: 0 | O26: 0 | Q26: 0 | S26: 0 | U26: 0 | W26: 0 | Y26: 0 | AA26: 0 | AC26: 0 | AD26: 0
A27: 1.14 | B27: ='1_IMPLANTAÇÃO'!B166 -> FORRO | C27: ='1_IMPLANTAÇÃO'!F166 -> 0 | D27: 0 | E27: 0 | G27: 0 | I27: 0 | K27: 0 | M27: 0 | O27: 0 | Q27: 0 | S27: 0 | U27: 0 | W27: 0 | Y27: 0 | AA27: 0 | AC27: 0 | AD27: 0
A28: 1.15 | B28: ='1_IMPLANTAÇÃO'!B168 -> PINTURA | C28: ='1_IMPLANTAÇÃO'!F168 -> 23066.63 | D28: 0.4702944607 | E28: 0 | G28: 0 | I28: 0 | K28: 0 | M28: 0 | O28: 0 | Q28: 0 | S28: 11533.315 | T28: 50 | U28: 11533.315 | V28: 50 | W28: 0 | Y28: 0 | AA28: 0 | AC28: 23066.63 | AD28: 100
A29: 1.16 | B29: ='1_IMPLANTAÇÃO'!B175 -> CALÇAMENTO, PÁTIOS E PASSARELAS | C29: ='1_IMPLANTAÇÃO'!F175 -> 695245.88 | D29: 14.17503494 | E29: 0 | G29: 0 | I29: 0 | K29: 0 | M29: 0 | O29: 173811.47 | P29: 25 | Q29: 173811.47 | R29: 25 | S29: 139049.176 | T29: 20 | U29: 104286.882 | V29: 15 | W29: 104286.882 | X29: 15 | Y29: 0 | AA29: 0 | AC29: 695245.88 | AD29: 100
A30: 1.17 | B30: ='1_IMPLANTAÇÃO'!B188 -> SERVIÇOS COMPLEMENTARES | C30: ='1_IMPLANTAÇÃO'!F188 -> 521761.44 | D30: 10.63794386 | E30: 0 | G30: 0 | I30: 0 | K30: 0 | M30: 0 | O30: 0 | Q30: 0 | S30: 0 | U30: 260880.72 | V30: 50 | W30: 260880.72 | X30: 50 | Y30: 0 | AA30: 0 | AC30: 521761.44 | AD30: 100
A31: 1.18 | B31: ='1_IMPLANTAÇÃO'!B329 -> INSTALAÇÕES DE SPDA GERAL | C31: ='1_IMPLANTAÇÃO'!F329 -> 186186.89 | D31: 3.79607524 | E31: 0 | G31: 27928.0335 | H31: 15 | I31: 27928.0335 | J31: 15 | K31: 27928.0335 | L31: 15 | M31: 27928.0335 | N31: 15 | O31: 27928.0335 | P31: 15 | Q31: 27928.0335 | R31: 15 | S31: 18618.689 | T31: 10 | U31: 0 | W31: 0 | Y31: 0 | AA31: 0 | AC31: 186186.89 | AD31: 100
A32: 1.19 | B32: ='1_IMPLANTAÇÃO'!B352 -> INSTALAÇÃO DE COMBATE A INCÊNDIO | C32: ='1_IMPLANTAÇÃO'!F352 -> 107145.46 | D32: 2.184537417 | E32: 5357.273 | F32: 5 | G32: 5357.273 | H32: 5 | I32: 10714.546 | J32: 10 | K32: 10714.546 | L32: 10 | M32: 16071.819 | N32: 15 | O32: 16071.819 | P32: 15 | Q32: 16071.819 | R32: 15 | S32: 16071.819 | T32: 15 | U32: 5357.273 | V32: 5 | W32: 5357.273 | X32: 5 | Y32: 0 | AA32: 0 | AC32: 107145.46 | AD32: 100
A33: 1.20 | B33: ='1_IMPLANTAÇÃO'!B397 -> INSTALAÇÕES ELÉTRICA | C33: ='1_IMPLANTAÇÃO'!F397 -> 1022000.48 | D33: 20.83707783 | E33: 0 | G33: 0 | I33: 0 | K33: 0 | M33: 0 | O33: 306600.144 | P33: 30 | Q33: 204400.096 | R33: 20 | S33: 255500.12 | T33: 25 | U33: 255500.12 | V33: 25 | W33: 0 | Y33: 0 | AA33: 0 | AC33: 1022000.48 | AD33: 100
A34: 1.21 | B34: ='1_IMPLANTAÇÃO'!B589 -> LOGICA E TELEFONICA | C34: ='1_IMPLANTAÇÃO'!F589 -> 149360.63 | D34: 3.04524228 | E34: 0 | G34: 0 | I34: 0 | K34: 14936.063 | L34: 10 | M34: 14936.063 | N34: 10 | O34: 37340.1575 | P34: 25 | Q34: 37340.1575 | R34: 25 | S34: 22404.0945 | T34: 15 | U34: 22404.0945 | V34: 15 | W34: 0 | Y34: 0 | AA34: 0 | AC34: 149360.63 | AD34: 100
A35: 1.22 | B35: ='1_IMPLANTAÇÃO'!B642 -> CLIMATIZAÇÃO - AR CONDICIONADO | C35: ='1_IMPLANTAÇÃO'!F642 -> 9929.45 | D35: 0.2024467958 | E35: 1290.8285 | F35: 13 | G35: 1290.8285 | H35: 13 | I35: 794.356 | J35: 8 | K35: 1092.2395 | L35: 11 | M35: 0 | O35: 0 | Q35: 0 | S35: 2482.3625 | T35: 25 | U35: 2978.835 | V35: 30 | W35: 0 | Y35: 0 | AA35: 0 | AC35: 9929.45 | AD35: 100
A36: 1.23 | B36: ='1_IMPLANTAÇÃO'!B647 -> INFRAESTRUTURA PARA INSTALAÇÃO DE AUDIO E VÍDEO | C36: ='1_IMPLANTAÇÃO'!F647 -> 56045.01 | D36: 1.14267484 | E36: 0 | G36: 0 | I36: 0 | K36: 0 | M36: 11209.002 | N36: 20 | O36: 11209.002 | P36: 20 | Q36: 5604.501 | R36: 10 | S36: 14011.2525 | T36: 25 | U36: 14011.2525 | V36: 25 | W36: 0 | Y36: 0 | AA36: 0 | AC36: 56045.01 | AD36: 100
A37: 1.24 | B37: ='1_IMPLANTAÇÃO'!B683 -> INSTALAÇÕES HIDRAULICAS | C37: ='1_IMPLANTAÇÃO'!F683 -> 26828.81 | D37: 0.5469997451 | E37: 1341.4405 | F37: 5 | G37: 12072.9645 | H37: 45 | I37: 5365.762 | J37: 20 | K37: 8048.643 | L37: 30 | M37: 0 | O37: 0 | Q37: 0 | S37: 0 | U37: 0 | W37: 0 | Y37: 0 | AA37: 0 | AC37: 26828.81 | AD37: 100
A38: 1.25 | B38: ='1_IMPLANTAÇÃO'!B724 -> DRENAGEM | C38: ='1_IMPLANTAÇÃO'!F724 -> 243002.4 | D38: 4.954459436 | E38: 0 | G38: 0 | I38: 0 | K38: 0 | M38: 60750.6 | N38: 25 | O38: 60750.6 | P38: 25 | Q38: 121501.2 | R38: 50 | S38: 0 | U38: 0 | W38: 0 | Y38: 0 | AA38: 0 | AC38: 243002.4 | AD38: 100
A39: 1.26 | B39: ='1_IMPLANTAÇÃO'!B763 -> INSTALAÇÕES SANITÁRIAS | C39: ='1_IMPLANTAÇÃO'!F763 -> 72245.78 | D39: 1.472984573 | E39: 3612.289 | F39: 5 | G39: 32510.601 | H39: 45 | I39: 14449.156 | J39: 20 | K39: 21673.734 | L39: 30 | M39: 0 | O39: 0 | Q39: 0 | S39: 0 | U39: 0 | W39: 0 | Y39: 0 | AA39: 0 | AC39: 72245.78 | AD39: 100
A40: 1.27 | B40: ='1_IMPLANTAÇÃO'!B808 -> LOUÇAS E METÁIS | C40: ='1_IMPLANTAÇÃO'!F808 -> 0 | D40: 0 | E40: 0 | G40: 0 | I40: 0 | K40: 0 | M40: 0 | O40: 0 | Q40: 0 | S40: 0 | U40: 0 | W40: 0 | Y40: 0 | AA40: 0 | AC40: 0 | AD40: 0
A41: 1.28 | B41: ='1_IMPLANTAÇÃO'!B810 -> SISTEMA DE TRATAMENTO DE ESGOTO | C41: ='1_IMPLANTAÇÃO'!F810 -> 0 | D41: 0 | E41: 0 | G41: 0 | I41: 0 | K41: 0 | M41: 0 | O41: 0 | Q41: 0 | S41: 0 | U41: 0 | W41: 0 | Y41: 0 | AA41: 0 | AC41: 0 | AD41: 0
A42: 1.29 | B42: ='1_IMPLANTAÇÃO'!B812 -> LIMPEZA CONTÍNUA DA OBRA | C42: ='1_IMPLANTAÇÃO'!F812 -> 48802.64 | D42: 0.9950136305 | E42: 4880.264 | F42: 10 | G42: 4880.264 | H42: 10 | I42: 4880.264 | J42: 10 | K42: 4880.264 | L42: 10 | M42: 4880.264 | N42: 10 | O42: 4880.264 | P42: 10 | Q42: 4880.264 | R42: 10 | S42: 4880.264 | T42: 10 | U42: 4880.264 | V42: 10 | W42: 4880.264 | X42: 10 | Y42: 0 | AA42: 0 | AC42: 48802.64 | AD42: 100
A43: 1.30 | B43: ='1_IMPLANTAÇÃO'!B815 -> LIMPEZA FINAL PARA ENTREGA | C43: ='1_IMPLANTAÇÃO'!F815 -> 0 | D43: 0 | E43: 0 | G43: 0 | I43: 0 | K43: =L43*C43/100 -> 0 | M43: 0 | O43: 0 | Q43: 0 | S43: 0 | U43: 0 | W43: 0 | Y43: 0 | AA43: 0 | AC43: =AD43*$C43/100 -> 0 | AD43: 0
B44: TOTAL | C44: =SUM(C13:C43) -> 4904720.75 | D44: =SUM(D13:D43) -> 100 | E44: =SUM(E13:E43) -> 107678.159 | F44: =E44/$C44*100 -> 2.195398362 | G44: =SUM(G13:G43) -> 209871.7245 | H44: =G44/$C44*100 -> 4.278973976 | I44: =SUM(I13:I43) -> 180565.3075 | J44: =I44/$C44*100 -> 3.68145949 | K44: =SUM(K13:K43) -> 180469.587 | L44: =K44/$C44*100 -> 3.67950789 | M44: =SUM(M13:M43) -> 300634.9695 | N44: =M44/$C44*100 -> 6.129502266 | O44: =SUM(O13:O43) -> 797511.818 | P44: =O44/$C44*100 -> 16.26008612 | Q44: =SUM(Q13:Q43) -> 906735.539 | R44: =Q44/$C44*100 -> 18.48699621 | S44: =SUM(S13:S43) -> 785274.0785 | T44: =S44/$C44*100 -> 16.01057672 | U44: =SUM(U13:U43) -> 866296.876 | V44: =U44/$C44*100 -> 17.66251169 | W44: =SUM(W13:W43) -> 569682.691 | X44: =W44/$C44*100 -> 11.61498728 | Y44: =SUM(Y13:Y43) -> 0 | Z44: =Y44/$C44*100 -> 0 | AA44: =SUM(AA13:AA43) -> 0 | AB44: =AA44/$C44*100 -> 0 | AC44: =SUM(AC13:AC43) -> 4904720.75 | AD44: =AC44/$C44*100 -> 100
B45: TOTAL ACUMULADO | E45: =E44 -> 107678.159 | F45: =E45/$C44*100 -> 2.195398362 | G45: =G44+E45 -> 317549.8835 | H45: =G45/$C44*100 -> 6.474372338 | I45: =I44+G45 -> 498115.191 | J45: =I45/$C44*100 -> 10.15583183 | K45: =K44+I45 -> 678584.778 | L45: =K45/$C44*100 -> 13.83533972 | M45: =M44+K45 -> 979219.7475 | N45: =M45/$C44*100 -> 19.96484198 | O45: =O44+M45 -> 1776731.565 | P45: =O45/$C44*100 -> 36.22492811 | Q45: =Q44+O45 -> 2683467.104 | R45: =Q45/$C44*100 -> 54.71192431 | S45: =S44+Q45 -> 3468741.183 | T45: =S45/$C44*100 -> 70.72250103 | U45: =U44+S45 -> 4335038.059 | V45: =U45/$C44*100 -> 88.38501272 | W45: =W44+U45 -> 4904720.75 | X45: =W45/$C44*100 -> 100 | Y45: =Y44+W45 -> 4904720.75 | Z45: =Y45/$C44*100 -> 100 | AA45: =AA44+Y45 -> 4904720.75 | AB45: =AA45/$C44*100 -> 100
C48: CRONOGRAMA FÍSICO FINANCEIRO | AC48: UNAEN-FF-003
AC50: Revisão: 00 | AD50: Data: 11/05/2017
A51: SESI - SERVIÇO SOCIAL DA INDUSTRIA - DR/MT
A52: ='[1]PLANILHA RESUMO LIC'!$A$7 -> UNIDADE OPERACIONAL: SESI ESCOLA VARZEA GRANDE | D52: ='[1]PLANILHA RESUMO LIC'!$A$8 -> ENDEREÇO: Av. Dom Orlando Chaves, 1086, Ponte Nova CIDADE: Varzea Grande - MT.
A53: CONSTRUTORA: | D53: =CONCATENATE(" VALOR: ","R$ ",TEXT(SUM(C91),"#.##0,00")) -> VALOR: R$ 2.225.411,01 | H53: =H6 -> PRAZO: 10 MESES
A54: RESPONSÁVEL TÉCNICO:
A56: ='2_BLOCO A-FACHADA'!B14 -> BLOCO A e FACHADA
A58: ITEM | B58: DESCRIÇÃO | C58: ETAPA TOTAL | E58: 1 MÊS | G58: 2 MESES | I58: 3 MESES | K58: 4 MESES | M58: 5 MESES | O58: 6 MESES | Q58: 7 MESES | S58: 8 MESES | U58: 9 MESES | W58: 10 MESES | AC58: TOTAL
C59: (R$) | D59: (%) | E59: (R$) | F59: (%) | G59: (R$) | H59: (%) | I59: (R$) | J59: (%) | K59: (R$) | L59: (%) | M59: (R$) | N59: (%) | O59: (R$) | P59: (%) | Q59: (R$) | R59: (%) | S59: (R$) | T59: (%) | U59: (R$) | V59: (%) | W59: (R$) | X59: (%) | Y59: (R$) | Z59: (%) | AA59: (R$) | AB59: (%) | AC59: (R$) | AD59: (%)
A60: 2.0 | B60: ='2_BLOCO A-FACHADA'!B16 -> DEMOLIÇÕES E RETIRADAS | C60: ='2_BLOCO A-FACHADA'!F16 -> 5461.65 | D60: =C60/$C$44*100 -> 0.1113549635 | E60: =F60*$C60/100 -> 5461.65 | F60: 100 | G60: =H60*$C60/100 -> 0 | I60: =J60*$C60/100 -> 0 | K60: =L60*$C60/100 -> 0 | M60: =N60*$C60/100 -> 0 | O60: =P60*$C60/100 -> 0 | Q60: =R60*$C60/100 -> 0 | S60: =T60*$C60/100 -> 0 | U60: =V60*$C60/100 -> 0 | W60: =X60*$C60/100 -> 0 | Y60: =Z60*$C60/100 -> 0 | AA60: =AB60*$C60/100 -> 0 | AC60: =AD60*$C60/100 -> 5461.65 | AD60: =N60+L60+J60+H60+F60+P60+R60+T60+V60+X60+Z60+AB60 -> 100
A61: 2.1 | B61: ='2_BLOCO A-FACHADA'!B23 -> INSTALAÇÕES DE CANTEIRO | C61: ='2_BLOCO A-FACHADA'!F23 -> 0 | D61: =C61/$C$44*100 -> 0 | E61: =F61*$C61/100 -> 0 | G61: =H61*$C61/100 -> 0 | I61: =J61*$C61/100 -> 0 | K61: =L61*$C61/100 -> 0 | M61: =N61*$C61/100 -> 0 | O61: =P61*$C61/100 -> 0 | Q61: =R61*$C61/100 -> 0 | S61: =T61*$C61/100 -> 0 | U61: 0 | W61: 0 | Y61: 0 | AA61: 0 | AC61: =AD61*$C61/100 -> 0 | AD61: =N61+L61+J61+H61+F61+P61+R61+T61+V61+X61+Z61+AB61 -> 0
A62: 2.2 | B62: ='2_BLOCO A-FACHADA'!B25 -> ADMINISTRAÇÃO | C62: ='2_BLOCO A-FACHADA'!F25 -> 0 | D62: 0 | E62: 0 | G62: =H62*$C62/100 -> 0 | I62: =J62*$C62/100 -> 0 | K62: =L62*$C62/100 -> 0 | M62: =N62*$C62/100 -> 0 | O62: =P62*$C62/100 -> 0 | Q62: =R62*$C62/100 -> 0 | S62: =T62*$C62/100 -> 0 | U62: 0 | W62: 0 | Y62: 0 | AA62: 0 | AC62: =AD62*$C62/100 -> 0 | AD62: 0
A63: 2.3 | B63: ='2_BLOCO A-FACHADA'!B27 -> TERRAPLENAGEM | C63: ='2_BLOCO A-FACHADA'!F27 -> 0 | D63: 0 | E63: 0 | G63: 0 | I63: 0 | K63: 0 | M63: 0 | O63: 0 | Q63: 0 | S63: 0 | U63: 0 | W63: 0 | Y63: 0 | AA63: 0 | AC63: 0 | AD63: 0
A64: 2.4 | B64: ='2_BLOCO A-FACHADA'!B29 -> FUNDAÇÃO | C64: ='2_BLOCO A-FACHADA'!F29 -> 163777.16 | D64: 3.339173999 | E64: 0 | G64: 81888.58 | H64: 50 | I64: 81888.58 | J64: 50 | K64: 0 | M64: 0 | O64: 0 | Q64: 0 | S64: 0 | U64: 0 | W64: 0 | Y64: 0 | AA64: 0 | AC64: 163777.16 | AD64: 100
A65: 2.5 | B65: ='2_BLOCO A-FACHADA'!B63 -> IMPERMEABILIZAÇÃO | C65: ='2_BLOCO A-FACHADA'!F63 -> 8031.16 | D65: 0.163743471 | E65: 0 | G65: 0 | I65: 8031.16 | J65: 100 | K65: 0 | M65: 0 | O65: 0 | Q65: 0 | S65: 0 | U65: 0 | W65: 0 | Y65: 0 | AA65: 0 | AC65: 8031.16 | AD65: 100
A66: 2.6 | B66: ='2_BLOCO A-FACHADA'!B66 -> ESTRUTURAS DE CONCRETO ARMADO | C66: ='2_BLOCO A-FACHADA'!F66 -> 9502.91 | D66: 0.1937502762 | E66: 0 | G66: 9502.91 | H66: 100 | I66: 0 | K66: 0 | M66: 0 | O66: 0 | Q66: 0 | S66: 0 | U66: 0 | W66: 0 | Y66: 0 | AA66: 0 | AC66: 9502.91 | AD66: 100
A67: 2.7 | B67: ='2_BLOCO A-FACHADA'!B72 -> ALVENARIAS E PAINÉIS | C67: ='2_BLOCO A-FACHADA'!F72 -> 43999.52 | D67: 0.8970851195 | E67: 0 | G67: 13199.856 | H67: 30 | I67: 30799.664 | J67: 70 | K67: 0 | M67: 0 | O67: 0 | Q67: 0 | S67: 0 | U67: 0 | W67: 0 | Y67: 0 | AA67: 0 | AC67: 43999.52 | AD67: 100
A68: 2.8 | B68: ='2_BLOCO A-FACHADA'!B76 -> ESTRUTURA METALICA | C68: ='2_BLOCO A-FACHADA'!F76 -> 465871.34 | D68: 9.498427408 | E68: 0 | G68: 0 | I68: 232935.67 | J68: 50 | K68: 232935.67 | L68: 50 | M68: 0 | O68: 0 | Q68: 0 | S68: 0 | U68: 0 | W68: 0 | Y68: 0 | AA68: 0 | AC68: 465871.34 | AD68: 100
A69: 2.9 | B69: ='2_BLOCO A-FACHADA'!B87 -> COBERTURA | C69: ='2_BLOCO A-FACHADA'!F87 -> 75474.79 | D69: 1.53881931 | E69: 0 | G69: 0 | I69: 0 | K69: 75474.79 | L69: 100 | M69: 0 | O69: 0 | Q69: 0 | S69: 0 | U69: 0 | W69: 0 | Y69: 0 | AA69: 0 | AC69: 75474.79 | AD69: 100
A70: 2.10 | B70: ='2_BLOCO A-FACHADA'!B93 -> ESQUADRIAS | C70: ='2_BLOCO A-FACHADA'!F93 -> 180608.43 | D70: 3.682338694 | E70: 0 | G70: 36121.686 | H70: 20 | I70: 144486.744 | J70: 80 | K70: 0 | M70: 0 | O70: 0 | Q70: 0 | S70: 0 | U70: 0 | W70: 0 | Y70: 0 | AA70: 0 | AC70: 180608.43 | AD70: 100
A71: 2.11 | B71: ='2_BLOCO A-FACHADA'!B115 -> PISOS | C71: ='2_BLOCO A-FACHADA'!F115 -> 73760.7 | D71: 1.503871551 | E71: 22128.21 | F71: 30 | G71: 0 | I71: 0 | K71: 14752.14 | L71: 20 | M71: 36880.35 | N71: 50 | O71: 0 | Q71: 0 | S71: 0 | U71: 0 | W71: 0 | Y71: 0 | AA71: 0 | AC71: 73760.7 | AD71: 100
A72: 2.12 | B72: ='2_BLOCO A-FACHADA'!B124 -> REVESTIMENTOS | C72: ='2_BLOCO A-FACHADA'!F124 -> 535255.89 | D72: 10.91307573 | E72: 16057.6767 | F72: 3 | G72: 0 | I72: 107051.178 | J72: 20 | K72: 160576.767 | L72: 30 | M72: 251570.2683 | N72: 47 | O72: 0 | Q72: 0 | S72: 0 | U72: 0 | W72: 0 | Y72: 0 | AA72: 0 | AC72: 535255.89 | AD72: 100
A73: 2.13 | B73: ='2_BLOCO A-FACHADA'!B135 -> GRANITO | C73: ='2_BLOCO A-FACHADA'!F135 -> 21425.27 | D73: 0.4368295585 | E73: 10712.635 | F73: 50 | G73: 10712.635 | H73: 50 | I73: 0 | K73: 0 | M73: 0 | O73: 0 | Q73: 0 | S73: 0 | U73: 0 | W73: 0 | Y73: 0 | AA73: 0 | AC73: 21425.27 | AD73: 100
A74: 2.14 | B74: ='2_BLOCO A-FACHADA'!B141 -> FORRO | C74: ='2_BLOCO A-FACHADA'!F141 -> 45683.86 | D74: 0.9314263202 | E74: 0 | G74: 0 | I74: 22841.93 | J74: 50 | K74: 22841.93 | L74: 50 | M74: 0 | O74: 0 | Q74: 0 | S74: 0 | U74: 0 | W74: 0 | Y74: 0 | AA74: 0 | AC74: 45683.86 | AD74: 100
A75: 2.15 | B75: ='2_BLOCO A-FACHADA'!B146 -> PINTURA | C75: ='2_BLOCO A-FACHADA'!F146 -> 51429.31 | D75: 1.048567546 | E75: 0 | G75: 36000.517 | H75: 70 | I75: 15428.793 | J75: 30 | K75: 0 | M75: 0 | O75: 0 | Q75: 0 | S75: 0 | U75: 0 | W75: 0 | Y75: 0 | AA75: 0 | AC75: 51429.31 | AD75: 100
A76: 2.16 | B76: ='2_BLOCO A-FACHADA'!B154 -> CALÇAMENTO, PÁTIOS E PASSARELAS | C76: ='2_BLOCO A-FACHADA'!F154 -> 0 | D76: 0 | E76: 0 | G76: 0 | I76: 0 | K76: 0 | M76: 0 | O76: 0 | Q76: 0 | S76: 0 | U76: 0 | W76: 0 | Y76: 0 | AA76: 0 | AC76: 0 | AD76: 0
A77: 2.17 | B77: ='2_BLOCO A-FACHADA'!B156 -> SERVIÇOS COMPLEMENTARES | C77: ='2_BLOCO A-FACHADA'!F156 -> 40757.06 | D77: 0.830976157 | E77: 0 | G77: 0 | I77: 0 | K77: 0 | M77: 40757.06 | N77: 100 | O77: 0 | Q77: 0 | S77: 0 | U77: 0 | W77: 0 | Y77: 0 | AA77: 0 | AC77: 40757.06 | AD77: 100
A78: 2.18 | B78: ='2_BLOCO A-FACHADA'!B163 -> INSTALAÇÕES DE SPDA | C78: ='2_BLOCO A-FACHADA'!F163 -> 0 | D78: 0 | E78: 0 | G78: 0 | H78: 100 | I78: 0 | K78: 0 | M78: 0 | O78: 0 | Q78: 0 | S78: 0 | U78: 0 | W78: 0 | Y78: 0 | AA78: 0 | AC78: 0 | AD78: 100
A79: 2.19 | B79: ='2_BLOCO A-FACHADA'!B165 -> INSTALAÇÃO DE COMBATE A INCÊNDIO | C79: ='2_BLOCO A-FACHADA'!F165 -> 0 | D79: 0 | E79: 0 | G79: 0 | H79: 50 | I79: 0 | J79: 30 | K79: 0 | L79: 20 | M79: 0 | O79: 0 | Q79: 0 | S79: 0 | U79: 0 | W79: 0 | Y79: 0 | AA79: 0 | AC79: 0 | AD79: 100
A80: 2.20 | B80: ='2_BLOCO A-FACHADA'!B167 -> INSTALAÇÕES ELÉTRICA | C80: ='2_BLOCO A-FACHADA'!F167 -> 228866.37 | D80: 4.666246697 | E80: 0 | G80: 45773.274 | H80: 20 | I80: 45773.274 | J80: 20 | K80: 68659.911 | L80: 30 | M80: 68659.911 | N80: 30 | O80: 0 | Q80: 0 | S80: 0 | U80: 0 | W80: 0 | Y80: 0 | AA80: 0 | AC80: 228866.37 | AD80: 100
A81: 2.21 | B81: ='2_BLOCO A-FACHADA'!B465 -> LOGICA E TELEFONICA | C81: ='2_BLOCO A-FACHADA'!F465 -> 48608.65 | D81: 0.9910584614 | E81: 0 | G81: 9721.73 | H81: 20 | I81: 9721.73 | J81: 20 | K81: 14582.595 | L81: 30 | M81: 14582.595 | N81: 30 | O81: 0 | Q81: 0 | S81: 0 | U81: 0 | W81: 0 | Y81: 0 | AA81: 0 | AC81: 48608.65 | AD81: 100
A82: 2.22 | B82: ='2_BLOCO A-FACHADA'!B574 -> CLIMATIZAÇÃO - AR CONDICIONADO | C82: ='2_BLOCO A-FACHADA'!F574 -> 114190.11 | D82: 2.328167409 | E82: 11419.011 | F82: 10 | G82: 28547.5275 | H82: 25 | I82: 28547.5275 | J82: 25 | K82: 28547.5275 | L82: 25 | M82: 17128.5165 | N82: 15 | O82: 0 | Q82: 0 | S82: 0 | U82: 0 | W82: 0 | Y82: 0 | AA82: 0 | AC82: 114190.11 | AD82: 100
A83: 2.23 | B83: ='2_BLOCO A-FACHADA'!B625 -> INFRAESTRUTURA PARA INSTALAÇÃO DE AUDIO E VÍDEO | C83: ='2_BLOCO A-FACHADA'!F625 -> 30244.21 | D83: 0.6166346983 | E83: 0 | G83: 6048.842 | H83: 20 | I83: 6048.842 | J83: 20 | K83: 9073.263 | L83: 30 | M83: 9073.263 | N83: 30 | O83: 0 | Q83: 0 | S83: 0 | U83: 0 | W83: 0 | Y83: 0 | AA83: 0 | AC83: 30244.21 | AD83: 100
A84: 2.24 | B84: ='2_BLOCO A-FACHADA'!B667 -> INSTALAÇÕES HIDRAULICAS | C84: ='2_BLOCO A-FACHADA'!F667 -> 0 | D84: 0 | E84: 0 | G84: 0 | I84: 0 | K84: 0 | M84: 0 | O84: 0 | Q84: 0 | S84: 0 | U84: 0 | W84: 0 | Y84: 0 | AA84: 0 | AC84: 0 | AD84: 0
A85: 2.25 | B85: ='2_BLOCO A-FACHADA'!B669 -> ÁGUAS PLUVIAIS DE COBERTURA | C85: ='2_BLOCO A-FACHADA'!F669 -> 45132.23 | D85: 0.9201794006 | E85: 22566.115 | F85: 50 | G85: 22566.115 | H85: 50 | I85: 0 | K85: 0 | M85: 0 | O85: 0 | Q85: 0 | S85: 0 | U85: 0 | W85: 0 | Y85: 0 | AA85: 0 | AC85: 45132.23 | AD85: 100
A86: 2.26 | B86: ='2_BLOCO A-FACHADA'!B691 -> INSTALAÇÕES SANITÁRIAS | C86: ='2_BLOCO A-FACHADA'!F691 -> 0 | D86: 0 | E86: 0 | G86: 0 | I86: 0 | K86: 0 | M86: 0 | O86: 0 | Q86: 0 | S86: 0 | U86: 0 | W86: 0 | Y86: 0 | AA86: 0 | AC86: 0 | AD86: 0
A87: 2.27 | B87: ='2_BLOCO A-FACHADA'!B693 -> LOUÇAS E METÁIS | C87: ='2_BLOCO A-FACHADA'!F693 -> 34578.1 | D87: 0.7049963038 | E87: 0 | G87: 17289.05 | H87: 50 | I87: 17289.05 | J87: 50 | K87: 0 | M87: 0 | O87: 0 | Q87: 0 | S87: 0 | U87: 0 | W87: 0 | Y87: 0 | AA87: 0 | AC87: 34578.1 | AD87: 100
A88: 2.28 | B88: ='2_BLOCO A-FACHADA'!B719 -> SISTEMA DE TRATAMENTO DE ESGOTO | C88: ='2_BLOCO A-FACHADA'!F719 -> 0 | D88: 0 | E88: 0 | G88: 0 | I88: 0 | K88: 0 | M88: 0 | O88: 0 | Q88: 0 | S88: 0 | U88: 0 | W88: 0 | Y88: 0 | AA88: 0 | AC88: 0 | AD88: 0
A89: 2.29 | B89: ='2_BLOCO A-FACHADA'!B721 -> LIMPEZA CONTÍNUA DA OBRA | C89: ='2_BLOCO A-FACHADA'!F721 -> 0 | D89: 0 | E89: 0 | G89: 0 | I89: 0 | K89: 0 | M89: 0 | O89: 0 | Q89: 0 | S89: 0 | U89: 0 | W89: 0 | Y89: 0 | AA89: 0 | AC89: 0 | AD89: =N89+L89+J89+H89+F89+P89+R89+T89+V89+X89+Z89+AB89 -> 0
A90: 2.30 | B90: ='2_BLOCO A-FACHADA'!B723 -> LIMPEZA FINAL PARA ENTREGA | C90: ='2_BLOCO A-FACHADA'!F723 -> 2752.29 | D90: 0.05611512133 | E90: 0 | G90: 0 | I90: 0 | K90: =L90*C90/100 -> 0 | M90: 2752.29 | N90: 100 | O90: 0 | Q90: 0 | S90: 0 | U90: 0 | W90: 0 | Y90: 0 | AA90: 0 | AC90: =AD90*$C90/100 -> 2752.29 | AD90: 100
B91: TOTAL | C91: =SUM(C60:C90) -> 2225411.01 | D91: =SUM(D60:D90) -> 45.3728382 | E91: =SUM(E60:E90) -> 88345.2977 | F91: =E91/$C91*100 -> 3.969841854 | G91: =SUM(G60:G90) -> 317372.7225 | H91: =G91/$C91*100 -> 14.26130818 | I91: =SUM(I60:I90) -> 750844.1425 | J91: =I91/$C91*100 -> 33.73957166 | K91: =SUM(K60:K90) -> 627444.5935 | L91: =K91/$C91*100 -> 28.19454881 | M91: =SUM(M60:M90) -> 441404.2538 | N91: =M91/$C91*100 -> 19.83472949 | O91: =SUM(O60:O90) -> 0 | P91: =O91/$C91*100 -> 0 | Q91: =SUM(Q60:Q90) -> 0 | R91: =Q91/$C91*100 -> 0 | S91: =SUM(S60:S90) -> 0 | T91: =S91/$C91*100 -> 0 | U91: =SUM(U60:U90) -> 0 | V91: =U91/$C91*100 -> 0 | W91: =SUM(W60:W90) -> 0 | X91: =W91/$C91*100 -> 0 | Y91: =SUM(Y60:Y90) -> 0 | Z91: =Y91/$C91*100 -> 0 | AA91: =SUM(AA60:AA90) -> 0 | AB91: =AA91/$C91*100 -> 0 | AC91: =SUM(AC60:AC90) -> 2225411.01 | AD91: =AC91/$C91*100 -> 100
B92: TOTAL ACUMULADO | E92: =E91 -> 88345.2977 | F92: =E92/$C91*100 -> 3.969841854 | G92: =G91+E92 -> 405718.0202 | H92: =G92/$C91*100 -> 18.23115004 | I92: =I91+G92 -> 1156562.163 | J92: =I92/$C91*100 -> 51.9707217 | K92: =K91+I92 -> 1784006.756 | L92: =K92/$C91*100 -> 80.16527051 | M92: =M91+K92 -> 2225411.01 | N92: =M92/$C91*100 -> 100 | O92: =O91+M92 -> 2225411.01 | P92: =O92/$C91*100 -> 100 | Q92: =Q91+O92 -> 2225411.01 | R92: =Q92/$C91*100 -> 100 | S92: =S91+Q92 -> 2225411.01 | T92: =S92/$C91*100 -> 100 | U92: =U91+S92 -> 2225411.01 | V92: =U92/$C91*100 -> 100 | W92: =W91+U92 -> 2225411.01 | X92: =W92/$C91*100 -> 100 | Y92: =Y91+W92 -> 2225411.01 | Z92: =Y92/$C91*100 -> 100 | AA92: =AA91+Y92 -> 2225411.01 | AB92: =AA92/$C91*100 -> 100
C95: CRONOGRAMA FÍSICO FINANCEIRO | AC95: UNAEN-FF-003
AC97: Revisão: 00 | AD97: Data: 11/05/2017
A98: SESI - SERVIÇO SOCIAL DA INDUSTRIA - DR/MT
A99: ='[1]PLANILHA RESUMO LIC'!$A$7 -> UNIDADE OPERACIONAL: SESI ESCOLA VARZEA GRANDE | D99: ='[1]PLANILHA RESUMO LIC'!$A$8 -> ENDEREÇO: Av. Dom Orlando Chaves, 1086, Ponte Nova CIDADE: Varzea Grande - MT.
A100: CONSTRUTORA: | D100: =CONCATENATE(" VALOR: ","R$ ",TEXT(SUM(C138),"#.##0,00")) -> VALOR: R$ 1.844.776,08 | H100: =H6 -> PRAZO: 10 MESES
A101: RESPONSÁVEL TÉCNICO:
A103: ='3_BLOCO B'!B14 -> BLOCO B
A105: ITEM | B105: DESCRIÇÃO | C105: ETAPA TOTAL | E105: 1 MÊS | G105: 2 MESES | I105: 3 MESES | K105: 4 MESES | M105: 5 MESES | O105: 6 MESES | Q105: 7 MESES | S105: 8 MESES | U105: 9 MESES | W105: 10 MESES | AC105: TOTAL
C106: (R$) | D106: (%) | E106: (R$) | F106: (%) | G106: (R$) | H106: (%) | I106: (R$) | J106: (%) | K106: (R$) | L106: (%) | M106: (R$) | N106: (%) | O106: (R$) | P106: (%) | Q106: (R$) | R106: (%) | S106: (R$) | T106: (%) | U106: (R$) | V106: (%) | W106: (R$) | X106: (%) | Y106: (R$) | Z106: (%) | AA106: (R$) | AB106: (%) | AC106: (R$) | AD106: (%)
A107: 3.0 | B107: ='3_BLOCO B'!B16 -> DEMOLIÇÕES E RETIRADAS | C107: ='3_BLOCO B'!F16 -> 103301.46 | D107: =C107/$C$44*100 -> 2.106163944 | E107: =F107*$C107/100 -> 0 | G107: =H107*$C107/100 -> 0 | I107: =J107*$C107/100 -> 0 | K107: =L107*$C107/100 -> 0 | M107: =N107*$C107/100 -> 51650.73 | N107: 50 | O107: =P107*$C107/100 -> 51650.73 | P107: 50 | Q107: =R107*$C107/100 -> 0 | S107: =T107*$C107/100 -> 0 | U107: =V107*$C107/100 -> 0 | W107: =X107*$C107/100 -> 0 | Y107: =Z107*$C107/100 -> 0 | AA107: =AB107*$C107/100 -> 0 | AC107: =AD107*$C107/100 -> 103301.46 | AD107: =N107+L107+J107+H107+F107+P107+R107+T107+V107+X107+Z107+AB107 -> 100
A108: 3.1 | B108: ='3_BLOCO B'!B39 -> INSTALAÇÕES DE CANTEIRO (ACESSO PROVISÓRIO AO BLOCO B PARA DEMOLIÇÃO DO LOCAL ONDE SERÁ SALA DOS PROFESSORES) | C108: ='3_BLOCO B'!F39 -> 6832.21 | D108: =C108/$C$44*100 -> 0.1392986543 | E108: =F108*$C108/100 -> 0 | G108: =H108*$C108/100 -> 6832.21 | H108: 100 | I108: =J108*$C108/100 -> 0 | K108: =L108*$C108/100 -> 0 | M108: =N108*$C108/100 -> 0 | O108: =P108*$C108/100 -> 0 | Q108: =R108*$C108/100 -> 0 | S108: =T108*$C108/100 -> 0 | U108: 0 | W108: 0 | Y108: 0 | AA108: 0 | AC108: =AD108*$C108/100 -> 6832.21 | AD108: =N108+L108+J108+H108+F108+P108+R108+T108+V108+X108+Z108+AB108 -> 100
A109: 3.2 | B109: ='3_BLOCO B'!B48 -> ADMINISTRAÇÃO | C109: ='3_BLOCO B'!F48 -> 0 | D109: 0 | E109: 0 | G109: =H109*$C109/100 -> 0 | I109: =J109*$C109/100 -> 0 | K109: =L109*$C109/100 -> 0 | M109: =N109*$C109/100 -> 0 | O109: =P109*$C109/100 -> 0 | Q109: =R109*$C109/100 -> 0 | S109: =T109*$C109/100 -> 0 | U109: 0 | W109: 0 | Y109: 0 | AA109: 0 | AC109: =AD109*$C109/100 -> 0 | AD109: 0
A110: 3.3 | B110: ='3_BLOCO B'!B50 -> TERRAPLENAGEM | C110: ='3_BLOCO B'!F50 -> 0 | D110: 0 | E110: 0 | G110: 0 | I110: 0 | K110: 0 | M110: 0 | O110: 0 | Q110: 0 | S110: 0 | U110: 0 | W110: 0 | Y110: 0 | AA110: 0 | AC110: 0 | AD110: 0
A111: 3.4 | B111: ='3_BLOCO B'!B52 -> FUNDAÇÃO | C111: ='3_BLOCO B'!F52 -> 154706.93 | D111: 3.154245428 | E111: 0 | G111: 77353.465 | H111: 50 | I111: 77353.465 | J111: 50 | K111: 0 | M111: 0 | O111: 0 | Q111: 0 | S111: 0 | U111: 0 | W111: 0 | Y111: 0 | AA111: 0 | AC111: 154706.93 | AD111: 100
A112: 3.5 | B112: ='3_BLOCO B'!B100 -> IMPERMEABILIZAÇÃO | C112: ='3_BLOCO B'!F100 -> 5663.59 | D112: 0.1154722213 | E112: 0 | G112: 0 | I112: 5663.59 | J112: 100 | K112: 0 | M112: 0 | O112: 0 | Q112: 0 | S112: 0 | U112: 0 | W112: 0 | Y112: 0 | AA112: 0 | AC112: 5663.59 | AD112: 100
A113: 3.6 | B113: ='3_BLOCO B'!B103 -> ESTRUTURAS DE CONCRETO ARMADO | C113: ='3_BLOCO B'!F103 -> 7246.25 | D113: 0.1477403173 | E113: 0 | G113: 0 | I113: 0 | K113: 7246.25 | L113: 100 | M113: 0 | O113: 0 | Q113: 0 | S113: 0 | U113: 0 | W113: 0 | Y113: 0 | AA113: 0 | AC113: 7246.25 | AD113: 100
A114: 3.7 | B114: ='3_BLOCO B'!B111 -> ALVENARIAS E PAINÉIS | C114: ='3_BLOCO B'!F111 -> 20699.98 | D114: 0.4220419684 | E114: 0 | G114: 0 | I114: 0 | K114: 0 | M114: 0 | O114: 20699.98 | P114: 100 | Q114: 0 | S114: 0 | U114: 0 | W114: 0 | Y114: 0 | AA114: 0 | AC114: 20699.98 | AD114: 100
A115: 3.8 | B115: ='3_BLOCO B'!B118 -> ESTRUTURA METALICA | C115: ='3_BLOCO B'!F118 -> 225242.53 | D115: 4.592361961 | E115: 0 | G115: 0 | I115: 0 | K115: 90097.012 | L115: 40 | M115: 135145.518 | N115: 60 | O115: 0 | Q115: 0 | S115: 0 | U115: 0 | W115: 0 | Y115: 0 | AA115: 0 | AC115: 225242.53 | AD115: 100
A116: 3.9 | B116: ='3_BLOCO B'!B134 -> COBERTURA | C116: ='3_BLOCO B'!F134 -> 190072.6 | D116: 3.875299119 | E116: 0 | G116: 0 | I116: 0 | K116: 0 | M116: 0 | O116: 47518.15 | P116: 25 | Q116: 95036.3 | R116: 50 | S116: 47518.15 | T116: 25 | U116: 0 | W116: 0 | Y116: 0 | AA116: 0 | AC116: 190072.6 | AD116: 100
A117: 3.10 | B117: ='3_BLOCO B'!B141 -> ESQUADRIAS | C117: ='3_BLOCO B'!F141 -> 74246.15 | D117: 1.513769158 | E117: 0 | G117: 0 | I117: 0 | K117: 0 | M117: 0 | O117: 0 | Q117: 0 | S117: 18561.5375 | T117: 25 | U117: 37123.075 | V117: 50 | W117: 18561.5375 | X117: 25 | Y117: 0 | AA117: 0 | AC117: 74246.15 | AD117: 100
A118: 3.11 | B118: ='3_BLOCO B'!B157 -> PISOS | C118: ='3_BLOCO B'!F157 -> 169567.91 | D118: 3.457238824 | E118: 0 | G118: 0 | I118: 0 | K118: 0 | M118: 0 | O118: 0 | Q118: 84783.955 | R118: 50 | S118: 84783.955 | T118: 50 | U118: 0 | W118: 0 | Y118: 0 | AA118: 0 | AC118: 169567.91 | AD118: 100
A119: 3.12 | B119: ='3_BLOCO B'!B168 -> REVESTIMENTOS | C119: ='3_BLOCO B'!F168 -> 113871.54 | D119: 2.321672238 | E119: 0 | G119: 0 | I119: 0 | K119: 0 | M119: 0 | O119: 0 | Q119: 0 | S119: 56935.77 | T119: 50 | U119: 56935.77 | V119: 50 | W119: 0 | Y119: 0 | AA119: 0 | AC119: 113871.54 | AD119: 100
A120: 3.13 | B120: ='3_BLOCO B'!B176 -> GRANITO | C120: ='3_BLOCO B'!F176 -> 7772.47 | D120: 0.1584691646 | E120: 0 | G120: 0 | I120: 0 | K120: 0 | M120: 0 | O120: 0 | Q120: 0 | S120: 3886.235 | T120: 50 | U120: 3886.235 | V120: 50 | W120: 0 | Y120: 0 | AA120: 0 | AC120: 7772.47 | AD120: 100
A121: 3.14 | B121: ='3_BLOCO B'!B181 -> FORRO | C121: ='3_BLOCO B'!F181 -> 37321.23 | D121: 0.7609246663 | E121: 0 | G121: 0 | I121: 0 | K121: 0 | M121: 0 | O121: 0 | Q121: 0 | S121: 0 | U121: 18660.615 | V121: 50 | W121: 18660.615 | X121: 50 | Y121: 0 | AA121: 0 | AC121: 37321.23 | AD121: 100
A122: 3.15 | B122: ='3_BLOCO B'!B185 -> PINTURA | C122: ='3_BLOCO B'!F185 -> 50967.69 | D122: 1.039155797 | E122: 0 | G122: 0 | I122: 0 | K122: 0 | M122: 0 | O122: 0 | Q122: 25483.845 | R122: 50 | S122: 7645.1535 | T122: 15 | U122: 7645.1535 | V122: 15 | W122: 10193.538 | X122: 20 | Y122: 0 | AA122: 0 | AC122: 50967.69 | AD122: 100
A123: 3.16 | B123: ='3_BLOCO B'!B192 -> CALÇAMENTO, PÁTIOS E PASSARELAS | C123: ='3_BLOCO B'!F192 -> 0 | D123: 0 | E123: 0 | G123: 0 | I123: 0 | K123: 0 | M123: 0 | O123: 0 | Q123: 0 | S123: 0 | U123: 0 | W123: 0 | Y123: 0 | AA123: 0 | AC123: 0 | AD123: 0
A124: 3.17 | B124: ='3_BLOCO B'!B194 -> SERVIÇOS COMPLEMENTARES | C124: ='3_BLOCO B'!F194 -> 77327.66 | D124: 1.576596588 | E124: 0 | G124: 0 | I124: 0 | K124: 0 | M124: 0 | O124: 0 | Q124: 0 | S124: 0 | U124: 38663.83 | V124: 50 | W124: 38663.83 | X124: 50 | Y124: 0 | AA124: 0 | AC124: 77327.66 | AD124: 100
A125: 3.18 | B125: ='3_BLOCO B'!B202 -> INSTALAÇÕES DE SPDA | C125: ='3_BLOCO B'!F202 -> 0 | D125: 0 | E125: 0 | G125: 0 | I125: 0 | K125: 0 | M125: 0 | O125: 0 | Q125: 0 | S125: 0 | U125: 0 | W125: 0 | Y125: 0 | AA125: 0 | AC125: 0 | AD125: 0
A126: 3.19 | B126: ='3_BLOCO B'!B204 -> INSTALAÇÃO DE COMBATE A INCÊNDIO | C126: ='3_BLOCO B'!F204 -> 0 | D126: 0 | E126: 0 | G126: 0 | I126: 0 | K126: 0 | M126: 0 | O126: 0 | Q126: 0 | S126: 0 | U126: 0 | W126: 0 | Y126: 0 | AA126: 0 | AC126: 0 | AD126: 0
A127: 3.20 | B127: ='3_BLOCO B'!B206 -> INSTALAÇÕES ELÉTRICA | C127: ='3_BLOCO B'!F206 -> 204896.98 | D127: 4.177546296 | E127: 0 | G127: 0 | I127: 0 | K127: 0 | M127: 0 | O127: 0 | Q127: 51224.245 | R127: 25 | S127: 51224.245 | T127: 25 | U127: 61469.094 | V127: 30 | W127: 40979.396 | X127: 20 | Y127: 0 | AA127: 0 | AC127: 204896.98 | AD127: 100
A128: 3.21 | B128: ='3_BLOCO B'!B448 -> LOGICA E TELEFONICA | C128: ='3_BLOCO B'!F448 -> 70842.26 | D128: 1.444368877 | E128: 0 | G128: 0 | I128: 0 | K128: 0 | M128: 0 | O128: 0 | Q128: 17710.565 | R128: 25 | S128: 17710.565 | T128: 25 | U128: 21252.678 | V128: 30 | W128: 14168.452 | X128: 20 | Y128: 0 | AA128: 0 | AC128: 70842.26 | AD128: 100
A129: 3.22 | B129: ='3_BLOCO B'!B538 -> CLIMATIZAÇÃO - AR CONDICIONADO | C129: ='3_BLOCO B'!F538 -> 197064.7 | D129: 4.017857694 | E129: 0 | G129: 0 | I129: 0 | K129: 0 | M129: 0 | O129: 19706.47 | P129: 10 | Q129: 49266.175 | R129: 25 | S129: 49266.175 | T129: 25 | U129: 49266.175 | V129: 25 | W129: 29559.705 | X129: 15 | Y129: 0 | AA129: 0 | AC129: 197064.7 | AD129: 100
A130: 3.23 | B130: ='3_BLOCO B'!B607 -> INFRAESTRUTURA PARA INSTALAÇÃO DE AUDIO E VÍDEO | C130: ='3_BLOCO B'!F607 -> 41778.24 | D130: 0.8517965065 | E130: 0 | G130: 0 | I130: 0 | K130: 0 | M130: 0 | O130: 0 | Q130: 10444.56 | R130: 25 | S130: 10444.56 | T130: 25 | U130: 12533.472 | V130: 30 | W130: 8355.648 | X130: 20 | Y130: 0 | AA130: 0 | AC130: 41778.24 | AD130: 100
A131: 3.24 | B131: ='3_BLOCO B'!B650 -> INSTALAÇÕES HIDRAULICAS | C131: ='3_BLOCO B'!F650 -> 0 | D131: 0 | E131: 0 | G131: 0 | I131: 0 | K131: 0 | M131: 0 | O131: 0 | Q131: 0 | S131: 0 | U131: 0 | W131: 0 | Y131: 0 | AA131: 0 | AC131: 0 | AD131: 0
A132: 3.25 | B132: ='3_BLOCO B'!B652 -> ÁGUAS PLUVIAIS DE COBERTURA | C132: ='3_BLOCO B'!F652 -> 67570.52 | D132: 1.377662938 | E132: 0 | G132: 0 | I132: 0 | K132: 0 | M132: 0 | O132: 13514.104 | P132: 20 | Q132: 33785.26 | R132: 50 | S132: 20271.156 | T132: 30 | U132: 0 | W132: 0 | Y132: 0 | AA132: 0 | AC132: 67570.52 | AD132: 100
A133: 3.26 | B133: ='3_BLOCO B'!B672 -> INSTALAÇÕES SANITÁRIAS | C133: ='3_BLOCO B'!F672 -> 0 | D133: 0 | E133: 0 | G133: 0 | I133: 0 | K133: 0 | M133: 0 | O133: 0 | Q133: 0 | S133: 0 | U133: 0 | W133: 0 | Y133: 0 | AA133: 0 | AC133: 0 | AD133: 0
A134: 3.27 | B134: ='3_BLOCO B'!B674 -> LOUÇAS E METÁIS | C134: ='3_BLOCO B'!F674 -> 14769.02 | D134: 0.3011184684 | E134: 0 | G134: 0 | I134: 0 | K134: 0 | M134: 0 | O134: 0 | Q134: 0 | S134: 2953.804 | T134: 20 | U134: 7384.51 | V134: 50 | W134: 4430.706 | X134: 30 | Y134: 0 | AA134: 0 | AC134: 14769.02 | AD134: 100
A135: 3.28 | B135: ='3_BLOCO B'!B688 -> SISTEMA DE TRATAMENTO DE ESGOTO | C135: ='3_BLOCO B'!F688 -> 0 | D135: 0 | E135: 0 | G135: 0 | I135: 0 | K135: 0 | M135: 0 | O135: 0 | Q135: 0 | S135: 0 | U135: 0 | W135: 0 | Y135: 0 | AA135: 0 | AC135: 0 | AD135: 0
A136: 3.29 | B136: ='3_BLOCO B'!B690 -> LIMPEZA CONTÍNUA DA OBRA | C136: ='3_BLOCO B'!F690 -> 0 | D136: 0 | E136: 0 | G136: 0 | I136: 0 | K136: 0 | M136: 0 | O136: 0 | Q136: 0 | S136: 0 | U136: 0 | W136: 0 | Y136: 0 | AA136: 0 | AC136: 0 | AD136: 0
A137: 3.30 | B137: ='3_BLOCO B'!B692 -> LIMPEZA FINAL PARA ENTREGA | C137: ='3_BLOCO B'!F692 -> 3014.16 | D137: 0.06145426322 | E137: 0 | G137: 0 | I137: 0 | K137: =L137*C137/100 -> 0 | M137: 0 | O137: 0 | Q137: 0 | S137: 0 | U137: 0 | W137: 3014.16 | X137: 100 | Y137: 0 | AA137: 0 | AC137: =AD137*$C137/100 -> 3014.16 | AD137: 100
B138: TOTAL | C138: =SUM(C107:C137) -> 1844776.08 | D138: =SUM(D107:D137) -> 37.61225509 | E138: =SUM(E107:E137) -> 0 | F138: =E138/$C138*100 -> 0 | G138: =SUM(G107:G137) -> 84185.675 | H138: =G138/$C138*100 -> 4.563463063 | I138: =SUM(I107:I137) -> 83017.055 | J138: =I138/$C138*100 -> 4.500115537 | K138: =SUM(K107:K137) -> 97343.262 | L138: =K138/$C138*100 -> 5.276697972 | M138: =SUM(M107:M137) -> 186796.248 | N138: =M138/$C138*100 -> 10.1256868 | O138: =SUM(O107:O137) -> 153089.434 | P138: =O138/$C138*100 -> 8.298537457 | Q138: =SUM(Q107:Q137) -> 367734.905 | R138: =Q138/$C138*100 -> 19.93385045 | S138: =SUM(S107:S137) -> 371201.306 | T138: =S138/$C138*100 -> 20.12175407 | U138: =SUM(U107:U137) -> 314820.6075 | V138: =U138/$C138*100 -> 17.06551873 | W138: =SUM(W107:W137) -> 186587.5875 | X138: =W138/$C138*100 -> 10.11437591 | Y138: =SUM(Y107:Y137) -> 0 | Z138: =Y138/$C138*100 -> 0 | AA138: =SUM(AA107:AA137) -> 0 | AB138: =AA138/$C138*100 -> 0 | AC138: =SUM(AC107:AC137) -> 1844776.08 | AD138: =AC138/$C138*100 -> 100
B139: TOTAL ACUMULADO | E139: =E138 -> 0 | F139: =E139/$C138*100 -> 0 | G139: =G138+E139 -> 84185.675 | H139: =G139/$C138*100 -> 4.563463063 | I139: =I138+G139 -> 167202.73 | J139: =I139/$C138*100 -> 9.0635786 | K139: =K138+I139 -> 264545.992 | L139: =K139/$C138*100 -> 14.34027657 | M139: =M138+K139 -> 451342.24 | N139: =M139/$C138*100 -> 24.46596337 | O139: =O138+M139 -> 604431.674 | P139: =O139/$C138*100 -> 32.76450083 | Q139: =Q138+O139 -> 972166.579 | R139: =Q139/$C138*100 -> 52.69835128 | S139: =S138+Q139 -> 1343367.885 | T139: =S139/$C138*100 -> 72.82010535 | U139: =U138+S139 -> 1658188.492 | V139: =U139/$C138*100 -> 89.88562409 | W139: =W138+U139 -> 1844776.08 | X139: =W139/$C138*100 -> 100 | Y139: =Y138+W139 -> 1844776.08 | Z139: =Y139/$C138*100 -> 100 | AA139: =AA138+Y139 -> 1844776.08 | AB139: =AA139/$C138*100 -> 100
C142: CRONOGRAMA FÍSICO FINANCEIRO | AC142: UNAEN-FF-003
AC144: Revisão: 00 | AD144: Data: 11/05/2017
A145: SESI - SERVIÇO SOCIAL DA INDUSTRIA - DR/MT
A146: ='[1]PLANILHA RESUMO LIC'!$A$7 -> UNIDADE OPERACIONAL: SESI ESCOLA VARZEA GRANDE | D146: ='[1]PLANILHA RESUMO LIC'!$A$8 -> ENDEREÇO: Av. Dom Orlando Chaves, 1086, Ponte Nova CIDADE: Varzea Grande - MT.
A147: CONSTRUTORA: | D147: =CONCATENATE(" VALOR: ","R$ ",TEXT(SUM(C185),"#.##0,00")) -> VALOR: R$ 1.255.678,36 | H147: =H6 -> PRAZO: 10 MESES
A148: RESPONSÁVEL TÉCNICO:
A150: BLOCO C
A152: ITEM | B152: DESCRIÇÃO | C152: ETAPA TOTAL | E152: 1 MÊS | G152: 2 MESES | I152: 3 MESES | K152: 4 MESES | M152: 5 MESES | O152: 6 MESES | Q152: 7 MESES | S152: 8 MESES | U152: 9 MESES | W152: 10 MESES | AC152: TOTAL
C153: (R$) | D153: (%) | E153: (R$) | F153: (%) | G153: (R$) | H153: (%) | I153: (R$) | J153: (%) | K153: (R$) | L153: (%) | M153: (R$) | N153: (%) | O153: (R$) | P153: (%) | Q153: (R$) | R153: (%) | S153: (R$) | T153: (%) | U153: (R$) | V153: (%) | W153: (R$) | X153: (%) | Y153: (R$) | Z153: (%) | AA153: (R$) | AB153: (%) | AC153: (R$) | AD153: (%)
A154: 4.0 | B154: ='4_BLOCO C'!B16 -> DEMOLIÇÕES E RETIRADAS | C154: ='4_BLOCO C'!F16 -> 47451.54 | D154: =C154/$C$44*100 -> 0.9674667003 | E154: =F154*$C154/100 -> 23725.77 | F154: 50 | G154: =H154*$C154/100 -> 23725.77 | H154: 50 | I154: =J154*$C154/100 -> 0 | K154: =L154*$C154/100 -> 0 | M154: =N154*$C154/100 -> 0 | O154: =P154*$C154/100 -> 0 | Q154: =R154*$C154/100 -> 0 | S154: =T154*$C154/100 -> 0 | U154: =V154*$C154/100 -> 0 | W154: =X154*$C154/100 -> 0 | Y154: =Z154*$C154/100 -> 0 | AA154: =AB154*$C154/100 -> 0 | AC154: =AD154*$C154/100 -> 47451.54 | AD154: =N154+L154+J154+H154+F154+P154+R154+T154+V154+X154+Z154+AB154 -> 100
A155: 4.1 | B155: ='4_BLOCO C'!B37 -> INSTALAÇÕES DE CANTEIRO | C155: ='4_BLOCO C'!F37 -> 0 | D155: =C155/$C$44*100 -> 0 | E155: =F155*$C155/100 -> 0 | G155: =H155*$C155/100 -> 0 | I155: =J155*$C155/100 -> 0 | K155: =L155*$C155/100 -> 0 | M155: =N155*$C155/100 -> 0 | O155: =P155*$C155/100 -> 0 | Q155: =R155*$C155/100 -> 0 | S155: =T155*$C155/100 -> 0 | U155: 0 | W155: 0 | Y155: 0 | AA155: 0 | AC155: =AD155*$C155/100 -> 0 | AD155: =N155+L155+J155+H155+F155+P155+R155+T155+V155+X155+Z155+AB155 -> 0
A156: 4.2 | B156: ='4_BLOCO C'!B39 -> ADMINISTRAÇÃO | C156: ='4_BLOCO C'!F39 -> 0 | D156: 0 | E156: 0 | G156: =H156*$C156/100 -> 0 | I156: =J156*$C156/100 -> 0 | K156: =L156*$C156/100 -> 0 | M156: =N156*$C156/100 -> 0 | O156: =P156*$C156/100 -> 0 | Q156: =R156*$C156/100 -> 0 | S156: =T156*$C156/100 -> 0 | U156: 0 | W156: 0 | Y156: 0 | AA156: 0 | AC156: =AD156*$C156/100 -> 0 | AD156: 0
A157: 4.3 | B157: ='4_BLOCO C'!B41 -> TERRAPLENAGEM | C157: ='4_BLOCO C'!F41 -> 0 | D157: 0 | E157: 0 | G157: 0 | I157: 0 | K157: 0 | M157: 0 | O157: 0 | Q157: 0 | S157: 0 | U157: 0 | W157: 0 | Y157: 0 | AA157: 0 | AC157: 0 | AD157: 0
A158: 4.4 | B158: ='4_BLOCO C'!B43 -> FUNDAÇÃO | C158: ='4_BLOCO C'!F43 -> 63486.26 | D158: 1.294390919 | E158: 0 | G158: 31743.13 | H158: 50 | I158: 31743.13 | J158: 50 | K158: 0 | M158: 0 | O158: 0 | Q158: 0 | S158: 0 | U158: 0 | W158: 0 | Y158: 0 | AA158: 0 | AC158: 63486.26 | AD158: 100
A159: 4.5 | B159: ='4_BLOCO C'!B67 -> IMPERMEABILIZAÇÃO | C159: ='4_BLOCO C'!F67 -> 1617.5 | D159: 0.03297843205 | E159: 0 | G159: 0 | I159: 1617.5 | J159: 100 | K159: 0 | M159: 0 | O159: 0 | Q159: 0 | S159: 0 | U159: 0 | W159: 0 | Y159: 0 | AA159: 0 | AC159: 1617.5 | AD159: 100
A160: 4.6 | B160: ='4_BLOCO C'!B70 -> ESTRUTURAS DE CONCRETO ARMADO | C160: ='4_BLOCO C'!F70 -> 9909.2 | D160: 0.2020339282 | E160: 0 | G160: 0 | I160: 9909.2 | J160: 100 | K160: 0 | M160: 0 | O160: 0 | Q160: 0 | S160: 0 | U160: 0 | W160: 0 | Y160: 0 | AA160: 0 | AC160: 9909.2 | AD160: 100
A161: 4.7 | B161: ='4_BLOCO C'!B78 -> ALVENARIAS E PAINÉIS | C161: ='4_BLOCO C'!F78 -> 17471.31 | D161: 0.3562141637 | E161: 0 | G161: 0 | I161: 0 | K161: 17471.31 | L161: 100 | M161: 0 | O161: 0 | Q161: 0 | S161: 0 | U161: 0 | W161: 0 | Y161: 0 | AA161: 0 | AC161: 17471.31 | AD161: 100
A162: 4.8 | B162: ='4_BLOCO C'!B85 -> ESTRUTURA METALICA | C162: ='4_BLOCO C'!F85 -> 33100.51 | D162: 0.6748704297 | E162: 0 | G162: 0 | I162: 16550.255 | J162: 50 | K162: 16550.255 | L162: 50 | M162: 0 | O162: 0 | Q162: 0 | S162: 0 | U162: 0 | W162: 0 | Y162: 0 | AA162: 0 | AC162: 33100.51 | AD162: 100
A163: 4.9 | B163: ='4_BLOCO C'!B91 -> COBERTURA | C163: ='4_BLOCO C'!F91 -> 30605.32 | D163: 0.623997197 | E163: 0 | G163: 15302.66 | H163: 50 | I163: 3060.532 | J163: 10 | K163: 12242.128 | L163: 40 | M163: 0 | O163: 0 | Q163: 0 | S163: 0 | U163: 0 | W163: 0 | Y163: 0 | AA163: 0 | AC163: 30605.32 | AD163: 100
A164: 4.10 | B164: ='4_BLOCO C'!B96 -> ESQUADRIAS | C164: ='4_BLOCO C'!F96 -> 67363.8 | D164: 1.373448223 | E164: 0 | G164: 0 | I164: 20209.14 | J164: 30 | K164: 20209.14 | L164: 30 | M164: 26945.52 | N164: 40 | O164: 0 | Q164: 0 | S164: 0 | U164: 0 | W164: 0 | Y164: 0 | AA164: 0 | AC164: 67363.8 | AD164: 100
A165: 4.11 | B165: ='4_BLOCO C'!B110 -> PISOS | C165: ='4_BLOCO C'!F110 -> 94837 | D165: 1.933586127 | E165: 18967.4 | F165: 20 | G165: 28451.1 | H165: 30 | I165: 47418.5 | J165: 50 | K165: 0 | M165: 0 | O165: 0 | Q165: 0 | S165: 0 | U165: 0 | W165: 0 | Y165: 0 | AA165: 0 | AC165: 94837 | AD165: 100
A166: 4.12 | B166: ='4_BLOCO C'!B117 -> REVESTIMENTOS | C166: ='4_BLOCO C'!F117 -> 175149.28 | D166: 3.571034702 | E166: 0 | G166: 0 | I166: 87574.64 | J166: 50 | K166: 87574.64 | L166: 50 | M166: 0 | O166: 0 | Q166: 0 | S166: 0 | U166: 0 | W166: 0 | Y166: 0 | AA166: 0 | AC166: 175149.28 | AD166: 100
A167: 4.13 | B167: ='4_BLOCO C'!B125 -> GRANITO | C167: ='4_BLOCO C'!F125 -> 7848.41 | D167: 0.1600174689 | E167: 0 | G167: 0 | I167: 0 | K167: 3924.205 | L167: 50 | M167: 3924.205 | N167: 50 | O167: 0 | Q167: 0 | S167: 0 | U167: 0 | W167: 0 | Y167: 0 | AA167: 0 | AC167: 7848.41 | AD167: 100
A168: 4.14 | B168: ='4_BLOCO C'!B131 -> FORRO | C168: ='4_BLOCO C'!F131 -> 48908.64 | D168: 0.9971748137 | E168: 0 | G168: 0 | I168: 19563.456 | J168: 40 | K168: 19563.456 | L168: 40 | M168: 9781.728 | N168: 20 | O168: 0 | Q168: 0 | S168: 0 | U168: 0 | W168: 0 | Y168: 0 | AA168: 0 | AC168: 48908.64 | AD168: =N168+L168+J168+H168+F168+P168+R168+T168+V168+X168+Z168+AB168 -> 100
A169: 4.15 | B169: ='4_BLOCO C'!B135 -> PINTURA | C169: ='4_BLOCO C'!F135 -> 70375.4 | D169: 1.434850292 | E169: 21112.62 | F169: 30 | G169: 14075.08 | H169: 20 | I169: 14075.08 | J169: 20 | K169: 14075.08 | L169: 20 | M169: 7037.54 | N169: 10 | O169: 0 | Q169: 0 | S169: 0 | U169: 0 | W169: 0 | Y169: 0 | AA169: 0 | AC169: 70375.4 | AD169: 100
A170: 4.16 | B170: ='4_BLOCO C'!B143 -> CALÇAMENTO, PÁTIOS E PASSARELAS | C170: ='4_BLOCO C'!F143 -> 0 | D170: 0 | E170: 0 | G170: 0 | I170: 0 | K170: 0 | M170: 0 | O170: 0 | Q170: 0 | S170: 0 | U170: 0 | W170: 0 | Y170: 0 | AA170: 0 | AC170: 0 | AD170: 0
A171: 4.17 | B171: ='4_BLOCO C'!B145 -> SERVIÇOS COMPLEMENTARES | C171: ='4_BLOCO C'!F145 -> 66388.81 | D171: 1.35356962 | E171: 0 | G171: 0 | I171: 0 | K171: 32530.5169 | L171: 49 | M171: 33858.2931 | N171: 51 | O171: 0 | Q171: 0 | S171: 0 | U171: 0 | W171: 0 | Y171: 0 | AA171: 0 | AC171: 66388.81 | AD171: 100
A172: 4.18 | B172: ='4_BLOCO C'!B151 -> INSTALAÇÕES DE SPDA | C172: ='4_BLOCO C'!F151 -> 0 | D172: 0 | E172: 0 | G172: 0 | I172: 0 | K172: 0 | M172: 0 | O172: 0 | Q172: 0 | S172: 0 | U172: 0 | W172: 0 | Y172: 0 | AA172: 0 | AC172: 0 | AD172: 0
A173: 4.19 | B173: ='4_BLOCO C'!B153 -> INSTALAÇÃO DE COMBATE A INCÊNDIO | C173: ='4_BLOCO C'!F153 -> 0 | D173: 0 | E173: 0 | G173: 0 | I173: 0 | K173: 0 | M173: 0 | O173: 0 | Q173: 0 | S173: 0 | U173: 0 | W173: 0 | Y173: 0 | AA173: 0 | AC173: 0 | AD173: 0
A174: 4.20 | B174: ='4_BLOCO C'!B155 -> INSTALAÇÕES ELÉTRICA | C174: ='4_BLOCO C'!F155 -> 186041.83 | D174: 3.793117682 | E174: 0 | G174: 0 | I174: 55812.549 | J174: 30 | K174: 74416.732 | L174: 40 | M174: 55812.549 | N174: 30 | O174: 0 | Q174: 0 | S174: 0 | U174: 0 | W174: 0 | Y174: 0 | AA174: 0 | AC174: 186041.83 | AD174: 100
A175: 4.21 | B175: ='4_BLOCO C'!B379 -> LOGICA E TELEFONICA | C175: ='4_BLOCO C'!F379 -> 45754.95 | D175: 0.9328757402 | E175: 0 | G175: 0 | I175: 13726.485 | J175: 30 | K175: 18301.98 | L175: 40 | M175: 13726.485 | N175: 30 | O175: 0 | Q175: 0 | S175: 0 | U175: 0 | W175: 0 | Y175: 0 | AA175: 0 | AC175: 45754.95 | AD175: 100
A176: 4.22 | B176: ='4_BLOCO C'!B449 -> CLIMATIZAÇÃO - AR CONDICIONADO | C176: ='4_BLOCO C'!F449 -> 187636.71 | D176: 3.825634925 | E176: 18763.671 | F176: 10 | G176: 46909.1775 | H176: 25 | I176: 46909.1775 | J176: 25 | K176: 46909.1775 | L176: 25 | M176: 28145.5065 | N176: 15 | O176: 0 | Q176: 0 | S176: 0 | U176: 0 | W176: 0 | Y176: 0 | AA176: 0 | AC176: 187636.71 | AD176: 100
A177: 4.23 | B177: ='4_BLOCO C'!B510 -> INFRAESTRUTURA PARA INSTALAÇÃO DE AUDIO E VÍDEO | C177: ='4_BLOCO C'!F510 -> 45075.27 | D177: 0.9190180705 | E177: 0 | G177: 0 | I177: 0 | K177: 22537.635 | L177: 50 | M177: 22537.635 | N177: 50 | O177: 0 | Q177: 0 | S177: 0 | U177: 0 | W177: 0 | Y177: 0 | AA177: 0 | AC177: 45075.27 | AD177: 100
A178: 4.24 | B178: ='4_BLOCO C'!B531 -> INSTALAÇÕES HIDRAULICAS | C178: ='4_BLOCO C'!F531 -> 0 | D178: 0 | E178: 0 | G178: 0 | I178: 0 | K178: 0 | M178: 0 | O178: 0 | Q178: 0 | S178: 0 | U178: 0 | W178: 0 | Y178: 0 | AA178: 0 | AC178: 0 | AD178: 0
A179: 4.25 | B179: ='4_BLOCO C'!B533 -> ÁGUAS PLUVIAIS DE COBERTURA | C179: ='4_BLOCO C'!F533 -> 27422.83 | D179: 0.5591109341 | E179: 5484.566 | F179: 20 | G179: 13711.415 | H179: 50 | I179: 8226.849 | J179: 30 | K179: 0 | M179: 0 | O179: 0 | Q179: 0 | S179: 0 | U179: 0 | W179: 0 | Y179: 0 | AA179: 0 | AC179: 27422.83 | AD179: 100
A180: 4.26 | B180: ='4_BLOCO C'!B543 -> INSTALAÇÕES SANITÁRIAS | C180: ='4_BLOCO C'!F543 -> 0 | D180: 0 | E180: 0 | G180: 0 | I180: 0 | K180: 0 | M180: 0 | O180: 0 | Q180: 0 | S180: 0 | U180: 0 | W180: 0 | Y180: 0 | AA180: 0 | AC180: 0 | AD180: 0
A181: 4.27 | B181: ='4_BLOCO C'!B545 -> LOUÇAS E METÁIS | C181: ='4_BLOCO C'!F545 -> 24823.92 | D181: 0.506123004 | E181: 0 | G181: 0 | I181: 0 | K181: 12411.96 | L181: 50 | M181: 12411.96 | N181: 50 | O181: 0 | Q181: 0 | S181: 0 | U181: 0 | W181: 0 | Y181: 0 | AA181: 0 | AC181: 24823.92 | AD181: 100
A182: 4.28 | B182: ='4_BLOCO C'!B564 -> SISTEMA DE TRATAMENTO DE ESGOTO | C182: ='4_BLOCO C'!F564 -> 0 | D182: 0 | E182: 0 | G182: 0 | I182: 0 | K182: 0 | M182: 0 | O182: 0 | Q182: 0 | S182: 0 | U182: 0 | W182: 0 | Y182: 0 | AA182: 0 | AC182: 0 | AD182: 0
A183: 4.29 | B183: ='4_BLOCO C'!B566 -> LIMPEZA CONTÍNUA DA OBRA | C183: ='4_BLOCO C'!F566 -> 0 | D183: 0 | E183: 0 | G183: 0 | I183: 0 | K183: 0 | M183: 0 | O183: 0 | Q183: 0 | S183: 0 | U183: 0 | W183: 0 | Y183: 0 | AA183: 0 | AC183: 0 | AD183: 0
A184: 4.30 | B184: ='4_BLOCO C'!B568 -> LIMPEZA FINAL PARA ENTREGA | C184: ='4_BLOCO C'!F568 -> 4409.87 | D184: 0.08991072529 | E184: 0 | G184: 0 | I184: 0 | K184: =L184*C184/100 -> 0 | M184: 4409.87 | N184: 100 | O184: 0 | Q184: 0 | S184: 0 | U184: 0 | W184: 0 | Y184: 0 | AA184: 0 | AC184: =AD184*$C184/100 -> 4409.87 | AD184: 100
B185: TOTAL | C185: =SUM(C154:C184) -> 1255678.36 | D185: =SUM(D154:D184) -> 25.6014241 | E185: =SUM(E154:E184) -> 88054.027 | F185: =E185/$C185*100 -> 7.012466712 | G185: =SUM(G154:G184) -> 173918.3325 | H185: =G185/$C185*100 -> 13.85054788 | I185: =SUM(I154:I184) -> 376396.4935 | J185: =I185/$C185*100 -> 29.97554991 | K185: =SUM(K154:K184) -> 398718.2154 | L185: =K185/$C185*100 -> 31.7532123 | M185: =SUM(M154:M184) -> 218591.2916 | N185: =M185/$C185*100 -> 17.4082232 | O185: =SUM(O154:O184) -> 0 | P185: =O185/$C185*100 -> 0 | Q185: =SUM(Q154:Q184) -> 0 | R185: =Q185/$C185*100 -> 0 | S185: =SUM(S154:S184) -> 0 | T185: =S185/$C185*100 -> 0 | U185: =SUM(U154:U184) -> 0 | V185: =U185/$C185*100 -> 0 | W185: =SUM(W154:W184) -> 0 | X185: =W185/$C185*100 -> 0 | Y185: =SUM(Y154:Y184) -> 0 | Z185: =Y185/$C185*100 -> 0 | AA185: =SUM(AA154:AA184) -> 0 | AB185: =AA185/$C185*100 -> 0 | AC185: =SUM(AC154:AC184) -> 1255678.36 | AD185: =AC185/$C185*100 -> 100
B186: TOTAL ACUMULADO | E186: =E185 -> 88054.027 | F186: =E186/$C185*100 -> 7.012466712 | G186: =G185+E186 -> 261972.3595 | H186: =G186/$C185*100 -> 20.86301459 | I186: =I185+G186 -> 638368.853 | J186: =I186/$C185*100 -> 50.8385645 | K186: =K185+I186 -> 1037087.068 | L186: =K186/$C185*100 -> 82.5917768 | M186: =M185+K186 -> 1255678.36 | N186: =M186/$C185*100 -> 100 | O186: =O185+M186 -> 1255678.36 | P186: =O186/$C185*100 -> 100 | Q186: =Q185+O186 -> 1255678.36 | R186: =Q186/$C185*100 -> 100 | S186: =S185+Q186 -> 1255678.36 | T186: =S186/$C185*100 -> 100 | U186: =U185+S186 -> 1255678.36 | V186: =U186/$C185*100 -> 100 | W186: =W185+U186 -> 1255678.36 | X186: =W186/$C185*100 -> 100 | Y186: =Y185+W186 -> 1255678.36 | Z186: =Y186/$C185*100 -> 100 | AA186: =AA185+Y186 -> 1255678.36 | AB186: =AA186/$C185*100 -> 100
C189: CRONOGRAMA FÍSICO FINANCEIRO | AC189: UNAEN-FF-003
AC191: Revisão: 00 | AD191: Data: 11/05/2017
A192: SESI - SERVIÇO SOCIAL DA INDUSTRIA - DR/MT
A193: ='[1]PLANILHA RESUMO LIC'!$A$7 -> UNIDADE OPERACIONAL: SESI ESCOLA VARZEA GRANDE | D193: ='[1]PLANILHA RESUMO LIC'!$A$8 -> ENDEREÇO: Av. Dom Orlando Chaves, 1086, Ponte Nova CIDADE: Varzea Grande - MT.
A194: CONSTRUTORA: | D194: =CONCATENATE(" VALOR: ","R$ ",TEXT(SUM(C232),"#.##0,00")) -> VALOR: R$ 2.690.635,86 | H194: =H6 -> PRAZO: 10 MESES
A195: RESPONSÁVEL TÉCNICO:
A197: BLOCO D
A199: ITEM | B199: DESCRIÇÃO | C199: ETAPA TOTAL | E199: 1 MÊS | G199: 2 MESES | I199: 3 MESES | K199: 4 MESES | M199: 5 MESES | O199: 6 MESES | Q199: 7 MESES | S199: 8 MESES | U199: 9 MESES | W199: 10 MESES | AC199: TOTAL
C200: (R$) | D200: (%) | E200: (R$) | F200: (%) | G200: (R$) | H200: (%) | I200: (R$) | J200: (%) | K200: (R$) | L200: (%) | M200: (R$) | N200: (%) | O200: (R$) | P200: (%) | Q200: (R$) | R200: (%) | S200: (R$) | T200: (%) | U200: (R$) | V200: (%) | W200: (R$) | X200: (%) | Y200: (R$) | Z200: (%) | AA200: (R$) | AB200: (%) | AC200: (R$) | AD200: (%)
A201: 5.0 | B201: ='5_BLOCO D'!B16 -> DEMOLIÇÕES E RETIRADAS | C201: ='5_BLOCO D'!F16 -> 27795.95 | D201: =C201/$C$44*100 -> 0.5667182989 | E201: =F201*$C201/100 -> 13897.975 | F201: 50 | G201: =H201*$C201/100 -> 13897.975 | H201: 50 | I201: =J201*$C201/100 -> 0 | K201: =L201*$C201/100 -> 0 | M201: =N201*$C201/100 -> 0 | O201: =P201*$C201/100 -> 0 | Q201: =R201*$C201/100 -> 0 | S201: =T201*$C201/100 -> 0 | U201: =V201*$C201/100 -> 0 | W201: =X201*$C201/100 -> 0 | Y201: =Z201*$C201/100 -> 0 | AA201: =AB201*$C201/100 -> 0 | AC201: =AD201*$C201/100 -> 27795.95 | AD201: =N201+L201+J201+H201+F201+P201+R201+T201+V201+X201+Z201+AB201 -> 100
A202: 5.1 | B202: ='5_BLOCO D'!B30 -> INSTALAÇÕES DE CANTEIRO | C202: ='5_BLOCO D'!F30 -> 0 | D202: =C202/$C$44*100 -> 0 | E202: =F202*$C202/100 -> 0 | G202: =H202*$C202/100 -> 0 | I202: =J202*$C202/100 -> 0 | K202: =L202*$C202/100 -> 0 | M202: =N202*$C202/100 -> 0 | O202: =P202*$C202/100 -> 0 | Q202: =R202*$C202/100 -> 0 | S202: =T202*$C202/100 -> 0 | U202: 0 | W202: 0 | Y202: 0 | AA202: 0 | AC202: =AD202*$C202/100 -> 0 | AD202: =N202+L202+J202+H202+F202+P202+R202+T202+V202+X202+Z202+AB202 -> 0
A203: 5.2 | B203: ='5_BLOCO D'!B32 -> ADMINISTRAÇÃO | C203: ='5_BLOCO D'!F32 -> 0 | D203: 0 | E203: 0 | G203: =H203*$C203/100 -> 0 | I203: =J203*$C203/100 -> 0 | K203: =L203*$C203/100 -> 0 | M203: =N203*$C203/100 -> 0 | O203: =P203*$C203/100 -> 0 | Q203: =R203*$C203/100 -> 0 | S203: =T203*$C203/100 -> 0 | U203: 0 | W203: 0 | Y203: 0 | AA203: 0 | AC203: =AD203*$C203/100 -> 0 | AD203: 0
A204: 5.3 | B204: ='5_BLOCO D'!B34 -> TERRAPLENAGEM | C204: ='5_BLOCO D'!F34 -> 0 | D204: 0 | E204: 0 | G204: 0 | I204: 0 | K204: 0 | M204: 0 | O204: 0 | Q204: 0 | S204: 0 | U204: 0 | W204: 0 | Y204: 0 | AA204: 0 | AC204: 0 | AD204: 0
A205: 5.4 | B205: ='5_BLOCO D'!B36 -> FUNDAÇÃO | C205: ='5_BLOCO D'!F36 -> 188371.93 | D205: 3.840624973 | E205: 0 | G205: 94185.965 | H205: 50 | I205: 94185.965 | J205: 50 | K205: 0 | M205: 0 | O205: 0 | Q205: 0 | S205: 0 | U205: 0 | W205: 0 | Y205: 0 | AA205: 0 | AC205: 188371.93 | AD205: 100
A206: 5.5 | B206: ='5_BLOCO D'!B92 -> IMPERMEABILIZAÇÃO | C206: ='5_BLOCO D'!F92 -> 7277.03 | D206: 0.148367876 | E206: 0 | G206: 0 | I206: 7277.03 | J206: 100 | K206: 0 | M206: 0 | O206: 0 | Q206: 0 | S206: 0 | U206: 0 | W206: 0 | Y206: 0 | AA206: 0 | AC206: 7277.03 | AD206: 100
A207: 5.6 | B207: ='5_BLOCO D'!B95 -> ESTRUTURAS DE CONCRETO ARMADO | C207: ='5_BLOCO D'!F95 -> 95889.9 | D207: 1.955053201 | E207: 0 | G207: 0 | I207: 95889.9 | J207: 100 | K207: 0 | M207: 0 | O207: 0 | Q207: 0 | S207: 0 | U207: 0 | W207: 0 | Y207: 0 | AA207: 0 | AC207: 95889.9 | AD207: 100
A208: 5.7 | B208: ='5_BLOCO D'!B146 -> ALVENARIAS E PAINÉIS | C208: ='5_BLOCO D'!F146 -> 69251.63 | D208: 1.411938284 | E208: 0 | G208: 0 | I208: 0 | K208: 69251.63 | L208: 100 | M208: 0 | O208: 0 | Q208: 0 | S208: 0 | U208: 0 | W208: 0 | Y208: 0 | AA208: 0 | AC208: 69251.63 | AD208: 100
A209: 5.8 | B209: ='5_BLOCO D'!B154 -> ESTRUTURA METALICA | C209: ='5_BLOCO D'!F154 -> 93000.15 | D209: 1.896135473 | E209: 0 | G209: 0 | I209: 46500.075 | J209: 50 | K209: 46500.075 | L209: 50 | M209: 0 | O209: 0 | Q209: 0 | S209: 0 | U209: 0 | W209: 0 | Y209: 0 | AA209: 0 | AC209: 93000.15 | AD209: 100
A210: 5.9 | B210: ='5_BLOCO D'!B170 -> COBERTURA - AMPLIAÇÕES BLOCO D | C210: ='5_BLOCO D'!F170 -> 40759.61 | D210: 0.8310281477 | E210: 0 | G210: 20379.805 | H210: 50 | I210: 4075.961 | J210: 10 | K210: 16303.844 | L210: 40 | M210: 0 | O210: 0 | Q210: 0 | S210: 0 | U210: 0 | W210: 0 | Y210: 0 | AA210: 0 | AC210: 40759.61 | AD210: 100
A211: 5.10 | B211: ='5_BLOCO D'!B175 -> ESQUADRIAS | C211: ='5_BLOCO D'!F175 -> 162554.33 | D211: 3.314242304 | E211: 0 | G211: 0 | I211: 48766.299 | J211: 30 | K211: 48766.299 | L211: 30 | M211: 65021.732 | N211: 40 | O211: 0 | Q211: 0 | S211: 0 | U211: 0 | W211: 0 | Y211: 0 | AA211: 0 | AC211: 162554.33 | AD211: 100
A212: 5.11 | B212: ='5_BLOCO D'!B193 -> PISOS | C212: ='5_BLOCO D'!F193 -> 290535.94 | D212: 5.923597995 | E212: 58107.188 | F212: 20 | G212: 87160.782 | H212: 30 | I212: 145267.97 | J212: 50 | K212: 0 | M212: 0 | O212: 0 | Q212: 0 | S212: 0 | U212: 0 | W212: 0 | Y212: 0 | AA212: 0 | AC212: 290535.94 | AD212: 100
A213: 5.12 | B213: ='5_BLOCO D'!B198 -> REVESTIMENTOS | C213: ='5_BLOCO D'!F198 -> 231142.34 | D213: 4.712650358 | E213: 0 | G213: 0 | I213: 115571.17 | J213: 50 | K213: 115571.17 | L213: 50 | M213: 0 | O213: 0 | Q213: 0 | S213: 0 | U213: 0 | W213: 0 | Y213: 0 | AA213: 0 | AC213: 231142.34 | AD213: 100
A214: 5.13 | B214: ='5_BLOCO D'!B206 -> GRANITO | C214: ='5_BLOCO D'!F206 -> 49621.49 | D214: 1.011708771 | E214: 0 | G214: 0 | I214: 0 | K214: 24810.745 | L214: 50 | M214: 24810.745 | N214: 50 | O214: 0 | Q214: 0 | S214: 0 | U214: 0 | W214: 0 | Y214: 0 | AA214: 0 | AC214: 49621.49 | AD214: 100
A215: 5.14 | B215: ='5_BLOCO D'!B212 -> FORRO | C215: ='5_BLOCO D'!F212 -> 56148.27 | D215: 1.144780159 | E215: 0 | G215: 0 | I215: 22459.308 | J215: 40 | K215: 22459.308 | L215: 40 | M215: 11229.654 | N215: 20 | O215: 0 | Q215: 0 | S215: 0 | U215: 0 | W215: 0 | Y215: 0 | AA215: 0 | AC215: 56148.27 | AD215: 100
A216: 5.15 | B216: ='5_BLOCO D'!B218 -> PINTURA | C216: ='5_BLOCO D'!F218 -> 81230.77 | D216: 1.656175227 | E216: 8123.077 | F216: 10 | G216: 20307.6925 | H216: 25 | I216: 20307.6925 | J216: 25 | K216: 20307.6925 | L216: 25 | M216: 12184.6155 | N216: 15 | O216: 0 | Q216: 0 | S216: 0 | U216: 0 | W216: 0 | Y216: 0 | AA216: 0 | AC216: 81230.77 | AD216: 100
A217: 5.16 | B217: ='5_BLOCO D'!B228 -> CALÇAMENTO, PÁTIOS E PASSARELAS | C217: ='5_BLOCO D'!F228 -> 0 | D217: 0 | E217: 0 | G217: 0 | I217: 0 | K217: 0 | M217: 0 | O217: 0 | Q217: 0 | S217: 0 | U217: 0 | W217: 0 | Y217: 0 | AA217: 0 | AC217: 0 | AD217: 0
A218: 5.17 | B218: ='5_BLOCO D'!B230 -> SERVIÇOS COMPLEMENTARES | C218: ='5_BLOCO D'!F230 -> 125076.37 | D218: 2.550122145 | E218: 0 | G218: 0 | I218: 0 | K218: 61287.4213 | L218: 49 | M218: 63788.9487 | N218: 51 | O218: 0 | Q218: 0 | S218: 0 | U218: 0 | W218: 0 | Y218: 0 | AA218: 0 | AC218: 125076.37 | AD218: 100
A219: 5.18 | B219: ='5_BLOCO D'!B242 -> INSTALAÇÕES DE SPDA | C219: ='5_BLOCO D'!F242 -> 0 | D219: 0 | E219: 0 | G219: 0 | I219: 0 | K219: 0 | M219: 0 | O219: 0 | Q219: 0 | S219: 0 | U219: 0 | W219: 0 | Y219: 0 | AA219: 0 | AC219: 0 | AD219: 0
A220: 5.19 | B220: ='5_BLOCO D'!B244 -> INSTALAÇÃO DE COMBATE A INCÊNDIO | C220: ='5_BLOCO D'!F244 -> 0 | D220: 0 | E220: 0 | G220: 0 | I220: 0 | K220: 0 | M220: 0 | O220: 0 | Q220: 0 | S220: 0 | U220: 0 | W220: 0 | Y220: 0 | AA220: 0 | AC220: 0 | AD220: 0
A221: 5.20 | B221: ='5_BLOCO D'!B246 -> INSTALAÇÕES ELÉTRICA | C221: ='5_BLOCO D'!F246 -> 295114.61 | D221: 6.016950302 | E221: 0 | G221: 0 | I221: 88534.383 | J221: 30 | K221: 118045.844 | L221: 40 | M221: 88534.383 | N221: 30 | O221: 0 | Q221: 0 | S221: 0 | U221: 0 | W221: 0 | Y221: 0 | AA221: 0 | AC221: 295114.61 | AD221: 100
A222: 5.21 | B222: ='5_BLOCO D'!B480 -> LOGICA E TELEFONICA | C222: ='5_BLOCO D'!F480 -> 92349.17 | D222: 1.882862954 | E222: 0 | G222: 0 | I222: 27704.751 | J222: 30 | K222: 36939.668 | L222: 40 | M222: 27704.751 | N222: 30 | O222: 0 | Q222: 0 | S222: 0 | U222: 0 | W222: 0 | Y222: 0 | AA222: 0 | AC222: 92349.17 | AD222: 100
A223: 5.22 | B223: ='5_BLOCO D'!B561 -> CLIMATIZAÇÃO - AR CONDICIONADO | C223: ='5_BLOCO D'!F561 -> 508572.43 | D223: 10.36903946 | E223: 0 | G223: 127143.1075 | H223: 25 | I223: 127143.1075 | J223: 25 | K223: 127143.1075 | L223: 25 | M223: 127143.1075 | N223: 25 | O223: 0 | Q223: 0 | S223: 0 | U223: 0 | W223: 0 | Y223: 0 | AA223: 0 | AC223: 508572.43 | AD223: 100
... 346 more rows

Sheet PLANILHA RESUMO (hidden)
A1: RESUMO PLANILHA ORÇAMENTÁRIA
A5: SESI - SERVIÇO SOCIAL DA INDUSTRIA - DR/MT
A6: OBRA: CONTRATAÇÃO DE EMPRESA ESPECIALIZADA PARA CONTINUIDADE DA EXECUÇÃO DA OBRA DE REFORMA E AMPLIAÇÃO DA UNIDADE DO SESI ESCOLA VÁRZEA GRANDE/MT.
A7: UNIDADE OPERACIONAL: SESI ESCOLA VÁRZEA GRANDE
A8: ENDEREÇO: AV. DOM ORLANDO CHAVES, N.º 1.086, PONTE NOVA - CRISTO REI CIDADE: VÁRZEA GRANDE/MT
A9: CONSTRUTORA:
A10: RESPONSÁVEL TÉCNICO:
A12: ITEM | B12: DESCRIÇÃO | E12: % | F12: Valor Total (R$)
A14: 1 | B14: ='1_IMPLANTAÇÃO'!B14 -> IMPLANTAÇÃO | E14: =F14/$F$38 -> 0.3218921295 | F14: ='1_IMPLANTAÇÃO'!F817 -> 4904720.75
A16: 2 | B16: ='2_BLOCO A-FACHADA'!B14 -> BLOCO A e FACHADA | E16: =F16/$F$38 -> 0.1460515951 | F16: ='2_BLOCO A-FACHADA'!F726 -> 2225411.01
A18: 3 | B18: ='3_BLOCO B'!B14 -> BLOCO B | E18: =F18/$F$38 -> 0.1210708889 | F18: ='3_BLOCO B'!F695 -> 1844776.08
A20: 4 | B20: BLOCO C | E20: =F20/$F$38 -> 0.08240896921 | F20: ='4_BLOCO C'!F571 -> 1255678.36
A22: 5 | B22: BLOCO D | E22: =F22/$F$38 -> 0.1765838568 | F22: ='5_BLOCO D'!F749 -> 2690635.86
A24: 6 | B24: BLOCO E | E24: =F24/$F$38 -> 0.03024723217 | F24: ='6_BLOCO E'!F344 -> 460881.81
A26: 7 | B26: ='7_MINI QUADRA'!B14 -> MINI QUADRA COBERTA | E26: =F26/$F$38 -> 0.04203137051 | F26: ='7_MINI QUADRA'!F198 -> 640438.57
A28: 8 | B28: ='8_SALA DE DANÇA'!B14 -> SALA DE DANÇA | E28: =F28/$F$38 -> 0.02456900211 | F28: ='8_SALA DE DANÇA'!F390 -> 374361.73
A30: 9 | B30: ='9_ÁREA CONVIVÊNCIA'!B14 -> ÁREA DE CONVIVÊNCIA COBERTA | E30: =F30/$F$38 -> 0.01380602149 | F30: ='9_ÁREA CONVIVÊNCIA'!F314 -> 210364.51
A32: 10 | B32: ='10_ABRIGO GLP E RESIDUOS'!B14 -> ABRIGO GLP E ABRIGO RESIDUOS SÓLIDOS | E32: =F32/$F$38 -> 0.003999806003 | F32: ='10_ABRIGO GLP E RESIDUOS'!F143 -> 60945.67
A34: 11 | B34: ='11_CABINA DE FORÇA'!B14 -> CABINA DE FORÇA | E34: =F34/$F$38 -> 0.0338689801 | F34: ='11_CABINA DE FORÇA'!F200 -> 516066.95
A36: 12 | B36: ='12_ASD'!B14 -> ASD | E36: =F36/$F$38 -> 0.003470148123 | F36: ='12_ASD'!F107 -> 52875.19
B38: VALOR TOTAL DO SESI ESCOLA VÁRZEA GRANDE | E38: =SUBTOTAL(9,E14:E37) -> 1 | F38: =SUBTOTAL(9,F14:F37) -> 15237156.49

Sheet 1_IMPLANTAÇÃO (hidden)
A1: PLANILHA ORÇAMENTARIA | D1: SPN-FF-003
D3: Folha: 1 de 1 | E3: Revisão: 02 | F3: Data: 07/10/19
A5: SESI - SERVIÇO SOCIAL DA INDUSTRIA - DR/MT
A6: OBRA: CONTRATAÇÃO DE EMPRESA ESPECIALIZADA PARA CONTINUIDADE DA EXECUÇÃO DA OBRA DE REFORMA E AMPLIAÇÃO DA UNIDADE DO SESI ESCOLA VÁRZEA GRANDE/MT.
A7: UNIDADE OPERACIONAL: SESI ESCOLA VÁRZEA GRANDE
A8: ENDEREÇO: AV. DOM ORLANDO CHAVES, N.º 1.086, PONTE NOVA - CRISTO REI CIDADE: VÁRZEA GRANDE/MT
A9: CONSTRUTORA:
A10: RESPONSÁVEL TÉCNICO:
A11: BASE SINAPI UTILIZADA: 06/2021
A12: ITEM | B12: DESCRIÇÃO | C12: UNID. | D12: QUANT. | E12: Valor UNIT. (R$) | F12: Valor Total (R$)
A14: 1 | B14: IMPLANTAÇÃO
A16: 1.0 | B16: DEMOLIÇÕES E RETIRADAS | F16: =SUBTOTAL(9,F17:F40) -> 115000.08
A17: 1.0.1 | B17: DEMOLIÇÃO DE PILARES, VIGAS E LAJES EM CONCRETO ARMADO, DE FORMA MECANIZADA COM MARTELETE, SEM REAPROVEITAMENTO - BORDA DA PISCINA NO LOCAL DO ESTACIONAMENTO FRONTAL E LAJE CISTERNA ENTERRADA | C17: M3 | D17: 28.24966 | E17: 243.62 | F17: =ROUND(D17*E17,2) -> 6882.18
A18: 1.0.2 | B18: DEMOLIÇÃO PARCIAL DE PAVIMENTO ASFÁLTICO, DE FORMA MECANIZADA, SEM REAPROVEITAMENTO - DEMOLIÇÃO DAS CALÇADAS EXTERNAS | C18: M2 | D18: 1655.93 | E18: 16.15 | F18: 26743.27
A19: 1.0.3 | B19: DEMOLIÇÃO PARCIAL DE PAVIMENTO ASFÁLTICO, DE FORMA MECANIZADA, SEM REAPROVEITAMENTO - DEMOLIÇÃO DAS CALÇADAS DAS VAGAS EXTERNAS EXISTENTES | C19: M2 | D19: 509.22 | E19: 16.15 | F19: 8223.9
A20: 1.0.4 | B20: DEMOLIÇÃO DE ALVENARIA PARA QUALQUER TIPO DE BLOCO, DE FORMA MECANIZADA, SEM REAPROVEITAMENTO - DEPOSITO AO LADO DA CABINA DE FORÇA EXISTENTE | C20: M3 | D20: 15.5385 | E20: 50.71 | F20: 787.96
A21: 1.0.5 | B21: DEMOLIÇÃO DE ALVENARIA PARA QUALQUER TIPO DE BLOCO, DE FORMA MECANIZADA, SEM REAPROVEITAMENTO - CASA DE MAQUINAS DA ANTIGA PISCINA | C21: M3 | D21: 6.69 | E21: 50.71 | F21: 339.25
A22: 1.0.6 | B22: REMOÇÃO DE TELHAS, DE FIBROCIMENTO, METÁLICA E CERÂMICA, DE FORMA MANUAL, SEM REAPROVEITAMENTO - DEPOSITO AO LADO DA CABINA DE FORÇA EXISTENTE | C22: M2 | D22: 60 | E22: 3.12 | F22: 187.2
A23: 1.0.7 | B23: REMOÇÃO DE TELHAS, DE FIBROCIMENTO, METÁLICA E CERÂMICA, DE FORMA MANUAL, SEM REAPROVEITAMENTO - CASA DE MAQUINAS DA ANTIGA PISCINA | C23: M2 | D23: 30 | E23: 3.12 | F23: 93.6
A24: 1.0.8 | B24: DEMOLIÇÃO DE ALVENARIA PARA QUALQUER TIPO DE BLOCO, DE FORMA MECANIZADA, SEM REAPROVEITAMENTO - MURETAS EXISTENTES | C24: M3 | D24: 25.5 | E24: 50.71 | F24: 1293.11
A25: 1.0.9 | B25: DEMOLIÇÃO DE ALVENARIA PARA QUALQUER TIPO DE BLOCO, DE FORMA MECANIZADA, SEM REAPROVEITAMENTO - PISO DE CONCRETO DO ENTORNO DA SALA DE DANÇA E ÁREA DE CONVIVÊNCIA | C25: M3 | D25: 213.813 | E25: 50.71 | F25: 10842.46
A26: 1.0.10 | B26: DEMOLIÇÃO DE ALVENARIA PARA QUALQUER TIPO DE BLOCO, DE FORMA MECANIZADA, SEM REAPROVEITAMENTO - PISO DE CONCRETO DO ACESSO DE SAIDA DO ESTACIONAMENTO, INCLUSO MEIO FIO | C26: M3 | D26: 46 | E26: 50.71 | F26: 2332.66
B27: DEMOLIÇÃO DE LAJES, DE FORMA MECANIZADA COM MARTELETE, SEM REAPROVEITAMENTO. AF_12/2017 | C27: M3 | D27: 7 | E27: 106.24 | F27: 743.68
A28: 1.0.11 | B28: RETIRADA DE PALMEIRA IMPERIAL, SEM REAPROVEITAMENTO | C28: UN | D28: 7 | E28: 1085.82 | F28: 7600.74
A29: 1.0.12 | B29: RETIRADA DE ÁRVORES DE GRANDE PORTE, INCLUSIVE CORTES, DESTOCAMENTO E BOTA-FORA | C29: UN | D29: 27 | E29: 371.01 | F29: 10017.27
A30: 1.0.13 | B30: BOTA FORA DE MATERIAL DESCARTADO, D.M.T. = 10 km - (CARGA, TRANSPORTE E DESCARGA MECÂNICA) - MATERIAL DEMOLIDO DAS BORDAS DA PISCINA | C30: M3 | D30: 36.724558 | E30: 58.67 | F30: 2154.63
A31: 1.0.14 | B31: BOTA FORA DE MATERIAL DESCARTADO, D.M.T. = 10 km - (CARGA, TRANSPORTE E DESCARGA MECÂNICA) - MATERIAL DEMOLIDO DAS CALÇADAS | C31: M3 | D31: 150.68963 | E31: 58.67 | F31: 8840.96
A32: 1.0.15 | B32: BOTA FORA DE MATERIAL DESCARTADO, D.M.T. = 10 km - (CARGA, TRANSPORTE E DESCARGA MECÂNICA) - MATERIAL DEMOLIDO DAS VAGAS EXTENAS EXISTENTES | C32: M3 | D32: 46.33902 | E32: 58.67 | F32: 2718.71
A33: 1.0.16 | B33: BOTA FORA DE MATERIAL DESCARTADO, D.M.T. = 10 km - (CARGA, TRANSPORTE E DESCARGA MECÂNICA) - MATERIAL DA REMOÇÃO DAS PALMEIRAS | C33: M3 | D33: 15.12 | E33: 58.67 | F33: 887.09
A34: 1.0.17 | B34: BOTA FORA DE MATERIAL DESCARTADO, D.M.T. = 10 km - (CARGA, TRANSPORTE E DESCARGA MECÂNICA) - MATERIAL DA REMOÇÃO DAS ARVORES | C34: M3 | D34: 9.54 | E34: 58.67 | F34: 559.71
A35: 1.0.18 | B35: BOTA FORA DE MATERIAL DESCARTADO, D.M.T. = 10 km - (CARGA, TRANSPORTE E DESCARGA MECÂNICA) - MATERIAL DEMOLIDO DO DEPOSITO AO LADO DA CABINA DE FORÇA EXISTENTE | C35: M3 | D35: 23.3385 | E35: 58.67 | F35: 1369.27
A36: 1.0.19 | B36: BOTA FORA DE MATERIAL DESCARTADO, D.M.T. = 10 km - (CARGA, TRANSPORTE E DESCARGA MECÂNICA) - MATERIAL DEMOLIDO DA CASA DE MAQUINAS DA ANTIGA PISCINA | C36: M3 | D36: 10.59 | E36: 58.67 | F36: 621.32
A37: 1.0.20 | B37: BOTA FORA DE MATERIAL DESCARTADO, D.M.T. = 10 km - (CARGA, TRANSPORTE E DESCARGA MECÂNICA) - MATERIAL DEMOLIDO DA MURETA EXISTENTE NO DESNIVEL DO ESTACIONAMENTO PAVIMENTADO COM ESTACIONAMENTO DE BRITA | C37: M3 | D37: 33.15 | E37: 58.67 | F37: 1944.91
A38: 1.0.21 | B38: BOTA FORA DE MATERIAL DESCARTADO, D.M.T. = 10 km - (CARGA, TRANSPORTE E DESCARGA MECÂNICA) - MATERIAL DEMOLIDO DO PISO DE CONCRETO DO ENTORNO DA SALA DE DANÇA E ÁREA DE CONVIVÊNCIA | C38: M3 | D38: 277.9569 | E38: 58.67 | F38: 16307.73
A39: 1.0.22 | B39: BOTA FORA DE MATERIAL DESCARTADO, D.M.T. = 10 km - (CARGA, TRANSPORTE E DESCARGA MECÂNICA) - MATERIAL DEMOLIDO DO PISO DE CONCRETO DO ACESSO DE SAIDA DO ESTACIONAMENTO | C39: M3 | D39: 59.8 | E39: 58.67 | F39: 3508.47
A41: 1.1 | B41: INSTALAÇÕES DE CANTEIRO | F41: =SUBTOTAL(9,F42:F65) -> 84941.44
A42: 1.1.1 | B42: PLACA DE OBRA EM CHAPA DE AÇO GALVANIZADA, INSTALADA, SENDO: 3,50X1,5M | C42: M2 | D42: 4.5 | E42: 372.36 | F42: =ROUND(D42*E42,2) -> 1675.62
A43: 1.1.2 | B43: TAXAS DO CREA - REGISTRO DE ART`S DE EXECUÇÃO | C43: UN | D43: 2 | E43: 286.23 | F43: 572.46
A44: 1.1.3 | B44: PLOTAGENS DE PLANTAS IMPRESSÕES | C44: M2 | D44: 60 | E44: 19.09 | F44: 1145.4
A45: 1.1.4 | B45: TAPUME COM TELHA METÁLICA - PARA ISOLAMENTO DO BLOCO B | C45: M2 | D45: 20 | E45: 104.43 | F45: =ROUND(D45*E45,2) -> 2088.6
A46: 1.1.5 | B46: EXTINTOR DE INCÊNDIO PORTÁTIL COM CARGA DE PQS DE 4 KG, CLASSE BC - FORNECIMENTO E INSTALAÇÃO. AF_10/2020_P | C46: UN | D46: 1 | E46: 215.03 | F46: 215.03
A47: 1.1.6 | B47: EXTINTOR DE INCÊNDIO PORTÁTIL COM CARGA DE CO2 DE 6 KG, CLASSE BC - FORNECIMENTO E INSTALAÇÃO. AF_10/2020_P | C47: UN | D47: 1 | E47: 710.19 | F47: 710.19
A48: 1.1.7 | B48: EXTINTOR DE INCÊNDIO PORTÁTIL COM CARGA DE ÁGUA PRESSURIZADA DE 10 L, CLASSE A - FORNECIMENTO E INSTALAÇÃO. AF_10/2020_P | C48: UN | D48: 1 | E48: 221.66 | F48: 221.66
A49: 1.1.8 | B49: CONSUMO MENSAL DE ENERGIA | C49: MÊS | D49: 10 | E49: 1900.31 | F49: 19003.1
A50: 1.1.9 | B50: CONSUMO MENSAL DE ÁGUA POTÁVEL DA OBRA **SERÁ FORNECIDO PELO SESI ESCOLA | C50: MÊS | D50: 10 | E50: 0 | F50: 0
A51: 1.1.10 | B51: ALUGUEL DE BEBEDOURO 100 LITROS (01 UNIDADE) | C51: MES | D51: 10 | E51: 85.78 | F51: 857.8
A52: 1.1.11 | B52: DESPESAS MENSAL COM TELEFONIA, INTERNET | C52: MÊS | D52: 10 | E52: 145.6 | F52: 1456
A53: 1.1.12 | B53: FORNECIMENTO DE DIÁRIO DE OBRAS ONLINE PARA ATÉ 10 USUARIOS, PLANO MENSAL | C53: MÊS | D53: 10 | E53: 233.81 | F53: 2338.1
A54: 1.1.13 | B54: CONSUMO MENSAL DE MATERIAL DE ESCRITÓRIO | C54: MÊS | D54: 10 | E54: 375.93 | F54: =ROUND(D54*E54,2) -> 3759.3
A55: 1.1.14 | B55: ALUGUEL BETONEIRA CAPACIDADE NOMINAL DE 400 L, CAPACIDADE DE MISTURA 310 L TRIFÁSICA | C55: MÊS | D55: 10 | E55: 489.4 | F55: 4894
A56: 1.1.15 | B56: LOCACAO MENSAL DE ANDAIME METALICO TIPO TORRE, INCLUSIVE MONTAGEM E DESMONTAGEM - CONSIDERANDO FACHADA (02 MESES) + MINI QUADRA (02 MESES) + PINTURA CX. D'ÁGUA 10 DIAS - 08 MODULOS COM 7M DE ALTURA. | C56: M/MES | D56: 242.6648 | E56: 19.27 | F56: 4676.15
A57: 1.1.16 | B57: MOBILIZAÇÃO E DESMOBILIZAÇÃO DE EQUIPAMENTO TIPO ESTACA RAIZ | C57: UND | D57: 1 | E57: 30383.58 | F57: =ROUND(D57*E57,2) -> 30383.58
A58: 1.1.17 | B58: EXECUÇÃO DE LINHA DE VIDA COM CABO DE AÇO, BRAÇOS E GANCHOS NECESSÁRIOS (4 REUTILIZAÇÕES), CONFORME PROJETO DE LINHA DE VIDA ELABORADO PELA EXECUTORA E ATENDENDO AS DIRETRIZES NORMATIVAS | C58: M | D58: 133.8 | E58: 12.58 | F58: 1683.2
A59: 1.1.18 | B59: ADEQUAÇÃO DE ESCRITÓRIO EM CANTEIRO DE OBRA (EXISTENTE) EM CHAPA DE MADEIRA COMPENSADA, NÃO INCLUSO MOBILIÁRIO E EQUIPAMENTOS | C59: M2 | D59: 3.2 | E59: 1063.89 | F59: 3404.45
A60: 1.1.19 | B60: ADEQUAÇÃO DE REFEITÓRIO EM CANTEIRO DE OBRA (EXISTENTE) EM CHAPA DE MADEIRA COMPENSADA, NÃO INCLUSO MOBILIÁRIO E EQUIPAMENTOS | C60: M2 | D60: 5 | E60: 590.74 | F60: 2953.7
A61: 1.1.20 | B61: ADEQUAÇÃO DE SANITÁRIO E VESTIÁRIO EM CANTEIRO DE OBRA (EXISTENTE) EM CHAPA DE MADEIRA COMPENSADA, NÃO INCLUSO MOBILIÁRIO. | C61: M2 | D61: 3 | E61: 967.7 | F61: 2903.1
A63: 1.1.13 | B63: INSTALAÇÕES/LIGAÇÕES E REDES PROVISÓRIAS BAIXA TENSÃO DO CANTEIRO DE OBRAS (JÁ EXECUTADOS NA OBRA DA 1ª ETAPA)
A65: 1.1.14 | B65: REDE PROVISÓRIA DE ÁGUA NO CANTEIRO, CONSIDERANDO, CAVALETE, TUBULAÇÃO DE DISTRIBUIÇÃO, REGISTROS DE CONTROLE, CONEXÕES, MANGUEIRAS, CAIXAS DE FIBRA, (JÁ EXECUTADOS NA OBRA DA 1ª ETAPA)
A67: 1.2 | B67: ADMINISTRAÇÃO | F67: =SUBTOTAL(9,F68:F76) -> 827019.2
A68: 1.2.1 | B68: ENGENHEIRO CIVIL DE OBRA PLENO COM ENCARGOS COMPLEMENTARES | C68: MES | D68: 10 | E68: 22797.27 | F68: =ROUND(D68*E68,2) -> 227972.7
A69: 1.2.2 | B69: AUXILIAR TÉCNICO / ASSISTENTE DE ENGENHARIA COM ENCARGOS COMPLEMENTARES | C69: MES | D69: 10 | E69: 5364.51 | F69: =ROUND(D69*E69,2) -> 53645.1
A70: 1.2.3 | B70: ENGENHEIRO ELETRICISTA COM ENCARGOS COMPLEMENTARES | C70: MES | D70: 10 | E70: 19346.58 | F70: 193465.8
A71: 1.2.4 | B71: MESTRE DE OBRAS COM ENCARGOS COMPLEMENTARES | C71: MES | D71: 10 | E71: 7426.06 | F71: 74260.6
A72: 1.2.5 | B72: ENCARREGADO GERAL DE OBRAS COM ENCARGOS COMPLEMENTARES - PARTE CIVIL | C72: MES | D72: 10 | E72: 5020.96 | F72: 50209.6
A73: 1.2.6 | B73: ENCARREGADO GERAL DE OBRAS COM ENCARGOS COMPLEMENTARES - PARTE ELÉTRICA E AFINS | C73: MES | D73: 10 | E73: 5020.96 | F73: 50209.6
A74: 1.2.7 | B74: TÉCNICO EM SEGURANÇA DO TRABALHO COM ENCARGOS COMPLEMENTARES | C74: MES | D74: 10 | E74: 5538.66 | F74: 55386.6
A75: 1.2.8 | B75: DOIS VIGIAS NOTURNOS COM ENCARGOS COMPLEMENTARES | C75: MES | D75: 10 | E75: 8461.56 | F75: 84615.6
A76: 1.2.9 | B76: ALMOXARIFE COM ENCARGOS COMPLEMENTARES | C76: MES | D76: 10 | E76: 3725.36 | F76: 37253.6
A78: 1.3 | B78: TERRAPLENAGEM E PAVIMENTAÇÃO | F78: =SUBTOTAL(9,F79:F87) -> 183162.96
A79: 1.3.1 | B79: TERRAPLENAGEM E PAVIMENTAÇÃO DO ESTACIONAMENTO FRONTAL | F79: =SUBTOTAL(9,F80:F84) -> 173224.9
A80: 1.3.1.1 | B80: ESCAVAÇÃO MECANIZADA DE VALA COM PROFUNDIDADE MAIOR QUE 1,5 M ATÉ 3,0 M COM RETROESCAVADEIRA. | C80: M3 | D80: 734.499 | E80: 5.68 | F80: =ROUND(D80*E80,2) -> 4171.95
A81: 1.3.1.2 | B81: ATERRO COMPACTADO MECANICAMENTE AO NIVEL DO BALDRAME - C/ AQUISIÇÃO DE MATERIAL + 25% DE EMPOLAMENTO, EM CAMADAS DE 20cm - AQUI INCLUSO CARGA, DESCARGA, TRANSPORTE DMT ATÉ 10KM, ESPALHAMENTO COM PATROL, NIVELAMENTO E COMPACTAÇÃO MECÂNICA (100%) CONTROLADO LABORATORIALMENTE.(ÁREA TOTAL DO ESTACIONAMENTO | C81: M3 | D81: 979.332 | E81: 66.84 | F81: =ROUND(D81*E81,2) -> 65458.55
A82: 1.3.1.3 | B82: BOTA FORA DE MATERIAL DESCARTADO, D.M.T. = 10 km - (CARGA, TRANSPORTE E DESCARGA MECÂNICA) | C82: M3 | D82: 954.8487 | E82: 58.67 | F82: =ROUND(D82*E82,2) -> 56020.97
A83: 1.3.1.4 | B83: EXECUÇÃO DE IMPRIMAÇÃO COM ASFALTO DILUÍDO CM-30. AF_11/2019 | C83: M2 | D83: 1503.11 | E83: 8.31 | F83: =ROUND(D83*E83,2) -> 12490.84
A84: 1.3.1.5 | B84: PAVIMENTO COM TRATAMENTO SUPERFICIAL DUPLO, COM EMULSÃO ASFÁLTICA RR-2C, COM CAPA SELANTE | C84: M2 | D84: 1503.11 | E84: 23.34 | F84: =ROUND(D84*E84,2) -> 35082.59
A86: 1.3.2 | B86: ATERRO | F86: =SUBTOTAL(9,F87) -> 9938.06
A87: 1.3.2.1 | B87: ATERRO MECANIZADO DE VALA COM ESCAVADEIRA HIDRÁULICA (CAPACIDADE DA CAÇAMBA: 0,8 M³ / POTÊNCIA: 111 HP), LARGURA ATÉ 1,5 M, PROFUNDIDADE DE 4,5 A 6,0 M, COM AREIA PARA ATERRO. AF_05/2016 | C87: M3 | D87: 101.64735 | E87: 97.77 | F87: =ROUND(D87*E87,2) -> 9938.06
A89: 1.4 | B89: FUNDAÇÕES | F89: =SUBTOTAL(9,F90:F122) -> 224565.52
A90: 1.4.1 | B90: FUNDAÇÕES - MURO FRONTAL (ESTRUTURAL C1 E C8; V2 E V7) E MURO DIVISA MINI QUADRA E ASD | F90: =SUBTOTAL(9,F91:F102) -> 173458.43
A91: 1.4.1.1 | B91: ESCAVAÇÃO MECANIZADA PARA BLOCO DE COROAMENTO OU SAPATA, SEM PREVISÃO DE FÔRMA, COM RETROESCAVADEIRA. AF_06/2017 | C91: M3 | D91: 445.4136 | E91: 91.26 | F91: =ROUND(D91*E91,2) -> 40648.45
A92: 1.4.1.2 | B92: REATERRO MANUAL DE VALAS COM COMPACTAÇÃO MECANIZADA. AF_04/2016 | C92: M3 | D92: 86.6082 | E92: 27.04 | F92: 2341.89
A93: 1.4.1.3 | B93: LASTRO COM MATERIAL GRANULAR (PEDRA BRITADA N.1 E PEDRA BRITADA N.2), APLICADO EM PISOS OU LAJES SOBRE SOLO, ESPESSURA DE *10 CM*. AF_07/2019 | C93: M3 | D93: 31.6593 | E93: 142.05 | F93: 4497.2
A94: 1.4.1.4 | B94: FABRICAÇÃO, MONTAGEM E DESMONTAGEM DE FÔRMA PARA BLOCO DE COROAMENTO, EM CHAPA DE MADEIRA COMPENSADA RESINADA, E=17 MM, 4 UTILIZAÇÕES. AF_06/2017 | C94: M2 | D94: 239.292 | E94: 120.17 | F94: 28755.72
A95: 1.4.1.5 | B95: FABRICAÇÃO DE FÔRMA PARA VIGAS, COM MADEIRA SERRADA, E = 25 MM. AF_09/2020 | C95: M2 | D95: 84.456 | E95: 121.66 | F95: 10274.92
A96: 1.4.1.6 | B96: ARMAÇÃO DE BLOCO, VIGA BALDRAME E SAPATA UTILIZANDO AÇO CA-60 DE 5 MM - MONTAGEM. AF_06/2017 | C96: KG | D96: 71.31 | E96: 25.68 | F96: 1831.24
A97: 1.4.1.7 | B97: ARMAÇÃO DE BLOCO, VIGA BALDRAME OU SAPATA UTILIZANDO AÇO CA-50 DE 6,3 MM - MONTAGEM. (VERGALHÃO FORNECIDO PELO SESI) | C97: KG | D97: 172.12 | E97: 5.18 | F97: 891.58
A98: 1.4.1.8 | B98: ARMAÇÃO DE BLOCO, VIGA BALDRAME OU SAPATA UTILIZANDO AÇO CA-50 DE 12,5 MM - MONTAGEM. AF_06/2017 | C98: KG | D98: 370.26 | E98: 18.72 | F98: 6931.27
A99: 1.4.1.9 | B99: ARMAÇÃO DE BLOCO, VIGA BALDRAME OU SAPATA UTILIZANDO AÇO CA-50 DE 16 MM - MONTAGEM (VERGALHÃO FORNECIDO PELO SESI) | C99: KG | D99: 275.83 | E99: 2.24 | F99: 617.86
A100: 1.4.1.10 | B100: CONCRETAGEM DE BLOCOS DE COROAMENTO E VIGAS BALDRAMES, FCK 30 MPA, COM USO DE BOMBA  LANÇAMENTO, ADENSAMENTO E ACABAMENTO. AF_06/2017 | C100: M3 | D100: 47.28 | E100: 693.9 | F100: 32807.59
A101: 1.4.1.11 | B101: ALVENARIA DE BLOCOS DE CONCRETO ESTRUTURAL 14X19X39 CM, (ESPESSURA 14 CM), FBK = 4,5 MPA, PARA PAREDES COM ÁREA LÍQUIDA MAIOR OU IGUAL A 6M², SEM VÃOS, UTILIZANDO PALHETA. AF_12/2014 | C101: M2 | D101: 211.14 | E101: 78.12 | F101: 16494.26
A102: 1.4.1.12 | B102: BOTA FORA DE MATERIAL DESCARTADO, D.M.T. = 10 km - (CARGA, TRANSPORTE E DESCARGA MECÂNICA) - INCLUSO EMPOLAMENTO 30% | C102: M3 | D102: 466.44702 | E102: 58.67 | F102: 27366.45
A104: 1.4.2 | B104: FUNDAÇÕES - ACESSO PRINCIPAL (ESCADAS E RAMPAS) | F104: =SUBTOTAL(9,F105:F114) -> 45435.04
A105: 1.4.2.1 | B105: ESCAVAÇÃO MECANIZADA PARA BLOCO DE COROAMENTO OU SAPATA, SEM PREVISÃO DE FÔRMA, COM RETROESCAVADEIRA. AF_06/2017 | C105: M3 | D105: 3.28 | E105: 91.26 | F105: =ROUND(D105*E105,2) -> 299.33
A106: 1.4.2.2 | B106: BOTA FORA DE MATERIAL DESCARTADO, D.M.T. = 10 km - (CARGA, TRANSPORTE E DESCARGA MECÂNICA) | C106: M3 | D106: 4.26 | E106: 58.67 | F106: 249.93
A107: 1.4.2.3 | B107: LASTRO COM MATERIAL GRANULAR (PEDRA BRITADA N.1 E PEDRA BRITADA N.2), APLICADO EM PISOS OU LAJES SOBRE SOLO, ESPESSURA DE *10 CM*. AF_07/2019 | C107: M3 | D107: 3.38 | E107: 142.05 | F107: 480.13
A108: 1.4.2.4 | B108: FABRICAÇÃO DE FÔRMA PARA VIGAS, EM CHAPA DE MADEIRA COMPENSADA RESINADA, E = 17 MM. AF_09/2020 | C108: M2 | D108: 23.62 | E108: 109.59 | F108: 2588.52
A109: 1.4.2.5 | B109: VIGAS E LAJES - ARMAÇÃO DE FUNDAÇÕES E ESTRUTURAS DE CONCRETO ARMADO, UTILIZANDO AÇO CA-50 DE 5.00 MM - MONTAGEM | C109: KG | D109: 300 | E109: 19.08 | F109: 5724
A110: 1.4.2.6 | B110: VIGAS E LAJES - ARMAÇÃO DE FUNDAÇÕES E ESTRUTURAS DE CONCRETO ARMADO, UTILIZANDO AÇO CA-50 DE 6.3 MM - MONTAGEM | C110: KG | D110: 285 | E110: 22.42 | F110: 6389.7
A111: 1.4.2.7 | B111: EPS - BLOCOS PARA ENCHIMENTO | C111: M³ | D111: 15 | E111: 564.16 | F111: 8462.4
A112: 1.4.2.8 | B112: EXECUÇÃO E COMPACTAÇÃO DE ATERRO COM SOLO PREDOMINANTEMENTE ARENOSO - EXCLUSIVE SOLO, ESCAVAÇÃO, CARGA E TRANSPORTE. AF_11/2019 | C112: M3 | D112: 32.8 | E112: 6.58 | F112: 215.82
A113: 1.4.2.9 | B113: CONCRETAGEM DE BLOCOS DE COROAMENTO E VIGAS BALDRAMES, FCK 30 MPA, COM USO DE BOMBA  LANÇAMENTO, ADENSAMENTO E ACABAMENTO. AF_06/2017 | C113: M3 | D113: 30.18 | E113: 693.9 | F113: 20941.9
A114: 1.4.2.10 | B114: APLICAÇÃO DE LONA PLÁSTICA | C114: M2 | D114: 32.8 | E114: 2.54 | F114: 83.31
A116: 1.4.3 | B116: FUNDAÇÕES - DAS TENDAS | F116: =SUBTOTAL(9,F117:F122) -> 5672.05
A117: 1.4.3.1 | B117: ESCAVAÇÃO MECANIZADA PARA BLOCO DE COROAMENTO OU SAPATA, SEM PREVISÃO DE FÔRMA, COM RETROESCAVADEIRA - CONSIDERANDO BLOCO 40X40X40 - SEM FORMA | C117: M3 | D117: 7.744 | E117: 91.26 | F117: =ROUND(D117*E117,2) -> 706.72
A118: 1.4.3.2 | B118: BOTA FORA DE MATERIAL DESCARTADO, D.M.T. = 10 km - (CARGA, TRANSPORTE E DESCARGA MECÂNICA) | C118: M3 | D118: 10.0672 | E118: 58.67 | F118: 590.64
A119: 1.4.3.3 | B119: LASTRO COM MATERIAL GRANULAR (PEDRA BRITADA N.1 E PEDRA BRITADA N.2), APLICADO EM PISOS OU LAJES SOBRE SOLO, ESPESSURA DE *10 CM*. AF_07/2019 | C119: M3 | D119: 0.0512 | E119: 142.05 | F119: 7.27
A120: 1.4.3.4 | B120: ESTACA BROCA DE CONCRETO, DIÂMETRO DE 30CM, ESCAVAÇÃO MANUAL COM TRADO CONCHA, COM ARMADURA DE ARRANQUE - CONSIDERANDO ESTACA DE 1,5M CADA | C120: M | D120: 24 | E120: 124.71 | F120: 2993.04
A121: 1.4.3.5 | B121: VIGAS E LAJES - ARMAÇÃO DE FUNDAÇÕES E ESTRUTURAS DE CONCRETO ARMADO, UTILIZANDO AÇO CA-50 DE 6.3 MM - MONTAGEM - CONSIDERANDO 02 ESTRIBOS NA VERTICAL E 02 ESTRIBOS NA HORIZONTAL | C121: KG | D121: 35.2 | E121: 16.84 | F121: 592.77
A122: 1.4.3.6 | B122: CONCRETAGEM DE BLOCOS DE COROAMENTO E VIGAS BALDRAMES, FCK 30 MPA, COM USO DE BOMBA  LANÇAMENTO, ADENSAMENTO E ACABAMENTO. AF_06/2017 | C122: M3 | D122: 1.1264 | E122: 693.9 | F122: 781.61
A124: 1.5 | B124: IMPERMEABILIZAÇÃO | F124: =SUBTOTAL(9,F125) -> 13902.87
A125: 1.5.1 | B125: IMPERMEABILIZAÇÃO DE SUPERFÍCIE COM EMULSÃO ASFÁLTICA, 2 DEMÃOS AF_06/2018 | C125: M2 | D125: 239.292 | E125: 58.1 | F125: =ROUND(D125*E125,2) -> 13902.87
A127: 1.6 | B127: ESTRUTURAS DE CONCRETO ARMADO | F127: =SUBTOTAL(9,F128:F143) -> 121791.44
A128: 1.6.1 | B128: ESTRUTURAS DE CONCRETO ARMADO - CONTENÇÃO RAMPA ESTACIONAMENTO PAVIMENTADO | F128: =SUBTOTAL(9,F129:F133) -> 58457.32
A129: 1.6.1.1 | B129: FABRICAÇÃO DE FÔRMA PARA VIGAS, EM CHAPA DE MADEIRA COMPENSADA RESINADA, E = 17 MM. AF_09/2020 | C129: M2 | D129: 168.69 | E129: 109.59 | F129: =ROUND(D129*E129,2) -> 18486.74
A130: 1.6.1.2 | B130: ARMAÇÃO DE ESTRUTURAS DE CONCRETO ARMADO, EXCETO VIGAS, PILARES, LAJES E FUNDAÇÕES, UTILIZANDO AÇO CA-60 DE 5,0 MM - MONTAGEM. AF_12/2015 | C130: KG | D130: 142 | E130: 24.35 | F130: =ROUND(D130*E130,2) -> 3457.7
A131: 1.6.1.3 | B131: ARMAÇÃO DE CORTINA DE CONTENÇÃO EM CONCRETO ARMADO, COM AÇO CA-50 DE 6,3 MM - MONTAGEM. AF_07/2019 | C131: KG | D131: 372 | E131: 23.47 | F131: =ROUND(D131*E131,2) -> 8730.84
A132: 1.6.1.4 | B132: ARMAÇÃO DE CORTINA DE CONTENÇÃO EM CONCRETO ARMADO, COM AÇO CA-50 DE 8 MM - MONTAGEM. AF_07/2019 | C132: KG | D132: 672 | E132: 22.95 | F132: =ROUND(D132*E132,2) -> 15422.4
A133: 1.6.1.5 | B133: CONCRETAGEM DE CORTINA DE CONTENÇÃO, ATRAVÉS DE BOMBA  LANÇAMENTO, ADENSAMENTO E ACABAMENTO. AF_07/2019 | C133: M3 | D133: 18.35 | E133: 673.55 | F133: =ROUND(D133*E133,2) -> 12359.64
A135: 1.6.2 | B135: ESTRUTURAS DE CONCRETO ARMADO - RAMPA E ESCADA ACESSO À ÁREA DE RECREAÇÃO | F135: =SUBTOTAL(9,F136:F138) -> 11993.31
A136: 1.6.1.1 | B136: ALVENARIA DE BLOCOS DE CONCRETO ESTRUTURAL 14X19X39 CM, (ESPESSURA 14 CM), FBK = 4,5 MPA, PARA PAREDES COM ÁREA LÍQUIDA MAIOR OU IGUAL A 6M², SEM VÃOS, UTILIZANDO PALHETA. AF_12/2014 | C136: M2 | D136: 25.98 | E136: 78.12 | F136: =ROUND(D136*E136,2) -> 2029.56
A137: 1.6.1.2 | B137: ARMAÇÃO DE BLOCO, VIGA BALDRAME OU SAPATA UTILIZANDO AÇO CA-50 DE 12,5 MM - MONTAGEM. AF_06/2017 | C137: KG | D137: 196.17 | E137: 18.72 | F137: =ROUND(D137*E137,2) -> 3672.3
A138: 1.6.1.3 | B138: CONCRETAGEM DE BLOCOS DE COROAMENTO E VIGAS BALDRAMES, FCK 30 MPA, COM USO DE BOMBA  LANÇAMENTO, ADENSAMENTO E ACABAMENTO. AF_06/2017 | C138: M3 | D138: 9.0668 | E138: 693.9 | F138: =ROUND(D138*E138,2) -> 6291.45
A140: 1.6.3 | B140: ESTRUTURAS DE CONCRETO ARMADO - MURETA/ARRIMO | F140: =SUBTOTAL(9,F141:F143) -> 51340.81
A141: 1.6.3.1 | B141: ALVENARIA DE BLOCOS DE CONCRETO ESTRUTURAL 14X19X39 CM, (ESPESSURA 14 CM), FBK = 4,5 MPA, PARA PAREDES COM ÁREA LÍQUIDA MAIOR OU IGUAL A 6M², SEM VÃOS, UTILIZANDO PALHETA. AF_12/2014 | C141: M2 | D141: 167.94 | E141: 78.12 | F141: =ROUND(D141*E141,2) -> 13119.47
A142: 1.6.3.2 | B142: ARMAÇÃO DE BLOCO, VIGA BALDRAME OU SAPATA UTILIZANDO AÇO CA-50 DE 12,5 MM - MONTAGEM. AF_06/2017 | C142: KG | D142: 785.72 | E142: 18.72 | F142: =ROUND(D142*E142,2) -> 14708.68
A143: 1.6.3.3 | B143: CONCRETAGEM DE BLOCOS DE COROAMENTO E VIGAS BALDRAMES, FCK 30 MPA, COM USO DE BOMBA  LANÇAMENTO, ADENSAMENTO E ACABAMENTO. AF_06/2017 | C143: M3 | D143: 33.8848 | E143: 693.9 | F143: =ROUND(D143*E143,2) -> 23512.66
A145: 1.7 | B145: ALVENARIAS E PAINÉIS | F145: =SUBTOTAL(9,F146) -> 0
A147: 1.8 | B147: ESTRUTURA METALICA | F147: =SUBTOTAL(9,F148) -> 0
A149: 1.9 | B149: COBERTURA | F149: =SUBTOTAL(9,F150) -> 0
A151: 1.10 | B151: ESQUADRIAS | F151: =SUBTOTAL(9,F152:F156) -> 151136.52
A152: 1.10.1 | B152: FORNCIMENTO E INSTALAÇÃO DE GRADIL MODULAR / CERCA, TIPO ALAMBRADO EM PAINEL REF. NYLOFOR OU SIMILAR, COM MALHA 5X20MM, DIMENSÃO DO MODULO DE 2,50M DE LARGURA E 2,43M DE ALTURA , COM POSTE PARA FIXAÇÃO H=3,20M SENDO 0,77M CHUBADO EM BASE DE CONCRETO, JÁ INCLUSA PINTURA NA COR PRETA. | C152: M | D152: 142.06 | E152: 680.03 | F152: =ROUND(D152*E152,2) -> 96605.06
A153: 1.10.2 | B153: FORNCIMENTO E INSTALAÇÃO DE PORTÃO DE 02 FOLHAS EM DE GRADIL MODULAR / CERCA, TIPO ALAMBRADO EM PAINEL REF. NYLOFOR OU SIMILAR, COM MALHA 5X20MM, DIMENSÃO DO PORTAO DE 9,71M DE LARGURA E 2,43M DE ALTURA, INCLUSO PINTURA, E TRILHO DE CORRER - FACHADA PRINCIPAL | C153: UN | D153: 1 | E153: 12381.92 | F153: =ROUND(D153*E153,2) -> 12381.92
A154: 1.10.3 | B154: FORNCIMENTO E INSTALAÇÃO DE PORTÃO DE 01 FOLHA EM DE GRADIL MODULAR / CERCA, TIPO ALAMBRADO EM PAINEL REF. NYLOFOR OU SIMILAR, COM MALHA 5X20MM, DIMENSÃO DO PORTAO DE 1,00M DE LARGURA E 2,43M DE ALTURA, INCLUSO PINTURA, E TRILHO DE CORRER | C154: UN | D154: 4 | E154: 1725.23 | F154: =ROUND(D154*E154,2) -> 6900.92
A155: 1.10.4 | B155: P26 - PORTAO DE FERRO EM CHAPA GALVANIZADA PLANA 14 GSG - FORNECIMENTO E INSTALAÇÃO - CONFORME PROJETO E MEMDORIAL DESCRITIVO - DIMENSÃO 5,00 X 3,00 M (03 UNIDADES) | C155: M2 | D155: 4 | E155: 684.33 | F155: =ROUND(D155*E155,2) -> 2737.32
A156: 1.10.5 | B156: FORNECIMENTO E INSTALAÇÃO DE BRISE METÁLICO DE ALUMÍNIO REF. 84F, 90º, DA FIBROCELL OU SIMILAR - ABRIGO DE PROTEÇÃO DAS COND. DE AR VRF, INCLUSO PORTÃO. | C156: M2 | D156: 136.27 | E156: 238.58 | F156: =ROUND(D156*E156,2) -> 32511.3
A158: 1.11 | B158: PISOS | F158: =SUBTOTAL(9,F159) -> 0
A160: 1.12 | B160: REVESTIMENTOS | F160: =SUBTOTAL(9,F161:F162) -> 21579.22
A161: 1.12.1 | B161: CHAPISCO APLICADO EM ALVENARIAS E ESTRUTURAS DE CONCRETO INTERNAS, COM ROLO PARA TEXTURA ACRÍLICA. ARGAMASSA TRAÇO 1:4 E EMULSÃO POLIMÉRICA (ADESIVO) COM PREPARO EM BETONEIRA 400L. AF_06/2014 | C161: M2 | D161: 427.65 | E161: 8.59 | F161: =ROUND(D161*E161,2) -> 3673.51
A162: 1.12.2 | B162: EMBOÇO OU MASSA ÚNICA EM ARGAMASSA TRAÇO 1:2:8, PREPARO MANUAL, APLICADA MANUALMENTE EM PANOS CEGOS DE FACHADA (SEM PRESENÇA DE VÃOS), ESPESSURA DE 25 MM. AF_06/2014 | C162: M2 | D162: 427.65 | E162: 41.87 | F162: =ROUND(D162*E162,2) -> 17905.71
A164: 1.13 | B164: GRANITO | F164: =SUBTOTAL(9,F165) -> 0
A166: 1.14 | B166: FORRO | F166: =SUBTOTAL(9,F167) -> 0
A168: 1.15 | B168: PINTURA | F168: =SUBTOTAL(9,F169:F173) -> 23066.63
A169: 1.15.1 | B169: APLICAÇÃO MANUAL DE FUNDO SELADOR ACRÍLICO EM PAREDES. | C169: M2 | D169: 427.65 | E169: 2.43 | F169: =ROUND(D169*E169,2) -> 1039.19
A170: 1.15.2 | B170: TEXTURA ACRÍLICA, APLICAÇÃO MANUAL EM PAREDE, UMA DEMÃO. AF_09/2016 | C170: M2 | D170: 427.65 | E170: 15.6 | F170: =ROUND(D170*E170,2) -> 6671.34
A171: 1.15.3 | B171: APLICAÇÃO MANUAL DE PINTURA COM TINTA LÁTEX ACRÍLICA EM PAREDES, DUAS DEMÃOS. AF_06/2014 | C171: M2 | D171: 599.67 | E171: 15 | F171: =ROUND(D171*E171,2) -> 8995.05
A172: 1.15.4 | B172: APLICAÇÃO MANUAL DE PINTURA COM TINTA LÁTEX ACRÍLICA EM PAREDES, DUAS DEMÃOS. AF_06/2014 | C172: M2 | D172: 392.7 | E172: 15 | F172: =ROUND(D172*E172,2) -> 5890.5
A173: 1.15.5 | B173: PINTURA DE MEIO-FIO COM TINTA BRANCA A BASE DE CAL (CAIAÇÃO). AF_05/2021 | C173: M | D173: 333.72 | E173: 1.41 | F173: =ROUND(D173*E173,2) -> 470.55
A175: 1.16 | B175: CALÇAMENTO, PÁTIOS E PASSARELAS | F175: =SUBTOTAL(9,F176:F186) -> 695245.88
A176: 1.16.1 | B176: EXECUÇÃO DE PASSEIO EM PISO INTERTRAVADO, COM BLOCO RETANGULAR COR NATURAL DE 20 X 10 CM, ESPESSURA 6 CM. AF_12/2015 | C176: M2 | D176: 1666.31 | E176: 85.98 | F176: =ROUND(D176*E176,2) -> 143269.33
A177: 1.16.2 | B177: EXECUÇÃO DE PASSEIO (CALÇADA) OU PISO DE CONCRETO COM CONCRETO MOLDADO IN LOCO, USINADO, ACABAMENTO CONVENCIONAL, NÃO ARMADO. AF_07/2016 | C177: M3 | D177: 175.0546 | E177: 749.98 | F177: 131287.45
A178: 1.16.3 | B178: ARMAÇÃO PARA EXECUÇÃO DE RADIER, COM USO DE TELA Q-92. AF_09/2017 - CONSIDERADO USO DE TELAS NAS CALÇADAS | C178: KG | D178: 3701.1544 | E178: 34.2 | F178: =ROUND(D178*E178,2) -> 126579.48
A179: 1.16.4 | B179: PISO DE CONCRETO POLIDO INDUSTRIAL PARA TRÂNSITO DE VEÍCULOS, FCK 25MPA, ESP. 15CM, ARMADO COM TELA SOLDADA GERDAU Q-92 - MALHA 15X15CM D= 4,2MM OU SIMILAR, INCLUSIVE BARRAS DE TRANSFERÊNCIA BTG 20 - D=20MM, EM AÇO CA-25 LISO, COMPRIMENTO DE 50CM, DISPOSTAS A CADA 30CM, COM FORNECIMENTO DE MATERIAL, ADENSAMENTO, SARRAFEAMENTO, POLIMENTO COM MÁQUINA POLITRIZ INDUSTRIAL, COM CONFECÇÃO DE JUNTAS DE DILATAÇÃO EM PANOS DE NO MÁXIMO 5,00X5,00M, EXECUTADAS CORTE COM MÁQUINA DE CORTE DE PISO INDUSTRIAL COM DISCO DIAMANTADO, PROFUNDIDADE MÍNIMA DE 5CM, INCLUSIVE PREPARO MANUAL DO TERRENO, APILOAMENTO DE BASE, FORNECIMENTO DE LONA PRETA E ADITIVOS PARA O CONCRETO | C179: M2 | D179: 985.78 | E179: 202.88 | F179: 199995.05
A180: 1.16.5 | B180: ASSENTAMENTO DE GUIA (MEIO-FIO) EM TRECHO RETO, CONFECCIONADA EM CONCRETO PRÉ-FABRICADO, DIMENSÕES 39X6,5X6,5X19 CM (COMPRIMENTO X BASE INFERIOR X BASE SUPERIOR X ALTURA), PARA DELIMITAÇÃO DE JARDINS, PRAÇAS OU PASSEIOS. AF_05/2016 | C180: M | D180: 333.72 | E180: 58.04 | F180: 19369.11
A181: 1.16.6 | B181: ASSENTAMENTO DE GUIA (MEIO-FIO) EM TRECHO RETO, CONFECCIONADA EM CONCRETO PRÉ-FABRICADO, DIMENSÕES 100X15X13X30 CM (COMPRIMENTO X BASE INFERIOR X BASE SUPERIOR X ALTURA), PARA VIAS URBANAS (USO VIÁRIO). AF_06/2016 | C181: M | D181: 593.48 | E181: 61.88 | F181: 36724.54
A182: 1.16.7 | B182: ASSENTAMENTO DE GUIA (MEIO-FIO) EM TRECHO CURVO, CONFECCIONADA EM CONCRETO PRÉ-FABRICADO, DIMENSÕES 100X15X13X30 CM (COMPRIMENTO X BASE INFERIOR X BASE SUPERIOR X ALTURA), PARA VIAS URBANAS (USO VIÁRIO). AF_06/2016 | C182: M | D182: 50.75 | E182: 65.75 | F182: 3336.81
A183: 1.16.8 | B183: GUIA (MEIO-FIO) E SARJETA CONJUGADOS DE CONCRETO, MOLDADA IN LOCO EM TRECHO RETO COM EXTRUSORA, 45 CM BASE (15 CM BASE DA GUIA + 30 CM BASE DA SARJETA) X 22 CM ALTURA. AF_06/2016 | C183: M | D183: 303.02 | E183: 53.81 | F183: 16305.51
A184: 1.16.9 | B184: GUIA (MEIO-FIO) E SARJETA CONJUGADOS DE CONCRETO, MOLDADA IN LOCO EM TRECHO CURVO COM EXTRUSORA, 45 CM BASE (15 CM BASE DA GUIA + 30 CM BASE DA SARJETA) X 22 CM ALTURA. AF_06/2016 | C184: M | D184: 96.85 | E184: 58.15 | F184: 5631.83
A185: 1.16.10 | B185: BATE-RODAS MOLDADO EM OBRA COM FORMA METÁLICA, PRISMATICO DIM. DA BASE IGUAL A 20CM, ALTURA IGUAL A 15CM, PINTADO NA COR AMARELA, INCLUSO ARMAÇÃO DE AÇO HORIZONTAL DIAM 8MM | C185: UN | D185: 262 | E185: 18.7 | F185: 4899.4
A186: 1.16.11 | B186: FORNECIMENTO E ESPALHAMENTO DE BRITA (PEDRISCO CINZA), INCLUSIVE REGULARIZAÇÃO / ACERTO MANUAL COM ESPALHAMENTO E COMPACTACAO, ESP=5CM | C186: M2 | D186: 1061.89 | E186: 7.39 | F186: 7847.37
A188: 1.17 | B188: SERVIÇOS COMPLEMENTARES | F188: =SUBTOTAL(9,F189:F327) -> 521761.44
A189: 1.17.1 | B189: SERVIÇOS COMPLEMENTARES - CFTV | F189: =SUBTOTAL(9,F190:F256) -> 138923.22
A190: 1.17.1.1 | B190: ACESSÓRIOS P/ELETRODUTO E USO GERAL | F190: =SUBTOTAL(9,F191:F211) -> 9487.55
A191: 1.17.1.1.1 | B191: FORNECIMENTO E INSTALAÇÃO DE ABRAÇADEIRA DE AÇO, TIPO D, 3/4", COM CUNHA | C191: UN | D191: 550 | E191: 6.59 | F191: =ROUND(D191*E191,2) -> 3624.5
A192: 1.17.1.1.2 | B192: FORNECIMENTO E INSTALAÇÃO DE ABRAÇADEIRA DE AÇO, TIPO D, 1", COM CUNHA | C192: UN | D192: 20 | E192: 6.75 | F192: 135
A193: 1.17.1.1.3 | B193: FORNECIMENTO E INSTALAÇÃO DE BUCHA E ARRUELA ALUMÍNIO FUNDIDO PARA ELETRODUTO (ZAMAK) 3/4" | C193: UN | D193: 96 | E193: 2.03 | F193: 194.88
A194: 1.17.1.1.4 | B194: FORNECIMENTO E INSTALAÇÃO DE BUCHA E ARRUELA ALUMÍNIO FUNDIDO PARA ELETRODUTO (ZAMAK) 1" | C194: UN | D194: 3 | E194: 2.41 | F194: 7.23
A195: 1.17.1.1.5 | B195: FORNECIMENTO E INSTALAÇÃO DE BOX RETO PARA ELETRODUTO 3/4" | C195: UN | D195: 96 | E195: 5.68 | F195: 545.28
A196: 1.17.1.1.6 | B196: FORNECIMENTO E INSTALAÇÃO DE BOX RETO PARA ELETRODUTO 1" | C196: UN | D196: 3 | E196: 8.04 | F196: 24.12
A197: 1.17.1.1.7 | B197: CAIXA RETANGULAR 4" X 2" PVC - FORNECIMENTO E INSTALAÇÃO. | C197: UN | D197: 42 | E197: 8.96 | F197: 376.32
A198: 1.17.1.1.8 | B198: CAIXA RETANGULAR 4" X 4" PVC - FORNECIMENTO E INSTALAÇÃO. AF_12/2015 | C198: UN | D198: 4 | E198: 12 | F198: 48
A199: 1.17.1.1.9 | B199: CONDULETE DE ALUMÍNIO, TIPO X, PARA ELETRODUTO DE AÇO GALVANIZADO DN 20 MM (3/4''), APARENTE - FORNECIMENTO E INSTALAÇÃO. AF_11/2016_P | C199: UN | D199: 20 | E199: 38.12 | F199: 762.4
A200: 1.17.1.1.10 | B200: FORNECIMENTO E INSTALAÇÃO DE PLACA CEGA DE ALUMÍNIO P/ CONDULETE | C200: UN | D200: 20 | E200: 32.7 | F200: 654
A201: 1.17.1.1.11 | B201: FORNECIMENTO E INSTALAÇÃO DE SAÍDA LATERAL ELETROCALHA P/ ELETRODUTO 3/4" | C201: UN | D201: 25 | E201: 10.29 | F201: 257.25
A202: 1.17.1.1.12 | B202: FORNECIMENTO E INSTALAÇÃO DE SAÍDA ELETROCALHA P/ ELETRODUTO 1" | C202: UN | D202: 2 | E202: 15.54 | F202: 31.08
A203: 1.17.1.1.13 | B203: FORNECIMENTO E INSTALAÇÃO DE SAÍDA LATERAL PERFILADO P/ ELETRODUTO 3/4" | C203: UN | D203: 13 | E203: 18.51 | F203: 240.63
A204: 1.17.1.1.14 | B204: FORNECIMENTO E INSTALAÇÃO DE ARAME AÇO GALVANIZADO 18 BWG, 1,24MM (0,009 KG/M) | C204: M | D204: 250 | E204: 0.77 | F204: 192.5
A205: 1.17.1.1.15 | B205: FORNECIMENTO E INSTALAÇÃO DE ARRUELA LISA GALVANIZADA 1/4" | C205: UN | D205: 200 | E205: 0.59 | F205: 118
A206: 1.17.1.1.16 | B206: FORNECIMENTO E INSTALAÇÃO DE BUCHA / PARAFUSO S8 | C206: UN | D206: 254 | E206: 4.44 | F206: 1127.76
A207: 1.17.1.1.17 | B207: FORNECIMENTO E INSTALAÇÃO DE BUCHA / PARAFUSO S10 | C207: UN | D207: 18 | E207: 4.75 | F207: 85.5
A208: 1.17.1.1.18 | B208: FORNECIMENTO E INSTALAÇÃO DE PARAFUSO GALVAN. CABEÇA LENTILHA 1/4X5/8" | C208: UN | D208: 54 | E208: 4.93 | F208: 266.22
A209: 1.17.1.1.19 | B209: FORNECIMENTO E INSTALAÇÃO DE PARAFUSO GALVAN. CABEÇA LOSANGULAR 1/4"X1" - AUTO TRAVANTE PERFILADO | C209: UN | D209: 26 | E209: 6.88 | F209: 178.88
A210: 1.17.1.1.20 | B210: FORNECIMENTO E INSTALAÇÃO DE PORCA SEXTAVADA GALVAN. 1/4" | C210: UN | D210: 200 | E210: 0.42 | F210: 84
A211: 1.17.1.1.21 | B211: FORNECIMENTO E INSTALAÇÃO DE VERGALHÃO GALVANIZADO ROSCA TOTAL 1/4" | C211: M | D211: 30 | E211: 17.8 | F211: 534
A213: 1.17.1.2 | B213: ACESSÓRIOS P/ELETRODUTO E USO GERAL | F213: =SUBTOTAL(9,F214:F214) -> 753.08
A214: 1.17.1.2.1 | B214: CAIXA ENTERRADA ELÉTRICA RETANGULAR, EM ALVENARIA COM TIJOLOS CERÂMICOS MACIÇOS, COM TAMPA, FUNDO COM BRITA, DIMENSÕES INTERNAS: 0,3X0,3X0,3 M. AF_12/2020 | C214: UN | D214: 4 | E214: 188.27 | F214: =ROUND(D214*E214,2) -> 753.08
A216: 1.17.1.3 | B216: CABOS | F216: =SUBTOTAL(9,F217:F218) -> 5004.2
A217: 1.17.1.3.1 | B217: CABO ELETRÔNICO CATEGORIA 6, ATOX LSZH, INSTALADO EM EDIFICAÇÃO INSTITUCIONAL - FORNECIMENTO E INSTALAÇÃO. AF_11/2019 | C217: M | D217: 40 | E217: 2.58 | F217: =ROUND(D217*E217,2) -> 103.2
A218: 1.17.1.3.2 | B218: CABO ELETRÔNICO CATEGORIA 5E, INSTALADO EM EDIFICAÇÃO INSTITUCIONAL - FORNECIMENTO E INSTALAÇÃO. AF_11/2019 | C218: M | D218: 2900 | E218: 1.69 | F218: 4901
A220: 1.17.1.4 | B220: DISPOSITIVO CABEAMENTO EMBUTIR | F220: =SUBTOTAL(9,F221:F222) -> 83.4
A221: 1.17.1.4.1 | B221: FORNECIMENTO E INSTALAÇÃO DE CONECTOR MACHO RJ45 - CAT.6 | C221: UN | D221: 6 | E221: 6.95 | F221: =ROUND(D221*E221,2) -> 41.7
A222: 1.17.1.4.2 | B222: FORNECIMENTO E INSTALAÇÃO DE CONECTOR MACHO RJ45 - CAT.6 | C222: UN | D222: 6 | E222: 6.95 | F222: 41.7
A224: 1.17.1.5 | B224: ELETRODUTOS E ESCAVAÇÕES | F224: =SUBTOTAL(9,F225:F231) -> 5814.75
A225: 1.17.1.5.1 | B225: INSTALAÇÃO DE ELETRODUTO FLEXÍVEL CORRUGADO, PVC, DN 25 MM (3/4") - (MATERIAL FORNECIDO PELO SESI) | C225: UN | D225: 250 | E225: 3.9 | F225: =ROUND(D225*E225,2) -> 975
A226: 1.17.1.5.2 | B226: ELETRODUTO FLEXÍVEL CORRUGADO, PVC, DN 32 MM (1") - FORNECIMENTO E INSTALAÇÃO. | C226: M | D226: 13 | E226: 8.72 | F226: =ROUND(D226*E226,2) -> 113.36
A227: 1.17.1.5.3 | B227: ELETRODUTO FLEXÍVEL CORRUGADO, PEAD, DN 50 (1 ½) - FORNECIMENTO E INSTALAÇÃO. AF_04/2016 | C227: M | D227: 75 | E227: 7.73 | F227: 579.75
A228: 1.17.1.5.4 | B228: ELETRODUTO RÍGIDO ROSCÁVEL, PVC, DN 25 MM (3/4") - FORNECIMENTO E INSTALAÇÃO. | C228: M | D228: 21 | E228: 8.61 | F228: =ROUND(D228*E228,2) -> 180.81
A229: 1.17.1.5.5 | B229: FORNECIMENTO E INSTALAÇÃO DE ELETRODUTO METÁLICO FLEXIVEL, COM PROTEÇÃO EM PVC PRETO (SEALTUBO) - 3/4" | C229: M | D229: 110 | E229: 21.53 | F229: 2368.3
A230: 1.17.1.5.6 | B230: ESCAVAÇÃO MANUAL DE VALA COM PROFUNDIDADE MENOR OU IGUAL A 1,30 M. AF_02/2021 | C230: M3 | D230: 13.13 | E230: 75.75 | F230: =ROUND(D230*E230,2) -> 994.6
A231: 1.17.1.5.7 | B231: REATERRO MANUAL APILOADO COM SOQUETE. AF_10/2017 | C231: M3 | D231: 13.13 | E231: 45.92 | F231: =ROUND(D231*E231,2) -> 602.93
A233: 1.17.1.6 | B233: RACK E ACESSÓRIOS | F233: =SUBTOTAL(9,F234:F244) -> 12267.21
... 519 more rows

Sheet 2_BLOCO A-FACHADA (hidden)
A1: PLANILHA ORÇAMENTARIA | D1: SPN-FF-003
D3: Folha: 1 de 1 | E3: Revisão: 02 | F3: Data: 07/10/19
A5: SESI - SERVIÇO SOCIAL DA INDUSTRIA - DR/MT
A6: OBRA: CONTRATAÇÃO DE EMPRESA ESPECIALIZADA PARA CONTINUIDADE DA EXECUÇÃO DA OBRA DE REFORMA E AMPLIAÇÃO DA UNIDADE DO SESI ESCOLA VÁRZEA GRANDE/MT.
A7: UNIDADE OPERACIONAL: SESI ESCOLA VÁRZEA GRANDE
A8: ENDEREÇO: AV. DOM ORLANDO CHAVES, N.º 1.086, PONTE NOVA - CRISTO REI CIDADE: VÁRZEA GRANDE/MT
A9: CONSTRUTORA:
A10: RESPONSÁVEL TÉCNICO:
A11: BASE SINAPI UTILIZADA: 06/2021
A12: ITEM | B12: DESCRIÇÃO | C12: UNID. | D12: QUANT. | E12: Valor UNIT. (R$) | F12: Valor Total (R$)
A14: 2 | B14: BLOCO A e FACHADA
A16: 2.0 | B16: DEMOLIÇÕES E RETIRADAS | F16: =SUBTOTAL(9,F17:F21) -> 5461.65
A17: 2.0.1 | B17: DEMOLIÇÃO - ACESSO ENTRE OS BLOCOS A E B | F17: =SUBTOTAL(9,F18:F21) -> 5461.65
A18: 2.0.1.1 | B18: DEMOLIÇÃO DE PILARES E VIGAS EM CONCRETO ARMADO, DE FORMA MECANIZADA COM MARTELETE, SEM REAPROVEITAMENTO. AF_12/2017 | C18: M3 | D18: 5.04 | E18: 243.62 | F18: =ROUND(D18*E18,2) -> 1227.84
A19: 2.0.1.2 | B19: REMOÇÃO DE PINTURA LÁTEX OU TEXTURA (RASPAGEM E/OU LIXAMENTO E/OU ESCOVAÇÃO | C19: M2 | D19: 343.26 | E19: 7.66 | F19: =ROUND(D19*E19,2) -> 2629.37
A20: 2.0.1.3 | B20: DEMOLIÇÃO DE REVESTIMENTO CERÂMICO, DE FORMA MANUAL, SEM REAPROVEITAMENTO. AF_12/2017 | C20: M2 | D20: 33 | E20: 19.96 | F20: =ROUND(D20*E20,2) -> 658.68
A21: 2.0.1.4 | B21: BOTA FORA DE MATERIAL DESCARTADO, D.M.T. = 10 km - (CARGA, TRANSPORTE E DESCARGA MECÂNICA) | C21: M3 | D21: 16.12 | E21: 58.67 | F21: 945.76
A23: 2.1 | B23: INSTALAÇÕES DE CANTEIRO | F23: =SUBTOTAL(9,F24) -> 0
A25: 2.2 | B25: ADMINISTRAÇÃO | F25: =SUBTOTAL(9,F26) -> 0
A27: 2.3 | B27: TERRAPLENAGEM | F27: =SUBTOTAL(9,F28) -> 0
A29: 2.4 | B29: FUNDAÇÃO | F29: =SUBTOTAL(9,F30:F61) -> 163777.16
A30: 2.4.1 | B30: FUNDAÇÃO - FACHADA (JÁ EXECUTADA) | F30: =SUBTOTAL(9,F31) -> 0
A32: 2.4.2 | B32: FUNDAÇÃO - ESCADA E RAMPA ENTRE OS BLOCOS A E B | F32: =SUBTOTAL(9,F33:F42) -> 26560.73
A33: 2.4.2.1 | B33: ESCAVAÇÃO MECANIZADA PARA BLOCO DE COROAMENTO OU SAPATA, SEM PREVISÃO DE FÔRMA, COM RETROESCAVADEIRA. AF_06/2017 | C33: M3 | D33: 2.4 | E33: 91.26 | F33: =ROUND(D33*E33,2) -> 219.02
A34: 2.4.2.2 | B34: BOTA FORA DE MATERIAL DESCARTADO, D.M.T. = 10 km - (CARGA, TRANSPORTE E DESCARGA MECÂNICA) | C34: M3 | D34: 3.12 | E34: 58.67 | F34: 183.05
A35: 2.4.2.3 | B35: LASTRO COM MATERIAL GRANULAR (PEDRA BRITADA N.1 E PEDRA BRITADA N.2), APLICADO EM PISOS OU LAJES SOBRE SOLO, ESPESSURA DE *10 CM*. AF_07/2019 | C35: M3 | D35: 2.35 | E35: 142.05 | F35: 333.82
A36: 2.4.2.4 | B36: FABRICAÇÃO DE FÔRMA PARA VIGAS, EM CHAPA DE MADEIRA COMPENSADA PLASTIFICADA, E = 18 MM. AF_09/2020 | C36: M2 | D36: 17 | E36: 129.29 | F36: 2197.93
A37: 2.4.2.5 | B37: ARMAÇÃO DE BLOCO, VIGA BALDRAME E SAPATA UTILIZANDO AÇO CA-60 DE 5 MM - MONTAGEM. AF_06/2017 | C37: KG | D37: 259 | E37: 25.68 | F37: 6651.12
A38: 2.4.2.6 | B38: ARMAÇÃO DE BLOCO, VIGA BALDRAME OU SAPATA UTILIZANDO AÇO CA-50 DE 6,3 MM - MONTAGEM. (VERGALHÃO FORNECIDO PELO SESI) | C38: KG | D38: 152 | E38: 5.18 | F38: =ROUND(D38*E38,2) -> 787.36
A39: 2.4.2.7 | B39: EPS - BLOCOS PARA ENCHIMENTO | C39: M³ | D39: 7.5 | E39: 564.16 | F39: 4231.2
A40: 2.4.2.8 | B40: COMPACTAÇÃO MECÂNICA DE SOLO PARA EXECUÇÃO DE RADIER, COM COMPACTADOR DE SOLOS A PERCUSSÃO. AF_09/2017 | C40: M2 | D40: 24.6 | E40: 3.01 | F40: 74.05
A41: 2.4.2.9 | B41: CONCRETAGEM DE PILARES, FCK = 25 MPA, COM USO DE BOMBA EM EDIFICAÇÃO COM SEÇÃO MÉDIA DE PILARES MAIOR QUE 0,25 M² - LANÇAMENTO, ADENSAMENTO E ACABAMENTO. AF_12/2015 | C41: M3 | D41: 18 | E41: 656.15 | F41: 11810.7
A42: 2.4.2.10 | B42: LONA PLASTICA EXTRA FORTE PRETA, E = 200 MICRA PARA IMPERMEABILIZAÇÃO | C42: M2 | D42: 24 | E42: 3.02 | F42: 72.48
A44: 2.4.3 | B44: FUNDAÇÃO - ACESSO ENTRE OS BLOCOS A E B | F44: =SUBTOTAL(9,F45:F61) -> 137216.43
A45: 2.4.3.1 | B45: ESCAVAÇÃO MECANIZADA PARA BLOCO DE COROAMENTO OU SAPATA, SEM PREVISÃO DE FÔRMA, COM RETROESCAVADEIRA. AF_06/2017 | C45: M3 | D45: 57.57 | E45: 91.26 | F45: =ROUND(D45*E45,2) -> 5253.84
A46: 2.4.3.2 | B46: BOTA FORA DE MATERIAL DESCARTADO, D.M.T. = 10 km - (CARGA, TRANSPORTE E DESCARGA MECÂNICA) | C46: M3 | D46: 57.19 | E46: 58.67 | F46: =ROUND(D46*E46,2) -> 3355.34
A47: 2.4.3.3 | B47: REATERRO MANUAL DE VALAS COM COMPACTAÇÃO MECANIZADA. AF_04/2016 | C47: M3 | D47: 34.69 | E47: 27.04 | F47: =ROUND(D47*E47,2) -> 938.02
A48: 2.4.3.4 | B48: ESTACAS - ESTACAS RAIZ DE Ø31cm EM SOLO INCLUSIVE A INJENÇÃO DE ARGAMASSA FCK>20 MPA, INCLUSIVE LANÇAMENTO DE ARMAÇÃO / CONSUMO MÍNIMO DE CIMENTO - 600 kg/m³. | C48: M | D48: 168 | E48: 474.01 | F48: =ROUND(D48*E48,2) -> 79633.68
A49: 2.4.3.5 | B49: ESTACAS - ARMAÇÃO DE BLOCO, VIGA BALDRAME OU SAPATA UTILIZANDO AÇO CA-50 DE 6,3 MM - MONTAGEM. (FORNECIDA PELO SESI ESTACA MONTADA) | C49: KG | D49: 0 | E49: 25.13 | F49: 0
A50: 2.4.3.6 | B50: ESTACAS - ARMAÇÃO DE BLOCO, VIGA BALDRAME OU SAPATA UTILIZANDO AÇO CA-50 DE 12,5 MM - MONTAGEM. (FORNECIDA PELO SESI ESTACA MONTADA) | C50: KG | D50: 0 | E50: 18.72 | F50: =ROUND(D50*E50,2) -> 0
A51: 2.4.3.7 | B51: BLOCOS - LASTRO COM MATERIAL GRANULAR (PEDRA BRITADA N.1 E PEDRA BRITADA N.2), APLICADO EM PISOS OU LAJES SOBRE SOLO, ESPESSURA DE *10 CM*. AF_07/2019 | C51: M3 | D51: 0.88 | E51: 142.05 | F51: 125
A52: 2.4.3.8 | B52: BLOCOS - FABRICAÇÃO, MONTAGEM E DESMONTAGEM DE FÔRMA PARA BLOCO DE COROAMENTO, EM MADEIRA SERRADA, E=25 MM, 1 UTILIZAÇÃO. AF_06/2017 | C52: M2 | D52: 81.4 | E52: 165.28 | F52: 13453.79
A53: 2.4.3.9 | B53: BLOCOS - ARMAÇÃO DE BLOCO, VIGA BALDRAME E SAPATA UTILIZANDO AÇO CA-60 DE 5 MM - MONTAGEM. AF_06/2017 | C53: KG | D53: 163.9 | E53: 25.68 | F53: 4208.95
A54: 2.4.3.10 | B54: BLOCOS - ARMAÇÃO DE BLOCO, VIGA BALDRAME OU SAPATA UTILIZANDO AÇO CA-50 DE 8 MM - MONTAGEM. AF_06/2017 | C54: KG | D54: 68.2 | E54: 24.24 | F54: 1653.17
A55: 2.4.3.11 | B55: BLOCOS - CONCRETAGEM DE BLOCOS DE COROAMENTO E VIGAS BALDRAMES, FCK 30 MPA, COM USO DE BOMBA  LANÇAMENTO, ADENSAMENTO E ACABAMENTO. AF_06/2017 | C55: M3 | D55: 18.8 | E55: 693.9 | F55: 13045.32
A56: 2.4.3.12 | B56: VIGA BALDRAME - LASTRO COM MATERIAL GRANULAR (PEDRA BRITADA N.1 E PEDRA BRITADA N.2), APLICADO EM PISOS OU LAJES SOBRE SOLO, ESPESSURA DE *10 CM*. AF_07/2019 | C56: M3 | D56: 0.94 | E56: 142.05 | F56: 133.53
A57: 2.4.3.13 | B57: VIGA BALDRAME - FABRICAÇÃO, MONTAGEM E DESMONTAGEM DE FÔRMA PARA VIGA BALDRAME, EM MADEIRA SERRADA, E=25 MM, 1 UTILIZAÇÃO. AF_06/2017 | C57: M2 | D57: 56.83 | E57: 148.03 | F57: 8412.54
A58: 2.4.3.14 | B58: VIGA BALDRAME - ARMAÇÃO DE BLOCO, VIGA BALDRAME E SAPATA UTILIZANDO AÇO CA-60 DE 5 MM - MONTAGEM. AF_06/2017 | C58: KG | D58: 56.4 | E58: 25.68 | F58: 1448.35
A59: 2.4.3.15 | B59: VIGA BALDRAME - ARMAÇÃO DE BLOCO, VIGA BALDRAME OU SAPATA UTILIZANDO AÇO CA-50 DE 8 MM - MONTAGEM. AF_06/2017 | C59: KG | D59: 122.3 | E59: 24.24 | F59: 2964.55
A60: 2.4.3.16 | B60: VIGA BALDRAME - ARMAÇÃO DE BLOCO, VIGA BALDRAME OU SAPATA UTILIZANDO AÇO CA-50 DE 10 MM - MONTAGEM. AF_06/2017 | C60: KG | D60: 8.3 | E60: 21.99 | F60: 182.52
A61: 2.4.3.17 | B61: VIGA BALDRAME - CONCRETAGEM DE BLOCOS DE COROAMENTO E VIGAS BALDRAMES, FCK 30 MPA, COM USO DE BOMBA  LANÇAMENTO, ADENSAMENTO E ACABAMENTO. AF_06/2017 | C61: M3 | D61: 3.47 | E61: 693.9 | F61: =ROUND(D61*E61,2) -> 2407.83
A63: 2.5 | B63: IMPERMEABILIZAÇÃO | F63: =SUBTOTAL(9,F64) -> 8031.16
A64: 2.5.1 | B64: IMPERMEABILIZAÇÃO DE SUPERFÍCIE COM EMULSÃO ASFÁLTICA, 2 DEMÃOS AF_06/2018 | C64: M2 | D64: 138.23 | E64: 58.1 | F64: 8031.16
A66: 2.6 | B66: ESTRUTURAS DE CONCRETO ARMADO | F66: =SUBTOTAL(9,F67:F70) -> 9502.91
A67: 2.6.3 | B67: ESTRUTURAS DE CONCRETO ARMADO - MURETA/ARRIMO | F67: =SUBTOTAL(9,F68:F71) -> 9502.91
A68: 2.6.3.1 | B68: ALVENARIA DE BLOCOS DE CONCRETO ESTRUTURAL 14X19X39 CM, (ESPESSURA 14 CM), FBK = 4,5 MPA, PARA PAREDES COM ÁREA LÍQUIDA MAIOR OU IGUAL A 6M², SEM VÃOS, UTILIZANDO PALHETA. AF_12/2014 | C68: M2 | D68: 41.601 | E68: 78.12 | F68: =ROUND(D68*E68,2) -> 3249.87
A69: 2.6.3.2 | B69: ARMAÇÃO DE BLOCO, VIGA BALDRAME OU SAPATA UTILIZANDO AÇO CA-50 DE 12,5 MM - MONTAGEM. AF_06/2017 | C69: KG | D69: 141.28 | E69: 18.72 | F69: 2644.76
A70: 2.6.3.3 | B70: CONCRETAGEM DE BLOCOS DE COROAMENTO E VIGAS BALDRAMES, FCK 30 MPA, COM USO DE BOMBA  LANÇAMENTO, ADENSAMENTO E ACABAMENTO. AF_06/2017 | C70: M3 | D70: 5.2 | E70: 693.9 | F70: 3608.28
A72: 2.7 | B72: ALVENARIAS E PAINÉIS | F72: =SUBTOTAL(9,F73:F74) -> 43999.52
A73: 2.6.3.1 | B73: ALVENARIA DE VEDAÇÃO DE BLOCOS CERÂMICOS FURADOS NA HORIZONTAL DE 9X19X19CM (ESPESSURA 9CM) DE PAREDES COM ÁREA LÍQUIDA MAIOR OU IGUAL A 6M² COM VÃOS E ARGAMASSA DE ASSENTAMENTO COM PREPARO EM BETONEIRA. AF_06/2014 | C73: M2 | D73: 243.21 | E73: 89.93 | F73: =ROUND(D73*E73,2) -> 21871.88
A74: 2.6.3.2 | B74: FORNECIMENTO E INSTALAÇÃO DE PAREDE DE GESSO ACARTONADO ESP. 10CM, FACE DUPLA, COM ISOLAMENTO TERMO-ACÚSTICO DE LÃ DE ROCHA 50MM (CONSUMO CONF. TCPO 04840.8.5.1, MONTANTE M75-0,62kg/m, GUIA 75 ) | C74: M2 | D74: 128.44 | E74: 172.28 | F74: 22127.64
A76: 2.8 | B76: ESTRUTURA METALICA | F76: =SUBTOTAL(9,F77:F85) -> 465871.34
A77: 2.8.1 | B77: ESTRUTURA MTÁLICA - DA FACHADA, INCLUSIVE MARQUISE | F77: =SUBTOTAL(9,F78:F80) -> 323566.17
A78: 2.8.1.1 | B78: ESTRUTURA METALICA DA COBERTURA CONFORME PROJETO EM AÇO ESTRUTURAL | C78: KG | D78: 15568 | E78: 18.63 | F78: =ROUND(D78*E78,2) -> 290031.84
A79: 2.8.1.2 | B79: PINTURA COM TINTA ALQUÍDICA DE FUNDO (TIPO ZARCÃO) PULVERIZADA SOBRE SUPERFÍCIES METÁLICAS (EXCETO PERFIL) EXECUTADO EM OBRA (POR DEMÃO). AF_01/2020_P | C79: M2 | D79: 840.67 | E79: 21.31 | F79: 17914.68
A80: 2.8.1.3 | B80: PINTURA COM TINTA ACRÍLICA DE ACABAMENTO PULVERIZADA SOBRE SUPERFÍCIES METÁLICAS (EXCETO PERFIL) EXECUTADO EM OBRA (02 DEMÃOS). AF_01/2020_P | C80: M2 | D80: 840.67 | E80: 18.58 | F80: =ROUND(D80*E80,2) -> 15619.65
A82: 2.8.2 | B82: ESTRUTURA METÁLICA - DO ACESSO ENTRE OS BLOCOS A e B | F82: =SUBTOTAL(9,F83:F85) -> 142305.17
A83: 2.8.1.2 | B83: ESTRUTURA METALICA DA COBERTURA CONFORME PROJETO EM AÇO ESTRUTURAL | C83: KG | D83: 6200.4 | E83: 18.63 | F83: =ROUND(D83*E83,2) -> 115513.45
A84: 2.8.1.3 | B84: PINTURA COM TINTA ALQUÍDICA DE FUNDO (TIPO ZARCÃO) PULVERIZADA SOBRE SUPERFÍCIES METÁLICAS (EXCETO PERFIL) EXECUTADO EM OBRA (POR DEMÃO). AF_01/2020_P | C84: M2 | D84: 671.64 | E84: 21.31 | F84: 14312.65
A85: 2.8.1.4 | B85: PINTURA COM TINTA ACRÍLICA DE ACABAMENTO PULVERIZADA SOBRE SUPERFÍCIES METÁLICAS (EXCETO PERFIL) EXECUTADO EM OBRA (02 DEMÃOS). AF_01/2020_P | C85: M2 | D85: 671.64 | E85: 18.58 | F85: 12479.07
A87: 2.9 | B87: COBERTURA | F87: =SUBTOTAL(9,F88:F91) -> 75474.79
A88: 2.9.1 | B88: CUMEEIRA METÁLICA AÇO GALVALUME TRAPEZOIDAL 40 40X60CM - FORNECIMENTO E INSTALAÇÃO | C88: M | D88: 58.64 | E88: 84.19 | F88: =ROUND(D88*E88,2) -> 4936.9
A89: 2.9.2 | B89: FORNECIMENTO E INSTALAÇÃO DE TELHA ISOLANTE COM NUCLEO EM POLIESTIRENO (EPS), E = 50 MM, COM PRE-PINTURA NAS DUAS FACES, FACE SUPERIOR EM TELHA DE AÇO TRAPEZOIDAL E=0,50MM E FACE INFERIOR EM CHAPA PLANA E=0,50MM, INCLUSIVE PARAFUSOS E CALAFETAÇÃO COM SELANTE | C89: M2 | D89: 205 | E89: 297.14 | F89: =ROUND(D89*E89,2) -> 60913.7
A90: 2.9.3 | B90: INSTALAÇÃO DE TELHA ISOLANTE COM NUCLEO EM POLIESTIRENO (EPS), E = 50 MM, COM PRE-PINTURA NAS DUAS FACES, FACE SUPERIOR EM TELHA DE AÇO TRAPEZOIDAL E=0,50MM E FACE INFERIOR EM CHAPA PLANA E=0,50MM, INCLUSIVE PARAFUSOS E CALAFETAÇÃO COM SELANTE (MATERIAL FORNECIDO SESI) - MARQUISE DA ENTRADA DA UNIDADE | C90: M2 | D90: 34.51 | E90: 11.02 | F90: 380.3
A91: 2.9.4 | B91: PLATIBANDA EM CHAPA DE AÇO ESPESSURA 2,00mm, H=870mm, DOBRA CARTOLA: 30X20X970mm, COM METALON DIM. 50X20X0,97mm NA FACE INFERIOR PARA ARREMATE COM O FORRO, FUNDO ANTICORROSIVO EM PRIMER EPÓXI NAS DUAS FACES - PLATIBANDA ACESSO BLOCO A ao B. | C91: M2 | D91: 37.34 | E91: 247.56 | F91: =ROUND(D91*E91,2) -> 9243.89
A93: 2.10 | B93: ESQUADRIAS | F93: =SUBTOTAL(9,F94:F113) -> 180608.43
A94: 2.10.1 | B94: FORNECIMENTO E INSTALAÇÃO DE PELE DE VIDRO COR VERDE 8MM (4MM + 4MM) INCLUSIVE ESTRUTURA DE ALUMÍNIO - SISTEMA STRUCTURAL GLAZING, INCLUSO 02 PORTAS DE ABRIR 02 FOLHAS - DIM: 2,10X2,45M (P7) | C94: M2 | D94: 24.82 | E94: 1747.04 | F94: =ROUND(D94*E94,2) -> 43361.53
A95: 2.10.2 | B95: (P1, P3, P4, P5, P10) - PORTA EM ALUMÍNIO DE ABRIR TIPO VENEZIANA COM GUARNIÇÃO, FIXAÇÃO COM PARAFUSOS - FORNECIMENTO E INSTALAÇÃO | C95: M2 | D95: 34.82 | E95: 679.02 | F95: =ROUND(D95*E95,2) -> 23643.48
A96: 2.10.3 | B96: P2 - PORTA EM ALUMÍNIO, COM VISOR DE VIDRO, DE ABRIR TIPO VENEZIANA COM GUARNIÇÃO, FIXAÇÃO COM PARAFUSOS - FORNECIMENTO E INSTALAÇÃO. AF_12/2019 | C96: M2 | D96: 9.45 | E96: 742.18 | F96: 7013.6
A97: 2.10.4 | B97: P6 - PORTA DE VIDRO TEMPERADO DE DUAS FOLHAS DE ABRIR 1,80X2,10 INCOLOR ESP.10MM, COM MOLA HIDRÁULICA DE PISO NAS DUAS FOLHAS,PUXADOR TUBULAR RETO 40CM ALUMINIO POLIDO, FERRAGENS CROMADAS E FIXAÇÕES EM PAREDES, PISOS E FORROS CONFORME NORMAS DO FABRICANTE, SEGUINDO AS INDICAÇÕES DO PROJETO ARQUITETÔNICO, INCLUSIVE FERRAGENS DE INSTALAÇÃO PARA PERFEITO USO E FUNCIONAMENTO. | C97: CONJ | D97: 2 | E97: 3713.54 | F97: 7427.08
A98: 2.10.5 | B98: BANDEIRAS FIXAS P6 - PAINÉIS (BANDEIRAS) FIXOS EM VIDRO TEMPERADO INCOLOR ESP. 10MM, FERRAGENS CROMADAS E FIXAÇÕES EM PAREDES, PISOS E FORROS CONFORME NORMAS DO FABRICANTE PARA PERFEITO USO E FUNCIONAMENTO | C98: M2 | D98: 3.24 | E98: 561.64 | F98: 1819.71
A99: 2.10.6 | B99: P8 - PORTA DE VIDRO TEMPERADO DE DUAS FOLHAS DE ABRIR 3,00X2,10 FUMÊ ESP.10MM, COM MOLA HIDRÁULICA DE PISO NAS DUAS FOLHAS,PUXADOR TUBULAR RETO 40CM ALUMINIO POLIDO, FERRAGENS CROMADAS E FIXAÇÕES EM PAREDES, PISOS E FORROS CONFORME NORMAS DO FABRICANTE, SEGUINDO AS INDICAÇÕES DO PROJETO ARQUITETÔNICO, INCLUSIVE FERRAGENS DE INSTALAÇÃO PARA PERFEITO USO E FUNCIONAMENTO. | C99: CONJ | D99: 1 | E99: 4730.5 | F99: 4730.5
A100: 2.10.7 | B100: P11 - PORTA DE VIDRO TEMPERADO DE DUAS FOLHAS DE ABRIR 2,00X2,10M FUMÊ ESP.10MM, COM MOLA HIDRÁULICA NAS 02 FOLHAS, FERRAGENS CROMADAS E FIXAÇÕES EM PAREDES, PISOS E FORROS CONFORME NORMAS DO FABRICANTE PARA PERFEITO USO E FUNCIONAMENTO, INCLUSO BARRA ANTIPÂNICO DUPLA. | C100: UN | D100: 1 | E100: 4818.18 | F100: 4818.18
A101: 2.10.8 | B101: BANDEIRAS FIXAS P11 - PAINÉIS (BANDEIRAS) FIXOS EM VIDRO TEMPERADO INCOLOR ESP. 10MM, FERRAGENS CROMADAS E FIXAÇÕES EM PAREDES, PISOS E FORROS CONFORME NORMAS DO FABRICANTE PARA PERFEITO USO E FUNCIONAMENTO | C101: M2 | D101: 1.8 | E101: 561.64 | F101: 1010.95
A102: 2.10.9 | B102: P13 - PORTA DE ABRIR COM MOLA HIDRÁULICA, EM VIDRO TEMPERADO, 1,00X1,10 M, ESPESSURA 10 MM, INCLUSIVE ACESSÓRIOS. | C102: CONJ | D102: 4 | E102: 1517.56 | F102: =ROUND(D102*E102,2) -> 6070.24
A103: 2.10.10 | B103: P38 – PORTA DE VIDRO TEMPERADO, UMA FOLHA DE ABRIR 0,90X2,10M FUMÊ ESP.10MM, COM MOLA HIDRÁULICA DE PISO NA FOLHA, PUXADOR TUBULAR RETO 40CM ALUMINIO POLIDO, FERRAGENS CROMADAS E FIXAÇÕES EM PAREDES, PISOS E FORROS CONFORME NORMAS DO FABRICANTE, SEGUINDO AS INDICAÇÕES DO PROJETO ARQUITETÔNICO, INCLUSIVE FERRAGENS DE INSTALAÇÃO PARA PERFEITO USO E FUNCIONAMENTO. | C103: CONJ | D103: 1 | E103: 1856.77 | F103: =ROUND(D103*E103,2) -> 1856.77
A104: 2.10.11 | B104: BANDEIRAS FIXAS P38 - PAINÉIS (BANDEIRAS) FIXOS EM VIDRO TEMPERADO INCOLOR ESP. 10MM, FERRAGENS CROMADAS E FIXAÇÕES EM PAREDES, PISOS E FORROS CONFORME NORMAS DO FABRICANTE PARA PERFEITO USO E FUNCIONAMENTO | C104: M2 | D104: 0.81 | E104: 561.64 | F104: 454.93
A105: 2.10.12 | B105: P9 - PORTA DE FERRO, DE ABRIR, TIPO VENEZIANA, COM GUARNIÇÕES. | C105: M2 | D105: 1.89 | E105: 684.33 | F105: 1293.38
A106: 2.10.13 | B106: INSTALAÇÃO DE VIDRO TEMPERADO FIXO, E = 10 MM, ENCAIXADO EM PERFIL U, PEÇAS SUBDIVIDIDAS A CADA 1,20M, COM MONTANTES DE ALUMINIO, CHUMBADOS NO PISO E NA LAJE. | C106: M2 | D106: 24.06 | E106: 516.35 | F106: 12423.38
A107: 2.10.14 | B107: V1 - VISOR EM VIDRO TEMPERADO INCOLOR ESPESSURA=8MM COM REQUADRO DE ALUMÍNIO NA COR NATURAL, DIMENSÕES 120X100CM | C107: UN | D107: 1 | E107: 682.7 | F107: 682.7
A108: 2.10.15 | B108: V2 - VISOR EM VIDRO TEMPERADO INCOLOR ESPESSURA=8MM COM REQUADRO DE ALUMÍNIO NA COR NATURAL, DIM. 2,00X1,00M | C108: UN | D108: 1 | E108: 789.95 | F108: 789.95
A109: 2.10.16 | B109: J1 - JANELA MAXIM-AR COM ESTRUTURA DE ALUMÍNIO ANODIZADO NATURAL E VIDRO TEMPERADO FUMÊ 6 mm - DIM. 1,00X0,60M, COMPLETA, INCLUSIVE FERRAGENS, FECHADURA, PUXADORES E VEDAÇÕES - BANDEIRAS CONFORME PROJETO | C109: UN | D109: 6 | E109: 668.64 | F109: 4011.84
A110: 2.10.17 | B110: J2 - JANELA MAXIM-AR COM ESTRUTURA DE ALUMÍNIO ANODIZADO NATURAL E VIDRO TEMPERADO INCOLOR 6 mm - DIM. 2,00X1,50M, COMPLETA, INCLUSIVE FERRAGENS, FECHADURA, PUXADORES E VEDAÇÕES - BANDEIRAS CONFORME PROJETO | C110: UN | D110: 18 | E110: 2899.06 | F110: 52183.08
A111: 2.10.18 | B111: J3 - JANELA MAXIM-AR COM ESTRUTURA DE ALUMÍNIO ANODIZADO NATURAL E VIDRO TEMPERADO INCOLOR 6 mm - DIM. 0,40X0,60M, COMPLETA, INCLUSIVE FERRAGENS, FECHADURA, PUXADORES E VEDAÇÕES - BANDEIRAS CONFORME PROJETO | C111: UN | D111: 4 | E111: 400.51 | F111: =ROUND(D111*E111,2) -> 1602.04
A112: 2.10.19 | B112: J4 - JANELA MAXIM-AR COM ESTRUTURA DE ALUMÍNIO ANODIZADO NATURAL E VIDRO TEMPERADO INCOLOR 6 mm - DIM. 3,00X1,50M, COMPLETA, INCLUSIVE FERRAGENS, FECHADURA, PUXADORES E VEDAÇÕES - BANDEIRAS CONFORME PROJETO | C112: UN | D112: 1 | E112: 3780.11 | F112: =ROUND(D112*E112,2) -> 3780.11
A113: 2.10.20 | B113: J5 - JANELA MAXIM-AR COM ESTRUTURA DE ALUMÍNIO ANODIZADO NATURAL E VIDRO TEMPERADO FUMÊ 6 mm - DIM. 1,00X0,75M, COMPLETA, INCLUSIVE FERRAGENS, FECHADURA, PUXADORES E VEDAÇÕES - BANDEIRAS CONFORME PROJETO | C113: UN | D113: 2 | E113: 817.49 | F113: =ROUND(D113*E113,2) -> 1634.98
A115: 2.11 | B115: PISOS | F115: =SUBTOTAL(9,F116:F123) -> 73760.7
A116: 2.11.1 | B116: CONTRAPISO DE CONCRETO, ESPESSURA 7CM, PREPARO MECANICO (INCLUSO CALÇAMENTO EXTERNO DO ENTORNO DO BLOCO) | C116: M2 | D116: 261.1 | E116: 42.03 | F116: =ROUND(D116*E116,2) -> 10974.03
A117: 2.11.2 | B117: REVESTIMENTO CERÂMICO PARA PISO COM PLACAS TIPO PORCELANATO DE DIMENSÕES 90X90 CM APLICADA EM AMBIENTES INTERNOS - MODELO ELIANE MUNARI BRANCO AC OU SIMILAR (MATERIAL FORNECIDO PELO SESI) | C117: M2 | D117: 231.23 | E117: 40.47 | F117: 9357.88
A118: 2.11.3 | B118: APLICAÇÃO DE REJUNTE CIMENTICIO EM REVESTIMENTO CERÂMICO PARA PISO COM PLACAS TIPO PORCELANATO DE DIMENSÕES 90X90 CM APLICADA EM AMBIENTES INTERNOS - MODELO ELIANE MUNARI BRANCO AC OU SIMILAR | C118: M2 | D118: 807.33 | E118: 4.61 | F118: =ROUND(D118*E118,2) -> 3721.79
A119: 2.11.4 | B119: PISO EM GRANITO APLICADO EM AMBIENTES INTERNOS, FRISADO/ANTIDERRAPANTE - ESCADA E RAMPA ENTRE BLOCO A / B | C119: M2 | D119: 23.53 | E119: 366.52 | F119: =ROUND(D119*E119,2) -> 8624.22
A120: 2.11.5 | B120: RODAPÉ EM GRANITO, ALTURA 10 CM - ESCADA E RAMPA ENTRE BLOCO A / B | C120: M | D120: 13.4 | E120: 66.4 | F120: =ROUND(D120*E120,2) -> 889.76
A121: 2.11.6 | B121: FORNECIMENTO E ESPALHAMENTO DE BRITA (PEDRISCO CINZA), INCLUSIVE REGULARIZAÇÃO / ACERTO MANUAL COM ESPALHAMENTO E COMPACTACAO, ESP=5CM - ÁREA DA HORTA | C121: M2 | D121: 103.5 | E121: 7.39 | F121: =ROUND(D121*E121,2) -> 764.87
A122: 2.11.7 | B122: PISO EM PLACA 80X100X2 CM DE GRANITO OCRE ITABIRA, FLAMEADO, FORNECIMENTO E INSTALAÇÃO - ACESSO PRINCIPAL FACHADA | C122: M2 | D122: 86.38 | E122: 456.45 | F122: =ROUND(D122*E122,2) -> 39428.15
A124: 2.12 | B124: REVESTIMENTOS | F124: =SUBTOTAL(9,F125:F133) -> 535255.89
A125: 2.12.1 | B125: CHAPISCO APLICADO EM ALVENARIAS E ESTRUTURAS DE CONCRETO INTERNAS, COM ROLO PARA TEXTURA ACRÍLICA. ARGAMASSA TRAÇO 1:4 E EMULSÃO POLIMÉRICA (ADESIVO) COM PREPARO EM BETONEIRA 400L. AF_06/2014 | C125: M2 | D125: 469.58 | E125: 8.59 | F125: =ROUND(D125*E125,2) -> 4033.69
A126: 2.12.2 | B126: EMBOÇO OU MASSA ÚNICA EM ARGAMASSA TRAÇO 1:2:8, PREPARO MECÂNICO COM BETONEIRA 400 L, APLICADA MANUALMENTE EM PANOS DE FACHADA COM PRESENÇA DE VÃOS, ESPESSURA DE 25 MM. AF_06/2014 | C126: M2 | D126: 469.58 | E126: 55.05 | F126: =ROUND(D126*E126,2) -> 25850.38
A127: 2.12.3 | B127: REVESTIMENTO CERÂMICO PARA PAREDES COM PLACAS TIPO PORCELANATO DE DIMENSÕES 90X90 CM APLICADA EM AMBIENTES INTERNOS - MODELO ELIANE LIMESTONE AREIA POL OU SIMILAR | C127: M2 | D127: 216.738 | E127: 197.45 | F127: =ROUND(D127*E127,2) -> 42794.92
A128: 2.12.4 | B128: REVESTIMENTO CERÂMICO PARA PAREDES COM PLACAS TIPO PORCELANATO DE DIMENSÕES 14,5X90 CM APLICADA EM AMBIENTES INTERNOS - MODELO ELIANE LIMESTONE AREIA POL OU SIMILAR | C128: M2 | D128: 61.5902 | E128: 409.33 | F128: 25210.72
A129: 2.12.5 | B129: REVESTIMENTO CERAMICO PORTOBELLO GLACIE WHITE 30X60CM, INCLUSO E REJUNTE - FORNECIMENTO E INSTALAÇÃO (AZULEJO FORNECIDO PELO SESI) | C129: M2 | D129: 188.72 | E129: 84.59 | F129: 15963.82
A130: 2.12.6 | B130: REVESTIMENTO CERÂMICO PARA PAREDES EXTERNAS EM PASTILHAS JATOBÁ DE PORCELANA 5 X 5 CM (PLACAS DE 30 X 30 CM), ALINHADAS A PRUMO, JD. 4102 - PÉROLA OCEANO (JATOBÁ OU SIMILAR) | C130: M2 | D130: 21.44 | E130: 202.77 | F130: 4347.39
A131: 2.12.7 | B131: FORNECIMENTO E INSTALAÇÃO DE BRISES ALUMINIO LIGA TEMPERADA, CH 2800 X 1250 X1,50 BRP 04 C 14,00 SENTIDO TRANSVERSAL, PINTADO NA COR PRETO. INCLUSIVE ESTRUTURA DE SUSTENTAÇÃO E FIXAÇÃO EM ALUMINIO, INCLUSIVE CHUMBAMENTOS EM ALVENARIAS, E DEMAIS ANCORAGENS DO CONJUNTO, CONFORME INDICAÇÃO EM PROJETO E ESPECIFICAÇÃO DO FABRICANTE - FORNECIMENTO E INSTALAÇÃO - FACHADA | C131: M2 | D131: 184.03 | E131: 1188.14 | F131: 218653.4
A132: 2.12.8 | B132: REVESTIMENTO DE ACM Tecbond PRATA SILVER WHITE METALLIC OU SIMILAR - ALUMÍNIO COMPOSTO, TUBOS DE AUMÍNIO, ACESSÓRIOS, FRETES - CHAPAS DE ACM COM PINTURA KAYNNAR (PVDF) COM 4,0 DE ESPESSURA, COM GARANTIA DE PINTURA DE FABRICA DE 10 A 15 ANOS - CONFORME INDICAÇÃO EM PROJETO E ESPECIFICAÇÃO DO FABRICANTE; INCLUSIVE ESTRUTURA DE SUSTENTAÇÃO EM ALUMINIO ANODIZADO RETANGULAR PERFIL 25,50X3,18MM E FIXAÇÃO EM CANTONEIRA DE ALUMINIO 25,4X3,17MM E=1/8" , INCLUSIVE CHUMBAMENTOS EM ALVENARIAS/CONCRETO, E DEMAIS ANCORAGENS DO CONJUNTO, CONFORME NORMAS DO FABRICANTE - FACHADA | C132: M2 | D132: 189.14 | E132: 692.82 | F132: =ROUND(D132*E132,2) -> 131039.97
A133: 2.12.9 | B133: REVESTIMENTO DE ACM Tecbond ESVERDEADO JADE SILVER OU SIMILAR - ALUMÍNIO COMPOSTO, TUBOS DE AUMÍNIO, ACESSÓRIOS, FRETES - CHAPAS DE ACM COM PINTURA KAYNNAR (PVDF) COM 4,0 DE ESPESSURA, COM GARANTIA DE PINTURA DE FABRICA DE 10 A 15 ANOS - CONFORME INDICAÇÃO EM PROJETO E ESPECIFICAÇÃO DO FABRICANTE; INCLUSIVE ESTRUTURA DE SUSTENTAÇÃO EM ALUMINIO ANODIZADO RETANGULAR PERFIL 25,50X3,18MM E FIXAÇÃO EM CANTONEIRA DE ALUMINIO 25,4X3,17MM E=1/8" , INCLUSIVE CHUMBAMENTOS EM ALVENARIAS/CONCRETO, E DEMAIS ANCORAGENS DO CONJUNTO, CONFORME NORMAS DO FABRICANTE - FACHADA | C133: M2 | D133: 57.575 | E133: 1169.98 | F133: 67361.6
A135: 2.13 | B135: GRANITO | F135: =SUBTOTAL(9,F136:F139) -> 21425.27
A136: 2.13.1 | B136: BANCADA DE GRANITO CINZA ANDORINHA, SOBRE MÃOS-FRANCESAS METÁLICAS, ESP=2cm COM FRONTÃO 20cm, SAIA COM ACAB. DE MEIA ESQUADRIA E REFORÇO INFERIOR DE BORDA E CORTE PARA INST. DE CUBAS DE LOUÇA OVAL DE EMBUTIR LOCAL | C136: M2 | D136: 6.258 | E136: 782.35 | F136: =ROUND(D136*E136,2) -> 4895.95
A137: 2.13.2 | B137: DIVISORIA SANITÁRIA, TIPO CABINE, EM GRANITO CINZA POLIDO, ESP = 3CM, ASSENTADO COM ARGAMASSA COLANTE AC III-E, EXCLUSIVE FERRAGENS. AF_01/2021 | C137: M2 | D137: 20.42 | E137: 701.86 | F137: 14331.98
A138: 2.13.3 | B138: PEITORIL LINEAR EM GRANITO OU MÁRMORE, L = 15CM, COMPRIMENTO DE ATÉ 2M, ASSENTADO COM ARGAMASSA 1:6 COM ADITIVO. AF_11/2020 | C138: M | D138: 1.06 | E138: 132.84 | F138: =ROUND(D138*E138,2) -> 140.81
A139: 2.13.4 | B139: SOLEIRA EM GRANITO, LARGURA 15 CM, ESPESSURA 2,0 CM. AF_09/2020 | C139: M | D139: 21.73 | E139: 94.64 | F139: 2056.53
A141: 2.14 | B141: FORRO | F141: =SUBTOTAL(9,F142:F144) -> 45683.86
A142: 2.14.1 | B142: FORRO ACÚSTICO DE FIBRA MINERAL 625 MM X 625 MM TEGULAR, INSTALADOS EM PERFIL "T", SUPENSO POR PENDURAIS EM ARRAME GALVANIZADO A CADA 1250X1250MM (PLACAS DE FORRO FORNECIDO PELO SESI) | C142: M2 | D142: 803.82 | E142: 38.88 | F142: =ROUND(D142*E142,2) -> 31252.52
A143: 2.14.2 | B143: FORRO DE PVC, LISO, PARA AMBIENTES COMERCIAIS, INCLUSIVE ESTRUTURA DE FIXAÇÃO. | C143: M2 | D143: 25.202 | E143: 90.99 | F143: 2293.13
A144: 2.14.3 | B144: REVESTIMENTO DE ACM Tecbond PRATA SILVER WHITE METALLIC OU SIMILAR - ALUMÍNIO COMPOSTO, TUBOS DE AUMÍNIO, ACESSÓRIOS, FRETES - CHAPAS DE ACM COM PINTURA KAYNNAR (PVDF) COM 4,0 DE ESPESSURA, COM GARANTIA DE PINTURA DE FABRICA DE 10 A 15 ANOS - CONFORME INDICAÇÃO EM PROJETO E ESPECIFICAÇÃO DO FABRICANTE; INCLUSIVE ESTRUTURA DE SUSTENTAÇÃO EM ALUMINIO ANODIZADO RETANGULAR PERFIL 25,50X3,18MM E FIXAÇÃO EM CANTONEIRA DE ALUMINIO 25,4X3,17MM E=1/8" , INCLUSIVE CHUMBAMENTOS EM ALVENARIAS/CONCRETO, E DEMAIS ANCORAGENS DO CONJUNTO, CONFORME NORMAS DO FABRICANTE - NA MARQUISE DA FACHADA. | C144: M2 | D144: 17.52 | E144: 692.82 | F144: =ROUND(D144*E144,2) -> 12138.21
A146: 2.15 | B146: PINTURA | F146: =SUBTOTAL(9,F147:F152) -> 51429.31
A147: 2.15.1 | B147: APLICAÇÃO DE FUNDO SELADOR ACRÍLICO EM PAREDES, UMA DEMÃO. AF_06/2014 | C147: M2 | D147: 705.86 | E147: 2.06 | F147: =ROUND(D147*E147,2) -> 1454.07
A148: 2.15.2 | B148: APLICAÇÃO E LIXAMENTO DE MASSA LÁTEX EM PAREDES, UMA DEMÃO. AF_06/2014 | C148: M2 | D148: 392.63 | E148: 10.85 | F148: 4260.04
A149: 2.15.3 | B149: APLICAÇÃO MANUAL DE PINTURA COM TINTA LÁTEX ACRÍLICA EM PAREDES, DUAS DEMÃOS. AF_06/2014 | C149: M2 | D149: 945.34 | E149: 15 | F149: =ROUND(D149*E149,2) -> 14180.1
A150: 2.15.4 | B150: TEXTURA ACRÍLICA, APLICAÇÃO MANUAL EM PAREDE, UMA DEMÃO. AF_09/2016 | C150: M2 | D150: 936.17 | E150: 15.6 | F150: 14604.25
A151: 2.15.5 | B151: APLICAÇÃO MANUAL DE TINTA LÁTEX ACRÍLICA EM PAREDE EXTERNAS, DUAS DEMÃOS. | C151: M2 | D151: 879.64 | E151: 15.82 | F151: =ROUND(D151*E151,2) -> 13915.9
A152: 2.15.6 | B152: PINTURA DE PISO COM TINTA ACRÍLICA, APLICAÇÃO MANUAL, 3 DEMÃOS, INCLUSO FUNDO PREPARADOR. AF_05/2021 | C152: M2 | D152: 144.88 | E152: 20.81 | F152: =ROUND(D152*E152,2) -> 3014.95
A154: 2.16 | B154: CALÇAMENTO, PÁTIOS E PASSARELAS | F154: =SUBTOTAL(9,F155) -> 0
A156: 2.17 | B156: SERVIÇOS COMPLEMENTARES | F156: =SUBTOTAL(9,F157:F161) -> 40757.06
A157: 2.17.1 | B157: ESPELHO CRISTAL E=4MM, FORNECIMENTO E INSTALAÇÃO | C157: M2 | D157: 15.79 | E157: 549.8 | F157: =ROUND(D157*E157,2) -> 8681.34
A158: 2.17.2 | B158: FORNECIMENTO E INSTALAÇÃO DE QUADRO/LOUSA EM VIDRO TEMPERADO LEITOSO 6MM ADESIVADAS COM PELICULA DE SEGURANÇA BRANCA, INCLUSIVE APARADOR PARA CANETA PILOTO 30X10CM, COM BOTOES DE CABECA DE LATAO CROMADO | C158: M2 | D158: 17.28 | E158: 379.21 | F158: 6552.75
A159: 2.17.3 | B159: FORNECIMENTO E INSTALAÇÃO CORRIMÃO DUPLO, H=0,92M E H=0,70M, DIÂMETRO EXTERNO = 1 1/2", EM AÇO INOX, FIXADO EM PISO. | C159: M | D159: 5.92 | E159: 515.8 | F159: 3053.54
A160: 2.17.4 | B160: FORNECIMENTO E INSTALAÇÃO DE GUARDA CORPO H=1,30M, COLUNAS DIÂM. 1 1/2" A CADA 1M, TUBO HORIZONTAL SUPERIOR E INFERIOR DE DIÂM 1 1/2", TUBOS VERTICAIS 3/4" A CADA 11CM E COM CORRIMÃO DUPLO DE Ø 1 1/2" COM H=0,92CM/H=0,70CM, EM AÇO INÓX - CONFORME PROJETO E MEMORIAL DE ACESSIBILIDADE | C160: M | D160: 15.29 | E160: 998.08 | F160: 15260.64
A161: 2.17.5 | B161: FORNECIMENTO FABRICAÇÃO E INSTALAÇÃO DE GUARDA-CORPOS INOX, COM AS SEGUINTES CARACTERÍSTICAS: • COM 1,30M DE ALTURA TOTAL • COLUNAS - EM TUBOS DE AÇO INÓX, Ø= 1.1/2" - CHAPA #16 CADA 1,00M (NO MÁXIMO) CHUMBADAS NO CONCRETO; • BARRAS VERTICAIS INTERMEDIÁRIAS DE FECHAMENTO - Ø= 3/4" - CHAPA #16 A CADA 11CM, TOTALIZANDO 07 LINHAS CONTÍNUAS; • BARRA HORIZONTAL DE ACABAMENTO SUPERIOR - EM TUBOS DE AÇO INÓX, D= 1.1/2" - CHAPA #16. • BARRA HORIZONTAL DE ACABAMENTO INFERIOR - EM TUBOS DE AÇO INÓX, D= 1.1/2" - CHAPA #16. • CANOPLA EM AÇO INÓX DE ACABAMENTO NA BASE DAS COLUNAS CHAPA #16. | C161: M | D161: 7.81 | E161: 923.02 | F161: =ROUND(D161*E161,2) -> 7208.79
A163: 2.18 | B163: INSTALAÇÕES DE SPDA | F163: =SUBTOTAL(9,F164) -> 0
A165: 2.19 | B165: INSTALAÇÃO DE COMBATE A INCÊNDIO | F165: =SUBTOTAL(9,F166) -> 0
A167: 2.20 | B167: INSTALAÇÕES ELÉTRICA | F167: =SUBTOTAL(9,F168:F463) -> 228866.37
A168: 2.20.1 | B168: INSTALAÇÕES ELÉTRICA BAIXA TENSÃO | F168: =SUBTOTAL(9,F169:F261) -> 86512.34
A169: 2.20.1.1 | B169: ACESSÓRIOS P/ELETRODUTO E USO GERAL | F169: =SUBTOTAL(9,F170:F193) -> 6239.95
A170: 2.20.1.1.1 | B170: FORNECIMENTO E INSTALAÇÃO DE ABRAÇADEIRA DE AÇO, TIPO D, 3/4", COM CUNHA | C170: UN | D170: 100 | E170: 6.59 | F170: =ROUND(D170*E170,2) -> 659
A171: 2.20.1.1.2 | B171: FORNECIMENTO E INSTALAÇÃO DE ABRAÇADEIRA DE AÇO, TIPO D, 1", COM CUNHA | C171: UN | D171: 50 | E171: 6.75 | F171: 337.5
A172: 2.20.1.1.3 | B172: FORNECIMENTO E INSTALAÇÃO DE BUCHA E ARRUELA ALUMÍNIO FUNDIDO PARA ELETRODUTO (ZAMAK) 3/4" | C172: UN | D172: 100 | E172: 2.03 | F172: 203
A173: 2.20.1.1.4 | B173: FORNECIMENTO E INSTALAÇÃO DE BUCHA E ARRUELA ALUMÍNIO FUNDIDO PARA ELETRODUTO (ZAMAK) 1" | C173: UN | D173: 50 | E173: 2.41 | F173: 120.5
A174: 2.20.1.1.5 | B174: FORNECIMENTO E INSTALAÇÃO DE BOX RETO PARA ELETRODUTO 3/4" | C174: UN | D174: 100 | E174: 5.68 | F174: 568
A175: 2.20.1.1.6 | B175: FORNECIMENTO E INSTALAÇÃO DE BOX RETO PARA ELETRODUTO 1" | C175: UN | D175: 50 | E175: 8.04 | F175: 402
A176: 2.20.1.1.7 | B176: FORNECIMENTO E INSTALAÇÃO DE PRENSA CABO 1/2" | C176: UN | D176: 18 | E176: 30.33 | F176: 545.94
A177: 2.20.1.1.8 | B177: CAIXA OCTOGONAL 4" X 4" PVC - FORNECIMENTO E INSTALAÇÃO. | C177: UN | D177: 101 | E177: 11.42 | F177: 1153.42
A178: 2.20.1.1.9 | B178: CAIXA RETANGULAR 4" X 2" PVC - FORNECIMENTO E INSTALAÇÃO. | C178: UN | D178: 20 | E178: 8.96 | F178: 179.2
A179: 2.20.1.1.10 | B179: FORNECIMENTO E INSTALAÇÃO DE CAIXA ALUMÍNIO 4X4" DE PISO C/ TAMPA - EMBUTIR | C179: UN | D179: 4 | E179: 62.03 | F179: 248.12
A180: 2.20.1.1.11 | B180: FORNECIMENTO E INSTALAÇÃO DE PLACA CEGA PVC 4X2" | C180: UN | D180: 3 | E180: 4.82 | F180: 14.46
A181: 2.20.1.1.12 | B181: FORNECIMENTO E INSTALAÇÃO DE SAÍDA LATERAL ELETROCALHA P/ ELETRODUTO 3/4" | C181: UN | D181: 2 | E181: 10.29 | F181: 20.58
A182: 2.20.1.1.13 | B182: FORNECIMENTO E INSTALAÇÃO DE SAÍDA ELETROCALHA P/ ELETRODUTO 1" | C182: UN | D182: 2 | E182: 15.54 | F182: 31.08
A183: 2.20.1.1.14 | B183: FORNECIMENTO E INSTALAÇÃO DE SAÍDA LATERAL PERFILADO P/ ELETRODUTO 3/4" | C183: UN | D183: 6 | E183: 18.51 | F183: 111.06
A184: 2.20.1.1.15 | B184: FORNECIMENTO E INSTALAÇÃO DE SAÍDA LATERAL PERFILADO P/ ELETRODUTO 1" | C184: UN | D184: 1 | E184: 14.87 | F184: 14.87
A185: 2.20.1.1.16 | B185: FORNECIMENTO E INSTALAÇÃO DE ARAME AÇO GALVANIZADO 18 BWG, 1,24MM (0,009 KG/M) | C185: M | D185: 50 | E185: 0.77 | F185: 38.5
A186: 2.20.1.1.17 | B186: FORNECIMENTO E INSTALAÇÃO DE ARRUELA LISA GALVANIZADA 1/4" | C186: UN | D186: 50 | E186: 0.59 | F186: 29.5
A187: 2.20.1.1.18 | B187: FORNECIMENTO E INSTALAÇÃO DE BUCHA / PARAFUSO S8 | C187: UN | D187: 234 | E187: 4.44 | F187: 1038.96
A188: 2.20.1.1.19 | B188: FORNECIMENTO E INSTALAÇÃO DE BUCHA / PARAFUSO S10 | C188: UN | D188: 12 | E188: 4.75 | F188: 57
A189: 2.20.1.1.20 | B189: FORNECIMENTO E INSTALAÇÃO DE CHUMBADOR PARABOLT AÇO 1/4" X 3" | C189: UN | D189: 10 | E189: 13.59 | F189: 135.9
A190: 2.20.1.1.21 | B190: FORNECIMENTO E INSTALAÇÃO DE PARAFUSO GALVAN. CABEÇA LENTILHA 1/4X5/8" | C190: UN | D190: 22 | E190: 4.93 | F190: 108.46
A191: 2.20.1.1.22 | B191: FORNECIMENTO E INSTALAÇÃO DE PARAFUSO GALVAN. CABEÇA LOSANGULAR 1/4"X1" - AUTO TRAVANTE PERFILADO | C191: UN | D191: 5 | E191: 6.88 | F191: 34.4
A192: 2.20.1.1.23 | B192: FORNECIMENTO E INSTALAÇÃO DE PORCA SEXTAVADA GALVAN. 1/4" | C192: UN | D192: 25 | E192: 0.42 | F192: 10.5
A193: 2.20.1.1.24 | B193: FORNECIMENTO E INSTALAÇÃO DE VERGALHÃO GALVANIZADO ROSCA TOTAL 1/4" | C193: M | D193: 10 | E193: 17.8 | F193: 178
A195: 2.20.1.2 | B195: CABOS | F195: =SUBTOTAL(9,F196:F199) -> 33932.2
A196: 2.20.1.2.1 | B196: FORNECIMENTO E INSTALAÇÃO DE CABO DE COBRE FLEXÍVEL ISOL. TERMOPLASTICO ATOX 750V - 2,5 MM² (TP SINTENAX PIRELLI OU SIMILAR) | C196: M | D196: 5300 | E196: 4.83 | F196: =ROUND(D196*E196,2) -> 25599
A197: 2.20.1.2.2 | B197: FORNECIMENTO E INSTALAÇÃO DE CABO DE COBRE FLEXÍVEL ISOL. TERMOPLASTICO ATOX 750V - 4 MM² (TP SINTENAX PIRELLI OU SIMILAR) | C197: M | D197: 850 | E197: 7.06 | F197: 6001
A198: 2.20.1.2.3 | B198: FORNECIMENTO E INSTALAÇÃO DE CABO DE COBRE FLEXÍVEL ISOL. TERMOPLASTICO ATOX 750V - 6 MM² (TP SINTENAX PIRELLI OU SIMILAR) | C198: M | D198: 200 | E198: 10.2 | F198: 2040
A199: 2.20.1.2.4 | B199: FORNECIMENTO E INSTALAÇÃO DE CABO DE COBRE PP 3X2,5MM² - ISOL. TERMOPLASTICO ATOX 750V | C199: M | D199: 60 | E199: 4.87 | F199: 292.2
A201: 2.20.1.3 | B201: DISPOSITIVO ELÉTRICO EMBUTIDO | F201: =SUBTOTAL(9,F202:F213) -> 4355.87
A202: 2.20.1.3.1 | B202: CAMPAINHA CIGARRA (1 MÓDULO), 10A/250V, INCLUINDO SUPORTE E PLACA - FORNECIMENTO E INSTALAÇÃO. AF_09/2017 | C202: UN | D202: 2 | E202: 41.45 | F202: =ROUND(D202*E202,2) -> 82.9
A203: 2.20.1.3.2 | B203: INTERRUPTOR PULSADOR CAMPAINHA (1 MÓDULO), 10A/250V, INCLUINDO SUPORTE E PLACA - FORNECIMENTO E INSTALAÇÃO. AF_09/2017 | C203: UN | D203: 2 | E203: 23.23 | F203: 46.46
A204: 2.20.1.3.3 | B204: INTERRUPTOR SIMPLES (1 MÓDULO), 10A/250V, INCLUINDO SUPORTE E PLACA - FORNECIMENTO E INSTALAÇÃO. AF_12/2015 | C204: UN | D204: 18 | E204: 24.35 | F204: 438.3
A205: 2.20.1.3.4 | B205: INTERRUPTOR SIMPLES (2 MÓDULOS), 10A/250V, INCLUINDO SUPORTE E PLACA - FORNECIMENTO E INSTALAÇÃO. AF_12/2015 | C205: UN | D205: 7 | E205: 38.52 | F205: 269.64
A206: 2.20.1.3.5 | B206: INTERRUPTOR SIMPLES (3 MÓDULOS), 10A/250V, INCLUINDO SUPORTE E PLACA - FORNECIMENTO E INSTALAÇÃO. AF_12/2015 | C206: UN | D206: 1 | E206: 52.7 | F206: 52.7
A207: 2.20.1.3.6 | B207: INTERRUPTOR PARALELO (2 MÓDULOS), 10A/250V, INCLUINDO SUPORTE E PLACA - FORNECIMENTO E INSTALAÇÃO. AF_12/2015 | C207: UN | D207: 4 | E207: 49.97 | F207: 199.88
A208: 2.20.1.3.7 | B208: INTERRUPTOR SIMPLES (1 MÓDULO) COM 1 TOMADA DE EMBUTIR 2P+T 10 A, INCLUINDO SUPORTE E PLACA - FORNECIMENTO E INSTALAÇÃO. AF_12/2015 | C208: UN | D208: 3 | E208: 43.09 | F208: 129.27
A209: 2.20.1.3.8 | B209: INTERRUPTOR SIMPLES (2 MÓDULOS) COM 1 TOMADA DE EMBUTIR 2P+T 10 A, INCLUINDO SUPORTE E PLACA - FORNECIMENTO E INSTALAÇÃO. AF_12/2015 | C209: UN | D209: 4 | E209: 57.27 | F209: 229.08
A210: 2.20.1.3.9 | B210: TOMADA DE EMBUTIR (1 MÓDULO), 2P+T 10 A, INCLUINDO SUPORTE E PLACA - FORNECIMENTO E INSTALAÇÃO. AF_12/2015 | C210: UN | D210: 41 | E210: 25.73 | F210: 1054.93
A211: 2.20.1.3.10 | B211: TOMADA DE EMBUTIR (1 MÓDULO), 2P+T 20 A, INCLUINDO SUPORTE E PLACA - FORNECIMENTO E INSTALAÇÃO. AF_12/2015 | C211: UN | D211: 21 | E211: 27.91 | F211: 586.11
A212: 2.20.1.3.11 | B212: TOMADA DE EMBUTIR (2 MÓDULOS), 2P+T 10 A, INCLUINDO SUPORTE E PLACA - FORNECIMENTO E INSTALAÇÃO. AF_12/2015 | C212: UN | D212: 28 | E212: 41.24 | F212: 1154.72
A213: 2.20.1.3.12 | B213: FORNECIMENTO E INSTALAÇÃO DE PLUGUE MACHO 2P+T - 10A | C213: UN | D213: 4 | E213: 27.97 | F213: 111.88
A215: 2.20.1.4 | B215: DISPOSITIVO DE PROTEÇÃO | F215: =SUBTOTAL(9,F216:F225) -> 5790.76
A216: 2.20.1.4.1 | B216: DISJUNTOR MONOPOLAR TIPO DIN, CORRENTE NOMINAL DE 10A - FORNECIMENTO E INSTALAÇÃO. AF_10/2020 | C216: UN | D216: 6 | E216: 13.15 | F216: =ROUND(D216*E216,2) -> 78.9
A217: 2.20.1.4.2 | B217: DISJUNTOR MONOPOLAR TIPO DIN, CORRENTE NOMINAL DE 16A - FORNECIMENTO E INSTALAÇÃO. AF_10/2020 | C217: UN | D217: 23 | E217: 13.72 | F217: 315.56
A218: 2.20.1.4.3 | B218: DISJUNTOR BIPOLAR TIPO DIN, CORRENTE NOMINAL DE 16A - FORNECIMENTO E INSTALAÇÃO. AF_10/2020 | C218: UN | D218: 2 | E218: 67.28 | F218: 134.56
A219: 2.20.1.4.4 | B219: DISJUNTOR BIPOLAR TIPO DIN, CORRENTE NOMINAL DE 32A - FORNECIMENTO E INSTALAÇÃO. AF_10/2020 | C219: UN | D219: 2 | E219: 72.19 | F219: 144.38
A220: 2.20.1.4.5 | B220: FORNECIMENTO E INSTALAÇÃO DE DISJUNTOR TIPO DIN/IEC, TRIPOLAR 70 A (REF.: MARCA SIEMENS, WEG OU SIMILAR) | C220: UN | D220: 1 | E220: 210.2 | F220: 210.2
A221: 2.20.1.4.6 | B221: FORNECIMENTO E INSTALAÇÃO DE DISJUNTOR TRIPOLAR TERMOMAGNÉTICO EM CAIXA MOLDADA - 175A (REF.: MARCA SIEMENS, WEG OU SIMILAR) | C221: UN | D221: 1 | E221: 661.22 | F221: 661.22
A222: 2.20.1.4.7 | B222: FORNECIMENTO E INSTALAÇÃO DE DISJUNTOR TRIPOLAR TERMOMAGNÉTICO EM CAIXA MOLDADA - 450A (REF.: MARCA SIEMENS, WEG OU SIMILAR) | C222: UN | D222: 1 | E222: 2613.86 | F222: 2613.86
A223: 2.20.1.4.8 | B223: FORNECIMENTO E INSTALAÇÃO DE DISPOSITIVO DR, 2 POLOS, SENSIBILIDADE DE 30 MA, CORRENTE DE 25 A, TIPO AC | C223: UN | D223: 4 | E223: 186.52 | F223: 746.08
A224: 2.20.1.4.9 | B224: FORNECIMENTO E INSTALAÇÃO DE DISPOSITIVO DR, 2 POLOS, SENSIBILIDADE DE 30 MA, CORRENTE DE 25 A, TIPO AC | C224: UN | D224: 2 | E224: 186.52 | F224: 373.04
A225: 2.20.1.4.10 | B225: FORNECIMENTO E INSTALAÇÃO DE DISPOSITIVO DPS, 1 polo, 175 V, 45 kA | C225: UN | D225: 4 | E225: 128.24 | F225: 512.96
A227: 2.20.1.5 | B227: ELETROCALHAS / PERFILADOS | F227: =SUBTOTAL(9,F228:F232) -> 610.24
A228: 2.20.1.5.1 | B228: FORNECIMENTO E INSTALAÇÃO DESAÍDA LATERAL DE ELETROCALHA P/PERFILADO 38X38MM | C228: UN | D228: 1 | E228: 17.02 | F228: =ROUND(D228*E228,2) -> 17.02
A229: 2.20.1.5.2 | B229: FORNECIMENTO E INSTALAÇÃO DE EMENDA INTERNA TIPO "I" P/ PERFILADO METÁLICO 38X38MM - CHAPA 18 | C229: UN | D229: 2 | E229: 20.4 | F229: 40.8
A230: 2.20.1.5.3 | B230: FORNECIMENTO E INSTALAÇÃO DE EMENDA INTERNA TIPO "L" P/ PERFILADO METÁLICO 38X38MM - CHAPA 18 | C230: UN | D230: 1 | E230: 22.84 | F230: 22.84
A231: 2.20.1.5.4 | B231: FORNECIMENTO E INSTALAÇÃO DE PERFILADO PERFURADO METÁLICO 38X38MM, COM TAMPA - CHAPA 18 | C231: M | D231: 12 | E231: 30.59 | F231: 367.08
... 428 more rows

Sheet 3_BLOCO B (hidden)
A1: PLANILHA ORÇAMENTARIA | D1: SPN-FF-003
D3: Folha: 1 de 1 | E3: Revisão: 02 | F3: Data: 07/10/19
A5: SESI - SERVIÇO SOCIAL DA INDUSTRIA - DR/MT
A6: OBRA: CONTRATAÇÃO DE EMPRESA ESPECIALIZADA PARA CONTINUIDADE DA EXECUÇÃO DA OBRA DE REFORMA E AMPLIAÇÃO DA UNIDADE DO SESI ESCOLA VÁRZEA GRANDE/MT.
A7: UNIDADE OPERACIONAL: SESI ESCOLA VÁRZEA GRANDE
A8: ENDEREÇO: AV. DOM ORLANDO CHAVES, N.º 1.086, PONTE NOVA - CRISTO REI CIDADE: VÁRZEA GRANDE/MT
A9: CONSTRUTORA:
A10: RESPONSÁVEL TÉCNICO:
A11: BASE SINAPI UTILIZADA: 06/2021
A12: ITEM | B12: DESCRIÇÃO | C12: UNID. | D12: QUANT. | E12: Valor UNIT. (R$) | F12: Valor Total (R$)
A14: 3 | B14: BLOCO B
A16: 3.0 | B16: DEMOLIÇÕES E RETIRADAS | F16: =SUBTOTAL(9,F17:F37) -> 103301.46
A17: 3.0.1 | B17: DEMOLIÇÃO | F17: =SUBTOTAL(9,F18:F37) -> 103301.46
A18: 3.0.1.1 | B18: DEMOLIÇÃO DE ALVENARIA DE BLOCO FURADO, DE FORMA MANUAL, SEM REAPROVEITAMENTO. AF_12/2017 | C18: M3 | D18: 35.71 | E18: 49.97 | F18: =ROUND(D18*E18,2) -> 1784.43
A19: 3.0.1.2 | B19: REMOÇÃO DE PINTURA LÁTEX OU TEXTURA (RASPAGEM E/OU LIXAMENTO E/OU ESCOVAÇÃO | C19: M2 | D19: 511.17 | E19: 7.66 | F19: 3915.56
A20: 3.0.1.3 | B20: REMOÇÃO DE LOUÇAS, DE FORMA MANUAL, SEM REAPROVEITAMENTO, ARMAZENAMENTO EM LOCAL INDICADO PELA FISCALIZAÇÃO | C20: UN | D20: 35 | E20: 10.86 | F20: =ROUND(D20*E20,2) -> 380.1
A21: 3.0.1.4 | B21: REMOÇÃO DE PORTAS, DE FORMA MANUAL, SEM REAPROVEITAMENTO, ARMAZENAMENTO EM LOCAL INDICADO PELA FISCALIZAÇÃO | C21: M2 | D21: 28.56 | E21: 8.14 | F21: 232.48
A22: 3.0.1.5 | B22: REMOÇÃO DE JANELAS, DE FORMA MANUAL, SEM REAPROVEITAMENTO, ARMAZENAMENTO EM LOCAL INDICADO PELA FISCALIZAÇÃO | C22: M2 | D22: 42 | E22: 30.15 | F22: 1266.3
A23: 3.0.1.6 | B23: REMOÇÃO DE GRADIL METÁLICO, DE FORMA MANUAL, SEM REAPROVEITAMENTO, ARMAZENAMENTO EM LOCAL INDICADO PELA FISCALIZAÇÃO | C23: M2 | D23: 160.941 | E23: 8.14 | F23: 1310.06
A24: 3.0.1.7 | B24: DEMOLIÇÃO DE REVESTIMENTO CERÂMICO, DE FORMA MECANIZADA COM MARTELETE, SEM REAPROVEITAMENTO. AF_12/2017 | C24: M2 | D24: 159.63 | E24: 10.45 | F24: =ROUND(D24*E24,2) -> 1668.13
A25: 3.0.1.8 | B25: DEMOLIÇÃO DE PISO REVESTIDO COM GRANILITE E CONTRAPISO EM CONCRETO, DE FORMA MECANIZADA COM MARTELETE, SEM REAPROVEITAMENTO. | C25: M2 | D25: 1041.29 | E25: 34.07 | F25: 35476.75
A26: 3.0.1.9 | B26: DEMOLIÇÃO DE PAVIMENTO INTERTRAVADO, DE FORMA MANUAL, COM REAPROVEITAMENTO. AF_12/2017 | C26: M2 | D26: 219.25 | E26: 14 | F26: =ROUND(D26*E26,2) -> 3069.5
A27: 3.0.1.10 | B27: DEMOLIÇÃO DE PILARES E VIGAS EM CONCRETO ARMADO, DE FORMA MECANIZADA COM MARTELETE, SEM REAPROVEITAMENTO. AF_12/2017 | C27: M3 | D27: 11.2 | E27: 243.62 | F27: =ROUND(D27*E27,2) -> 2728.54
A28: 3.0.1.11 | B28: DEMOLIÇÃO DE LAJES, DE FORMA MECANIZADA COM MARTELETE, SEM REAPROVEITAMENTO. AF_12/2017 | C28: M3 | D28: 16.96 | E28: 106.24 | F28: 1801.83
A29: 3.0.1.12 | B29: REMOÇÃO DE TRAMA DE MADEIRA PARA COBERTURA, DE FORMA MANUAL, SEM REAPROVEITAMENTO. AF_12/2017 | C29: M2 | D29: 988.15 | E29: 6.73 | F29: =ROUND(D29*E29,2) -> 6650.25
A30: 3.0.1.13 | B30: REMOÇÃO DE TESOURAS DE MADEIRA, COM VÃO MENOR QUE 8M, DE FORMA MANUAL, SEM REAPROVEITAMENTO. AF_12/2017 | C30: UN | D30: 16 | E30: 74.51 | F30: 1192.16
A31: 3.0.1.14 | B31: REMOÇÃO DE TELHAS, DE FIBROCIMENTO, METÁLICA E CERÂMICA, DE FORMA MANUAL, SEM REAPROVEITAMENTO. AF_12/2017 | C31: M2 | D31: 988.15 | E31: 3.12 | F31: 3083.03
A32: 3.0.1.15 | B32: RETIRADA GUARDA-CORPO E CORRIMÃO SEM REAPROVEITAMENTO | C32: M | D32: 36.22 | E32: 8.67 | F32: 314.03
A33: 3.0.1.16 | B33: LIMPEZA DE CONTRAPISO COM VASSOURA A SECO - LIMPEZA DA LAJE DA COBERTURA | C33: M2 | D33: 988.15 | E33: 3.16 | F33: 3122.55
A34: 3.0.1.17 | B34: DEMOLIÇÃO DE PISO, SOLEIRAS, BANCADAS EM REVESTIDO DE GRANITO | C34: M2 | D34: 39.33 | E34: 20.84 | F34: =ROUND(D34*E34,2) -> 819.64
A35: 3.0.1.18 | B35: RETIRADA DE CIRCUITOS ELÉTRICOS EM GERAL, INCLUSO: TOMADAS ELÉTRICAS, LÓGICAS E TELEFONE, CABEAMENTOS, ELETRODUTOS, ETC, INCLUSO TRANSPORTE E DEPOSITO EM LOCAL A SER INDICADO PELA FISCALIZAÇÃO | C35: M2 | D35: 988.15 | E35: 6.86 | F35: =ROUND(D35*E35,2) -> 6778.71
A36: 3.0.1.19 | B36: SERVIÇOS DE RETIRADA DE APARELHOS DE AR CONDICIONADO, INCLUSO RECOLHIMENTO DO GÁS, INCLUSO TRANSPORTE E DEPOSITO EM LOCAL A SER INDICADO PELA FISCALIZAÇÃO | C36: UN | D36: 27 | E36: 161.6 | F36: =ROUND(D36*E36,2) -> 4363.2
A37: 3.0.1.20 | B37: BOTA FORA DE MATERIAL DESCARTADO, D.M.T. = 10 km - (CARGA, TRANSPORTE E DESCARGA MECÂNICA) | C37: M3 | D37: 397.89 | E37: 58.67 | F37: =ROUND(D37*E37,2) -> 23344.21
A39: 3.1 | B39: INSTALAÇÕES DE CANTEIRO (ACESSO PROVISÓRIO AO BLOCO B PARA DEMOLIÇÃO DO LOCAL ONDE SERÁ SALA DOS PROFESSORES) | F39: =SUBTOTAL(9,F40:F46) -> 6832.21
A40: 3.1.1 | B40: DEMOLIÇÃO DE ALVENARIA DE BLOCO FURADO, DE FORMA MANUAL, SEM REAPROVEITAMENTO. AF_12/2017 | C40: M3 | D40: 4.2 | E40: 49.97 | F40: =ROUND(D40*E40,2) -> 209.87
A41: 3.1.2 | B41: RETIRADA DE JANELA DE VIDRO TEMPERADO DE FORMA CUIADADOSA PARA POSTERIOR REAPROVEITAMENTO | C41: M2 | D41: 3 | E41: 15.45 | F41: 46.35
A42: 3.1.3 | B42: INSTALAÇÃO DE PORTA DE VIDRO TEMPERADO DE FORMA CUIADADOSA PARA POSTERIOR REAPROVEITAMENTO | C42: M2 | D42: 4.2 | E42: 15.45 | F42: =ROUND(D42*E42,2) -> 64.89
A43: 3.1.4 | B43: PORTA DE FERRO, DE ABRIR, TIPO GRADE COM CHAPA, COM GUARNIÇÕES. AF_12/2019 | C43: M2 | D43: 7.5 | E43: 684.33 | F43: 5132.48
A44: 3.1.5 | B44: CONCRETAGEM DE RADIER, PISO OU LAJE SOBRE SOLO, FCK 30 MPA, PARA ESPESSURA DE 10 CM - LANÇAMENTO, ADENSAMENTO E ACABAMENTO. AF_09/2017 | C44: M3 | D44: 1.8 | E44: 704.1 | F44: 1267.38
A45: 3.1.6 | B45: RETIRADA DE PORTA DE VIDRO TEMPERADO DE FORMA CUIADADOSA PARA POSTERIOR REAPROVEITAMENTO | C45: M2 | D45: 4.2 | E45: 15.45 | F45: =ROUND(D45*E45,2) -> 64.89
A46: 3.1.7 | B46: INSTALAÇÃO DE JANELA DE VIDRO TEMPERADO DE FORMA CUIADADOSA PARA POSTERIOR REAPROVEITAMENTO | C46: M2 | D46: 3 | E46: 15.45 | F46: 46.35
A48: 3.2 | B48: ADMINISTRAÇÃO | F48: =SUBTOTAL(9,F49) -> 0
A50: 3.3 | B50: TERRAPLENAGEM | F50: =SUBTOTAL(9,F51) -> 0
A52: 3.4 | B52: FUNDAÇÃO | F52: =SUBTOTAL(9,F53:F98) -> 154706.93
A53: 3.4.1 | B53: FUNDAÇÃO - ESCADA E RAMPA ENTRE OS BLOCOS B / C | F53: =SUBTOTAL(9,F54:F63) -> 30347.6
A54: 3.4.1.1 | B54: ESCAVAÇÃO MECANIZADA PARA BLOCO DE COROAMENTO OU SAPATA, SEM PREVISÃO DE FÔRMA, COM RETROESCAVADEIRA. AF_06/2017 | C54: M3 | D54: 2.6 | E54: 91.26 | F54: =ROUND(D54*E54,2) -> 237.28
A55: 3.4.1.2 | B55: BOTA FORA DE MATERIAL DESCARTADO, D.M.T. = 10 km - (CARGA, TRANSPORTE E DESCARGA MECÂNICA) | C55: M3 | D55: 3.4 | E55: 58.67 | F55: 199.48
A56: 3.4.1.3 | B56: LASTRO COM MATERIAL GRANULAR (PEDRA BRITADA N.1 E PEDRA BRITADA N.2), APLICADO EM PISOS OU LAJES SOBRE SOLO, ESPESSURA DE *10 CM*. AF_07/2019 | C56: M3 | D56: 2.6 | E56: 142.05 | F56: 369.33
A57: 3.4.1.4 | B57: FABRICAÇÃO DE FÔRMA PARA VIGAS, EM CHAPA DE MADEIRA COMPENSADA PLASTIFICADA, E = 18 MM. AF_09/2020 | C57: M2 | D57: 17 | E57: 129.29 | F57: 2197.93
A58: 3.4.1.5 | B58: ARMAÇÃO DE BLOCO, VIGA BALDRAME E SAPATA UTILIZANDO AÇO CA-60 DE 5 MM - MONTAGEM. AF_06/2017 | C58: KG | D58: 220 | E58: 25.68 | F58: 5649.6
A59: 3.4.1.6 | B59: ARMAÇÃO DE BLOCO, VIGA BALDRAME OU SAPATA UTILIZANDO AÇO CA-50 DE 6,3 MM - MONTAGEM. (VERGALHÃO FORNECIDO PELO SESI) | C59: KG | D59: 173 | E59: 5.18 | F59: 896.14
A60: 3.4.1.7 | B60: EPS - BLOCOS PARA ENCHIMENTO | C60: M³ | D60: 11 | E60: 564.16 | F60: 6205.76
A61: 3.4.1.8 | B61: COMPACTAÇÃO MECÂNICA DE SOLO PARA EXECUÇÃO DE RADIER, COM COMPACTADOR DE SOLOS A PERCUSSÃO. AF_09/2017 | C61: M2 | D61: 26 | E61: 3.01 | F61: 78.26
A62: 3.4.1.9 | B62: CONCRETAGEM DE PILARES, FCK = 25 MPA, COM USO DE BOMBA EM EDIFICAÇÃO COM SEÇÃO MÉDIA DE PILARES MAIOR QUE 0,25 M² - LANÇAMENTO, ADENSAMENTO E ACABAMENTO. AF_12/2015 | C62: M3 | D62: 22 | E62: 656.15 | F62: 14435.3
A63: 3.4.1.10 | B63: LONA PLASTICA EXTRA FORTE PRETA, E = 200 MICRA PARA IMPERMEABILIZAÇÃO | C63: M2 | D63: 26 | E63: 3.02 | F63: 78.52
A65: 3.4.2 | B65: FUNDAÇÃO - ACESSO ENTRE OS BLOCOS B / C e SALA DOS PROFESSORES | F65: =SUBTOTAL(9,F66:F81) -> 77663.57
A66: 3.4.2.1 | B66: ESCAVAÇÃO MECANIZADA PARA BLOCO DE COROAMENTO OU SAPATA, SEM PREVISÃO DE FÔRMA, COM RETROESCAVADEIRA. AF_06/2017 | C66: M3 | D66: 21.135 | E66: 91.26 | F66: =ROUND(D66*E66,2) -> 1928.78
A67: 3.4.2.2 | B67: BOTA FORA DE MATERIAL DESCARTADO, D.M.T. = 10 km - (CARGA, TRANSPORTE E DESCARGA MECÂNICA) | C67: M3 | D67: 27.4755 | E67: 58.67 | F67: =ROUND(D67*E67,2) -> 1611.99
A68: 3.4.2.3 | B68: REATERRO MANUAL DE VALAS COM COMPACTAÇÃO MECANIZADA. AF_04/2016 | C68: M3 | D68: 7.045 | E68: 27.04 | F68: =ROUND(D68*E68,2) -> 190.5
A69: 3.4.2.4 | B69: ESTACAS - ESTACAS RAIZ DE Ø31cm EM SOLO INCLUSIVE A INJENÇÃO DE ARGAMASSA FCK>20 MPA, INCLUSIVE LANÇAMENTO DE ARMAÇÃO / CONSUMO MÍNIMO DE CIMENTO - 600 kg/m³. | C69: M | D69: 96 | E69: 474.01 | F69: =ROUND(D69*E69,2) -> 45504.96
A70: 3.4.2.5 | B70: ESTACAS - ARMAÇÃO DE BLOCO, VIGA BALDRAME E SAPATA UTILIZANDO AÇO CA-60 DE 5 MM - MONTAGEM. AF_06/2017 | C70: KG | D70: 69 | E70: 25.68 | F70: 1771.92
A71: 3.4.2.6 | B71: ESTACAS - ARMAÇÃO DE BLOCO, VIGA BALDRAME OU SAPATA UTILIZANDO AÇO CA-50 DE 10 MM - MONTAGEM. AF_06/2017 | C71: KG | D71: 178 | E71: 21.99 | F71: 3914.22
A72: 3.4.2.7 | B72: BLOCOS - LASTRO COM MATERIAL GRANULAR (PEDRA BRITADA N.1 E PEDRA BRITADA N.2), APLICADO EM PISOS OU LAJES SOBRE SOLO, ESPESSURA DE *10 CM*. AF_07/2019 | C72: M3 | D72: 0.384 | E72: 142.05 | F72: 54.55
A73: 3.4.2.8 | B73: BLOCOS - FABRICAÇÃO, MONTAGEM E DESMONTAGEM DE FÔRMA PARA BLOCO DE COROAMENTO, EM MADEIRA SERRADA, E=25 MM, 1 UTILIZAÇÃO. AF_06/2017 | C73: M2 | D73: 23.52 | E73: 165.28 | F73: 3887.39
A74: 3.4.2.9 | B74: BLOCOS - ARMAÇÃO DE BLOCO, VIGA BALDRAME OU SAPATA UTILIZANDO AÇO CA-50 DE 10 MM - MONTAGEM. AF_06/2017 | C74: KG | D74: 268 | E74: 21.99 | F74: 5893.32
A75: 3.4.2.10 | B75: BLOCOS - CONCRETAGEM DE BLOCOS DE COROAMENTO E VIGAS BALDRAMES, FCK 30 MPA, COM USO DE BOMBA  LANÇAMENTO, ADENSAMENTO E ACABAMENTO. AF_06/2017 | C75: M3 | D75: 4.12 | E75: 693.9 | F75: 2858.87
A76: 3.4.2.11 | B76: VIGA BALDRAME - LASTRO COM MATERIAL GRANULAR (PEDRA BRITADA N.1 E PEDRA BRITADA N.2), APLICADO EM PISOS OU LAJES SOBRE SOLO, ESPESSURA DE *10 CM*. AF_07/2019 | C76: M3 | D76: 4.92 | E76: 142.05 | F76: 698.89
A77: 3.4.2.12 | B77: VIGA BALDRAME - FABRICAÇÃO, MONTAGEM E DESMONTAGEM DE FÔRMA PARA VIGA BALDRAME, EM MADEIRA SERRADA, E=25 MM, 1 UTILIZAÇÃO. AF_06/2017 | C77: M2 | D77: 36.8 | E77: 148.03 | F77: 5447.5
A78: 3.4.2.13 | B78: VIGA BALDRAME - ARMAÇÃO DE BLOCO, VIGA BALDRAME E SAPATA UTILIZANDO AÇO CA-60 DE 5 MM - MONTAGEM. AF_06/2017 | C78: KG | D78: 28 | E78: 25.68 | F78: 719.04
A79: 3.4.2.14 | B79: VIGA BALDRAME - ARMAÇÃO DE BLOCO, VIGA BALDRAME OU SAPATA UTILIZANDO AÇO CA-50 DE 6,3 MM - MONTAGEM. AF_06/2017 | C79: KG | D79: 27 | E79: 25.13 | F79: 678.51
A80: 3.4.2.15 | B80: VIGA BALDRAME - ARMAÇÃO DE BLOCO, VIGA BALDRAME OU SAPATA UTILIZANDO AÇO CA-50 DE 10 MM - MONTAGEM. AF_06/2017 | C80: KG | D80: 28 | E80: 21.99 | F80: 615.72
A81: 3.4.2.16 | B81: VIGA BALDRAME - CONCRETAGEM DE BLOCOS DE COROAMENTO E VIGAS BALDRAMES, FCK 30 MPA, COM USO DE BOMBA  LANÇAMENTO, ADENSAMENTO E ACABAMENTO. AF_06/2017 | C81: M3 | D81: 2.72 | E81: 693.9 | F81: 1887.41
A83: 3.4.3 | B83: FUNDAÇÃO - COBERTURA ÁREA DE RECREAÇÃO INFANTIL | F83: =SUBTOTAL(9,F84:F98) -> 46695.76
A84: 3.4.3.1 | B84: ESCAVAÇÃO MECANIZADA PARA BLOCO DE COROAMENTO OU SAPATA, SEM PREVISÃO DE FÔRMA, COM RETROESCAVADEIRA. AF_06/2017 | C84: M3 | D84: 11.355 | E84: 91.26 | F84: =ROUND(D84*E84,2) -> 1036.26
A85: 3.4.3.2 | B85: BOTA FORA DE MATERIAL DESCARTADO, D.M.T. = 10 km - (CARGA, TRANSPORTE E DESCARGA MECÂNICA) | C85: M3 | D85: 9.841 | E85: 58.67 | F85: =ROUND(D85*E85,2) -> 577.37
A86: 3.4.3.3 | B86: REATERRO MANUAL DE VALAS COM COMPACTAÇÃO MECANIZADA. AF_04/2016 | C86: M3 | D86: 3.785 | E86: 27.04 | F86: =ROUND(D86*E86,2) -> 102.35
A87: 3.4.3.4 | B87: ESTACAS - ESTACAS RAIZ DE Ø31cm EM SOLO INCLUSIVE A INJENÇÃO DE ARGAMASSA FCK>20 MPA, INCLUSIVE LANÇAMENTO DE ARMAÇÃO / CONSUMO MÍNIMO DE CIMENTO - 600 kg/m³. | C87: M | D87: 64 | E87: 474.01 | F87: =ROUND(D87*E87,2) -> 30336.64
A88: 3.4.3.5 | B88: ESTACAS - ARMAÇÃO DE BLOCO, VIGA BALDRAME E SAPATA UTILIZANDO AÇO CA-60 DE 5 MM - MONTAGEM. AF_06/2017 | C88: KG | D88: 46 | E88: 25.68 | F88: 1181.28
A89: 3.4.3.6 | B89: ESTACAS - ARMAÇÃO DE BLOCO, VIGA BALDRAME OU SAPATA UTILIZANDO AÇO CA-50 DE 10 MM - MONTAGEM. AF_06/2017 | C89: KG | D89: 118 | E89: 21.99 | F89: 2594.82
A90: 3.4.3.7 | B90: BLOCOS - LASTRO COM MATERIAL GRANULAR (PEDRA BRITADA N.1 E PEDRA BRITADA N.2), APLICADO EM PISOS OU LAJES SOBRE SOLO, ESPESSURA DE *10 CM*. AF_07/2019 | C90: M3 | D90: 0.256 | E90: 142.05 | F90: 36.36
A91: 3.4.3.8 | B91: BLOCOS - FABRICAÇÃO, MONTAGEM E DESMONTAGEM DE FÔRMA PARA BLOCO DE COROAMENTO, EM MADEIRA SERRADA, E=25 MM, 1 UTILIZAÇÃO. AF_06/2017 | C91: M2 | D91: 15.68 | E91: 165.28 | F91: 2591.59
A92: 3.4.3.9 | B92: BLOCOS - ARMAÇÃO DE BLOCO, VIGA BALDRAME OU SAPATA UTILIZANDO AÇO CA-50 DE 10 MM - MONTAGEM. AF_06/2017 | C92: KG | D92: 179 | E92: 21.99 | F92: 3936.21
A93: 3.4.3.10 | B93: BLOCOS - CONCRETAGEM DE BLOCOS DE COROAMENTO E VIGAS BALDRAMES, FCK 30 MPA, COM USO DE BOMBA  LANÇAMENTO, ADENSAMENTO E ACABAMENTO. AF_06/2017 | C93: M3 | D93: 2.74 | E93: 693.9 | F93: 1901.29
A94: 3.4.3.11 | B94: PILARES DE ARRANQUE - MONTAGEM E DESMONTAGEM DE FÔRMA DE PILARES RETANGULARES E ESTRUTURAS SIMILARES, PÉ-DIREITO SIMPLES, EM MADEIRA SERRADA, 1 UTILIZAÇÃO. AF_09/2020 | C94: M2 | D94: 4.48 | E94: 238.53 | F94: 1068.61
A95: 3.4.3.12 | B95: PILARES DE ARRANQUE - ARMAÇÃO DE PILAR OU VIGA DE UMA ESTRUTURA CONVENCIONAL DE CONCRETO ARMADO EM UMA EDIFICAÇÃO TÉRREA UTILIZANDO AÇO CA-60 DE 5,0 MM - MONTAGEM. AF_12/2015 | C95: KG | D95: 10 | E95: 25.71 | F95: 257.1
A96: 3.4.3.13 | B96: PILARES DE ARRANQUE - ARMAÇÃO DE PILAR OU VIGA DE UMA ESTRUTURA CONVENCIONAL DE CONCRETO ARMADO EM UMA EDIFICAÇÃO TÉRREA UTILIZANDO AÇO CA-50 DE 8,0 MM - MONTAGEM. AF_12/2015 | C96: KG | D96: 7 | E96: 24.24 | F96: 169.68
A97: 3.4.3.14 | B97: PILARES DE ARRANQUE - ARMAÇÃO DE PILAR OU VIGA DE UMA ESTRUTURA CONVENCIONAL DE CONCRETO ARMADO EM UMA EDIFICAÇÃO TÉRREA UTILIZANDO AÇO CA-50 DE 12,5 MM - MONTAGEM. AF_12/2015 | C97: KG | D97: 35 | E97: 18.58 | F97: 650.3
A98: 3.4.3.15 | B98: PILARES DE ARRANQUE - CONCRETAGEM DE PILARES, FCK = 25 MPA, COM USO DE BOMBA EM EDIFICAÇÃO COM SEÇÃO MÉDIA DE PILARES MAIOR QUE 0,25 M² - LANÇAMENTO, ADENSAMENTO E ACABAMENTO. AF_12/2015 | C98: M3 | D98: 0.39 | E98: 656.15 | F98: 255.9
A100: 3.5 | B100: IMPERMEABILIZAÇÃO | F100: =SUBTOTAL(9,F101) -> 5663.59
A101: 3.5.1 | B101: IMPERMEABILIZAÇÃO DE SUPERFÍCIE COM EMULSÃO ASFÁLTICA, 2 DEMÃOS AF_06/2018 | C101: M2 | D101: 97.48 | E101: 58.1 | F101: 5663.59
A103: 3.6 | B103: ESTRUTURAS DE CONCRETO ARMADO | F103: =SUBTOTAL(9,F104:F109) -> 7246.25
A104: 3.6.1 | B104: ESTRUTURAS DE CONCRETO ARMADO - ACESSO ENTRE OS BLOCOS B / C e SALA DOS PROFESSORES | F104: =SUBTOTAL(9,F105:F110) -> 7246.25
A105: 3.6.1.1 | B105: PILARES - MONTAGEM E DESMONTAGEM DE FÔRMA DE PILARES RETANGULARES E ESTRUTURAS SIMILARES, PÉ-DIREITO SIMPLES, EM MADEIRA SERRADA, 1 UTILIZAÇÃO. AF_09/2020 | C105: M2 | D105: 12.96 | E105: 238.53 | F105: =ROUND(D105*E105,2) -> 3091.35
A106: 3.6.1.2 | B106: PILARES - ARMAÇÃO DE PILAR OU VIGA DE UMA ESTRUTURA CONVENCIONAL DE CONCRETO ARMADO EM UMA EDIFICAÇÃO TÉRREA UTILIZANDO AÇO CA-60 DE 5,0 MM - MONTAGEM. AF_12/2015 | C106: KG | D106: 44 | E106: 25.71 | F106: 1131.24
A107: 3.6.1.3 | B107: PILARES - ARMAÇÃO DE PILAR OU VIGA DE UMA ESTRUTURA CONVENCIONAL DE CONCRETO ARMADO EM UMA EDIFICAÇÃO TÉRREA UTILIZANDO AÇO CA-50 DE 8,0 MM - MONTAGEM. AF_12/2015 | C107: KG | D107: 15 | E107: 24.24 | F107: =ROUND(D107*E107,2) -> 363.6
A108: 3.6.1.4 | B108: PILARES - ARMAÇÃO DE PILAR OU VIGA DE UMA ESTRUTURA CONVENCIONAL DE CONCRETO ARMADO EM UMA EDIFICAÇÃO TÉRREA UTILIZANDO AÇO CA-50 DE 10,0 MM - MONTAGEM. AF_12/2015 | C108: KG | D108: 83 | E108: 21.93 | F108: 1820.19
A109: 3.6.1.5 | B109: PILARES - CONCRETAGEM DE PILARES, FCK = 25 MPA, COM USO DE BOMBA EM EDIFICAÇÃO COM SEÇÃO MÉDIA DE PILARES MAIOR QUE 0,25 M² - LANÇAMENTO, ADENSAMENTO E ACABAMENTO. AF_12/2015 | C109: M3 | D109: 1.28 | E109: 656.15 | F109: 839.87
A111: 3.7 | B111: ALVENARIAS E PAINÉIS | F111: =SUBTOTAL(9,F112:F116) -> 20699.98
A112: 3.7.1 | B112: ALVENARIA DE VEDAÇÃO DE BLOCOS CERÂMICOS FURADOS NA HORIZONTAL DE 9X19X19CM (ESPESSURA 9CM) DE PAREDES COM ÁREA LÍQUIDA MAIOR OU IGUAL A 6M² COM VÃOS E ARGAMASSA DE ASSENTAMENTO COM PREPARO EM BETONEIRA. AF_06/2014 | C112: M2 | D112: 109.1 | E112: 89.93 | F112: =ROUND(D112*E112,2) -> 9811.36
A113: 3.7.2 | B113: FORNECIMENTO E INSTALAÇÃO DE PAREDE DE GESSO ACARTONADO ESP. 10CM, FACE DUPLA, COM ISOLAMENTO TERMO-ACÚSTICO DE LÃ DE ROCHA 50MM (CONSUMO CONF. TCPO 04840.8.5.1, MONTANTE M75-0,62kg/m, GUIA 75 ) | C113: M2 | D113: 30.69 | E113: 172.28 | F113: 5287.27
A114: 3.7.3 | B114: VERGA MOLDADA IN LOCO EM CONCRETO PARA JANELAS COM MAIS DE 1,5 M DE VÃO. AF_03/2016 | C114: M | D114: 25.2 | E114: 91.19 | F114: 2297.99
A115: 3.7.4 | B115: CONTRAVERGA MOLDADA IN LOCO EM CONCRETO PARA VÃOS DE MAIS DE 1,5 M DE COMPRIMENTO. AF_03/2016 | C115: M | D115: 25.2 | E115: 82.78 | F115: 2086.06
A116: 3.7.5 | B116: VERGA MOLDADA IN LOCO EM CONCRETO PARA PORTAS COM MAIS DE 1,5 M DE VÃO. AF_03/2016 | C116: M | D116: 13.16 | E116: 92.5 | F116: =ROUND(D116*E116,2) -> 1217.3
A118: 3.8 | B118: ESTRUTURA METALICA | F118: =SUBTOTAL(9,F119:F132) -> 225242.53
A119: 3.8.1 | B119: ESTRUTURA MTÁLICA - DO ACESSO ENTRE OS BLOCOS B e C e SALA DOS PROFESSORES | F119: =SUBTOTAL(9,F120:F122) -> 75984.45
A120: 3.8.1.1 | B120: ESTRUTURA METALICA DA COBERTURA CONFORME PROJETO EM AÇO ESTRUTURAL | C120: KG | D120: 3471.96 | E120: 18.63 | F120: =ROUND(D120*E120,2) -> 64682.61
A121: 3.8.1.2 | B121: PINTURA COM TINTA ALQUÍDICA DE FUNDO (TIPO ZARCÃO) PULVERIZADA SOBRE SUPERFÍCIES METÁLICAS (EXCETO PERFIL) EXECUTADO EM OBRA (POR DEMÃO). AF_01/2020_P | C121: M2 | D121: 283.325 | E121: 21.31 | F121: 6037.66
A122: 3.8.1.3 | B122: PINTURA COM TINTA ACRÍLICA DE ACABAMENTO PULVERIZADA SOBRE SUPERFÍCIES METÁLICAS (EXCETO PERFIL) EXECUTADO EM OBRA (02 DEMÃOS). AF_01/2020_P | C122: M2 | D122: 283.325 | E122: 18.58 | F122: 5264.18
A124: 3.8.2 | B124: ESTRUTURA METÁLICA - COBERTURA ÁREA DE RECREAÇÃO INFANTIL | F124: =SUBTOTAL(9,F125:F127) -> 36452.05
A125: 3.8.1.2 | B125: ESTRUTURA METALICA DA COBERTURA CONFORME PROJETO EM AÇO ESTRUTURAL | C125: KG | D125: 1831.93 | E125: 18.63 | F125: =ROUND(D125*E125,2) -> 34128.86
A126: 3.8.1.3 | B126: PINTURA COM TINTA ALQUÍDICA DE FUNDO (TIPO ZARCÃO) PULVERIZADA SOBRE SUPERFÍCIES METÁLICAS (EXCETO PERFIL) EXECUTADO EM OBRA (POR DEMÃO). AF_01/2020_P | C126: M2 | D126: 58.24 | E126: 21.31 | F126: 1241.09
A127: 3.8.1.4 | B127: PINTURA COM TINTA ACRÍLICA DE ACABAMENTO PULVERIZADA SOBRE SUPERFÍCIES METÁLICAS (EXCETO PERFIL) EXECUTADO EM OBRA (02 DEMÃOS). AF_01/2020_P | C127: M2 | D127: 58.24 | E127: 18.58 | F127: 1082.1
A129: 3.8.3 | B129: ESTRUTURA METÁLICA - SUBSTITUIÇÃO COBERTURA BLOCO B | F129: =SUBTOTAL(9,F130:F132) -> 112806.03
A130: 3.8.3.1 | B130: ESTRUTURA METALICA DA COBERTURA CONFORME PROJETO EM AÇO ESTRUTURAL | C130: KG | D130: 4785.36 | E130: 18.63 | F130: =ROUND(D130*E130,2) -> 89151.26
A131: 3.8.3.2 | B131: PINTURA COM TINTA ALQUÍDICA DE FUNDO (TIPO ZARCÃO) PULVERIZADA SOBRE SUPERFÍCIES METÁLICAS (EXCETO PERFIL) EXECUTADO EM OBRA (POR DEMÃO). AF_01/2020_P | C131: M2 | D131: 593 | E131: 21.31 | F131: 12636.83
A132: 3.8.3.3 | B132: PINTURA COM TINTA ACRÍLICA DE ACABAMENTO PULVERIZADA SOBRE SUPERFÍCIES METÁLICAS (EXCETO PERFIL) EXECUTADO EM OBRA (02 DEMÃOS). AF_01/2020_P | C132: M2 | D132: 593 | E132: 18.58 | F132: 11017.94
A134: 3.9 | B134: COBERTURA | F134: =SUBTOTAL(9,F135:F139) -> 190072.6
A135: 3.9.1 | B135: CUMEEIRA METÁLICA AÇO GALVALUME TRAPEZOIDAL 40 40X60CM - FORNECIMENTO E INSTALAÇÃO | C135: M | D135: 101.49 | E135: 84.19 | F135: =ROUND(D135*E135,2) -> 8544.44
A136: 3.9.2 | B136: FORNECIMENTO E INSTALAÇÃO DE TELHA ISOLANTE COM NUCLEO EM POLIESTIRENO (EPS), E = 50 MM, COM PRE-PINTURA NAS DUAS FACES, FACE SUPERIOR EM TELHA DE AÇO TRAPEZOIDAL E=0,50MM E FACE INFERIOR EM CHAPA PLANA E=0,50MM, INCLUSIVE PARAFUSOS E CALAFETAÇÃO COM SELANTE | C136: M2 | D136: 168.33 | E136: 297.14 | F136: 50017.58
A137: 3.9.3 | B137: TELHAMENTO COM TELHA DE AÇO/ALUMÍNIO E = 0,5 MM, COM ATÉ 2 ÁGUAS, INCLUSO IÇAMENTO. AF_07/2019 | C137: M2 | D137: 993.09 | E137: 105.32 | F137: 104592.24
A138: 3.9.4 | B138: COBERTURA/FECHAMENTO EM POLICARBONATO ALVEOLAR 10MM, INCLUSIVE ACESSÓRIOS DE FIXAÇÃO EM ALUMÍNIO NATURAL. | C138: M2 | D138: 88.8 | E138: 255.1 | F138: =ROUND(D138*E138,2) -> 22652.88
A139: 3.9.5 | B139: PLATIBANDA EM CHAPA DE AÇO ESPESSURA 2,00mm, H=870mm, DOBRA CARTOLA: 30X20X970mm, COM METALON DIM. 50X20X0,97mm NA FACE INFERIOR PARA ARREMATE COM O FORRO, FUNDO ANTICORROSIVO EM PRIMER EPÓXI NAS DUAS FACES | C139: M2 | D139: 17.23 | E139: 247.56 | F139: =ROUND(D139*E139,2) -> 4265.46
A141: 3.10 | B141: ESQUADRIAS | F141: =SUBTOTAL(9,F142:F155) -> 74246.15
A142: 3.10.1 | B142: P1 e P5 - PORTA EM ALUMÍNIO DE ABRIR TIPO VENEZIANA COM GUARNIÇÃO, FIXAÇÃO COM PARAFUSOS - FORNECIMENTO E INSTALAÇÃO | C142: M2 | D142: 15.87 | E142: 679.02 | F142: =ROUND(D142*E142,2) -> 10776.05
A143: 3.10.2 | B143: P19 - INSTALAÇÃO DE PORTA EM ALUMÍNIO, COM VISOR DE VIDRO, DE ABRIR TIPO VENEZIANA COM GUARNIÇÃO, FIXAÇÃO COM PARAFUSOS. | C143: M2 | D143: 1.89 | E143: 76.38 | F143: 144.36
A144: 3.10.3 | B144: P6 - PORTA DE VIDRO TEMPERADO DE DUAS FOLHAS DE ABRIR 1,80X2,10 INCOLOR ESP.10MM, COM MOLA HIDRÁULICA DE PISO NAS DUAS FOLHAS,PUXADOR TUBULAR RETO 40CM ALUMINIO POLIDO, FERRAGENS CROMADAS E FIXAÇÕES EM PAREDES, PISOS E FORROS CONFORME NORMAS DO FABRICANTE, SEGUINDO AS INDICAÇÕES DO PROJETO ARQUITETÔNICO, INCLUSIVE FERRAGENS DE INSTALAÇÃO PARA PERFEITO USO E FUNCIONAMENTO. | C144: CONJ | D144: 2 | E144: 3713.54 | F144: 7427.08
A145: 3.10.4 | B145: BANDEIRAS FIXAS P6 - PAINÉIS (BANDEIRAS) FIXOS EM VIDRO TEMPERADO INCOLOR ESP. 10MM, FERRAGENS CROMADAS E FIXAÇÕES EM PAREDES, PISOS E FORROS CONFORME NORMAS DO FABRICANTE PARA PERFEITO USO E FUNCIONAMENTO | C145: M2 | D145: 3.24 | E145: 561.64 | F145: 1819.71
A146: 3.10.5 | B146: P11 - PORTA DE VIDRO TEMPERADO DE DUAS FOLHAS DE ABRIR 2,00X2,10M FUMÊ ESP.10MM, COM MOLA HIDRÁULICA NAS 02 FOLHAS, FERRAGENS CROMADAS E FIXAÇÕES EM PAREDES, PISOS E FORROS CONFORME NORMAS DO FABRICANTE PARA PERFEITO USO E FUNCIONAMENTO, INCLUSO BARRA ANTIPÂNICO DUPLA. | C146: UN | D146: 4 | E146: 4818.18 | F146: 19272.72
A147: 3.10.6 | B147: BANDEIRAS FIXAS P11 - PAINÉIS (BANDEIRAS) FIXOS EM VIDRO TEMPERADO INCOLOR ESP. 10MM, FERRAGENS CROMADAS E FIXAÇÕES EM PAREDES, PISOS E FORROS CONFORME NORMAS DO FABRICANTE PARA PERFEITO USO E FUNCIONAMENTO | C147: M2 | D147: 7.2 | E147: 561.64 | F147: 4043.81
A148: 3.10.7 | B148: P17 - PORTA DE VIDRO TEMPERADO DE DUAS FOLHAS DE CORRER 2,00X2,10M FUMÊ ESP.10MM, FERRAGENS CROMADAS E FIXAÇÕES EM PAREDES, PISOS E FORROS CONFORME NORMAS DO FABRICANTE PARA PERFEITO USO E FUNCIONAMENTO. | C148: UN | D148: 1 | E148: 2185.64 | F148: 2185.64
A149: 3.10.8 | B149: P14 - FORNECIMENTO E INSTALAÇÃO DE GRADIL MODULAR BARRA SECA, TIPO ALAMBRADO EM PAINEL REFERÊNCIA - NYLOFOR OU SIMILAR, COM MALHA 5X20MM, DIMENSÃO DO MÓDULO (1,00M DE LARGURA X 2.43M DE ALTURA), COM POSTE DE FIXAÇÃO H=3,00, SENDO 0,47M CHUMBADO EM BASE DE CONCRETO, JÁ INCLUSO PINTURA (COR A PRETA) | C149: UN | D149: 4 | E149: 919.39 | F149: =ROUND(D149*E149,2) -> 3677.56
A150: 3.10.9 | B150: FORNCIMENTO E INSTALAÇÃO DE GRADIL MODULAR / CERCA, TIPO ALAMBRADO EM PAINEL REF. NYLOFOR OU SIMILAR, COM MALHA 5X20MM, DIMENSÃO DO MODULO DE 2,50M DE LARGURA E 2,43M DE ALTURA , COM POSTE PARA FIXAÇÃO H=3,20M SENDO 0,77M CHUBADO EM BASE DE CONCRETO, JÁ INCLUSA PINTURA NA COR PRETA | C150: M | D150: 16.03 | E150: 680.03 | F150: =ROUND(D150*E150,2) -> 10900.88
A151: 3.10.10 | B151: V2 - VISOR EM VIDRO TEMPERADO INCOLOR ESPESSURA=8MM COM REQUADRO DE ALUMÍNIO NA COR NATURAL, DIM. 2,00X1,00M | C151: UN | D151: 4 | E151: 789.95 | F151: =ROUND(D151*E151,2) -> 3159.8
A152: 3.10.11 | B152: V3 - VISOR EM VIDRO TEMPERADO INCOLOR ESPESSURA=8MM COM REQUADRO DE ALUMÍNIO NA COR NATURAL, DIM. 2,00X1,50M | C152: UN | D152: 1 | E152: 1286.38 | F152: 1286.38
A153: 3.10.12 | B153: V4 - VISOR EM VIDRO TEMPERADO INCOLOR ESPESSURA=8MM COM REQUADRO DE ALUMÍNIO NA COR NATURAL, DIMENSÕES 300X100CM | C153: UN | D153: 1 | E153: 1303.98 | F153: =ROUND(D153*E153,2) -> 1303.98
A154: 3.10.13 | B154: J1 - JANELA MAXIM-AR COM ESTRUTURA DE ALUMÍNIO ANODIZADO NATURAL E VIDRO TEMPERADO FUMÊ 6 mm - DIM. 1,00X0,60M, COMPLETA, INCLUSIVE FERRAGENS, FECHADURA, PUXADORES E VEDAÇÕES - BANDEIRAS CONFORME PROJETO | C154: UN | D154: 8 | E154: 668.64 | F154: 5349.12
A155: 3.10.14 | B155: J2 - JANELA MAXIM-AR COM ESTRUTURA DE ALUMÍNIO ANODIZADO NATURAL E VIDRO TEMPERADO INCOLOR 6 mm - DIM. 2,00X1,50M, COMPLETA, INCLUSIVE FERRAGENS, FECHADURA, PUXADORES E VEDAÇÕES - BANDEIRAS CONFORME PROJETO | C155: UN | D155: 1 | E155: 2899.06 | F155: 2899.06
A157: 3.11 | B157: PISOS | F157: =SUBTOTAL(9,F158:F166) -> 169567.91
A158: 3.11.1 | B158: CONTRAPISO DE CONCRETO, ESPESSURA 7CM, PREPARO MECANICO (INCLUSO PISOS EXTERNOS) | C158: M2 | D158: 1131.96 | E158: 42.03 | F158: =ROUND(D158*E158,2) -> 47576.28
A159: 3.11.2 | B159: REVESTIMENTO CERÂMICO PARA PISO COM PLACAS TIPO PORCELANATO DE DIMENSÕES 90X90 CM APLICADA EM AMBIENTES INTERNOS - MODELO ELIANE MUNARI BRANCO AC OU SIMILAR (MATERIAL FORNECIDO PELO SESI) | C159: M2 | D159: 66.16 | E159: 40.47 | F159: 2677.5
A160: 3.11.3 | B160: REVESTIMENTO CERÂMICO PARA PISO COM PLACAS TIPO PORCELANATO DE DIMENSÕES 90X90 CM APLICADA EM AMBIENTES INTERNOS - MODELO ELIANE MUNARI BRANCO AC OU SIMILAR | C160: M2 | D160: 554.87 | E160: 115.35 | F160: =ROUND(D160*E160,2) -> 64004.25
A161: 3.11.4 | B161: REVESTIMENTO CERÂMICO PARA PISO COM PLACAS TIPO PORCELANATO DE DIMENSÕES 19,4X118,2 CM APLICADA EM AMBIENTES INTERNOS - MODELO ELIANE SIERRA MARFIM AC OU SIMILAR (MATERIAL FORNECIDO PELO SESI) | C161: M2 | D161: 278.84 | E161: 40.47 | F161: 11284.65
A162: 3.11.5 | B162: PISO EM GRANITO APLICADO EM AMBIENTES INTERNOS, FRISADO/ANTIDERRAPANTE - ESCADA E RAMPA ENTRE BLOCO B / C | C162: M2 | D162: 26.21 | E162: 366.52 | F162: 9606.49
A163: 3.11.6 | B163: RODAPÉ EM GRANITO, ALTURA 10 CM - ESCADA E RAMPA ENTRE BLOCO B / C | C163: M | D163: 14.42 | E163: 66.4 | F163: 957.49
A164: 3.11.7 | B164: FORNECIMENTO E ESPALHAMENTO DE BRITA (PEDRISCO CINZA), INCLUSIVE REGULARIZAÇÃO / ACERTO MANUAL COM ESPALHAMENTO E COMPACTACAO, ESP=5CM - ÁREA DA HORTA | C164: M2 | D164: 66 | E164: 7.39 | F164: 487.74
A165: 3.11.8 | B165: EXECUÇÃO DE PASSEIO EM PISO INTERTRAVADO, COM BLOCO RETANGULAR COR NATURAL DE 20 X 10 CM, ESPESSURA 6 CM. AF_12/2015 | C165: M2 | D165: 285.04 | E165: 85.98 | F165: 24507.74
A166: 3.11.9 | B166: FORNECIMENTO E INSTALAÇÃO DE GRAMA SINTETICA ARTIFICIAL 12MM COM PROTEÇÃO UV E ANTI-FUNGO, EXECUTADO COM ADESIVO. | C166: M2 | D166: 115.7 | E166: 73.17 | F166: =ROUND(D166*E166,2) -> 8465.77
A168: 3.12 | B168: REVESTIMENTOS | F168: =SUBTOTAL(9,F169:F174) -> 113871.54
A169: 3.12.1 | B169: CHAPISCO APLICADO EM ALVENARIAS E ESTRUTURAS DE CONCRETO INTERNAS, COM ROLO PARA TEXTURA ACRÍLICA. ARGAMASSA TRAÇO 1:4 E EMULSÃO POLIMÉRICA (ADESIVO) COM PREPARO EM BETONEIRA 400L. AF_06/2014 | C169: M2 | D169: 218.2 | E169: 8.59 | F169: =ROUND(D169*E169,2) -> 1874.34
A170: 3.12.2 | B170: EMBOÇO OU MASSA ÚNICA EM ARGAMASSA TRAÇO 1:2:8, PREPARO MECÂNICO COM BETONEIRA 400 L, APLICADA MANUALMENTE EM PANOS DE FACHADA COM PRESENÇA DE VÃOS, ESPESSURA DE 25 MM. AF_06/2014 | C170: M2 | D170: 218.2 | E170: 55.05 | F170: 12011.91
A171: 3.12.3 | B171: REVESTIMENTO CERÂMICO PARA PAREDES COM PLACAS TIPO PORCELANATO DE DIMENSÕES 90X90 CM APLICADA EM AMBIENTES INTERNOS - MODELO ELIANE LIMESTONE AREIA POL OU SIMILAR | C171: M2 | D171: 321.066 | E171: 197.45 | F171: 63394.48
A172: 3.12.4 | B172: REVESTIMENTO CERÂMICO PARA PAREDES COM PLACAS TIPO PORCELANATO DE DIMENSÕES 14,5X90 CM APLICADA EM AMBIENTES INTERNOS - MODELO ELIANE LIMESTONE AREIA POL OU SIMILAR | C172: M2 | D172: 63.22435 | E172: 409.33 | F172: 25879.62
A173: 3.12.5 | B173: REVESTIMENTO CERAMICO PORTOBELLO GLACIE WHITE 30X60CM, INCLUSO E REJUNTE - FORNECIMENTO E INSTALAÇÃO (AZULEJO FORNECIDO PELO SESI) | C173: M2 | D173: 90.98 | E173: 84.59 | F173: 7696
A174: 3.12.6 | B174: REVESTIMENTO CERÂMICO PARA PAREDES EXTERNAS EM PASTILHAS JATOBÁ DE PORCELANA 5 X 5 CM (PLACAS DE 30 X 30 CM), ALINHADAS A PRUMO, JD. 4102 - PÉROLA OCEANO (JATOBÁ OU SIMILAR) | C174: M2 | D174: 14.87 | E174: 202.77 | F174: 3015.19
A176: 3.13 | B176: GRANITO | F176: =SUBTOTAL(9,F177:F179) -> 7772.47
A177: 3.13.1 | B177: BANCADA DE GRANITO CINZA ANDORINHA, SOBRE MÃOS-FRANCESAS METÁLICAS, ESP=2cm COM FRONTÃO 20cm, SAIA COM ACAB. DE MEIA ESQUADRIA E REFORÇO INFERIOR DE BORDA E CORTE PARA INST. DE CUBAS DE LOUÇA OVAL DE EMBUTIR LOCAL | C177: M2 | D177: 5.57 | E177: 782.35 | F177: =ROUND(D177*E177,2) -> 4357.69
A178: 3.13.2 | B178: PEITORIL LINEAR EM GRANITO OU MÁRMORE, L = 20CM, COMPRIMENTO DE ATÉ 2M, ASSENTADO COM ARGAMASSA 1:6 COM ADITIVO. AF_11/2020 | C178: M | D178: 17 | E178: 132.84 | F178: 2258.28
A179: 3.13.3 | B179: SOLEIRA EM GRANITO, LARGURA 15 CM, ESPESSURA 2,0 CM. AF_09/2020 | C179: M | D179: 12.22 | E179: 94.64 | F179: 1156.5
A181: 3.14 | B181: FORRO | F181: =SUBTOTAL(9,F182:F183) -> 37321.23
A182: 3.14.1 | B182: FORRO ACÚSTICO DE FIBRA MINERAL 625 MM X 625 MM TEGULAR, INSTALADOS EM PERFIL "T", SUPENSO POR PENDURAIS EM ARRAME GALVANIZADO A CADA 1250X1250MM (PLACAS DE FORRO FORNECIDO PELO SESI) | C182: M2 | D182: 923.4 | E182: 38.88 | F182: =ROUND(D182*E182,2) -> 35901.79
A183: 3.14.2 | B183: FORRO DE PVC, LISO, PARA AMBIENTES COMERCIAIS, INCLUSIVE ESTRUTURA DE FIXAÇÃO. AF_05/2017_P | C183: M2 | D183: 15.6 | E183: 90.99 | F183: =ROUND(D183*E183,2) -> 1419.44
A185: 3.15 | B185: PINTURA | F185: =SUBTOTAL(9,F186:F190) -> 50967.69
A186: 3.15.1 | B186: APLICAÇÃO DE FUNDO SELADOR ACRÍLICO EM PAREDES, UMA DEMÃO. AF_06/2014 | C186: M2 | D186: 525.96 | E186: 2.06 | F186: =ROUND(D186*E186,2) -> 1083.48
A187: 3.15.2 | B187: APLICAÇÃO E LIXAMENTO DE MASSA LÁTEX EM PAREDES, DUAS DEMÃOS. AF_06/2014 | C187: M2 | D187: 875.71 | E187: 14.96 | F187: 13100.62
A188: 3.15.3 | B188: APLICAÇÃO MANUAL DE PINTURA COM TINTA LÁTEX ACRÍLICA EM PAREDES, DUAS DEMÃOS. AF_06/2014 | C188: M2 | D188: 875.71 | E188: 15 | F188: =ROUND(D188*E188,2) -> 13135.65
A189: 3.15.4 | B189: TEXTURA ACRÍLICA, APLICAÇÃO MANUAL EM PAREDE, UMA DEMÃO. AF_09/2016 | C189: M2 | D189: 752.64 | E189: 15.6 | F189: 11741.18
A190: 3.15.5 | B190: APLICAÇÃO MANUAL DE TINTA LÁTEX ACRÍLICA EM PAREDE EXTERNAS, DUAS DEMÃOS. | C190: M2 | D190: 752.64 | E190: 15.82 | F190: 11906.76
A192: 3.16 | B192: CALÇAMENTO, PÁTIOS E PASSARELAS | F192: =SUBTOTAL(9,F193) -> 0
A194: 3.17 | B194: SERVIÇOS COMPLEMENTARES | F194: =SUBTOTAL(9,F195:F200) -> 77327.66
A195: 3.17.1 | B195: ESPELHO CRISTAL E=4MM, FORNECIMENTO E INSTALAÇÃO | C195: M2 | D195: 13.98 | E195: 549.8 | F195: =ROUND(D195*E195,2) -> 7686.2
A196: 3.17.2 | B196: FORNECIMENTO E INSTALAÇÃO DE QUADRO/LOUSA EM VIDRO TEMPERADO LEITOSO 6MM ADESIVADAS COM PELICULA DE SEGURANÇA BRANCA, INCLUSIVE APARADOR PARA CANETA PILOTO 30X10CM, COM BOTOES DE CABECA DE LATAO CROMADO | C196: M2 | D196: 22.68 | E196: 379.21 | F196: 8600.48
A197: 3.17.3 | B197: FORNECIMENTO E INSTALAÇÃO DE PERGOLADO EM MADEIRA, DIM: 9,20M X 3,20M, COM VIGAS EMPARELHADAS 6X16 E PILARES EMPARELHADOS 20X20, MATERIAL EM 1ª CATEGORIA. | C197: CONJ | D197: 1 | E197: 3373.56 | F197: =ROUND(D197*E197,2) -> 3373.56
A198: 3.17.4 | B198: FORNECIMENTO E INSTALAÇÃO CORRIMÃO DUPLO, H=0,92M E H=0,70M, DIÂMETRO EXTERNO = 1 1/2", EM AÇO INOX, FIXADO EM PISO. | C198: M | D198: 28.51 | E198: 515.8 | F198: 14705.46
A199: 3.17.5 | B199: FORNECIMENTO E INSTALAÇÃO DE GUARDA CORPO H=1,30M, COLUNAS DIÂM. 1 1/2" A CADA 1M, TUBO HORIZONTAL SUPERIOR E INFERIOR DE DIÂM 1 1/2", TUBOS VERTICAIS 3/4" A CADA 11CM E COM CORRIMÃO DUPLO DE Ø 1 1/2" COM H=0,92CM/H=0,70CM, EM AÇO INÓX - CONFORME PROJETO E MEMORIAL DE ACESSIBILIDADE | C199: M | D199: 40.15 | E199: 998.08 | F199: 40072.91
A200: 3.17.6 | B200: FORNECIMENTO FABRICAÇÃO E INSTALAÇÃO DE GUARDA-CORPOS INOX, COM AS SEGUINTES CARACTERÍSTICAS: • COM 1,30M DE ALTURA TOTAL • COLUNAS - EM TUBOS DE AÇO INÓX, Ø= 1.1/2" - CHAPA #16 CADA 1,00M (NO MÁXIMO) CHUMBADAS NO CONCRETO; • BARRAS VERTICAIS INTERMEDIÁRIAS DE FECHAMENTO - Ø= 3/4" - CHAPA #16 A CADA 11CM, TOTALIZANDO 07 LINHAS CONTÍNUAS; • BARRA HORIZONTAL DE ACABAMENTO SUPERIOR - EM TUBOS DE AÇO INÓX, D= 1.1/2" - CHAPA #16. • BARRA HORIZONTAL DE ACABAMENTO INFERIOR - EM TUBOS DE AÇO INÓX, D= 1.1/2" - CHAPA #16. • CANOPLA EM AÇO INÓX DE ACABAMENTO NA BASE DAS COLUNAS CHAPA #16. | C200: M | D200: 3.13 | E200: 923.02 | F200: 2889.05
A202: 3.18 | B202: INSTALAÇÕES DE SPDA | F202: =SUBTOTAL(9,F203) -> 0
A204: 3.19 | B204: INSTALAÇÃO DE COMBATE A INCÊNDIO | F204: =SUBTOTAL(9,F205) -> 0
A206: 3.20 | B206: INSTALAÇÕES ELÉTRICA | F206: =SUBTOTAL(9,F207:F446) -> 204896.98
A207: 3.20.1 | B207: INSTALAÇÕES ELÉTRICA BAIXA TENSÃO | F207: =SUBTOTAL(9,F208:F308) -> 137857.66
A208: 3.20.1.1 | B208: ACESSÓRIOS P/ELETRODUTO E USO GERAL | F208: =SUBTOTAL(9,F209:F234) -> 23452.22
A209: 3.20.1.1.1 | B209: FORNECIMENTO E INSTALAÇÃO DE ABRAÇADEIRA DE AÇO, TIPO D, 3/4", COM CUNHA | C209: UN | D209: 250 | E209: 6.59 | F209: =ROUND(D209*E209,2) -> 1647.5
A210: 3.20.1.1.2 | B210: FORNECIMENTO E INSTALAÇÃO DE ABRAÇADEIRA DE AÇO, TIPO D, 1", COM CUNHA | C210: UN | D210: 333 | E210: 6.75 | F210: 2247.75
A211: 3.20.1.1.3 | B211: FORNECIMENTO E INSTALAÇÃO DE BUCHA E ARRUELA ALUMÍNIO FUNDIDO PARA ELETRODUTO (ZAMAK) 3/4" | C211: UN | D211: 284 | E211: 2.03 | F211: 576.52
A212: 3.20.1.1.4 | B212: FORNECIMENTO E INSTALAÇÃO DE BUCHA E ARRUELA ALUMÍNIO FUNDIDO PARA ELETRODUTO (ZAMAK) 1" | C212: UN | D212: 61 | E212: 2.41 | F212: 147.01
A213: 3.20.1.1.5 | B213: FORNECIMENTO E INSTALAÇÃO DE BOX RETO PARA ELETRODUTO 3/4" | C213: UN | D213: 284 | E213: 5.68 | F213: 1613.12
A214: 3.20.1.1.6 | B214: FORNECIMENTO E INSTALAÇÃO DE BOX RETO PARA ELETRODUTO 1" | C214: UN | D214: 61 | E214: 8.04 | F214: 490.44
A215: 3.20.1.1.7 | B215: CONDULETE DE ALUMÍNIO, TIPO X, PARA ELETRODUTO DE AÇO GALVANIZADO DN 20 MM (3/4''), APARENTE - FORNECIMENTO E INSTALAÇÃO. AF_11/2016_P | C215: UN | D215: 2 | E215: 38.12 | F215: 76.24
A216: 3.20.1.1.8 | B216: FORNECIMENTO E INSTALAÇÃO DE PRENSA CABO 1/2" | C216: UN | D216: 10 | E216: 30.33 | F216: 303.3
A217: 3.20.1.1.9 | B217: CAIXA OCTOGONAL 4" X 4" PVC - FORNECIMENTO E INSTALAÇÃO. | C217: UN | D217: 138 | E217: 11.42 | F217: 1575.96
A218: 3.20.1.1.10 | B218: CAIXA RETANGULAR 4" X 2" PVC - FORNECIMENTO E INSTALAÇÃO. | C218: UN | D218: 138 | E218: 8.96 | F218: 1236.48
A219: 3.20.1.1.11 | B219: CAIXA RETANGULAR 4" X 4" PVC - FORNECIMENTO E INSTALAÇÃO. AF_12/2015 | C219: UN | D219: 1 | E219: 12 | F219: 12
A220: 3.20.1.1.12 | B220: FORNECIMENTO E INSTALAÇÃO DE CAIXA ALUMÍNIO 4X4" DE PISO C/ TAMPA - EMBUTIR | C220: UN | D220: 2 | E220: 62.03 | F220: 124.06
A221: 3.20.1.1.13 | B221: FORNECIMENTO E INSTALAÇÃO DE PLACA CEGA PVC 4X2" | C221: UN | D221: 5 | E221: 4.82 | F221: 24.1
A222: 3.20.1.1.14 | B222: FORNECIMENTO E INSTALAÇÃO DE PLACA CEGA PVC 4X4" | C222: UN | D222: 1 | E222: 8.23 | F222: 8.23
A223: 3.20.1.1.15 | B223: FORNECIMENTO E INSTALAÇÃO DE SAÍDA LATERAL ELETROCALHA P/ ELETRODUTO 3/4" | C223: UN | D223: 28 | E223: 10.29 | F223: 288.12
A224: 3.20.1.1.16 | B224: FORNECIMENTO E INSTALAÇÃO DE SAÍDA ELETROCALHA P/ ELETRODUTO 1" | C224: UN | D224: 16 | E224: 15.54 | F224: 248.64
A225: 3.20.1.1.17 | B225: FORNECIMENTO E INSTALAÇÃO DE SAÍDA LATERAL PERFILADO P/ ELETRODUTO 3/4" | C225: UN | D225: 4 | E225: 18.51 | F225: 74.04
A226: 3.20.1.1.18 | B226: FORNECIMENTO E INSTALAÇÃO DE ARAME AÇO GALVANIZADO 18 BWG, 1,24MM (0,009 KG/M) | C226: M | D226: 550 | E226: 0.77 | F226: 423.5
A227: 3.20.1.1.19 | B227: FORNECIMENTO E INSTALAÇÃO DE ARRUELA LISA GALVANIZADA 1/4" | C227: UN | D227: 504 | E227: 0.59 | F227: 297.36
A228: 3.20.1.1.20 | B228: FORNECIMENTO E INSTALAÇÃO DE BUCHA / PARAFUSO S8 | C228: UN | D228: 1875 | E228: 4.44 | F228: 8325
... 408 more rows

Sheet 4_BLOCO C (hidden)
A1: PLANILHA ORÇAMENTARIA | D1: SPN-FF-003
D3: Folha: 1 de 1 | E3: Revisão: 02 | F3: Data: 07/10/19
A5: SESI - SERVIÇO SOCIAL DA INDUSTRIA - DR/MT
A6: OBRA: CONTRATAÇÃO DE EMPRESA ESPECIALIZADA PARA CONTINUIDADE DA EXECUÇÃO DA OBRA DE REFORMA E AMPLIAÇÃO DA UNIDADE DO SESI ESCOLA VÁRZEA GRANDE/MT.
A7: UNIDADE OPERACIONAL: SESI ESCOLA VÁRZEA GRANDE
A8: ENDEREÇO: AV. DOM ORLANDO CHAVES, N.º 1.086, PONTE NOVA - CRISTO REI CIDADE: VÁRZEA GRANDE/MT
A9: CONSTRUTORA:
A10: RESPONSÁVEL TÉCNICO:
A11: BASE SINAPI UTILIZADA: 06/2021
A12: ITEM | B12: DESCRIÇÃO | C12: UNID. | D12: QUANT. | E12: Valor UNIT. (R$) | F12: Valor Total (R$)
A14: 4 | B14: BLOCO C
A16: 4.0 | B16: DEMOLIÇÕES E RETIRADAS | F16: =SUBTOTAL(9,F17:F35) -> 47451.54
A17: 4.0.1 | B17: DEMOLIÇÃO | F17: =SUBTOTAL(9,F18:F35) -> 47451.54
A18: 4.0.1.1 | B18: DEMOLIÇÃO DE ALVENARIA DE BLOCO FURADO, DE FORMA MANUAL, SEM REAPROVEITAMENTO. AF_12/2017 | C18: M3 | D18: 5.3 | E18: 49.97 | F18: =ROUND(D18*E18,2) -> 264.84
A19: 4.0.1.2 | B19: REMOÇÃO DE PINTURA LÁTEX OU TEXTURA (RASPAGEM E/OU LIXAMENTO E/OU ESCOVAÇÃO | C19: M2 | D19: 936.95 | E19: 7.66 | F19: 7177.04
A20: 4.0.1.3 | B20: REMOÇÃO DE LOUÇAS, DE FORMA MANUAL, SEM REAPROVEITAMENTO, ARMAZENAMENTO EM LOCAL INDICADO PELA FISCALIZAÇÃO | C20: UN | D20: 10 | E20: 10.86 | F20: 108.6
A21: 4.0.1.4 | B21: REMOÇÃO DE PORTAS, DE FORMA MANUAL, SEM REAPROVEITAMENTO, ARMAZENAMENTO EM LOCAL INDICADO PELA FISCALIZAÇÃO | C21: M2 | D21: 6.3 | E21: 8.14 | F21: 51.28
A22: 4.0.1.5 | B22: REMOÇÃO DE JANELAS, DE FORMA MANUAL, SEM REAPROVEITAMENTO, ARMAZENAMENTO EM LOCAL INDICADO PELA FISCALIZAÇÃO | C22: M2 | D22: 3 | E22: 30.15 | F22: 90.45
A23: 4.0.1.6 | B23: REMOÇÃO DE FORROS DE DRYWALL, PVC E FIBROMINERAL, DE FORMA MANUAL, SEM REAPROVEITAMENTO. AF_12/2017 | C23: M2 | D23: 107.32 | E23: 1.41 | F23: 151.32
A24: 4.0.1.7 | B24: DEMOLIÇÃO MANUAL DE PISO EM CONCRETO SIMPLES INCLUSIVE LASTRO DE CONCRETO | C24: M2 | D24: 25.89 | E24: 34.07 | F24: 882.07
A25: 4.0.1.8 | B25: DEMOLIÇÃO DE PISO REVESTIDO COM GRANILITE E CONTRAPISO EM CONCRETO, DE FORMA MECANIZADA COM MARTELETE, SEM REAPROVEITAMENTO. | C25: M2 | D25: 116.92 | E25: 34.07 | F25: 3983.46
A26: 4.0.1.9 | B26: DEMOLIÇÃO DE PAVIMENTO INTERTRAVADO, DE FORMA MANUAL, COM REAPROVEITAMENTO. AF_12/2017 | C26: M2 | D26: 828.31 | E26: 14 | F26: 11596.34
A27: 4.0.1.10 | B27: DEMOLIÇÃO DE PILARES E VIGAS EM CONCRETO ARMADO, DE FORMA MECANIZADA COM MARTELETE, SEM REAPROVEITAMENTO. AF_12/2017 | C27: M3 | D27: 27.8 | E27: 243.62 | F27: =ROUND(D27*E27,2) -> 6772.64
A28: 4.0.1.11 | B28: DEMOLIÇÃO DE LAJES, DE FORMA MECANIZADA COM MARTELETE, SEM REAPROVEITAMENTO. AF_12/2017 | C28: M3 | D28: 8.19 | E28: 106.24 | F28: 870.11
A29: 4.0.1.12 | B29: REMOÇÃO DE TELHAS, DE FIBROCIMENTO, METÁLICA E CERÂMICA, DE FORMA MANUAL, SEM REAPROVEITAMENTO. AF_12/2017 | C29: M2 | D29: 107.32 | E29: 3.12 | F29: 334.84
A30: 4.0.1.13 | B30: RETIRADA GUARDA-CORPO E CORRIMÃO SEM REAPROVEITAMENTO | C30: M | D30: 30.36 | E30: 8.67 | F30: 263.22
A31: 4.0.1.14 | B31: DEMOLIÇÃO DE PISO, SOLEIRAS, BANCADAS EM REVESTIDO DE GRANITO | C31: M2 | D31: 25.89 | E31: 20.84 | F31: 539.55
A32: 4.0.1.15 | B32: DEMOLIÇÃO DE ARGAMASSAS, DE FORMA MANUAL, SEM REAPROVEITAMENTO. AF_12/2017 | C32: M2 | D32: 160.7 | E32: 2.91 | F32: 467.64
A33: 4.0.1.16 | B33: REMOÇÃO DE TRAMA METÁLICA PARA COBERTURA, DE FORMA MANUAL, SEM REAPROVEITAMENTO. AF_12/2017 | C33: M2 | D33: 107.32 | E33: 21.25 | F33: 2280.55
A34: 4.0.1.17 | B34: REMOÇÃO DE CHAPAS E PERFIS DE DRYWALL, DE FORMA MANUAL, SEM REAPROVEITAMENTO. AF_12/2017 | C34: M2 | D34: 79 | E34: 6.51 | F34: 514.29
A35: 4.0.1.18 | B35: BOTA FORA DE MATERIAL DESCARTADO, D.M.T. = 10 km - (CARGA, TRANSPORTE E DESCARGA MECÂNICA) | C35: M3 | D35: 189.25 | E35: 58.67 | F35: 11103.3
A37: 4.1 | B37: INSTALAÇÕES DE CANTEIRO | F37: =SUBTOTAL(9,F38) -> 0
A39: 4.2 | B39: ADMINISTRAÇÃO | F39: =SUBTOTAL(9,F40) -> 0
A41: 4.3 | B41: TERRAPLENAGEM | F41: =SUBTOTAL(9,F42) -> 0
A43: 4.4 | B43: FUNDAÇÃO | F43: =SUBTOTAL(9,F44:F65) -> 63486.26
A44: 4.4.1 | B44: FUNDAÇÃO - ESCADA E RAMPA ENTRE OS BLOCOS C / D (DUAS ESCADAS E 01 RAMPA) | F44: =SUBTOTAL(9,F45:F53) -> 41469.27
A45: 4.4.1.1 | B45: ESCAVAÇÃO MECANIZADA PARA BLOCO DE COROAMENTO OU SAPATA, SEM PREVISÃO DE FÔRMA, COM RETROESCAVADEIRA. AF_06/2017 | C45: M3 | D45: 2.4 | E45: 91.26 | F45: =ROUND(D45*E45,2) -> 219.02
A46: 4.4.1.2 | B46: BOTA FORA DE MATERIAL DESCARTADO, D.M.T. = 10 km - (CARGA, TRANSPORTE E DESCARGA MECÂNICA) | C46: M3 | D46: 3.4 | E46: 58.67 | F46: 199.48
A47: 4.4.1.3 | B47: LASTRO COM MATERIAL GRANULAR (PEDRA BRITADA N.1 E PEDRA BRITADA N.2), APLICADO EM PISOS OU LAJES SOBRE SOLO, ESPESSURA DE *10 CM*. AF_07/2019 | C47: M3 | D47: 2.4 | E47: 142.05 | F47: 340.92
A48: 4.4.1.4 | B48: FABRICAÇÃO DE FÔRMA PARA VIGAS, EM CHAPA DE MADEIRA COMPENSADA PLASTIFICADA, E = 18 MM. AF_09/2020 | C48: M2 | D48: 20 | E48: 129.29 | F48: =ROUND(D48*E48,2) -> 2585.8
A49: 4.4.1.5 | B49: ARMAÇÃO DE BLOCO, VIGA BALDRAME E SAPATA UTILIZANDO AÇO CA-60 DE 5 MM - MONTAGEM. AF_06/2017 | C49: KG | D49: 255 | E49: 25.68 | F49: 6548.4
A50: 4.4.1.6 | B50: ARMAÇÃO DE BLOCO, VIGA BALDRAME OU SAPATA UTILIZANDO AÇO CA-50 DE 6,3 MM - MONTAGEM. AF_06/2017 | C50: KG | D50: 244 | E50: 25.13 | F50: 6131.72
A51: 4.4.1.7 | B51: EPS - BLOCOS PARA ENCHIMENTO | C51: M³ | D51: 14.5 | E51: 564.16 | F51: 8180.32
A52: 4.4.1.8 | B52: CONCRETAGEM DE PILARES, FCK = 25 MPA, COM USO DE BOMBA EM EDIFICAÇÃO COM SEÇÃO MÉDIA DE PILARES MAIOR QUE 0,25 M² - LANÇAMENTO, ADENSAMENTO E ACABAMENTO. AF_12/2015 | C52: M3 | D52: 26.2 | E52: 656.15 | F52: 17191.13
A53: 4.4.1.9 | B53: LONA PLASTICA EXTRA FORTE PRETA, E = 200 MICRA PARA IMPERMEABILIZAÇÃO | C53: M2 | D53: 24 | E53: 3.02 | F53: 72.48
A55: 4.4.2 | B55: FUNDAÇÃO - ACESSO ENTRE OS BLOCOS C / D | F55: =SUBTOTAL(9,F56:F65) -> 22016.99
A56: 4.4.2.1 | B56: ESCAVAÇÃO MECANIZADA PARA BLOCO DE COROAMENTO OU SAPATA, SEM PREVISÃO DE FÔRMA, COM RETROESCAVADEIRA. AF_06/2017 | C56: M3 | D56: 5.41 | E56: 91.26 | F56: =ROUND(D56*E56,2) -> 493.72
A57: 4.4.2.2 | B57: BOTA FORA DE MATERIAL DESCARTADO, D.M.T. = 10 km - (CARGA, TRANSPORTE E DESCARGA MECÂNICA) | C57: M3 | D57: 3.88 | E57: 58.67 | F57: =ROUND(D57*E57,2) -> 227.64
A58: 4.4.2.3 | B58: REATERRO MANUAL DE VALAS COM COMPACTAÇÃO MECANIZADA. AF_04/2016 | C58: M3 | D58: 0.27 | E58: 27.04 | F58: =ROUND(D58*E58,2) -> 7.3
A59: 4.4.2.4 | B59: ESTACAS - ESTACAS RAIZ DE Ø31cm EM SOLO INCLUSIVE A INJENÇÃO DE ARGAMASSA FCK>20 MPA, INCLUSIVE LANÇAMENTO DE ARMAÇÃO / CONSUMO MÍNIMO DE CIMENTO - 600 kg/m³. | C59: M | D59: 32 | E59: 474.01 | F59: =ROUND(D59*E59,2) -> 15168.32
A60: 4.4.2.5 | B60: ESTACAS - ARMAÇÃO DE BLOCO, VIGA BALDRAME E SAPATA UTILIZANDO AÇO CA-60 DE 5 MM - MONTAGEM. AF_06/2017 | C60: KG | D60: 23 | E60: 25.68 | F60: 590.64
A61: 4.4.2.6 | B61: ESTACAS - ARMAÇÃO DE BLOCO, VIGA BALDRAME OU SAPATA UTILIZANDO AÇO CA-50 DE 10 MM - MONTAGEM. AF_06/2017 | C61: KG | D61: 59 | E61: 21.99 | F61: 1297.41
A62: 4.4.2.7 | B62: BLOCOS - LASTRO COM MATERIAL GRANULAR (PEDRA BRITADA N.1 E PEDRA BRITADA N.2), APLICADO EM PISOS OU LAJES SOBRE SOLO, ESPESSURA DE *10 CM*. AF_07/2019 | C62: M3 | D62: 0.2 | E62: 142.05 | F62: 28.41
A63: 4.4.2.8 | B63: BLOCOS - FABRICAÇÃO, MONTAGEM E DESMONTAGEM DE FÔRMA PARA BLOCO DE COROAMENTO, EM MADEIRA SERRADA, E=25 MM, 1 UTILIZAÇÃO. AF_06/2017 | C63: M2 | D63: 7.84 | E63: 165.28 | F63: 1295.8
A64: 4.4.2.9 | B64: BLOCOS - ARMAÇÃO DE BLOCO, VIGA BALDRAME OU SAPATA UTILIZANDO AÇO CA-50 DE 10 MM - MONTAGEM. AF_06/2017 | C64: KG | D64: 89 | E64: 21.99 | F64: 1957.11
A65: 4.4.2.10 | B65: BLOCOS - CONCRETAGEM DE BLOCOS DE COROAMENTO E VIGAS BALDRAMES, FCK 30 MPA, COM USO DE BOMBA  LANÇAMENTO, ADENSAMENTO E ACABAMENTO. AF_06/2017 | C65: M3 | D65: 1.37 | E65: 693.9 | F65: 950.64
A67: 4.5 | B67: IMPERMEABILIZAÇÃO | F67: =SUBTOTAL(9,F68) -> 1617.5
A68: 4.5.1 | B68: IMPERMEABILIZAÇÃO DE SUPERFÍCIE COM EMULSÃO ASFÁLTICA, 2 DEMÃOS AF_06/2018 | C68: M2 | D68: 27.84 | E68: 58.1 | F68: 1617.5
A70: 4.6 | B70: ESTRUTURAS DE CONCRETO ARMADO | F70: =SUBTOTAL(9,F71:F77) -> 9909.2
A71: 4.6.1 | B71: ESTRUTURAS DE CONCRETO ARMADO - ACESSO ENTRE OS BLOCOS C / D | F71: =SUBTOTAL(9,F72:F77) -> 9909.2
A72: 4.6.1.1 | B72: PILARES - MONTAGEM E DESMONTAGEM DE FÔRMA DE PILARES RETANGULARES E ESTRUTURAS SIMILARES, PÉ-DIREITO SIMPLES, EM MADEIRA SERRADA, 1 UTILIZAÇÃO. AF_09/2020 | C72: M2 | D72: 10.4 | E72: 238.53 | F72: =ROUND(D72*E72,2) -> 2480.71
A73: 4.6.1.2 | B73: PILARES - ARMAÇÃO DE PILAR OU VIGA DE UMA ESTRUTURA CONVENCIONAL DE CONCRETO ARMADO EM UMA EDIFICAÇÃO TÉRREA UTILIZANDO AÇO CA-60 DE 5,0 MM - MONTAGEM. AF_12/2015 | C73: KG | D73: 35 | E73: 25.71 | F73: 899.85
A74: 4.6.1.3 | B74: PILARES - ARMAÇÃO DE PILAR OU VIGA DE UMA ESTRUTURA CONVENCIONAL DE CONCRETO ARMADO EM UMA EDIFICAÇÃO TÉRREA UTILIZANDO AÇO CA-50 DE 8,0 MM - MONTAGEM. AF_12/2015 | C74: KG | D74: 5 | E74: 24.24 | F74: 121.2
A75: 4.6.1.4 | B75: PILARES - ARMAÇÃO DE PILAR OU VIGA DE UMA ESTRUTURA CONVENCIONAL DE CONCRETO ARMADO EM UMA EDIFICAÇÃO TÉRREA UTILIZANDO AÇO CA-50 DE 10,0 MM - MONTAGEM. AF_12/2015 | C75: KG | D75: 171 | E75: 21.93 | F75: 3750.03
A76: 4.6.1.5 | B76: PILARES - CONCRETAGEM DE PILARES, FCK = 25 MPA, COM USO DE BOMBA EM EDIFICAÇÃO COM SEÇÃO MÉDIA DE PILARES MAIOR QUE 0,25 M² - LANÇAMENTO, ADENSAMENTO E ACABAMENTO. AF_12/2015 | C76: M3 | D76: 4.05 | E76: 656.15 | F76: 2657.41
A78: 4.7 | B78: ALVENARIAS E PAINÉIS | F78: =SUBTOTAL(9,F79:F83) -> 17471.31
A79: 4.7.1 | B79: ALVENARIA DE VEDAÇÃO DE BLOCOS CERÂMICOS FURADOS NA HORIZONTAL DE 9X19X19CM (ESPESSURA 9CM) DE PAREDES COM ÁREA LÍQUIDA MAIOR OU IGUAL A 6M² COM VÃOS E ARGAMASSA DE ASSENTAMENTO COM PREPARO EM BETONEIRA. AF_06/2014 | C79: M2 | D79: 115.22 | E79: 89.93 | F79: =ROUND(D79*E79,2) -> 10361.73
A80: 4.7.2 | B80: FORNECIMENTO E INSTALAÇÃO DE PAREDE DE GESSO ACARTONADO ESP. 10CM, FACE DUPLA, COM ISOLAMENTO TERMO-ACÚSTICO DE LÃ DE ROCHA 50MM (CONSUMO CONF. TCPO 04840.8.5.1, MONTANTE M75-0,62kg/m, GUIA 75 ) | C80: M2 | D80: 27.81 | E80: 172.28 | F80: 4791.11
A81: 4.7.3 | B81: VERGA MOLDADA IN LOCO EM CONCRETO PARA JANELAS COM MAIS DE 1,5 M DE VÃO. AF_03/2016 | C81: M | D81: 11.2 | E81: 91.19 | F81: 1021.33
A82: 4.7.4 | B82: CONTRAVERGA MOLDADA IN LOCO EM CONCRETO PARA VÃOS DE MAIS DE 1,5 M DE COMPRIMENTO. AF_03/2016 | C82: M | D82: 11.2 | E82: 82.78 | F82: 927.14
A83: 4.7.5 | B83: VERGA MOLDADA IN LOCO EM CONCRETO PARA PORTAS COM MAIS DE 1,5 M DE VÃO. AF_03/2016 | C83: M | D83: 4 | E83: 92.5 | F83: 370
A85: 4.8 | B85: ESTRUTURA METALICA | F85: =SUBTOTAL(9,F86:F90) -> 33100.51
A86: 4.8.1 | B86: ESTRUTURA MTÁLICA - DO ACESSO ENTRE OS BLOCOS C / D | F86: =SUBTOTAL(9,F87:F89) -> 33100.51
A87: 4.8.1.1 | B87: ESTRUTURA METALICA DA COBERTURA CONFORME PROJETO EM AÇO ESTRUTURAL | C87: KG | D87: 1517.2 | E87: 18.63 | F87: =ROUND(D87*E87,2) -> 28265.44
A88: 4.8.1.2 | B88: PINTURA COM TINTA ALQUÍDICA DE FUNDO (TIPO ZARCÃO) PULVERIZADA SOBRE SUPERFÍCIES METÁLICAS (EXCETO PERFIL) EXECUTADO EM OBRA (POR DEMÃO). AF_01/2020_P | C88: M2 | D88: 121.21 | E88: 21.31 | F88: 2582.99
A89: 4.8.1.3 | B89: PINTURA COM TINTA ACRÍLICA DE ACABAMENTO PULVERIZADA SOBRE SUPERFÍCIES METÁLICAS (EXCETO PERFIL) EXECUTADO EM OBRA (02 DEMÃOS). AF_01/2020_P | C89: M2 | D89: 121.21 | E89: 18.58 | F89: 2252.08
A91: 4.9 | B91: COBERTURA | F91: =SUBTOTAL(9,F92:F94) -> 30605.32
A92: 4.9.1 | B92: CUMEEIRA METÁLICA AÇO GALVALUME TRAPEZOIDAL 40 40X60CM - FORNECIMENTO E INSTALAÇÃO | C92: M | D92: 56.08 | E92: 84.19 | F92: =ROUND(D92*E92,2) -> 4721.38
A93: 4.9.2 | B93: FORNECIMENTO E INSTALAÇÃO DE TELHA ISOLANTE COM NUCLEO EM POLIESTIRENO (EPS), E = 50 MM, COM PRE-PINTURA NAS DUAS FACES, FACE SUPERIOR EM TELHA DE AÇO TRAPEZOIDAL E=0,50MM E FACE INFERIOR EM CHAPA PLANA E=0,50MM, INCLUSIVE PARAFUSOS E CALAFETAÇÃO COM SELANTE | C93: M2 | D93: 66.34 | E93: 297.14 | F93: 19712.27
A94: 4.9.3 | B94: PLATIBANDA EM CHAPA DE AÇO ESPESSURA 2,00mm, H=870mm, DOBRA CARTOLA: 30X20X970mm, COM METALON DIM. 50X20X0,97mm NA FACE INFERIOR PARA ARREMATE COM O FORRO, FUNDO ANTICORROSIVO EM PRIMER EPÓXI NAS DUAS FACES | C94: M2 | D94: 24.93 | E94: 247.56 | F94: 6171.67
A96: 4.10 | B96: ESQUADRIAS | F96: =SUBTOTAL(9,F97:F108) -> 67363.8
A97: 4.10.1 | B97: P1, P3 E P5 - PORTA EM ALUMÍNIO DE ABRIR TIPO VENEZIANA COM GUARNIÇÃO, FIXAÇÃO COM PARAFUSOS - FORNECIMENTO E INSTALAÇÃO | C97: M2 | D97: 18.42 | E97: 679.02 | F97: =ROUND(D97*E97,2) -> 12507.55
A98: 4.10.2 | B98: P19 - INSTALAÇÃO DE PORTA EM ALUMÍNIO, COM VISOR DE VIDRO, DE ABRIR TIPO VENEZIANA COM GUARNIÇÃO, FIXAÇÃO COM PARAFUSOS. | C98: M2 | D98: 20.79 | E98: 76.38 | F98: 1587.94
A99: 4.10.3 | B99: P3 - INSTALACAO DE PORTA VENEZIANA DE ABRIR UMA FOLHA EM ALUMÍNIO ANODIZADO NATURAL FOSCO, DIM. 0,80 X 2,10m | C99: M2 | D99: 13.86 | E99: 86.89 | F99: 1204.3
A100: 4.10.4 | B100: P39 - PORTA DE VIDRO TEMPERADO DE DUAS FOLHAS DE ABRIR 2,20X2,10M INCOLOR ESP.10MM, COM MOLA HIDRÁULICA NAS 02 FOLHAS, FERRAGENS CROMADAS E FIXAÇÕES EM PAREDES, PISOS E FORROS CONFORME NORMAS DO FABRICANTE PARA PERFEITO USO E FUNCIONAMENTO, INCLUSO BARRA ANTIPÂNICO DUPLA. | C100: UN | D100: 1 | E100: 4991.97 | F100: 4991.97
A101: 4.10.5 | B101: BANDEIRAS FIXAS P39 - PAINÉIS (BANDEIRAS) FIXOS EM VIDRO TEMPERADO INCOLOR ESP. 10MM, FERRAGENS CROMADAS E FIXAÇÕES EM PAREDES, PISOS E FORROS CONFORME NORMAS DO FABRICANTE PARA PERFEITO USO E FUNCIONAMENTO | C101: M2 | D101: 1.98 | E101: 561.64 | F101: 1112.05
A102: 4.10.6 | B102: V5 - VISOR EM VIDRO TEMPERADO INCOLOR ESPESSURA=8MM COM REQUADRO DE ALUMÍNIO NA COR NATURAL, DIMENSÕES 500X110CM (REF. SINAPI 72119) | C102: UN | D102: 11 | E102: 2367.35 | F102: 26040.85
A103: 4.10.7 | B103: V4 - VISOR EM VIDRO TEMPERADO INCOLOR ESPESSURA=8MM COM REQUADRO DE ALUMÍNIO NA COR NATURAL, DIMENSÕES 300X100CM | C103: UN | D103: 1 | E103: 1303.98 | F103: 1303.98
A104: 4.10.8 | B104: J9 - JANELA MAXIM-AR COM ESTRUTURA DE ALUMÍNIO ANODIZADO NATURAL E VIDRO TEMPERADO INCOLOR 6 mm - DIM. 1,00X0,50M, COMPLETA, INCLUSIVE FERRAGENS, FECHADURA, PUXADORES E VEDAÇÕES - BANDEIRAS CONFORME PROJETO | C104: UN | D104: 4 | E104: 519.78 | F104: 2079.12
A105: 4.10.9 | B105: J6 - JANELA MAXIM-AR COM ESTRUTURA DE ALUMÍNIO ANODIZADO NATURAL E VIDRO TEMPERADO INCOLOR 6 mm - DIM. 2,80X2,30M, COMPLETA, INCLUSIVE FERRAGENS, FECHADURA, PUXADORES E VEDAÇÕES - BANDEIRAS CONFORME PROJETO | C105: UN | D105: 1 | E105: 4669.52 | F105: 4669.52
A106: 4.10.10 | B106: J15 - JANELA MAXIM-AR COM ESTRUTURA DE ALUMÍNIO ANODIZADO NATURAL E VIDRO ARAMADO INCOLOR 6 mm - DIM. 0,80X0,60M, COMPLETA, INCLUSIVE FERRAGENS, FECHADURA, PUXADORES E VEDAÇÕES - BANDEIRAS CONFORME PROJETO | C106: UN | D106: 2 | E106: 558.72 | F106: 1117.44
A107: 4.10.11 | B107: J2 - JANELA MAXIM-AR COM ESTRUTURA DE ALUMÍNIO ANODIZADO NATURAL E VIDRO TEMPERADO INCOLOR 6 mm - DIM. 2,00X1,50M, COMPLETA, INCLUSIVE FERRAGENS, FECHADURA, PUXADORES E VEDAÇÕES - BANDEIRAS CONFORME PROJETO | C107: UN | D107: 2 | E107: 2899.06 | F107: 5798.12
A108: 4.10.12 | B108: FECHO / FECHADURA COM PUXADOR CONCHA, COM TRANCA TIPO TRAVA, PARA JANELA / PORTA DE CORRER (INCLUI TESTA, FECHADURA, PUXADOR) - COMPLETA - A SEREM INSTALADAS NAS JANELAS EXISTENTES | C108: CJ | D108: 42 | E108: 117.88 | F108: =ROUND(D108*E108,2) -> 4950.96
A110: 4.11 | B110: PISOS | F110: =SUBTOTAL(9,F111:F116) -> 94837
A111: 4.11.1 | B111: CONTRAPISO DE CONCRETO, ESPESSURA 7CM, PREPARO MECANICO (INCLUSO PISOS EXTERNOS) | C111: M2 | D111: 70.86 | E111: 42.03 | F111: =ROUND(D111*E111,2) -> 2978.25
A112: 4.11.2 | B112: REVESTIMENTO CERÂMICO PARA PISO COM PLACAS TIPO PORCELANATO DE DIMENSÕES 90X90 CM APLICADA EM AMBIENTES INTERNOS - MODELO ELIANE MUNARI BRANCO AC OU SIMILAR (MATERIAL FORNECIDO PELO SESI) | C112: M2 | D112: 178.89 | E112: 40.47 | F112: 7239.68
A113: 4.11.3 | B113: PISO EM GRANITO APLICADO EM AMBIENTES INTERNOS, FRISADO/ANTIDERRAPANTE - ESCADA E RAMPA ENTRE BLOCO C / D | C113: M2 | D113: 33.8 | E113: 366.52 | F113: 12388.38
A114: 4.11.4 | B114: RODAPÉ EM GRANITO, ALTURA 10 CM - ESCADA E RAMPA ENTRE BLOCO C / D | C114: M | D114: 15.25 | E114: 66.4 | F114: 1012.6
A115: 4.11.5 | B115: EXECUÇÃO DE PASSEIO EM PISO INTERTRAVADO, COM BLOCO RETANGULAR COR NATURAL DE 20 X 10 CM, ESPESSURA 6 CM. AF_12/2015 | C115: M2 | D115: 828.31 | E115: 85.98 | F115: 71218.09
A117: 4.12 | B117: REVESTIMENTOS | F117: =SUBTOTAL(9,F118:F123) -> 175149.28
A118: 4.12.1 | B118: CHAPISCO APLICADO EM ALVENARIAS E ESTRUTURAS DE CONCRETO INTERNAS, COM ROLO PARA TEXTURA ACRÍLICA. ARGAMASSA TRAÇO 1:4 E EMULSÃO POLIMÉRICA (ADESIVO) COM PREPARO EM BETONEIRA 400L. AF_06/2014 | C118: M2 | D118: 341.98 | E118: 8.59 | F118: =ROUND(D118*E118,2) -> 2937.61
A119: 4.12.2 | B119: EMBOÇO OU MASSA ÚNICA EM ARGAMASSA TRAÇO 1:2:8, PREPARO MECÂNICO COM BETONEIRA 400 L, APLICADA MANUALMENTE EM PANOS DE FACHADA COM PRESENÇA DE VÃOS, ESPESSURA DE 25 MM. AF_06/2014 | C119: M2 | D119: 341.98 | E119: 55.05 | F119: 18826
A120: 4.12.3 | B120: REVESTIMENTO CERÂMICO PARA PAREDES COM PLACAS TIPO PORCELANATO DE DIMENSÕES 90X90 CM APLICADA EM AMBIENTES INTERNOS - MODELO ELIANE LIMESTONE AREIA POL OU SIMILAR | C120: M2 | D120: 516.97 | E120: 197.45 | F120: 102075.73
A121: 4.12.4 | B121: REVESTIMENTO CERÂMICO PARA PAREDES COM PLACAS TIPO PORCELANATO DE DIMENSÕES 14,5X90 CM APLICADA EM AMBIENTES INTERNOS - MODELO ELIANE LIMESTONE AREIA POL OU SIMILAR | C121: M2 | D121: 94.27755 | E121: 409.33 | F121: 38590.63
A122: 4.12.5 | B122: REVESTIMENTO CERAMICO PORTOBELLO GLACIE WHITE 30X60CM, INCLUSO E REJUNTE - FORNECIMENTO E INSTALAÇÃO (AZULEJO FORNECIDO PELO SESI) | C122: M2 | D122: 109.35 | E122: 84.59 | F122: 9249.92
A123: 4.12.6 | B123: REVESTIMENTO CERÂMICO PARA PAREDES EXTERNAS EM PASTILHAS JATOBÁ DE PORCELANA 5 X 5 CM (PLACAS DE 30 X 30 CM), ALINHADAS A PRUMO, JD. 4102 - PÉROLA OCEANO (JATOBÁ OU SIMILAR) | C123: M2 | D123: 17.11 | E123: 202.77 | F123: 3469.39
A125: 4.13 | B125: GRANITO | F125: =SUBTOTAL(9,F126:F129) -> 7848.41
A126: 4.13.1 | B126: BANCADA DE GRANITO CINZA ANDORINHA, SOBRE MÃOS-FRANCESAS METÁLICAS, ESP=2cm COM FRONTÃO 20cm, SAIA COM ACAB. DE MEIA ESQUADRIA E REFORÇO INFERIOR DE BORDA E CORTE PARA INST. DE CUBAS DE LOUÇA OVAL DE EMBUTIR LOCAL | C126: M2 | D126: 2.88 | E126: 782.35 | F126: =ROUND(D126*E126,2) -> 2253.17
A127: 4.13.2 | B127: PEITORIL LINEAR EM GRANITO OU MÁRMORE, L = 20CM, COMPRIMENTO DE ATÉ 2M, ASSENTADO COM ARGAMASSA 1:6 COM ADITIVO. AF_11/2020 | C127: M | D127: 10.6 | E127: 132.84 | F127: 1408.1
A128: 4.13.3 | B128: DIVISORIAS SANITARIAS DE BOXES E MICTÓRIOS DE GRANITO CINZA ANDORINHA E=3 CM ASSENTADA C/ ARGAMASSA, NO TRACO 1:4, INCLUSIVE MASSA PLÁSTICA E FERRAGENS | C128: M2 | D128: 6 | E128: 672.62 | F128: 4035.72
A129: 4.13.4 | B129: SOLEIRA EM GRANITO, LARGURA 15 CM, ESPESSURA 2,0 CM. AF_09/2020 | C129: M | D129: 1.6 | E129: 94.64 | F129: 151.42
A131: 4.14 | B131: FORRO | F131: =SUBTOTAL(9,F132:F133) -> 48908.64
A132: 4.14.1 | B132: FORRO ACÚSTICO DE FIBRA MINERAL 625 MM X 625 MM TEGULAR, INSTALADOS EM PERFIL "T", SUPENSO POR PENDURAIS EM ARRAME GALVANIZADO A CADA 1250X1250MM (PLACAS DE FORRO FORNECIDO PELO SESI) | C132: M2 | D132: 1227.07 | E132: 38.88 | F132: =ROUND(D132*E132,2) -> 47708.48
A133: 4.14.2 | B133: FORRO DE PVC, LISO, PARA AMBIENTES COMERCIAIS, INCLUSIVE ESTRUTURA DE FIXAÇÃO. AF_05/2017_P | C133: M2 | D133: 13.19 | E133: 90.99 | F133: 1200.16
A135: 4.15 | B135: PINTURA | F135: =SUBTOTAL(9,F136:F141) -> 70375.4
A136: 4.15.1 | B136: APLICAÇÃO DE FUNDO SELADOR ACRÍLICO EM PAREDES, UMA DEMÃO. AF_06/2014 | C136: M2 | D136: 1354.62 | E136: 2.06 | F136: =ROUND(D136*E136,2) -> 2790.52
A137: 4.15.2 | B137: APLICAÇÃO E LIXAMENTO DE MASSA LÁTEX EM PAREDES, DUAS DEMÃOS. AF_06/2014 | C137: M2 | D137: 335.8 | E137: 14.96 | F137: 5023.57
A138: 4.15.3 | B138: APLICAÇÃO MANUAL DE PINTURA COM TINTA LÁTEX ACRÍLICA EM PAREDES, DUAS DEMÃOS. AF_06/2014 | C138: M2 | D138: 1354.62 | E138: 15 | F138: =ROUND(D138*E138,2) -> 20319.3
A139: 4.15.4 | B139: TEXTURA ACRÍLICA, APLICAÇÃO MANUAL EM PAREDE, UMA DEMÃO. AF_09/2016 | C139: M2 | D139: 961.88 | E139: 15.6 | F139: 15005.33
A140: 4.15.5 | B140: APLICAÇÃO MANUAL DE TINTA LÁTEX ACRÍLICA EM PAREDE EXTERNAS, DUAS DEMÃOS. | C140: M2 | D140: 961.88 | E140: 15.82 | F140: 15216.94
A141: 4.15.6 | B141: APLICAÇÃO E LIXAMENTO DE MASSA LÁTEX EM PAREDES, UMA DEMÃO. AF_06/2014 | C141: M2 | D141: 1107.81 | E141: 10.85 | F141: 12019.74
A143: 4.16 | B143: CALÇAMENTO, PÁTIOS E PASSARELAS | F143: =SUBTOTAL(9,F144) -> 0
A145: 4.17 | B145: SERVIÇOS COMPLEMENTARES | F145: =SUBTOTAL(9,F146:F149) -> 66388.81
A146: 4.17.1 | B146: ESPELHO CRISTAL E=4MM, FORNECIMENTO E INSTALAÇÃO | C146: M2 | D146: 15.57 | E146: 549.8 | F146: =ROUND(D146*E146,2) -> 8560.39
A147: 4.17.2 | B147: FORNECIMENTO E INSTALAÇÃO DE QUADRO/LOUSA EM VIDRO TEMPERADO LEITOSO 6MM ADESIVADAS COM PELICULA DE SEGURANÇA BRANCA, INCLUSIVE APARADOR PARA CANETA PILOTO 30X10CM, COM BOTOES DE CABECA DE LATAO CROMADO | C147: M2 | D147: 65.56 | E147: 379.21 | F147: 24861.01
A148: 4.17.3 | B148: FORNECIMENTO E INSTALAÇÃO DE GUARDA CORPO H=1,30M, COLUNAS DIÂM. 1 1/2" A CADA 1M, TUBO HORIZONTAL SUPERIOR E INFERIOR DE DIÂM 1 1/2", TUBOS VERTICAIS 3/4" A CADA 11CM E COM CORRIMÃO DUPLO DE Ø 1 1/2" COM H=0,92CM/H=0,70CM, EM AÇO INÓX - CONFORME PROJETO E MEMORIAL DE ACESSIBILIDADE | C148: M | D148: 29.62 | E148: 998.08 | F148: 29563.13
A149: 4.17.4 | B149: FORNECIMENTO E INSTALAÇÃO CORRIMÃO DUPLO, H=0,92M E H=0,70M, DIÂMETRO EXTERNO = 1 1/2", EM AÇO INOX, FIXADO EM PISO. | C149: M | D149: 6.6 | E149: 515.8 | F149: 3404.28
A151: 4.18 | B151: INSTALAÇÕES DE SPDA | F151: =SUBTOTAL(9,F152) -> 0
A153: 4.19 | B153: INSTALAÇÃO DE COMBATE A INCÊNDIO | F153: =SUBTOTAL(9,F154) -> 0
A155: 4.20 | B155: INSTALAÇÕES ELÉTRICA | F155: =SUBTOTAL(9,F156:F377) -> 186041.83
A156: 4.20.1 | B156: INSTALAÇÕES ELÉTRICA BAIXA TENSÃO | F156: =SUBTOTAL(9,F157:F244) -> 125665.39
A157: 4.20.1.1 | B157: ACESSÓRIOS P/ELETRODUTO E USO GERAL | F157: =SUBTOTAL(9,F158:F179) -> 3453.67
A158: 4.20.1.1.1 | B158: FORNECIMENTO E INSTALAÇÃO DE ABRAÇADEIRA DE AÇO, TIPO D, 3/4", COM CUNHA | C158: UN | D158: 105 | E158: 6.59 | F158: =ROUND(D158*E158,2) -> 691.95
A159: 4.20.1.1.2 | B159: FORNECIMENTO E INSTALAÇÃO DE ABRAÇADEIRA DE AÇO, TIPO D, 1", COM CUNHA | C159: UN | D159: 50 | E159: 6.75 | F159: 337.5
A160: 4.20.1.1.3 | B160: FORNECIMENTO E INSTALAÇÃO DE BUCHA E ARRUELA ALUMÍNIO FUNDIDO PARA ELETRODUTO (ZAMAK) 3/4" | C160: UN | D160: 50 | E160: 2.03 | F160: 101.5
A161: 4.20.1.1.4 | B161: FORNECIMENTO E INSTALAÇÃO DE BUCHA E ARRUELA ALUMÍNIO FUNDIDO PARA ELETRODUTO (ZAMAK) 1" | C161: UN | D161: 25 | E161: 2.41 | F161: 60.25
A162: 4.20.1.1.5 | B162: FORNECIMENTO E INSTALAÇÃO DE BOX RETO PARA ELETRODUTO 3/4" | C162: UN | D162: 10 | E162: 5.68 | F162: 56.8
A163: 4.20.1.1.6 | B163: FORNECIMENTO E INSTALAÇÃO DE BOX RETO PARA ELETRODUTO 1" | C163: UN | D163: 10 | E163: 8.04 | F163: 80.4
A164: 4.20.1.1.7 | B164: CONDULETE DE ALUMÍNIO, TIPO X, PARA ELETRODUTO DE AÇO GALVANIZADO DN 20 MM (3/4''), APARENTE - FORNECIMENTO E INSTALAÇÃO. AF_11/2016_P | C164: UN | D164: 0 | E164: 38.12 | F164: 0
A165: 4.20.1.1.8 | B165: FORNECIMENTO E INSTALAÇÃO DE PRENSA CABO 1/2" | C165: UN | D165: 5 | E165: 30.33 | F165: 151.65
A166: 4.20.1.1.9 | B166: CAIXA OCTOGONAL 4" X 4" PVC - FORNECIMENTO E INSTALAÇÃO. | C166: UN | D166: 20 | E166: 11.42 | F166: 228.4
A167: 4.20.1.1.10 | B167: CAIXA RETANGULAR 4" X 2" PVC - FORNECIMENTO E INSTALAÇÃO. | C167: UN | D167: 12 | E167: 8.96 | F167: 107.52
A168: 4.20.1.1.11 | B168: FORNECIMENTO E INSTALAÇÃO DE PLACA CEGA PVC 4X2" | C168: UN | D168: 2 | E168: 4.82 | F168: 9.64
A169: 4.20.1.1.12 | B169: FORNECIMENTO E INSTALAÇÃO DE SAÍDA LATERAL PERFILADO P/ ELETRODUTO 3/4" | C169: UN | D169: 5 | E169: 18.51 | F169: 92.55
A170: 4.20.1.1.13 | B170: FORNECIMENTO E INSTALAÇÃO DE SAÍDA LATERAL PERFILADO P/ ELETRODUTO 1" | C170: UN | D170: 1 | E170: 14.87 | F170: 14.87
A171: 4.20.1.1.14 | B171: FORNECIMENTO E INSTALAÇÃO DE ARAME AÇO GALVANIZADO 18 BWG, 1,24MM (0,009 KG/M) | C171: M | D171: 111 | E171: 0.77 | F171: 85.47
A172: 4.20.1.1.15 | B172: FORNECIMENTO E INSTALAÇÃO DE ARRUELA LISA GALVANIZADA 1/4" | C172: UN | D172: 55 | E172: 0.59 | F172: 32.45
A173: 4.20.1.1.16 | B173: FORNECIMENTO E INSTALAÇÃO DE BUCHA / PARAFUSO S8 | C173: UN | D173: 110 | E173: 4.44 | F173: 488.4
A174: 4.20.1.1.17 | B174: FORNECIMENTO E INSTALAÇÃO DE BUCHA / PARAFUSO S10 | C174: UN | D174: 2 | E174: 4.75 | F174: 9.5
A175: 4.20.1.1.18 | B175: FORNECIMENTO E INSTALAÇÃO DE CHUMBADOR PARABOLT AÇO 1/4" X 3" | C175: UN | D175: 12 | E175: 13.59 | F175: 163.08
A176: 4.20.1.1.19 | B176: FORNECIMENTO E INSTALAÇÃO DE PARAFUSO GALVAN. CABEÇA LENTILHA 1/4X5/8" | C176: UN | D176: 110 | E176: 4.93 | F176: 542.3
A177: 4.20.1.1.20 | B177: FORNECIMENTO E INSTALAÇÃO DE PARAFUSO GALVAN. CABEÇA LOSANGULAR 1/4"X1" - AUTO TRAVANTE PERFILADO | C177: UN | D177: 12 | E177: 6.88 | F177: 82.56
A178: 4.20.1.1.21 | B178: FORNECIMENTO E INSTALAÇÃO DE PORCA SEXTAVADA GALVAN. 1/4" | C178: UN | D178: 24 | E178: 0.42 | F178: 10.08
A179: 4.20.1.1.22 | B179: FORNECIMENTO E INSTALAÇÃO DE VERGALHÃO GALVANIZADO ROSCA TOTAL 1/4" | C179: M | D179: 6 | E179: 17.8 | F179: 106.8
A181: 4.20.1.2 | B181: CABOS | F181: =SUBTOTAL(9,F182:F186) -> 64284.96
A182: 4.20.1.2.1 | B182: FORNECIMENTO E INSTALAÇÃO DE CABO DE COBRE FLEXÍVEL ISOL. TERMOPLASTICO ATOX 750V - 2,5 MM² (TP SINTENAX PIRELLI OU SIMILAR) | C182: M | D182: 6500 | E182: 4.83 | F182: =ROUND(D182*E182,2) -> 31395
A183: 4.20.1.2.2 | B183: FORNECIMENTO E INSTALAÇÃO DE CABO DE COBRE FLEXÍVEL ISOL. TERMOPLASTICO ATOX 750V - 4 MM² (TP SINTENAX PIRELLI OU SIMILAR) | C183: M | D183: 1800 | E183: 7.06 | F183: 12708
A184: 4.20.1.2.3 | B184: FORNECIMENTO E INSTALAÇÃO DE CABO DE COBRE FLEXÍVEL ISOLADO, 35 MM², ANTI-CHAMA 0,6/1,0 KV - ATOX | C184: M | D184: 39 | E184: 43.02 | F184: 1677.78
A185: 4.20.1.2.4 | B185: FORNECIMENTO E INSTALAÇÃO DE CABO DE COBRE FLEXÍVEL ISOLADO, 70 MM², ANTI-CHAMA 0,6/1,0 KV - ATOX | C185: M | D185: 156 | E185: 117.68 | F185: 18358.08
A186: 4.20.1.2.5 | B186: FORNECIMENTO E INSTALAÇÃO DE CABO DE COBRE PP 3X2,5MM² - ISOL. TERMOPLASTICO ATOX 750V | C186: M | D186: 30 | E186: 4.87 | F186: 146.1
A188: 4.20.1.3 | B188: DISPOSITIVO ELÉTRICO EMBUTIDO | F188: =SUBTOTAL(9,F189:F198) -> 5656.72
A189: 4.20.1.3.1 | B189: CAMPAINHA CIGARRA (1 MÓDULO), 10A/250V, INCLUINDO SUPORTE E PLACA - FORNECIMENTO E INSTALAÇÃO. AF_09/2017 | C189: UN | D189: 2 | E189: 41.45 | F189: =ROUND(D189*E189,2) -> 82.9
A190: 4.20.1.3.2 | B190: INTERRUPTOR PULSADOR CAMPAINHA (1 MÓDULO), 10A/250V, INCLUINDO SUPORTE E PLACA - FORNECIMENTO E INSTALAÇÃO. AF_09/2017 | C190: UN | D190: 2 | E190: 23.23 | F190: 46.46
A191: 4.20.1.3.3 | B191: INTERRUPTOR SIMPLES (1 MÓDULO), 10A/250V, INCLUINDO SUPORTE E PLACA - FORNECIMENTO E INSTALAÇÃO. AF_12/2015 | C191: UN | D191: 22 | E191: 24.35 | F191: 535.7
A192: 4.20.1.3.4 | B192: INTERRUPTOR SIMPLES (2 MÓDULOS), 10A/250V, INCLUINDO SUPORTE E PLACA - FORNECIMENTO E INSTALAÇÃO. AF_12/2015 | C192: UN | D192: 12 | E192: 38.52 | F192: 462.24
A193: 4.20.1.3.5 | B193: INTERRUPTOR PARALELO (1 MÓDULO), 10A/250V, INCLUINDO SUPORTE E PLACA - FORNECIMENTO E INSTALAÇÃO. AF_12/2015 | C193: UN | D193: 2 | E193: 30.09 | F193: 60.18
A194: 4.20.1.3.6 | B194: INTERRUPTOR PARALELO (2 MÓDULOS), 10A/250V, INCLUINDO SUPORTE E PLACA - FORNECIMENTO E INSTALAÇÃO. AF_12/2015 | C194: UN | D194: 2 | E194: 49.97 | F194: 99.94
A195: 4.20.1.3.7 | B195: INTERRUPTOR SIMPLES (1 MÓDULO) COM 1 TOMADA DE EMBUTIR 2P+T 10 A, INCLUINDO SUPORTE E PLACA - FORNECIMENTO E INSTALAÇÃO. AF_12/2015 | C195: UN | D195: 4 | E195: 43.09 | F195: 172.36
A196: 4.20.1.3.8 | B196: TOMADA DE EMBUTIR (1 MÓDULO), 2P+T 10 A, INCLUINDO SUPORTE E PLACA - FORNECIMENTO E INSTALAÇÃO. AF_12/2015 | C196: UN | D196: 94 | E196: 25.73 | F196: 2418.62
A197: 4.20.1.3.9 | B197: TOMADA DE EMBUTIR (1 MÓDULO), 2P+T 20 A, INCLUINDO SUPORTE E PLACA - FORNECIMENTO E INSTALAÇÃO. AF_12/2015 | C197: UN | D197: 12 | E197: 27.91 | F197: 334.92
A198: 4.20.1.3.10 | B198: TOMADA DE EMBUTIR (2 MÓDULOS), 2P+T 10 A, INCLUINDO SUPORTE E PLACA - FORNECIMENTO E INSTALAÇÃO. AF_12/2015 | C198: UN | D198: 35 | E198: 41.24 | F198: 1443.4
A200: 4.20.1.4 | B200: DISPOSITIVO DE PROTEÇÃO | F200: =SUBTOTAL(9,F201:F209) -> 7770.51
A201: 4.20.1.4.1 | B201: DISJUNTOR MONOPOLAR TIPO DIN, CORRENTE NOMINAL DE 10A - FORNECIMENTO E INSTALAÇÃO. AF_10/2020 | C201: UN | D201: 11 | E201: 13.15 | F201: =ROUND(D201*E201,2) -> 144.65
A202: 4.20.1.4.2 | B202: DISJUNTOR MONOPOLAR TIPO DIN, CORRENTE NOMINAL DE 16A - FORNECIMENTO E INSTALAÇÃO. AF_10/2020 | C202: UN | D202: 25 | E202: 13.72 | F202: 343
A203: 4.20.1.4.3 | B203: DISJUNTOR BIPOLAR TIPO DIN, CORRENTE NOMINAL DE 16A - FORNECIMENTO E INSTALAÇÃO. AF_10/2020 | C203: UN | D203: 4 | E203: 67.28 | F203: 269.12
A204: 4.20.1.4.4 | B204: FORNECIMENTO E INSTALAÇÃO DE DISJUNTOR TIPO DIN/IEC, TRIPOLAR 100 A (REF.: MARCA SIEMENS, WEG OU SIMILAR) | C204: UN | D204: 1 | E204: 254.67 | F204: 254.67
A205: 4.20.1.4.5 | B205: FORNECIMENTO E INSTALAÇÃO DE DISJUNTOR TRIPOLAR TERMOMAGNÉTICO EM CAIXA MOLDADA - 175A (REF.: MARCA SIEMENS, WEG OU SIMILAR) | C205: UN | D205: 2 | E205: 661.22 | F205: 1322.44
A206: 4.20.1.4.6 | B206: DISJUNTOR TERMOMAGNÉTICO TRIPOLAR , CORRENTE NOMINAL DE 200A - FORNECIMENTO E INSTALAÇÃO. AF_10/2020 | C206: UN | D206: 1 | E206: 733.23 | F206: 733.23
A207: 4.20.1.4.7 | B207: DISJUNTOR TERMOMAGNÉTICO TRIPOLAR , CORRENTE NOMINAL DE 600A - FORNECIMENTO E INSTALAÇÃO. AF_10/2020 | C207: UN | D207: 1 | E207: 2558.36 | F207: 2558.36
A208: 4.20.1.4.8 | B208: FORNECIMENTO E INSTALAÇÃO DE DISPOSITIVO DR, 2 POLOS, SENSIBILIDADE DE 30 MA, CORRENTE DE 25 A, TIPO AC | C208: UN | D208: 6 | E208: 186.52 | F208: 1119.12
A209: 4.20.1.4.9 | B209: FORNECIMENTO E INSTALAÇÃO DE DISPOSITIVO DPS, 1 POLO, 175 V, 45 KA | C209: UN | D209: 8 | E209: 128.24 | F209: 1025.92
A211: 4.20.1.5 | B211: ELETROCALHAS / PERFILADOS | F211: =SUBTOTAL(9,F212:F216) -> 783.26
A212: 4.20.1.5.1 | B212: FORNECIMENTO E INSTALAÇÃO DESAÍDA LATERAL DE ELETROCALHA P/PERFILADO 38X38MM | C212: UN | D212: 1 | E212: 17.02 | F212: =ROUND(D212*E212,2) -> 17.02
A213: 4.20.1.5.2 | B213: FORNECIMENTO E INSTALAÇÃO DE EMENDA INTERNA TIPO "I" P/ PERFILADO METÁLICO 38X38MM - CHAPA 18 | C213: UN | D213: 2 | E213: 20.4 | F213: 40.8
A214: 4.20.1.5.3 | B214: FORNECIMENTO E INSTALAÇÃO DE EMENDA INTERNA TIPO "L" P/ PERFILADO METÁLICO 38X38MM - CHAPA 18 | C214: UN | D214: 1 | E214: 22.84 | F214: 22.84
A215: 4.20.1.5.4 | B215: FORNECIMENTO E INSTALAÇÃO DE PERFILADO PERFURADO METÁLICO 38X38MM, COM TAMPA - CHAPA 18 | C215: M | D215: 15 | E215: 30.59 | F215: 458.85
A216: 4.20.1.5.5 | B216: FORNECIMENTO E INSTALAÇÃO DE SUPORTE CURTO P/ PERFILADO METÁLICO 38X38MM | C216: UN | D216: 15 | E216: 16.25 | F216: 243.75
A218: 4.20.1.6 | B218: ELETRODUTOS | F218: =SUBTOTAL(9,F219:F221) -> 754.81
A219: 4.20.1.6.1 | B219: ELETRODUTO FLEXÍVEL CORRUGADO, PVC, DN 25 MM (3/4") - FORNECIMENTO E INSTALAÇÃO. | C219: M | D219: 100 | E219: 6.19 | F219: =ROUND(D219*E219,2) -> 619
A220: 4.20.1.6.2 | B220: ELETRODUTO FLEXÍVEL CORRUGADO, PEAD, DN 50 (1 ½) - FORNECIMENTO E INSTALAÇÃO. AF_04/2016 | C220: M | D220: 12 | E220: 7.73 | F220: 92.76
A221: 4.20.1.6.3 | B221: ELETRODUTO RÍGIDO ROSCÁVEL, PVC, DN 25 MM (3/4") - FORNECIMENTO E INSTALAÇÃO. | C221: M | D221: 5 | E221: 8.61 | F221: 43.05
A223: 4.20.1.7 | B223: LUMINÁRIAS E ACESSÓRIOS | F223: =SUBTOTAL(9,F224:F225) -> 27811.3
A224: 4.20.1.7.1 | B224: FORNECIMENTO E INSTALAÇÃO DE LUMINÁRIA QUADRADA ALETAS REFLEXIVAS DE EMBUTIR, MODULAR 60X60CM, COM 4 LÂMPADAS TUBULARES LED T8 9W, TEMPERATURA DE COR 6.000K, TOTAL DE FLUXO LUMINOSO ENTRE 3.200 A 4.000 LUMENS, COM CORPO EM CHAPA METÁLICA PINTADA ELETROSTATICAMENTE, INCLUSIVE SOQUETES T8 E ACESSÓRIOS DE FIXAÇÃO (EXCLUSIVE LUMINÁRIA, FORNECIDA PELO SESI MT) | C224: UN | D224: 203 | E224: 127.1 | F224: =ROUND(D224*E224,2) -> 25801.3
A225: 4.20.1.7.2 | B225: FORNECIMENTO E INSTALAÇÃO DE LUMINÁRIA QUADRADA ALETAS REFLEXIVAS DE SOBREPOR, MODULAR 60X60CM, COM 4 LÂMPADAS TUBULARES LED T8 9W, TEMPERATURA DE COR 6.000K, TOTAL DE FLUXO LUMINOSO ENTRE 3.200 A 4.000 LUMENS, COM CORPO EM CHAPA METÁLICA PINTADA ELETROST | C225: UN | D225: 4 | E225: 502.5 | F225: 2010
A227: 4.20.1.8 | B227: QUADRO DE DISTRIBUIÇÃO | F227: =SUBTOTAL(9,F228:F230) -> 13496.27
A228: 4.20.1.8.1 | B228: FORNECIMENTO E INSTALAÇÃO DE QUADRO MONTADO DE SOBREPOR, EM CHAPA PINTADA, COM BARRAMENTO TRIFÁSICO DE 800A, CAPACIDADE PARA: 04 DISJ. DE 150A A 225A CAIXA MOLDADA + 04 DISJ. DE 80A A 125A CAIXA MOLDADA + 80 MÓDULOS TIPO DIN, INCLUSIVE BARRAMENTO NEUTRO | C228: UN | D228: 1 | E228: 11306.01 | F228: =ROUND(D228*E228,2) -> 11306.01
A229: 4.20.1.8.2 | B229: FORNECIMENTO E INSTALAÇÃO DE QUADRO DISTRIBUIÇÃO DE EMBUTIR, EM CHAPA PINTADA, COM BARRAMENTO TRIFÁSICO DE 225A, CAPACIDADE PARA: 56 DISJUNTORES UNIPOLARES TIPO DIN, INCLUSIVE BARRAMENTO NEUTRO E TERRA, COMPLETO, COM ACESSÓRIOS DE MONTAGEM, ISOLAÇÃO E PRO | C229: UN | D229: 1 | E229: 1904.88 | F229: 1904.88
A230: 4.20.1.8.3 | B230: FORNECIMENTO E INSTALAÇÃO DE QUADRO DISTRIBUIÇÃO DE EMBUTIR, EM PVC BRANCO, SEM BARRAMENTO, CAPACIDADE PARA: 24 DISJUNTORES UNIPOLARES TIPO DIN, SEM BARRAMENTO NEUTRO E TERRA, PARA INSTALAÇÃO DE DISPOSITIVOS RESIDUAIS, EXCETO DISJUNTORES. | C230: UN | D230: 1 | E230: 285.38 | F230: 285.38
A232: 4.20.1.9 | B232: TERMINAIS | F232: =SUBTOTAL(9,F233:F244) -> 1653.89
A233: 4.20.1.9.1 | B233: FORNECIMENTO E INSTALAÇÃO DE TERMINAL DE COMPRESSÃO 1,5 - 2,5MM² | C233: UN | D233: 94 | E233: 4.49 | F233: =ROUND(D233*E233,2) -> 422.06
... 291 more rows

Sheet 5_BLOCO D (hidden)
A1: PLANILHA ORÇAMENTARIA | D1: SPN-FF-003
D3: Folha: 1 de 1 | E3: Revisão: 02 | F3: Data: 07/10/19
A5: SESI - SERVIÇO SOCIAL DA INDUSTRIA - DR/MT
A6: OBRA: CONTRATAÇÃO DE EMPRESA ESPECIALIZADA PARA CONTINUIDADE DA EXECUÇÃO DA OBRA DE REFORMA E AMPLIAÇÃO DA UNIDADE DO SESI ESCOLA VÁRZEA GRANDE/MT.
A7: UNIDADE OPERACIONAL: SESI ESCOLA VÁRZEA GRANDE
A8: ENDEREÇO: AV. DOM ORLANDO CHAVES, N.º 1.086, PONTE NOVA - CRISTO REI CIDADE: VÁRZEA GRANDE/MT
A9: CONSTRUTORA:
A10: RESPONSÁVEL TÉCNICO:
A11: BASE SINAPI UTILIZADA: 06/2021
A12: ITEM | B12: DESCRIÇÃO | C12: UNID. | D12: QUANT. | E12: Valor UNIT. (R$) | F12: Valor Total (R$)
A14: 5 | B14: BLOCO D
A16: 5.0 | B16: DEMOLIÇÕES E RETIRADAS | F16: =SUBTOTAL(9,F17:F28) -> 27795.95
A17: 5.0.1 | B17: DEMOLIÇÃO | F17: =SUBTOTAL(9,F18:F28) -> 27795.95
A18: 5.0.1.1 | B18: DEMOLIÇÃO DE ALVENARIA DE BLOCO FURADO, DE FORMA MANUAL, SEM REAPROVEITAMENTO. AF_12/2017 | C18: M3 | D18: 24.53 | E18: 49.97 | F18: =ROUND(D18*E18,2) -> 1225.76
A19: 5.0.1.2 | B19: REMOÇÃO DE PINTURA LÁTEX OU TEXTURA (RASPAGEM E/OU LIXAMENTO E/OU ESCOVAÇÃO | C19: M2 | D19: 264.23 | E19: 7.66 | F19: 2024
A20: 5.0.1.3 | B20: DEMOLIÇÃO MANUAL DE PISO EM CONCRETO SIMPLES INCLUSIVE LASTRO DE CONCRETO | C20: M2 | D20: 90.53 | E20: 34.07 | F20: 3084.36
A21: 5.0.1.4 | B21: REMOÇÃO DE PORTAS, DE FORMA MANUAL, SEM REAPROVEITAMENTO, ARMAZENAMENTO EM LOCAL INDICADO PELA FISCALIZAÇÃO | C21: M2 | D21: 6.3 | E21: 8.14 | F21: 51.28
A22: 5.0.1.5 | B22: REMOÇÃO DE JANELAS, DE FORMA MANUAL, SEM REAPROVEITAMENTO, ARMAZENAMENTO EM LOCAL INDICADO PELA FISCALIZAÇÃO | C22: M2 | D22: 10.8 | E22: 30.15 | F22: 325.62
A23: 5.0.1.6 | B23: DEMOLIÇÃO DE PAVIMENTO INTERTRAVADO, DE FORMA MANUAL, COM REAPROVEITAMENTO. AF_12/2017 | C23: M2 | D23: 457.66 | E23: 14 | F23: 6407.24
A24: 5.0.1.7 | B24: DEMOLIÇÃO DE PILARES E VIGAS EM CONCRETO ARMADO, DE FORMA MECANIZADA COM MARTELETE, SEM REAPROVEITAMENTO. AF_12/2017 | C24: M3 | D24: 9.66 | E24: 243.62 | F24: =ROUND(D24*E24,2) -> 2353.37
A25: 5.0.1.8 | B25: DEMOLIÇÃO DE LAJES, DE FORMA MECANIZADA COM MARTELETE, SEM REAPROVEITAMENTO. AF_12/2017 | C25: M3 | D25: 20.7365 | E25: 106.24 | F25: 2203.05
A26: 5.0.1.9 | B26: DEMOLIÇÃO DE PISO, SOLEIRAS, BANCADAS EM REVESTIDO DE GRANITO | C26: M2 | D26: 27.2 | E26: 20.84 | F26: 566.85
A27: 5.0.1.10 | B27: DEMOLIÇÃO DE ARGAMASSAS, DE FORMA MANUAL, SEM REAPROVEITAMENTO. AF_12/2017 | C27: M2 | D27: 296.58 | E27: 2.91 | F27: 863.05
A28: 5.0.1.11 | B28: BOTA FORA DE MATERIAL DESCARTADO, D.M.T. = 10 km - (CARGA, TRANSPORTE E DESCARGA MECÂNICA) | C28: M3 | D28: 148.14 | E28: 58.67 | F28: 8691.37
A30: 5.1 | B30: INSTALAÇÕES DE CANTEIRO | F30: =SUBTOTAL(9,F31) -> 0
A32: 5.2 | B32: ADMINISTRAÇÃO | F32: =SUBTOTAL(9,F33) -> 0
A34: 5.3 | B34: TERRAPLENAGEM | F34: =SUBTOTAL(9,F35) -> 0
A36: 5.4 | B36: FUNDAÇÃO | F36: =SUBTOTAL(9,F37:F90) -> 188371.93
A37: 5.4.1 | B37: FUNDAÇÃO - AMPLIAÇÃO SALA DE AULA 18 | F37: =SUBTOTAL(9,F38:F53) -> 46482.33
A38: 5.4.1.1 | B38: ESCAVAÇÃO MECANIZADA PARA BLOCO DE COROAMENTO OU SAPATA, SEM PREVISÃO DE FÔRMA, COM RETROESCAVADEIRA. AF_06/2017 | C38: M3 | D38: 9.47 | E38: 91.26 | F38: =ROUND(D38*E38,2) -> 864.23
A39: 5.4.1.2 | B39: BOTA FORA DE MATERIAL DESCARTADO, D.M.T. = 10 km - (CARGA, TRANSPORTE E DESCARGA MECÂNICA) | C39: M3 | D39: 6.7925 | E39: 58.67 | F39: =ROUND(D39*E39,2) -> 398.52
A40: 5.4.1.3 | B40: REATERRO MANUAL DE VALAS COM COMPACTAÇÃO MECANIZADA. AF_04/2016 | C40: M3 | D40: 0.4725 | E40: 27.04 | F40: =ROUND(D40*E40,2) -> 12.78
A41: 5.4.1.4 | B41: ESTACAS - ESTACAS RAIZ DE Ø31cm EM SOLO INCLUSIVE A INJENÇÃO DE ARGAMASSA FCK>20 MPA, INCLUSIVE LANÇAMENTO DE ARMAÇÃO / CONSUMO MÍNIMO DE CIMENTO - 600 kg/m³. | C41: M | D41: 56 | E41: 474.01 | F41: =ROUND(D41*E41,2) -> 26544.56
A42: 5.4.1.5 | B42: ESTACAS - ARMAÇÃO DE BLOCO, VIGA BALDRAME E SAPATA UTILIZANDO AÇO CA-60 DE 5 MM - MONTAGEM. AF_06/2017 | C42: KG | D42: 40 | E42: 25.68 | F42: 1027.2
A43: 5.4.1.6 | B43: ESTACAS - ARMAÇÃO DE BLOCO, VIGA BALDRAME OU SAPATA UTILIZANDO AÇO CA-50 DE 10 MM - MONTAGEM. AF_06/2017 | C43: KG | D43: 104 | E43: 21.99 | F43: 2286.96
A44: 5.4.1.7 | B44: BLOCOS - LASTRO COM MATERIAL GRANULAR (PEDRA BRITADA N.1 E PEDRA BRITADA N.2), APLICADO EM PISOS OU LAJES SOBRE SOLO, ESPESSURA DE *10 CM*. AF_07/2019 | C44: M3 | D44: 0.35 | E44: 142.05 | F44: 49.72
A45: 5.4.1.8 | B45: BLOCOS - FABRICAÇÃO, MONTAGEM E DESMONTAGEM DE FÔRMA PARA BLOCO DE COROAMENTO, EM MADEIRA SERRADA, E=25 MM, 1 UTILIZAÇÃO. AF_06/2017 | C45: M2 | D45: 13.72 | E45: 165.28 | F45: 2267.64
A46: 5.4.1.9 | B46: BLOCOS - ARMAÇÃO DE BLOCO, VIGA BALDRAME OU SAPATA UTILIZANDO AÇO CA-50 DE 10 MM - MONTAGEM. AF_06/2017 | C46: KG | D46: 157 | E46: 21.99 | F46: 3452.43
A47: 5.4.1.10 | B47: BLOCOS - CONCRETAGEM DE BLOCOS DE COROAMENTO E VIGAS BALDRAMES, FCK 30 MPA, COM USO DE BOMBA  LANÇAMENTO, ADENSAMENTO E ACABAMENTO. AF_06/2017 | C47: M3 | D47: 2.4 | E47: 693.9 | F47: 1665.36
A48: 5.4.1.11 | B48: VIGA BALDRAME - LASTRO COM MATERIAL GRANULAR (PEDRA BRITADA N.1 E PEDRA BRITADA N.2), APLICADO EM PISOS OU LAJES SOBRE SOLO, ESPESSURA DE *10 CM*. AF_07/2019 | C48: M3 | D48: 0.6729 | E48: 142.05 | F48: =ROUND(D48*E48,2) -> 95.59
A49: 5.4.1.12 | B49: VIGA BALDRAME - FABRICAÇÃO, MONTAGEM E DESMONTAGEM DE FÔRMA PARA VIGA BALDRAME, EM MADEIRA SERRADA, E=25 MM, 1 UTILIZAÇÃO. AF_06/2017 | C49: M2 | D49: 23.55 | E49: 148.03 | F49: 3486.11
A50: 5.4.1.13 | B50: VIGA BALDRAME - ARMAÇÃO DE BLOCO, VIGA BALDRAME E SAPATA UTILIZANDO AÇO CA-60 DE 5 MM - MONTAGEM. AF_06/2017 | C50: KG | D50: 31 | E50: 25.68 | F50: 796.08
A51: 5.4.1.14 | B51: VIGA BALDRAME - ARMAÇÃO DE BLOCO, VIGA BALDRAME OU SAPATA UTILIZANDO AÇO CA-50 DE 10 MM - MONTAGEM. AF_06/2017 | C51: KG | D51: 39 | E51: 21.99 | F51: 857.61
A52: 5.4.1.15 | B52: VIGA BALDRAME - ARMAÇÃO DE BLOCO, VIGA BALDRAME OU SAPATA UTILIZANDO AÇO CA-50 DE 12,5 MM - MONTAGEM. AF_06/2017 | C52: KG | D52: 60 | E52: 18.72 | F52: 1123.2
A53: 5.4.1.16 | B53: VIGA BALDRAME - CONCRETAGEM DE BLOCOS DE COROAMENTO E VIGAS BALDRAMES, FCK 30 MPA, COM USO DE BOMBA  LANÇAMENTO, ADENSAMENTO E ACABAMENTO. AF_06/2017 | C53: M3 | D53: 2.24 | E53: 693.9 | F53: 1554.34
A55: 5.4.2 | B55: FUNDAÇÃO - REFORÇO DO AUDITÓRIO | F55: =SUBTOTAL(9,F56:F66) -> 64767.61
A56: 5.4.2.1 | B56: ESCAVAÇÃO MECANIZADA PARA BLOCO DE COROAMENTO OU SAPATA, SEM PREVISÃO DE FÔRMA, COM RETROESCAVADEIRA. AF_06/2017 | C56: M3 | D56: 5.62 | E56: 91.26 | F56: =ROUND(D56*E56,2) -> 512.88
A57: 5.4.2.2 | B57: BOTA FORA DE MATERIAL DESCARTADO, D.M.T. = 10 km - (CARGA, TRANSPORTE E DESCARGA MECÂNICA) | C57: M3 | D57: 4.8 | E57: 58.67 | F57: =ROUND(D57*E57,2) -> 281.62
A58: 5.4.2.3 | B58: REATERRO MANUAL DE VALAS COM COMPACTAÇÃO MECANIZADA. AF_04/2016 | C58: M3 | D58: 0.84 | E58: 27.04 | F58: =ROUND(D58*E58,2) -> 22.71
A59: 5.4.2.4 | B59: ESTACAS - ESTACAS RAIZ DE Ø31cm EM SOLO INCLUSIVE A INJENÇÃO DE ARGAMASSA FCK>20 MPA, INCLUSIVE LANÇAMENTO DE ARMAÇÃO / CONSUMO MÍNIMO DE CIMENTO - 600 kg/m³. | C59: M | D59: 96 | E59: 474.01 | F59: =ROUND(D59*E59,2) -> 45504.96
A60: 5.4.2.5 | B60: ESTACA - ARMAÇÃO DE BLOCO, VIGA BALDRAME OU SAPATA UTILIZANDO AÇO CA-50 DE 6,3 MM - MONTAGEM. AF_06/2017 | C60: KG | D60: 385 | E60: 25.13 | F60: 9675.05
A61: 5.4.2.6 | B61: ESTACA - ARMAÇÃO DE BLOCO, VIGA BALDRAME OU SAPATA UTILIZANDO AÇO CA-50 DE 12,5 MM - MONTAGEM. AF_06/2017 | C61: KG | D61: 130 | E61: 18.72 | F61: 2433.6
A62: 5.4.2.7 | B62: BLOCOS - LASTRO COM MATERIAL GRANULAR (PEDRA BRITADA N.1 E PEDRA BRITADA N.2), APLICADO EM PISOS OU LAJES SOBRE SOLO, ESPESSURA DE *10 CM*. AF_07/2019 | C62: M3 | D62: 0.05 | E62: 142.05 | F62: 7.1
A63: 5.4.2.8 | B63: BLOCOS - FABRICAÇÃO, MONTAGEM E DESMONTAGEM DE FÔRMA PARA BLOCO DE COROAMENTO, EM MADEIRA SERRADA, E=25 MM, 1 UTILIZAÇÃO. AF_06/2017 | C63: M2 | D63: 20.16 | E63: 165.28 | F63: 3332.04
A64: 5.4.2.9 | B64: BLOCOS - ARMAÇÃO DE BLOCO, VIGA BALDRAME OU SAPATA UTILIZANDO AÇO CA-50 DE 6,3 MM - MONTAGEM. AF_06/2017 (ARMAÇÃO DOS BLOCOS JÁ ESTÃO MONTADAS) | C64: KG | D64: 0 | E64: 25.13 | F64: =ROUND(D64*E64,2) -> 0
A65: 5.4.2.10 | B65: BLOCOS - ARMAÇÃO DE BLOCO, VIGA BALDRAME OU SAPATA UTILIZANDO AÇO CA-50 DE 10 MM - MONTAGEM. AF_06/2017 (ARMAÇÃO DOS BLOCOS JÁ ESTÃO MONTADAS) | C65: KG | D65: 0 | E65: 21.99 | F65: 0
A66: 5.4.2.11 | B66: BLOCOS - CONCRETAGEM DE BLOCOS DE COROAMENTO E VIGAS BALDRAMES, FCK 30 MPA, COM USO DE BOMBA  LANÇAMENTO, ADENSAMENTO E ACABAMENTO. AF_06/2017 | C66: M3 | D66: 4.32 | E66: 693.9 | F66: 2997.65
A68: 5.4.3 | B68: FUNDAÇÃO - AMPLIAÇÃO SALA DE MATEMATICA | F68: =SUBTOTAL(9,F69:F78) -> 33064.52
A69: 5.4.3.1 | B69: ESCAVAÇÃO MECANIZADA PARA BLOCO DE COROAMENTO OU SAPATA, SEM PREVISÃO DE FÔRMA, COM RETROESCAVADEIRA. AF_06/2017 | C69: M3 | D69: 8.12 | E69: 91.26 | F69: =ROUND(D69*E69,2) -> 741.03
A70: 5.4.3.2 | B70: BOTA FORA DE MATERIAL DESCARTADO, D.M.T. = 10 km - (CARGA, TRANSPORTE E DESCARGA MECÂNICA) | C70: M3 | D70: 5.825 | E70: 58.67 | F70: =ROUND(D70*E70,2) -> 341.75
A71: 5.4.3.3 | B71: REATERRO MANUAL DE VALAS COM COMPACTAÇÃO MECANIZADA. AF_04/2016 | C71: M3 | D71: 0.405 | E71: 27.04 | F71: =ROUND(D71*E71,2) -> 10.95
A72: 5.4.3.4 | B72: ESTACAS - ESTACAS RAIZ DE Ø31cm EM SOLO INCLUSIVE A INJENÇÃO DE ARGAMASSA FCK>20 MPA, INCLUSIVE LANÇAMENTO DE ARMAÇÃO / CONSUMO MÍNIMO DE CIMENTO - 600 kg/m³. | C72: M | D72: 48 | E72: 474.01 | F72: =ROUND(D72*E72,2) -> 22752.48
A73: 5.4.3.5 | B73: ESTACAS - ARMAÇÃO DE BLOCO, VIGA BALDRAME E SAPATA UTILIZANDO AÇO CA-60 DE 5 MM - MONTAGEM. AF_06/2017 | C73: KG | D73: 35 | E73: 25.68 | F73: 898.8
A74: 5.4.3.6 | B74: ESTACAS - ARMAÇÃO DE BLOCO, VIGA BALDRAME OU SAPATA UTILIZANDO AÇO CA-50 DE 10 MM - MONTAGEM. AF_06/2017 | C74: KG | D74: 89 | E74: 21.99 | F74: 1957.11
A75: 5.4.3.7 | B75: BLOCOS - LASTRO COM MATERIAL GRANULAR (PEDRA BRITADA N.1 E PEDRA BRITADA N.2), APLICADO EM PISOS OU LAJES SOBRE SOLO, ESPESSURA DE *10 CM*. AF_07/2019 | C75: M3 | D75: 0.3 | E75: 142.05 | F75: 42.62
A76: 5.4.3.8 | B76: BLOCOS - FABRICAÇÃO, MONTAGEM E DESMONTAGEM DE FÔRMA PARA BLOCO DE COROAMENTO, EM MADEIRA SERRADA, E=25 MM, 1 UTILIZAÇÃO. AF_06/2017 | C76: M2 | D76: 11.76 | E76: 165.28 | F76: 1943.69
A77: 5.4.3.9 | B77: BLOCOS - ARMAÇÃO DE BLOCO, VIGA BALDRAME OU SAPATA UTILIZANDO AÇO CA-50 DE 10 MM - MONTAGEM. AF_06/2017 | C77: KG | D77: 134 | E77: 21.99 | F77: 2946.66
A78: 5.4.3.10 | B78: BLOCOS - CONCRETAGEM DE BLOCOS DE COROAMENTO E VIGAS BALDRAMES, FCK 30 MPA, COM USO DE BOMBA  LANÇAMENTO, ADENSAMENTO E ACABAMENTO. AF_06/2017 | C78: M3 | D78: 2.06 | E78: 693.9 | F78: 1429.43
A80: 5.4.4 | B80: FUNDAÇÃO - AMPLIAÇÃO LAB. DE CIÊNCIAS E ROBÓTICA | F80: =SUBTOTAL(9,F81:F90) -> 44057.47
A81: 5.4.4.1 | B81: ESCAVAÇÃO MECANIZADA PARA BLOCO DE COROAMENTO OU SAPATA, SEM PREVISÃO DE FÔRMA, COM RETROESCAVADEIRA. AF_06/2017 | C81: M3 | D81: 10.83 | E81: 91.26 | F81: =ROUND(D81*E81,2) -> 988.35
A82: 5.4.4.2 | B82: BOTA FORA DE MATERIAL DESCARTADO, D.M.T. = 10 km - (CARGA, TRANSPORTE E DESCARGA MECÂNICA) | C82: M3 | D82: 7.77 | E82: 58.67 | F82: =ROUND(D82*E82,2) -> 455.87
A83: 5.4.4.3 | B83: REATERRO MANUAL DE VALAS COM COMPACTAÇÃO MECANIZADA. AF_04/2016 | C83: M3 | D83: 0.54 | E83: 27.04 | F83: =ROUND(D83*E83,2) -> 14.6
A84: 5.4.4.4 | B84: ESTACAS - ESTACAS RAIZ DE Ø31cm EM SOLO INCLUSIVE A INJENÇÃO DE ARGAMASSA FCK>20 MPA, INCLUSIVE LANÇAMENTO DE ARMAÇÃO / CONSUMO MÍNIMO DE CIMENTO - 600 kg/m³. | C84: M | D84: 64 | E84: 474.01 | F84: =ROUND(D84*E84,2) -> 30336.64
A85: 5.4.4.5 | B85: ESTACAS - ARMAÇÃO DE BLOCO, VIGA BALDRAME E SAPATA UTILIZANDO AÇO CA-60 DE 5 MM - MONTAGEM. AF_06/2017 | C85: KG | D85: 46 | E85: 25.68 | F85: 1181.28
A86: 5.4.4.6 | B86: ESTACAS - ARMAÇÃO DE BLOCO, VIGA BALDRAME OU SAPATA UTILIZANDO AÇO CA-50 DE 10 MM - MONTAGEM. AF_06/2017 | C86: KG | D86: 118 | E86: 21.99 | F86: 2594.82
A87: 5.4.4.7 | B87: BLOCOS - LASTRO COM MATERIAL GRANULAR (PEDRA BRITADA N.1 E PEDRA BRITADA N.2), APLICADO EM PISOS OU LAJES SOBRE SOLO, ESPESSURA DE *10 CM*. AF_07/2019 | C87: M3 | D87: 0.4 | E87: 142.05 | F87: 56.82
A88: 5.4.4.8 | B88: BLOCOS - FABRICAÇÃO, MONTAGEM E DESMONTAGEM DE FÔRMA PARA BLOCO DE COROAMENTO, EM MADEIRA SERRADA, E=25 MM, 1 UTILIZAÇÃO. AF_06/2017 | C88: M2 | D88: 15.68 | E88: 165.28 | F88: 2591.59
A89: 5.4.4.9 | B89: BLOCOS - ARMAÇÃO DE BLOCO, VIGA BALDRAME OU SAPATA UTILIZANDO AÇO CA-50 DE 10 MM - MONTAGEM. AF_06/2017 | C89: KG | D89: 179 | E89: 21.99 | F89: 3936.21
A90: 5.4.4.10 | B90: BLOCOS - CONCRETAGEM DE BLOCOS DE COROAMENTO E VIGAS BALDRAMES, FCK 30 MPA, COM USO DE BOMBA  LANÇAMENTO, ADENSAMENTO E ACABAMENTO. AF_06/2017 | C90: M3 | D90: 2.74 | E90: 693.9 | F90: 1901.29
A92: 5.5 | B92: IMPERMEABILIZAÇÃO | F92: =SUBTOTAL(9,F93) -> 7277.03
A93: 5.5.1 | B93: IMPERMEABILIZAÇÃO DE SUPERFÍCIE COM EMULSÃO ASFÁLTICA, 2 DEMÃOS AF_06/2018 | C93: M2 | D93: 125.25 | E93: 58.1 | F93: =ROUND(D93*E93,2) -> 7277.03
A95: 5.6 | B95: ESTRUTURAS DE CONCRETO ARMADO | F95: =SUBTOTAL(9,F96:F144) -> 95889.9
A96: 5.6.1 | B96: ESTRUTURAS DE CONCRETO ARMADO - RAMPA ACESSO CARGA E DESCARGA | F96: =SUBTOTAL(9,F97:F99) -> 8711.13
A97: 5.6.1.1 | B97: ALVENARIA DE BLOCOS DE CONCRETO ESTRUTURAL 14X19X39 CM, (ESPESSURA 14 CM), FBK = 4,5 MPA, PARA PAREDES COM ÁREA LÍQUIDA MAIOR OU IGUAL A 6M², SEM VÃOS, UTILIZANDO PALHETA. AF_12/2014 - CONSIDERANDO BLOCO ENTERRADO 50CM | C97: M2 | D97: 24.33 | E97: 78.12 | F97: =ROUND(D97*E97,2) -> 1900.66
A98: 5.6.1.2 | B98: ARMAÇÃO DE BLOCO, VIGA BALDRAME OU SAPATA UTILIZANDO AÇO CA-50 DE 12,5 MM - MONTAGEM. AF_06/2017 - CONSIDERANDO COMPRIM. DE 25,15M C/ FERRO A CADA 40CM ENTERRADO 2,00M | C98: KG | D98: 167.3672 | E98: 18.72 | F98: =ROUND(D98*E98,2) -> 3133.11
A99: 5.6.1.3 | B99: CONCRETAGEM DE BLOCOS DE COROAMENTO E VIGAS BALDRAMES, FCK 30 MPA, COM USO DE BOMBA  LANÇAMENTO, ADENSAMENTO E ACABAMENTO. AF_06/2017 | C99: M3 | D99: 5.29956 | E99: 693.9 | F99: =ROUND(D99*E99,2) -> 3677.36
A101: 5.6.2 | B101: ESTRUTURAS DE CONCRETO ARMADO - AMPLIAÇÃO SALA DE AULA 18 | F101: =SUBTOTAL(9,F102:F106) -> 2944.95
A102: 5.6.2.1 | B102: PILARES - MONTAGEM E DESMONTAGEM DE FÔRMA DE PILARES RETANGULARES E ESTRUTURAS SIMILARES, PÉ-DIREITO SIMPLES, EM MADEIRA SERRADA, 1 UTILIZAÇÃO. AF_09/2020 | C102: M2 | D102: 4.48 | E102: 238.53 | F102: =ROUND(D102*E102,2) -> 1068.61
A103: 5.6.2.2 | B103: PILARES - ARMAÇÃO DE PILAR OU VIGA DE UMA ESTRUTURA CONVENCIONAL DE CONCRETO ARMADO EM UMA EDIFICAÇÃO TÉRREA UTILIZANDO AÇO CA-60 DE 5,0 MM - MONTAGEM. AF_12/2015 | C103: KG | D103: 20 | E103: 25.71 | F103: 514.2
A104: 5.6.2.3 | B104: PILARES - ARMAÇÃO DE PILAR OU VIGA DE UMA ESTRUTURA CONVENCIONAL DE CONCRETO ARMADO EM UMA EDIFICAÇÃO TÉRREA UTILIZANDO AÇO CA-50 DE 8,0 MM - MONTAGEM. AF_12/2015 | C104: KG | D104: 9 | E104: 24.24 | F104: 218.16
A105: 5.6.2.4 | B105: PILARES - ARMAÇÃO DE PILAR OU VIGA DE UMA ESTRUTURA CONVENCIONAL DE CONCRETO ARMADO EM UMA EDIFICAÇÃO TÉRREA UTILIZANDO AÇO CA-50 DE 10,0 MM - MONTAGEM. AF_12/2015 | C105: KG | D105: 39 | E105: 21.93 | F105: 855.27
A106: 5.6.2.5 | B106: PILARES - CONCRETAGEM DE PILARES, FCK = 25 MPA, COM USO DE BOMBA EM EDIFICAÇÃO COM SEÇÃO MÉDIA DE PILARES MAIOR QUE 0,25 M² - LANÇAMENTO, ADENSAMENTO E ACABAMENTO. AF_12/2015 | C106: M3 | D106: 0.44 | E106: 656.15 | F106: 288.71
A108: 5.6.3 | B108: ESTRUTURAS DE CONCRETO ARMADO - REFORÇO DO AUDITÓRIO | F108: =SUBTOTAL(9,F109:F119) -> 42065.57
A109: 5.6.3.1 | B109: PILARES - MONTAGEM E DESMONTAGEM DE FÔRMA DE PILARES RETANGULARES E ESTRUTURAS SIMILARES, PÉ-DIREITO SIMPLES, EM MADEIRA SERRADA, 1 UTILIZAÇÃO. AF_09/2020 | C109: M2 | D109: 34 | E109: 238.53 | F109: =ROUND(D109*E109,2) -> 8110.02
A110: 5.6.3.2 | B110: PILARES E VIGAS - ARMAÇÃO DE PILAR OU VIGA DE UMA ESTRUTURA CONVENCIONAL DE CONCRETO ARMADO EM UMA EDIFICAÇÃO TÉRREA UTILIZANDO AÇO CA-60 DE 5,0 MM - MONTAGEM. AF_12/2015 (ARMAÇÕES JÁ ESTÃO MONTADAS) | C110: KG | D110: 0 | E110: 25.71 | F110: 0
A111: 5.6.3.3 | B111: PILARES E VIGAS - ARMAÇÃO DE PILAR OU VIGA DE UMA ESTRUTURA CONVENCIONAL DE CONCRETO ARMADO EM UM EDIFÍCIO DE MÚLTIPLOS PAVIMENTOS UTILIZANDO AÇO CA-50 DE 6,3 MM - MONTAGEM. AF_12/2015 (ARMAÇÕES JÁ ESTÃO MONTADAS) | C111: KG | D111: 0 | E111: 23.11 | F111: =ROUND(D111*E111,2) -> 0
A112: 5.6.3.4 | B112: PILARES E VIGAS - ARMAÇÃO DE PILAR OU VIGA DE UMA ESTRUTURA CONVENCIONAL DE CONCRETO ARMADO EM UMA EDIFICAÇÃO TÉRREA UTILIZANDO AÇO CA-50 DE 8,0 MM - MONTAGEM. AF_12/2015 (ARMAÇÕES JÁ ESTÃO MONTADAS) | C112: KG | D112: 0 | E112: 24.24 | F112: 0
A113: 5.6.3.5 | B113: PILARES E VIGAS - ARMAÇÃO DE PILAR OU VIGA DE UMA ESTRUTURA CONVENCIONAL DE CONCRETO ARMADO EM UMA EDIFICAÇÃO TÉRREA UTILIZANDO AÇO CA-50 DE 10,0 MM - MONTAGEM. AF_12/2015 (ARMAÇÕES JÁ ESTÃO MONTADAS) | C113: KG | D113: 0 | E113: 21.93 | F113: 0
A114: 5.6.3.6 | B114: PILARES E VIGAS- ARMAÇÃO DE PILAR OU VIGA DE UMA ESTRUTURA CONVENCIONAL DE CONCRETO ARMADO EM UM EDIFÍCIO DE MÚLTIPLOS PAVIMENTOS UTILIZANDO AÇO CA-50 DE 12,5 MM - MONTAGEM. AF_12/2015 (ARMAÇÕES JÁ ESTÃO MONTADAS) | C114: KG | D114: 0 | E114: 17.74 | F114: =ROUND(D114*E114,2) -> 0
A115: 5.6.3.7 | B115: PILARES E VIGAS - ARMAÇÃO DE PILAR OU VIGA DE UMA ESTRUTURA CONVENCIONAL DE CONCRETO ARMADO EM UM EDIFÍCIO DE MÚLTIPLOS PAVIMENTOS UTILIZANDO AÇO CA-50 DE 16,0 MM - MONTAGEM. AF_12/2015 (ARMAÇÕES JÁ ESTÃO MONTADAS) | C115: KG | D115: 0 | E115: 17.28 | F115: =ROUND(D115*E115,2) -> 0
A116: 5.6.3.8 | B116: PILARES E VIGAS - ARMAÇÃO DE PILAR OU VIGA DE UMA ESTRUTURA CONVENCIONAL DE CONCRETO ARMADO EM UM EDIFÍCIO DE MÚLTIPLOS PAVIMENTOS UTILIZANDO AÇO CA-50 DE 20,0 MM - MONTAGEM. AF_12/2015 (ARMAÇÕES JÁ ESTÃO MONTADAS) | C116: KG | D116: 0 | E116: 19.88 | F116: =ROUND(D116*E116,2) -> 0
A117: 5.6.3.9 | B117: PILARES - CONCRETAGEM DE PILARES, FCK = 25 MPA, COM USO DE BOMBA EM EDIFICAÇÃO COM SEÇÃO MÉDIA DE PILARES MAIOR QUE 0,25 M² - LANÇAMENTO, ADENSAMENTO E ACABAMENTO. AF_12/2015 | C117: M3 | D117: 10.63 | E117: 656.15 | F117: 6974.87
A118: 5.6.3.10 | B118: VIGA RESPALDO - MONTAGEM E DESMONTAGEM DE FÔRMA DE VIGA, ESCORAMENTO METÁLICO, PÉ-DIREITO DUPLO, EM CHAPA DE MADEIRA RESINADA, 2 UTILIZAÇÕES. AF_09/2020 | C118: M2 | D118: 88.6 | E118: 303.12 | F118: 26856.43
A119: 5.6.3.11 | B119: DEMOLIÇÃO DE PILARES E VIGAS EM CONCRETO ARMADO, DE FORMA MECANIZADA COM MARTELETE, SEM REAPROVEITAMENTO. AF_12/2017 | C119: M3 | D119: 0.51 | E119: 243.62 | F119: 124.25
A121: 5.6.4 | B121: ESTRUTURAS DE CONCRETO ARMADO - AMPLIAÇÃO SALA DE MATEMATICA | F121: =SUBTOTAL(9,F122:F131) -> 18580.79
A122: 5.6.4.1 | B122: PILARES - MONTAGEM E DESMONTAGEM DE FÔRMA DE PILARES RETANGULARES E ESTRUTURAS SIMILARES, PÉ-DIREITO SIMPLES, EM MADEIRA SERRADA, 1 UTILIZAÇÃO. AF_09/2020 | C122: M2 | D122: 21.06 | E122: 238.53 | F122: =ROUND(D122*E122,2) -> 5023.44
A123: 5.6.4.2 | B123: PILARES - ARMAÇÃO DE PILAR OU VIGA DE UMA ESTRUTURA CONVENCIONAL DE CONCRETO ARMADO EM UMA EDIFICAÇÃO TÉRREA UTILIZANDO AÇO CA-60 DE 5,0 MM - MONTAGEM. AF_12/2015 | C123: KG | D123: 28 | E123: 25.71 | F123: 719.88
A124: 5.6.4.3 | B124: PILARES - ARMAÇÃO DE PILAR OU VIGA DE UMA ESTRUTURA CONVENCIONAL DE CONCRETO ARMADO EM UMA EDIFICAÇÃO TÉRREA UTILIZANDO AÇO CA-50 DE 8,0 MM - MONTAGEM. AF_12/2015 | C124: KG | D124: 4 | E124: 24.24 | F124: 96.96
A125: 5.6.4.4 | B125: PILARES - ARMAÇÃO DE PILAR OU VIGA DE UMA ESTRUTURA CONVENCIONAL DE CONCRETO ARMADO EM UMA EDIFICAÇÃO TÉRREA UTILIZANDO AÇO CA-50 DE 10,0 MM - MONTAGEM. AF_12/2015 | C125: KG | D125: 74 | E125: 21.93 | F125: 1622.82
A126: 5.6.4.5 | B126: PILARES - CONCRETAGEM DE PILARES, FCK = 25 MPA, COM USO DE BOMBA EM EDIFICAÇÃO COM SEÇÃO MÉDIA DE PILARES MAIOR QUE 0,25 M² - LANÇAMENTO, ADENSAMENTO E ACABAMENTO. AF_12/2015 | C126: M3 | D126: 1.05 | E126: 656.15 | F126: 688.96
A127: 5.6.4.6 | B127: VIGAS - LASTRO COM MATERIAL GRANULAR (PEDRA BRITADA N.1 E PEDRA BRITADA N.2), APLICADO EM PISOS OU LAJES SOBRE SOLO, ESPESSURA DE *10 CM*. AF_07/2019 | C127: M3 | D127: 0.5868 | E127: 142.05 | F127: 83.35
A128: 5.6.4.7 | B128: VIGAS - FABRICAÇÃO, MONTAGEM E DESMONTAGEM DE FÔRMA PARA VIGA BALDRAME, EM MADEIRA SERRADA, E=25 MM, 1 UTILIZAÇÃO. AF_06/2017 | C128: M2 | D128: 37.1 | E128: 148.03 | F128: 5491.91
A129: 5.6.4.8 | B129: VIGAS - ARMAÇÃO DE BLOCO, VIGA BALDRAME E SAPATA UTILIZANDO AÇO CA-60 DE 5 MM - MONTAGEM. AF_06/2017 | C129: KG | D129: 35 | E129: 25.68 | F129: 898.8
A130: 5.6.4.9 | B130: VIGAS - ARMAÇÃO DE BLOCO, VIGA BALDRAME OU SAPATA UTILIZANDO AÇO CA-50 DE 10 MM - MONTAGEM. AF_06/2017 | C130: KG | D130: 106 | E130: 21.99 | F130: 2330.94
A131: 5.6.4.10 | B131: VIGAS - CONCRETAGEM DE BLOCOS DE COROAMENTO E VIGAS BALDRAMES, FCK 30 MPA, COM USO DE BOMBA  LANÇAMENTO, ADENSAMENTO E ACABAMENTO. AF_06/2017 | C131: M3 | D131: 2.34 | E131: 693.9 | F131: =ROUND(D131*E131,2) -> 1623.73
A133: 5.6.5 | B133: ESTRUTURAS DE CONCRETO ARMADO - AMPLIAÇÃO LAB. DE CIÊNCIAS E ROBÓTICA | F133: =SUBTOTAL(9,F134:F144) -> 23587.46
A134: 5.6.5.1 | B134: PILARES - MONTAGEM E DESMONTAGEM DE FÔRMA DE PILARES RETANGULARES E ESTRUTURAS SIMILARES, PÉ-DIREITO SIMPLES, EM MADEIRA SERRADA, 1 UTILIZAÇÃO. AF_09/2020 | C134: M2 | D134: 28.08 | E134: 238.53 | F134: =ROUND(D134*E134,2) -> 6697.92
A135: 5.6.5.2 | B135: PILARES - ARMAÇÃO DE PILAR OU VIGA DE UMA ESTRUTURA CONVENCIONAL DE CONCRETO ARMADO EM UMA EDIFICAÇÃO TÉRREA UTILIZANDO AÇO CA-60 DE 5,0 MM - MONTAGEM. AF_12/2015 | C135: KG | D135: 38 | E135: 25.71 | F135: 976.98
A136: 5.6.5.3 | B136: PILARES - ARMAÇÃO DE PILAR OU VIGA DE UMA ESTRUTURA CONVENCIONAL DE CONCRETO ARMADO EM UMA EDIFICAÇÃO TÉRREA UTILIZANDO AÇO CA-50 DE 8,0 MM - MONTAGEM. AF_12/2015 | C136: KG | D136: 6 | E136: 24.24 | F136: 145.44
A137: 5.6.5.4 | B137: PILARES - ARMAÇÃO DE PILAR OU VIGA DE UMA ESTRUTURA CONVENCIONAL DE CONCRETO ARMADO EM UMA EDIFICAÇÃO TÉRREA UTILIZANDO AÇO CA-50 DE 10,0 MM - MONTAGEM. AF_12/2015 | C137: KG | D137: 99 | E137: 21.93 | F137: 2171.07
A138: 5.6.5.5 | B138: PILARES - CONCRETAGEM DE PILARES, FCK = 25 MPA, COM USO DE BOMBA EM EDIFICAÇÃO COM SEÇÃO MÉDIA DE PILARES MAIOR QUE 0,25 M² - LANÇAMENTO, ADENSAMENTO E ACABAMENTO. AF_12/2015 | C138: M3 | D138: 1.4 | E138: 656.15 | F138: 918.61
A139: 5.6.5.6 | B139: VIGAS - LASTRO COM MATERIAL GRANULAR (PEDRA BRITADA N.1 E PEDRA BRITADA N.2), APLICADO EM PISOS OU LAJES SOBRE SOLO, ESPESSURA DE *10 CM*. AF_07/2019 | C139: M3 | D139: 0.5913 | E139: 142.05 | F139: 83.99
A140: 5.6.5.7 | B140: VIGAS - FABRICAÇÃO, MONTAGEM E DESMONTAGEM DE FÔRMA PARA VIGA BALDRAME, EM MADEIRA SERRADA, E=25 MM, 1 UTILIZAÇÃO. AF_06/2017 | C140: M2 | D140: 43.66 | E140: 148.03 | F140: 6462.99
A141: 5.6.5.8 | B141: VIGAS - ARMAÇÃO DE BLOCO, VIGA BALDRAME E SAPATA UTILIZANDO AÇO CA-60 DE 5 MM - MONTAGEM. AF_06/2017 | C141: KG | D141: 37 | E141: 25.68 | F141: 950.16
A142: 5.6.5.9 | B142: VIGAS - ARMAÇÃO DE BLOCO, VIGA BALDRAME OU SAPATA UTILIZANDO AÇO CA-50 DE 10 MM - MONTAGEM. AF_06/2017 | C142: KG | D142: 94 | E142: 21.99 | F142: 2067.06
A143: 5.6.5.10 | B143: VIGAS - ARMAÇÃO DE BLOCO, VIGA BALDRAME OU SAPATA UTILIZANDO AÇO CA-50 DE 12,5 MM - MONTAGEM. AF_06/2017 | C143: KG | D143: 64 | E143: 18.72 | F143: =ROUND(D143*E143,2) -> 1198.08
A144: 5.6.5.11 | B144: VIGAS - CONCRETAGEM DE BLOCOS DE COROAMENTO E VIGAS BALDRAMES, FCK 30 MPA, COM USO DE BOMBA  LANÇAMENTO, ADENSAMENTO E ACABAMENTO. AF_06/2017 | C144: M3 | D144: 2.76 | E144: 693.9 | F144: 1915.16
A146: 5.7 | B146: ALVENARIAS E PAINÉIS | F146: =SUBTOTAL(9,F147:F152) -> 69251.63
A147: 5.7.1 | B147: ALVENARIA DE VEDAÇÃO DE BLOCOS CERÂMICOS FURADOS NA HORIZONTAL DE 9X19X19CM (ESPESSURA 9CM) DE PAREDES COM ÁREA LÍQUIDA MAIOR OU IGUAL A 6M² COM VÃOS E ARGAMASSA DE ASSENTAMENTO COM PREPARO EM BETONEIRA. AF_06/2014 | C147: M2 | D147: 597.01 | E147: 89.93 | F147: =ROUND(D147*E147,2) -> 53689.11
A148: 5.7.2 | B148: FORNECIMENTO E INSTALAÇÃO DE PAREDE DE GESSO ACARTONADO ESP. 10CM,UMA FACE, COM ISOLAMENTO TERMO-ACÚSTICO DE LÃ DE ROCHA 50MM (CONSUMO CONF. TCPO 04840.8.5.1, MONTANTE M75-0,62kg/m, GUIA 75 ) | C148: M2 | D148: 45.72 | E148: 128.69 | F148: 5883.71
A149: 5.7.3 | B149: FORNECIMENTO E INSTALAÇÃO DE PAREDE DE GESSO ACARTONADO ESP. 10CM, FACE DUPLA, COM ISOLAMENTO TERMO-ACÚSTICO DE LÃ DE ROCHA 50MM (CONSUMO CONF. TCPO 04840.8.5.1, MONTANTE M75-0,62kg/m, GUIA 75 ) | C149: M2 | D149: 30.42 | E149: 172.28 | F149: 5240.76
A150: 5.7.4 | B150: VERGA MOLDADA IN LOCO EM CONCRETO PARA JANELAS COM MAIS DE 1,5 M DE VÃO. AF_03/2016 | C150: M | D150: 23.3 | E150: 91.19 | F150: 2124.73
A151: 5.7.5 | B151: CONTRAVERGA MOLDADA IN LOCO EM CONCRETO PARA VÃOS DE MAIS DE 1,5 M DE COMPRIMENTO. AF_03/2016 | C151: M | D151: 19.9 | E151: 82.78 | F151: 1647.32
A152: 5.7.6 | B152: VERGA MOLDADA IN LOCO EM CONCRETO PARA PORTAS COM MAIS DE 1,5 M DE VÃO. AF_03/2016 | C152: M | D152: 7.2 | E152: 92.5 | F152: 666
A154: 5.8 | B154: ESTRUTURA METALICA | F154: =SUBTOTAL(9,F155:F168) -> 93000.15
A155: 5.8.1 | B155: ESTRUTURA MTÁLICA - AMPLIAÇÃO SALA DE AULA 18 | F155: =SUBTOTAL(9,F156:F158) -> 46720.78
A156: 5.8.1.1 | B156: ESTRUTURA METALICA DA COBERTURA CONFORME PROJETO EM AÇO ESTRUTURAL | C156: KG | D156: 2127.81 | E156: 18.63 | F156: =ROUND(D156*E156,2) -> 39641.1
A157: 5.8.1.2 | B157: PINTURA COM TINTA ALQUÍDICA DE FUNDO (TIPO ZARCÃO) PULVERIZADA SOBRE SUPERFÍCIES METÁLICAS (EXCETO PERFIL) EXECUTADO EM OBRA (POR DEMÃO). AF_01/2020_P | C157: M2 | D157: 177.48 | E157: 21.31 | F157: 3782.1
A158: 5.8.1.3 | B158: PINTURA COM TINTA ACRÍLICA DE ACABAMENTO PULVERIZADA SOBRE SUPERFÍCIES METÁLICAS (EXCETO PERFIL) EXECUTADO EM OBRA (02 DEMÃOS). AF_01/2020_P | C158: M2 | D158: 177.48 | E158: 18.58 | F158: 3297.58
A160: 5.8.2 | B160: ESTRUTURA MTÁLICA - AMPLIAÇÃO SALA DE MATEMATICA | F160: =SUBTOTAL(9,F161:F163) -> 17664.16
A161: 5.8.2.1 | B161: ESTRUTURA METALICA DA COBERTURA CONFORME PROJETO EM AÇO ESTRUTURAL | C161: KG | D161: 788.34 | E161: 18.63 | F161: =ROUND(D161*E161,2) -> 14686.77
A162: 5.8.2.2 | B162: PINTURA COM TINTA ALQUÍDICA DE FUNDO (TIPO ZARCÃO) PULVERIZADA SOBRE SUPERFÍCIES METÁLICAS (EXCETO PERFIL) EXECUTADO EM OBRA (POR DEMÃO). AF_01/2020_P | C162: M2 | D162: 74.64 | E162: 21.31 | F162: 1590.58
A163: 5.8.2.3 | B163: PINTURA COM TINTA ACRÍLICA DE ACABAMENTO PULVERIZADA SOBRE SUPERFÍCIES METÁLICAS (EXCETO PERFIL) EXECUTADO EM OBRA (02 DEMÃOS). AF_01/2020_P | C163: M2 | D163: 74.64 | E163: 18.58 | F163: 1386.81
A165: 5.8.3 | B165: ESTRUTURA MTÁLICA - AMPLIAÇÃO LAB. DE CIÊNCIAS E ROBÓTICA | F165: =SUBTOTAL(9,F166:F168) -> 28615.21
A166: 5.8.3.1 | B166: ESTRUTURA METALICA DA COBERTURA CONFORME PROJETO EM AÇO ESTRUTURAL | C166: KG | D166: 1278.82 | E166: 18.63 | F166: =ROUND(D166*E166,2) -> 23824.42
A167: 5.8.3.2 | B167: PINTURA COM TINTA ALQUÍDICA DE FUNDO (TIPO ZARCÃO) PULVERIZADA SOBRE SUPERFÍCIES METÁLICAS (EXCETO PERFIL) EXECUTADO EM OBRA (POR DEMÃO). AF_01/2020_P | C167: M2 | D167: 120.1 | E167: 21.31 | F167: 2559.33
A168: 5.8.3.3 | B168: PINTURA COM TINTA ACRÍLICA DE ACABAMENTO PULVERIZADA SOBRE SUPERFÍCIES METÁLICAS (EXCETO PERFIL) EXECUTADO EM OBRA (02 DEMÃOS). AF_01/2020_P | C168: M2 | D168: 120.1 | E168: 18.58 | F168: 2231.46
A170: 5.9 | B170: COBERTURA - AMPLIAÇÕES BLOCO D | F170: =SUBTOTAL(9,F171:F173) -> 40759.61
A171: 5.9.1 | B171: CUMEEIRA METÁLICA AÇO GALVALUME TRAPEZOIDAL 40 40X60CM - FORNECIMENTO E INSTALAÇÃO | C171: M | D171: 93 | E171: 84.19 | F171: =ROUND(D171*E171,2) -> 7829.67
A172: 5.9.2 | B172: TELHAMENTO COM TELHA DE AÇO/ALUMÍNIO E = 0,5 MM, COM ATÉ 2 ÁGUAS, INCLUSO IÇAMENTO. AF_07/2019 | C172: M2 | D172: 171.28 | E172: 105.32 | F172: =ROUND(D172*E172,2) -> 18039.21
A173: 5.9.3 | B173: PLATIBANDA EM CHAPA DE AÇO ESPESSURA 2,00mm, H=870mm, DOBRA CARTOLA: 30X20X970mm, COM METALON DIM. 50X20X0,97mm NA FACE INFERIOR PARA ARREMATE COM O FORRO, FUNDO ANTICORROSIVO EM PRIMER EPÓXI NAS DUAS FACES | C173: M2 | D173: 60.15 | E173: 247.56 | F173: 14890.73
A175: 5.10 | B175: ESQUADRIAS | F175: =SUBTOTAL(9,F176:F191) -> 162554.33
A176: 5.10.1 | B176: P1, P2, P3, P5 E P28 - PORTA EM ALUMÍNIO DE ABRIR TIPO VENEZIANA COM GUARNIÇÃO, FIXAÇÃO COM PARAFUSOS - FORNECIMENTO E INSTALAÇÃO | C176: M2 | D176: 56.82 | E176: 679.02 | F176: =ROUND(D176*E176,2) -> 38581.92
A177: 5.10.2 | B177: P16 - PORTA ACUSTICA 90X2,10 METÁLICA, COM VISOR, 40DB | C177: UN | D177: 2 | E177: 7839.99 | F177: 15679.98
A178: 5.10.3 | B178: P22 - PORTA VENEZIANA VAI E VEM, DUAS FOLHAS EM ALUMÍNIO ANODIZADO NATURAL FOSCO, DIM. 1,00 X 2,00m, INCLUSIVE FERRAGENS DE INSTALAÇÃO PARA PERFEITO USO E FUNCIONAMENTO | C178: UN | D178: 1 | E178: 1358.04 | F178: 1358.04
A179: 5.10.4 | B179: P23 - PORTA VENEZIANA DE ABRIR DUAS FOLHAS EM ALUMÍNIO ANODIZADO NATURAL FOSCO, DIM. 1,50 X 2,10m, INCLUSIVE FERRAGENS DE INSTALAÇÃO PARA PERFEITO USO E FUNCIONAMENTO | C179: UN | D179: 1 | E179: 2138.91 | F179: 2138.91
A180: 5.10.5 | B180: P38 - PORTA DE VIDRO TEMPERADO DE UMA FOLHA DE ABRIR 0,90X2,10M INCOLOR ESP.10MM, COM MOLA HIDRÁULICA EM 01 FOLHA, FERRAGENS CROMADAS E FIXAÇÕES EM PAREDES, PISOS E FORROS CONFORME NORMAS DO FABRICANTE PARA PERFEITO USO E FUNCIONAMENTO | C180: UN | D180: 1 | E180: 1741.33 | F180: 1741.33
A181: 5.10.6 | B181: P38 - PAINÉIS (BANDEIRAS) FIXOS EM VIDRO TEMPERADO FUMÊ ESP. 10MM, FERRAGENS CROMADAS E FIXAÇÕES EM PAREDES, PISOS E FORROS CONFORME NORMAS DO FABRICANTE PARA PERFEITO USO E FUNCIONAMENTO | C181: M2 | D181: 0.81 | E181: 561.64 | F181: 454.93
A182: 5.10.7 | B182: V2 - VISOR EM VIDRO TEMPERADO INCOLOR ESPESSURA=8MM COM REQUADRO DE ALUMÍNIO NA COR NATURAL, DIM. 2,00X1,00M | C182: UN | D182: 1 | E182: 789.95 | F182: =ROUND(D182*E182,2) -> 789.95
A183: 5.10.8 | B183: V6 - VISOR EM VIDRO TEMPERADO INCOLOR ESPESSURA=8MM COM REQUADRO DE ALUMÍNIO NA COR NATURAL, DIMENSÕES 100X190CM (REF. SINAPI 72119) | C183: UN | D183: 8 | E183: 832.79 | F183: 6662.32
A184: 5.10.9 | B184: V7 - VISOR EM VIDRO TEMPERADO INCOLOR ESPESSURA=12MM COM REQUADRO DE ALUMÍNIO NA COR NATURAL, DIMENSÕES 100X190CM (REF. SINAPI 72119) | C184: UN | D184: 2 | E184: 1580.99 | F184: 3161.98
A185: 5.10.10 | B185: J1 - JANELA MAXIM-AR COM ESTRUTURA DE ALUMÍNIO ANODIZADO NATURAL E VIDRO TEMPERADO FUMÊ 6 mm - DIM. 1,00X0,60M, COMPLETA, INCLUSIVE FERRAGENS, FECHADURA, PUXADORES E VEDAÇÕES - BANDEIRAS CONFORME PROJETO | C185: UN | D185: 25 | E185: 668.64 | F185: 16716
A186: 5.10.11 | B186: J2 - JANELA MAXIM-AR COM ESTRUTURA DE ALUMÍNIO ANODIZADO NATURAL E VIDRO TEMPERADO INCOLOR 6 mm - DIM. 2,00X1,50M, COMPLETA, INCLUSIVE FERRAGENS, FECHADURA, PUXADORES E VEDAÇÕES - BANDEIRAS CONFORME PROJETO | C186: UN | D186: 16 | E186: 2899.06 | F186: 46384.96
A187: 5.10.12 | B187: J11 - JANELA MAXIM-AR COM ESTRUTURA DE ALUMÍNIO ANODIZADO NATURAL E VIDRO TEMPERADO INCOLOR 6 mm - DIM. 3,90X1,70M, COMPLETA, INCLUSIVE FERRAGENS, FECHADURA, PUXADORES E VEDAÇÕES - BANDEIRAS CONFORME PROJETO | C187: UN | D187: 1 | E187: 4718.26 | F187: 4718.26
A188: 5.10.13 | B188: J12 - JANELA MAXIM-AR COM ESTRUTURA DE ALUMÍNIO ANODIZADO NATURAL E VIDRO TEMPERADO INCOLOR 6 mm - DIM. 2,35X1,70M, COMPLETA, INCLUSIVE FERRAGENS, FECHADURA, PUXADORES E VEDAÇÕES - BANDEIRAS CONFORME PROJETO | C188: UN | D188: 3 | E188: 3029.39 | F188: 9088.17
A189: 5.10.14 | B189: J7 - JANELA MAXIM-AR COM ESTRUTURA DE ALUMÍNIO ANODIZADO NATURAL E VIDRO ARAMADO INCOLOR 6 mm - DIM. 0,80X0,60M, COMPLETA, INCLUSIVE FERRAGENS, FECHADURA, PUXADORES E VEDAÇÕES - BANDEIRAS CONFORME PROJETO | C189: UN | D189: 4 | E189: 558.72 | F189: 2234.88
A190: 5.10.15 | B190: J16 - JANELA MAXIM-AR COM ESTRUTURA DE ALUMÍNIO ANODIZADO NATURAL E VIDRO LAMINADO DUPLO 6mm CADA UM e-12mm - DIM. 1,00X0,60M, COMPLETA, INCLUSIVE FERRAGENS, FECHADURA, PUXADORES E VEDAÇÕES | C190: UN | D190: 8 | E190: 824.52 | F190: 6596.16
A191: 5.10.16 | B191: J17 - JANELA DE CORRER DE VIDRO TEMPERADO E=12mm, COMPLETA, COM TRILHOS, FERRAGENS, FECHADURA, PUXADORES E VEDAÇÕES, 1 FOLHA DE CORRER DE 1,00M E A OUTRA FOLHAS FIXA - DIM. 2,00X1,50M | C191: UN | D191: 2 | E191: 3123.27 | F191: 6246.54
A193: 5.11 | B193: PISOS | F193: =SUBTOTAL(9,F194:F196) -> 290535.94
A194: 5.11.1 | B194: CONTRAPISO DE CONCRETO, ESPESSURA 7CM, PREPARO MECANICO (INCLUSO PISOS EXTERNOS) | C194: M2 | D194: 1038.64 | E194: 42.03 | F194: =ROUND(D194*E194,2) -> 43654.04
A195: 5.11.2 | B195: REVESTIMENTO CERÂMICO PARA PISO COM PLACAS TIPO PORCELANATO DE DIMENSÕES 90X90 CM APLICADA EM AMBIENTES INTERNOS - MODELO ELIANE MUNARI BRANCO AC OU SIMILAR | C195: M2 | D195: 1751.59 | E195: 115.35 | F195: 202045.91
A196: 5.11.3 | B196: EXECUÇÃO DE PASSEIO EM PISO INTERTRAVADO, COM BLOCO RETANGULAR COR NATURAL DE 20 X 10 CM, ESPESSURA 6 CM. AF_12/2015 | C196: M2 | D196: 521.47 | E196: 85.98 | F196: 44835.99
A198: 5.12 | B198: REVESTIMENTOS | F198: =SUBTOTAL(9,F199:F204) -> 231142.34
A199: 5.12.1 | B199: CHAPISCO APLICADO EM ALVENARIAS E ESTRUTURAS DE CONCRETO INTERNAS, COM ROLO PARA TEXTURA ACRÍLICA. ARGAMASSA TRAÇO 1:4 E EMULSÃO POLIMÉRICA (ADESIVO) COM PREPARO EM BETONEIRA 400L. AF_06/2014 | C199: M2 | D199: 1218.04 | E199: 8.59 | F199: =ROUND(D199*E199,2) -> 10462.96
A200: 5.12.2 | B200: EMBOÇO OU MASSA ÚNICA EM ARGAMASSA TRAÇO 1:2:8, PREPARO MECÂNICO COM BETONEIRA 400 L, APLICADA MANUALMENTE EM PANOS DE FACHADA COM PRESENÇA DE VÃOS, ESPESSURA DE 25 MM. AF_06/2014 | C200: M2 | D200: 1218.04 | E200: 55.05 | F200: 67053.1
A201: 5.12.3 | B201: REVESTIMENTO CERÂMICO PARA PAREDES COM PLACAS TIPO PORCELANATO DE DIMENSÕES 90X90 CM APLICADA EM AMBIENTES INTERNOS - MODELO ELIANE LIMESTONE AREIA POL OU SIMILAR | C201: M2 | D201: 404.631 | E201: 197.45 | F201: 79894.39
A202: 5.12.4 | B202: REVESTIMENTO CERÂMICO PARA PAREDES COM PLACAS TIPO PORCELANATO DE DIMENSÕES 14,5X90 CM APLICADA EM AMBIENTES INTERNOS - MODELO ELIANE LIMESTONE AREIA POL OU SIMILAR | C202: M2 | D202: 65.19055 | E202: 409.33 | F202: 26684.45
A203: 5.12.5 | B203: REVESTIMENTO CERAMICO PORTOBELLO GLACIE WHITE 30X60CM, INCLUSO E REJUNTE - FORNECIMENTO E INSTALAÇÃO (AZULEJO FORNECIDO PELO SESI) | C203: M2 | D203: 470.51 | E203: 84.59 | F203: 39800.44
A204: 5.12.6 | B204: REVESTIMENTO CERÂMICO PARA PAREDES EXTERNAS EM PASTILHAS JATOBÁ DE PORCELANA 5 X 5 CM (PLACAS DE 30 X 30 CM), ALINHADAS A PRUMO, JD. 4102 - PÉROLA OCEANO (JATOBÁ OU SIMILAR) | C204: M2 | D204: 35.74 | E204: 202.77 | F204: 7247
A206: 5.13 | B206: GRANITO | F206: =SUBTOTAL(9,F207:F210) -> 49621.49
A207: 5.13.1 | B207: BANCADA DE GRANITO CINZA ANDORINHA, SOBRE MÃOS-FRANCESAS METÁLICAS, ESP=2cm COM FRONTÃO 20cm, SAIA COM ACAB. DE MEIA ESQUADRIA E REFORÇO INFERIOR DE BORDA E CORTE PARA INST. DE CUBAS DE LOUÇA OVAL DE EMBUTIR LOCAL | C207: M2 | D207: 13.116 | E207: 782.35 | F207: =ROUND(D207*E207,2) -> 10261.3
A208: 5.13.2 | B208: PEITORIL LINEAR EM GRANITO OU MÁRMORE, L = 20CM, COMPRIMENTO DE ATÉ 2M, ASSENTADO COM ARGAMASSA 1:6 COM ADITIVO. AF_11/2020 | C208: M | D208: 25.43 | E208: 132.84 | F208: 3378.12
A209: 5.13.3 | B209: DIVISORIAS SANITARIAS DE BOXES E MICTÓRIOS DE GRANITO CINZA ANDORINHA E=3 CM ASSENTADA C/ ARGAMASSA, NO TRACO 1:4, INCLUSIVE MASSA PLÁSTICA E FERRAGENS | C209: M2 | D209: 51.776 | E209: 672.62 | F209: 34825.57
A210: 5.13.4 | B210: SOLEIRA EM GRANITO, LARGURA 15 CM, ESPESSURA 2,0 CM. AF_09/2020 | C210: M | D210: 12.22 | E210: 94.64 | F210: 1156.5
A212: 5.14 | B212: FORRO | F212: =SUBTOTAL(9,F213:F216) -> 56148.27
A213: 5.14.1 | B213: FORRO ACÚSTICO DE FIBRA MINERAL 625 MM X 625 MM TEGULAR, INSTALADOS EM PERFIL "T", SUPENSO POR PENDURAIS EM ARRAME GALVANIZADO A CADA 1250X1250MM (PLACAS DE FORRO FORNECIDO PELO SESI) | C213: M2 | D213: 1080.03 | E213: 38.88 | F213: =ROUND(D213*E213,2) -> 41991.57
A214: 5.14.2 | B214: FORRO DE GESSO ACARTONADO FIXO, MONOLÍTICA, APARAFUSADO EM PERFIS METÁLICOS ESPAÇADOS A 0,60 M, SUSPENSOS POR PENDURAIS RÍGIDOS REGULÁVEIS, ESPAÇADOS A CADA 1,00 M, E=12,5 MM | C214: M2 | D214: 43.32 | E214: 76.44 | F214: 3311.38
A215: 5.14.3 | B215: ACABAMENTOS PARA FORRO (SANCA DE GESSO MONTADA NA OBRA). AF_05/2017_P | C215: M2 | D215: 43.32 | E215: 54.91 | F215: =ROUND(D215*E215,2) -> 2378.7
A216: 5.14.4 | B216: FORRO DE PVC, LISO, PARA AMBIENTES COMERCIAIS, INCLUSIVE ESTRUTURA DE FIXAÇÃO. AF_05/2017_P | C216: M2 | D216: 93.05 | E216: 90.99 | F216: 8466.62
A218: 5.15 | B218: PINTURA | F218: =SUBTOTAL(9,F219:F226) -> 81230.77
A219: 5.15.1 | B219: APLICAÇÃO DE FUNDO SELADOR ACRÍLICO EM PAREDES, UMA DEMÃO. AF_06/2014 | C219: M2 | D219: 1316.84 | E219: 2.06 | F219: =ROUND(D219*E219,2) -> 2712.69
A220: 5.15.2 | B220: APLICAÇÃO E LIXAMENTO DE MASSA LÁTEX EM PAREDES, DUAS DEMÃOS. AF_06/2014 | C220: M2 | D220: 1316.84 | E220: 14.96 | F220: 19699.93
A221: 5.15.3 | B221: APLICAÇÃO MANUAL DE PINTURA COM TINTA LÁTEX ACRÍLICA EM PAREDES, DUAS DEMÃOS. AF_06/2014 | C221: M2 | D221: 1316.84 | E221: 15 | F221: =ROUND(D221*E221,2) -> 19752.6
A222: 5.15.4 | B222: TEXTURA ACRÍLICA, APLICAÇÃO MANUAL EM PAREDE, UMA DEMÃO. AF_09/2016 | C222: M2 | D222: 974.79 | E222: 15.6 | F222: 15206.72
A223: 5.15.5 | B223: APLICAÇÃO MANUAL DE TINTA LÁTEX ACRÍLICA EM PAREDE EXTERNAS, DUAS DEMÃOS. | C223: M2 | D223: 974.79 | E223: 15.82 | F223: 15421.18
A224: 5.15.6 | B224: APLICAÇÃO DE FUNDO SELADOR ACRÍLICO EM TETO, UMA DEMÃO. AF_06/2014 | C224: M2 | D224: 78.21 | E224: 2.46 | F224: 192.4
A225: 5.15.7 | B225: APLICAÇÃO E LIXAMENTO DE MASSA LÁTEX EM TETO, DUAS DEMÃOS. AF_06/2014 | C225: M2 | D225: 78.21 | E225: 26.7 | F225: 2088.21
A226: 5.15.8 | B226: APLICAÇÃO MANUAL DE PINTURA COM TINTA LÁTEX ACRÍLICA EM TETO, DUAS DEMÃOS. AF_06/2014 | C226: M2 | D226: 365.62 | E226: 16.84 | F226: 6157.04
A228: 5.16 | B228: CALÇAMENTO, PÁTIOS E PASSARELAS | F228: =SUBTOTAL(9,F229) -> 0
A230: 5.17 | B230: SERVIÇOS COMPLEMENTARES | F230: =SUBTOTAL(9,F232:F240) -> 125076.37
... 461 more rows

Sheet 6_BLOCO E (hidden)
A1: PLANILHA ORÇAMENTARIA | D1: SPN-FF-003
D3: Folha: 1 de 1 | E3: Revisão: 02 | F3: Data: 07/10/19
A5: SESI - SERVIÇO SOCIAL DA INDUSTRIA - DR/MT
A6: OBRA: CONTRATAÇÃO DE EMPRESA ESPECIALIZADA PARA CONTINUIDADE DA EXECUÇÃO DA OBRA DE REFORMA E AMPLIAÇÃO DA UNIDADE DO SESI ESCOLA VÁRZEA GRANDE/MT.
A7: UNIDADE OPERACIONAL: SESI ESCOLA VÁRZEA GRANDE
A8: ENDEREÇO: AV. DOM ORLANDO CHAVES, N.º 1.086, PONTE NOVA - CRISTO REI CIDADE: VÁRZEA GRANDE/MT
A9: CONSTRUTORA:
A10: RESPONSÁVEL TÉCNICO:
A11: BASE SINAPI UTILIZADA: 06/2021
A12: ITEM | B12: DESCRIÇÃO | C12: UNID. | D12: QUANT. | E12: Valor UNIT. (R$) | F12: Valor Total (R$)
A14: 6 | B14: BLOCO E
A16: 6.0 | B16: DEMOLIÇÕES E RETIRADAS | F16: =SUBTOTAL(9,F17:F22) -> 22786.99
A17: 6.0.1 | B17: DEMOLIÇÃO | F17: =SUBTOTAL(9,F18:F22) -> 22786.99
A18: 6.0.1.1 | B18: DEMOLIÇÃO DE ALVENARIA DE BLOCO FURADO, DE FORMA MANUAL, SEM REAPROVEITAMENTO. AF_12/2017 | C18: M3 | D18: 4.93 | E18: 49.97 | F18: =ROUND(D18*E18,2) -> 246.35
A19: 6.0.1.2 | B19: REMOÇÃO DE PORTAS, DE FORMA MANUAL, SEM REAPROVEITAMENTO, ARMAZENAMENTO EM LOCAL INDICADO PELA FISCALIZAÇÃO | C19: M2 | D19: 5.04 | E19: 8.14 | F19: 41.03
A20: 6.0.1.3 | B20: DEMOLIÇÃO DE REVESTIMENTO CERÂMICO, DE FORMA MECANIZADA COM MARTELETE, SEM REAPROVEITAMENTO. AF_12/2017 | C20: M2 | D20: 18.3 | E20: 10.45 | F20: 191.24
A21: 6.0.1.4 | B21: DEMOLIÇÃO DE CONTRAPISO, DE FORMA MECANIZADA COM MARTELETE, SEM REAPROVEITAMENTO. AF_12/2017 | C21: M3 | D21: 119.7945 | E21: 106.24 | F21: 12726.97
A22: 6.0.1.5 | B22: BOTA FORA DE MATERIAL DESCARTADO, D.M.T. = 10 km - (CARGA, TRANSPORTE E DESCARGA MECÂNICA) | C22: M3 | D22: 163.31 | E22: 58.67 | F22: 9581.4
A24: 6.1 | B24: INSTALAÇÕES DE CANTEIRO | F24: =SUBTOTAL(9,F25) -> 0
A26: 6.2 | B26: ADMINISTRAÇÃO | F26: =SUBTOTAL(9,F27) -> 0
A28: 6.3 | B28: TERRAPLENAGEM | F28: =SUBTOTAL(9,F29) -> 0
A30: 6.4 | B30: FUNDAÇÃO | F30: =SUBTOTAL(9,F31) -> 0
A32: 6.5 | B32: IMPERMEABILIZAÇÃO | F32: =SUBTOTAL(9,F33:F33) -> 0
A34: 6.6 | B34: ESTRUTURAS DE CONCRETO ARMADO | F34: =SUBTOTAL(9,F35:F35) -> 0
A36: 6.7 | B36: ALVENARIAS E PAINÉIS | F36: =SUBTOTAL(9,F37:F40) -> 31087.39
A37: 6.7.1 | B37: ALVENARIA DE VEDAÇÃO DE BLOCOS CERÂMICOS FURADOS NA HORIZONTAL DE 9X19X19CM (ESPESSURA 9CM) DE PAREDES COM ÁREA LÍQUIDA MAIOR OU IGUAL A 6M² COM VÃOS E ARGAMASSA DE ASSENTAMENTO COM PREPARO EM BETONEIRA. AF_06/2014 | C37: M2 | D37: 259.6 | E37: 89.93 | F37: =ROUND(D37*E37,2) -> 23345.83
A38: 6.7.2 | B38: VERGA MOLDADA IN LOCO EM CONCRETO PARA JANELAS COM MAIS DE 1,5 M DE VÃO. AF_03/2016 | C38: M | D38: 37.8 | E38: 91.19 | F38: 3446.98
A39: 6.7.3 | B39: CONTRAVERGA MOLDADA IN LOCO EM CONCRETO PARA VÃOS DE MAIS DE 1,5 M DE COMPRIMENTO. AF_03/2016 | C39: M | D39: 37.8 | E39: 82.78 | F39: 3129.08
A40: 6.7.4 | B40: VERGA MOLDADA IN LOCO EM CONCRETO PARA PORTAS COM MAIS DE 1,5 M DE VÃO. AF_03/2016 | C40: M | D40: 12.6 | E40: 92.5 | F40: 1165.5
A42: 6.8 | B42: ESTRUTURA MTÁLICA - JÁ EXECUTADO | F42: =SUBTOTAL(9,F43) -> 0
A44: 6.9 | B44: COBERTURA | F44: =SUBTOTAL(9,F45:F46) -> 74093.97
A45: 6.9.1 | B45: CUMEEIRA METÁLICA AÇO GALVALUME TRAPEZOIDAL 40 40X60CM - FORNECIMENTO E INSTALAÇÃO | C45: M | D45: 68.9 | E45: 84.19 | F45: =ROUND(D45*E45,2) -> 5800.69
A46: 6.9.2 | B46: TELHAMENTO COM TELHA DE AÇO/ALUMÍNIO E = 0,5 MM, COM ATÉ 2 ÁGUAS, INCLUSO IÇAMENTO. AF_07/2019 | C46: M2 | D46: 648.436 | E46: 105.32 | F46: 68293.28
A48: 6.10 | B48: ESQUADRIAS | F48: =SUBTOTAL(9,F49:F52) -> 24009.49
A49: 6.10.1 | B49: P4 - PORTA EM ALUMÍNIO DE ABRIR TIPO VENEZIANA COM GUARNIÇÃO, FIXAÇÃO COM PARAFUSOS - FORNECIMENTO E INSTALAÇÃO | C49: M2 | D49: 2.52 | E49: 679.02 | F49: =ROUND(D49*E49,2) -> 1711.13
A50: 6.10.2 | B50: P9 - PORTA VENEZIANA DE ABRIR UMA FOLHA EM ALUMÍNIO ANODIZADO NATURAL FOSCO, DIM. 0,90 X 2,10m, INCLUSIVE FERRAGENS DE INSTALAÇÃO PARA PERFEITO USO E FUNCIONAMENTO | C50: UN | D50: 4 | E50: 1283.34 | F50: 5133.36
A51: 6.10.3 | B51: J1 - JANELA MAXIM-AR COM ESTRUTURA DE ALUMÍNIO ANODIZADO NATURAL E VIDRO TEMPERADO FUMÊ 6 mm - DIM. 1,00X0,60M, COMPLETA, INCLUSIVE FERRAGENS, FECHADURA, PUXADORES E VEDAÇÕES - BANDEIRAS CONFORME PROJETO | C51: UN | D51: 17 | E51: 668.64 | F51: 11366.88
A52: 6.10.4 | B52: J2 - JANELA MAXIM-AR COM ESTRUTURA DE ALUMÍNIO ANODIZADO NATURAL E VIDRO TEMPERADO INCOLOR 6 mm - DIM. 2,00X1,50M, COMPLETA, INCLUSIVE FERRAGENS, FECHADURA, PUXADORES E VEDAÇÕES - BANDEIRAS CONFORME PROJETO | C52: UN | D52: 2 | E52: 2899.06 | F52: 5798.12
A54: 6.11 | B54: PISOS | F54: =SUBTOTAL(9,F55:F60) -> 55193.63
A55: 6.11.1 | B55: CONTRAPISO DE CONCRETO, ESPESSURA 7CM, PREPARO MECANICO | C55: M2 | D55: 205.46 | E55: 42.03 | F55: =ROUND(D55*E55,2) -> 8635.48
A56: 6.11.2 | B56: EXECUÇÃO DE PISO DE CONCRETO COM CONCRETO MOLDADO IN LOCO, USINADO, ACABAMENTO CONVENCIONAL, NÃO ARMADO - ESPESSURA DE 7CM | C56: M3 | D56: 41.52 | E56: 749.98 | F56: 31139.17
A57: 6.11.3 | B57: ARMAÇÃO PARA EXECUÇÃO DE RADIER, COM USO DE TELA Q-92. AF_09/2017 - CONSIDERADO USO DE TELAS NO CONTRAPISO, 1,48KG/M². | C57: KG | D57: 61.4496 | E57: 34.2 | F57: 2101.58
A58: 6.11.4 | B58: PISO EM GRANILITE, MARMORITE OU GRANITINA EM AMBIENTES INTERNOS. AF_09/2020 | C58: M2 | D58: 205.46 | E58: 46.11 | F58: 9473.76
A59: 6.11.5 | B59: RODAPÉ EM MARMORITE, ALTURA 10CM. AF_09/2020 | C59: M | D59: 180.03 | E59: 21.35 | F59: 3843.64
A61: 6.12 | B61: REVESTIMENTOS | F61: =SUBTOTAL(9,F62:F64) -> 33979.07
A62: 6.12.1 | B62: CHAPISCO APLICADO EM ALVENARIAS E ESTRUTURAS DE CONCRETO INTERNAS, COM ROLO PARA TEXTURA ACRÍLICA. ARGAMASSA TRAÇO 1:4 E EMULSÃO POLIMÉRICA (ADESIVO) COM PREPARO EM BETONEIRA 400L. AF_06/2014 | C62: M2 | D62: 497.4 | E62: 8.59 | F62: =ROUND(D62*E62,2) -> 4272.67
A63: 6.12.2 | B63: EMBOÇO OU MASSA ÚNICA EM ARGAMASSA TRAÇO 1:2:8, PREPARO MECÂNICO COM BETONEIRA 400 L, APLICADA MANUALMENTE EM PANOS DE FACHADA COM PRESENÇA DE VÃOS, ESPESSURA DE 25 MM. AF_06/2014 | C63: M2 | D63: 497.4 | E63: 55.05 | F63: 27381.87
A64: 6.12.3 | B64: REVESTIMENTO CERAMICO PORTOBELLO GLACIE WHITE 30X60CM, INCLUSO E REJUNTE - FORNECIMENTO E INSTALAÇÃO (AZULEJO FORNECIDO PELO SESI) | C64: M2 | D64: 27.48 | E64: 84.59 | F64: 2324.53
A66: 6.13 | B66: GRANITO | F66: =SUBTOTAL(9,F67:F67) -> 3785.94
A67: 6.13.1 | B67: PEITORIL LINEAR EM GRANITO OU MÁRMORE, L = 20CM, COMPRIMENTO DE ATÉ 2M, ASSENTADO COM ARGAMASSA 1:6 COM ADITIVO. AF_11/2020 | C67: M | D67: 28.5 | E67: 132.84 | F67: =ROUND(D67*E67,2) -> 3785.94
A69: 6.14 | B69: FORRO | F69: =SUBTOTAL(9,F70:F70) -> 37792.7
A70: 6.14.1 | B70: FORRO DE PVC, LISO, PARA AMBIENTES COMERCIAIS, INCLUSIVE ESTRUTURA DE FIXAÇÃO. AF_05/2017_P | C70: M2 | D70: 415.35 | E70: 90.99 | F70: =ROUND(D70*E70,2) -> 37792.7
A72: 6.15 | B72: PINTURA | F72: =SUBTOTAL(9,F73:F77) -> 47153.13
A73: 6.15.1 | B73: APLICAÇÃO DE FUNDO SELADOR ACRÍLICO EM PAREDES, UMA DEMÃO. AF_06/2014 | C73: M2 | D73: 638.14 | E73: 2.06 | F73: =ROUND(D73*E73,2) -> 1314.57
A74: 6.15.2 | B74: APLICAÇÃO E LIXAMENTO DE MASSA LÁTEX EM PAREDES, DUAS DEMÃOS. AF_06/2014 | C74: M2 | D74: 638.14 | E74: 14.96 | F74: 9546.57
A75: 6.15.3 | B75: APLICAÇÃO MANUAL DE PINTURA COM TINTA LÁTEX ACRÍLICA EM PAREDES, DUAS DEMÃOS. AF_06/2014 | C75: M2 | D75: 638.14 | E75: 15 | F75: =ROUND(D75*E75,2) -> 9572.1
A76: 6.15.4 | B76: TEXTURA ACRÍLICA, APLICAÇÃO MANUAL EM PAREDE, UMA DEMÃO. AF_09/2016 | C76: M2 | D76: 850.41 | E76: 15.6 | F76: 13266.4
A77: 6.15.5 | B77: APLICAÇÃO MANUAL DE TINTA LÁTEX ACRÍLICA EM PAREDE EXTERNAS, DUAS DEMÃOS. | C77: M2 | D77: 850.41 | E77: 15.82 | F77: 13453.49
A79: 6.16 | B79: CALÇAMENTO, PÁTIOS E PASSARELAS | F79: =SUBTOTAL(9,F80) -> 0
A81: 6.17 | B81: SERVIÇOS COMPLEMENTARES | F81: =SUBTOTAL(9,F82) -> 0
A83: 6.18 | B83: INSTALAÇÕES DE SPDA | F83: =SUBTOTAL(9,F84) -> 0
A85: 6.19 | B85: INSTALAÇÃO DE COMBATE A INCÊNDIO | F85: =SUBTOTAL(9,F86) -> 0
A87: 6.20 | B87: INSTALAÇÕES ELÉTRICA | F87: =SUBTOTAL(9,F88:F211) -> 67021.22
A88: 6.20.1 | B88: INSTALAÇÕES ELÉTRICA BAIXA TENSÃO E AR CONDICONADO | F88: =SUBTOTAL(9,F89:F148) -> 59230.07
A89: 6.20.1.1 | B89: ACESSÓRIOS P/ELETRODUTO E USO GERAL | F89: =SUBTOTAL(9,F90:F104) -> 7571.72
A90: 6.20.1.1.1 | B90: FORNECIMENTO E INSTALAÇÃO DE ABRAÇADEIRA DE AÇO, TIPO D, 3/4", COM CUNHA | C90: UN | D90: 80 | E90: 6.59 | F90: =ROUND(D90*E90,2) -> 527.2
A91: 6.20.1.1.2 | B91: FORNECIMENTO E INSTALAÇÃO DE BUCHA E ARRUELA ALUMÍNIO FUNDIDO PARA ELETRODUTO (ZAMAK) 3/4" | C91: UN | D91: 41 | E91: 2.03 | F91: 83.23
A92: 6.20.1.1.3 | B92: FORNECIMENTO E INSTALAÇÃO DE BOX RETO PARA ELETRODUTO 3/4" | C92: UN | D92: 41 | E92: 5.68 | F92: 232.88
A93: 6.20.1.1.4 | B93: FORNECIMENTO E INSTALAÇÃO DE PRENSA CABO 1/2" | C93: UN | D93: 91 | E93: 30.33 | F93: 2760.03
A94: 6.20.1.1.5 | B94: CAIXA RETANGULAR 4" X 2" PVC - FORNECIMENTO E INSTALAÇÃO. | C94: UN | D94: 32 | E94: 8.96 | F94: 286.72
A95: 6.20.1.1.6 | B95: FORNECIMENTO E INSTALAÇÃO DE PLACA CEGA PVC 4X2" | C95: UN | D95: 2 | E95: 4.82 | F95: 9.64
A96: 6.20.1.1.7 | B96: FORNECIMENTO E INSTALAÇÃO DE SAÍDA LATERAL PERFILADO P/ ELETRODUTO 3/4" | C96: UN | D96: 21 | E96: 18.51 | F96: 388.71
A97: 6.20.1.1.8 | B97: FORNECIMENTO E INSTALAÇÃO DE ARAME AÇO GALVANIZADO 18 BWG, 1,24MM (0,009 KG/M) | C97: M | D97: 90 | E97: 0.77 | F97: 69.3
A98: 6.20.1.1.9 | B98: FORNECIMENTO E INSTALAÇÃO DE ARRUELA LISA GALVANIZADA 1/4" | C98: UN | D98: 232 | E98: 0.59 | F98: 136.88
A99: 6.20.1.1.10 | B99: FORNECIMENTO E INSTALAÇÃO DE BUCHA / PARAFUSO S8 | C99: UN | D99: 122 | E99: 4.44 | F99: 541.68
A100: 6.20.1.1.11 | B100: FORNECIMENTO E INSTALAÇÃO DE BUCHA / PARAFUSO S10 | C100: UN | D100: 12 | E100: 4.75 | F100: 57
A101: 6.20.1.1.12 | B101: FORNECIMENTO E INSTALAÇÃO DE CHUMBADOR PARABOLT AÇO 1/4" X 3" | C101: UN | D101: 95 | E101: 13.59 | F101: 1291.05
A102: 6.20.1.1.13 | B102: FORNECIMENTO E INSTALAÇÃO DE PARAFUSO GALVAN. CABEÇA LOSANGULAR 1/4"X1" - AUTO TRAVANTE PERFILADO | C102: UN | D102: 42 | E102: 6.88 | F102: 288.96
A103: 6.20.1.1.14 | B103: FORNECIMENTO E INSTALAÇÃO DE PORCA SEXTAVADA GALVAN. 1/4" | C103: UN | D103: 232 | E103: 0.42 | F103: 97.44
A104: 6.20.1.1.15 | B104: FORNECIMENTO E INSTALAÇÃO DE VERGALHÃO GALVANIZADO ROSCA TOTAL 1/4" | C104: M | D104: 45 | E104: 17.8 | F104: 801
A106: 6.20.1.2 | B106: CABOS | F106: =SUBTOTAL(9,F107:F109) -> 10481.7
A107: 6.20.1.2.1 | B107: FORNECIMENTO E INSTALAÇÃO DE CABO DE COBRE FLEXÍVEL ISOL. TERMOPLASTICO ATOX 750V - 2,5 MM² (TP SINTENAX PIRELLI OU SIMILAR) | C107: M | D107: 1600 | E107: 4.83 | F107: =ROUND(D107*E107,2) -> 7728
A108: 6.20.1.2.2 | B108: FORNECIMENTO E INSTALAÇÃO DE CABO DE COBRE FLEXÍVEL ISOL. TERMOPLASTICO ATOX 750V - 4 MM² (TP SINTENAX PIRELLI OU SIMILAR) | C108: M | D108: 190 | E108: 7.06 | F108: 1341.4
A109: 6.20.1.2.3 | B109: FORNECIMENTO E INSTALAÇÃO DE CABO DE COBRE PP 3X2,5MM² - ISOL. TERMOPLASTICO ATOX 750V | C109: M | D109: 290 | E109: 4.87 | F109: 1412.3
A111: 6.20.1.3 | B111: DISPOSITIVO ELÉTRICO EMBUTIDO | F111: =SUBTOTAL(9,F112:F115) -> 1069.5
A112: 6.20.1.3.1 | B112: INTERRUPTOR SIMPLES (1 MÓDULO), 10A/250V, INCLUINDO SUPORTE E PLACA - FORNECIMENTO E INSTALAÇÃO. AF_12/2015 | C112: UN | D112: 3 | E112: 24.35 | F112: =ROUND(D112*E112,2) -> 73.05
A113: 6.20.1.3.2 | B113: INTERRUPTOR SIMPLES (2 MÓDULOS), 10A/250V, INCLUINDO SUPORTE E PLACA - FORNECIMENTO E INSTALAÇÃO. AF_12/2015 | C113: UN | D113: 7 | E113: 38.52 | F113: 269.64
A114: 6.20.1.3.3 | B114: TOMADA DE EMBUTIR (1 MÓDULO), 2P+T 10 A, INCLUINDO SUPORTE E PLACA - FORNECIMENTO E INSTALAÇÃO. AF_12/2015 | C114: UN | D114: 1 | E114: 25.73 | F114: 25.73
A115: 6.20.1.3.4 | B115: TOMADA DE EMBUTIR (2 MÓDULOS), 2P+T 10 A, INCLUINDO SUPORTE E PLACA - FORNECIMENTO E INSTALAÇÃO. AF_12/2015 | C115: UN | D115: 17 | E115: 41.24 | F115: 701.08
A117: 6.20.1.4 | B117: DISPOSITIVO DE PROTEÇÃO | F117: =SUBTOTAL(9,F118:F122) -> 1333.24
A118: 6.20.1.4.1 | B118: DISJUNTOR MONOPOLAR TIPO DIN, CORRENTE NOMINAL DE 16A - FORNECIMENTO E INSTALAÇÃO. AF_10/2020 | C118: UN | D118: 9 | E118: 13.72 | F118: =ROUND(D118*E118,2) -> 123.48
A119: 6.20.1.4.2 | B119: DISJUNTOR BIPOLAR TIPO DIN, CORRENTE NOMINAL DE 16A - FORNECIMENTO E INSTALAÇÃO. AF_10/2020 | C119: UN | D119: 1 | E119: 67.28 | F119: 67.28
A120: 6.20.1.4.3 | B120: DISJUNTOR BIPOLAR TIPO DIN, CORRENTE NOMINAL DE 25A - FORNECIMENTO E INSTALAÇÃO. AF_10/2020 | C120: UN | D120: 2 | E120: 69.51 | F120: 139.02
A121: 6.20.1.4.4 | B121: FORNECIMENTO E INSTALAÇÃO DE DISJUNTOR TRIPOLAR TERMOMAGNÉTICO EM CAIXA MOLDADA - 150A (REF.: MARCA SIEMENS, WEG OU SIMILAR) | C121: UN | D121: 1 | E121: 490.5 | F121: 490.5
A122: 6.20.1.4.5 | B122: FORNECIMENTO E INSTALAÇÃO DE DISPOSITIVO DPS, 1 POLO, 175 V, 45 KA | C122: UN | D122: 4 | E122: 128.24 | F122: 512.96
A124: 6.20.1.5 | B124: ELETROCALHAS / PERFILADOS | F124: =SUBTOTAL(9,F125:F129) -> 5741.5
A125: 6.20.1.5.1 | B125: FORNECIMENTO E INSTALAÇÃO DE EMENDA INTERNA TIPO "I" P/ PERFILADO METÁLICO 38X38MM - CHAPA 18 | C125: UN | D125: 19 | E125: 20.4 | F125: =ROUND(D125*E125,2) -> 387.6
A126: 6.20.1.5.2 | B126: FORNECIMENTO E INSTALAÇÃO DE EMENDA INTERNA TIPO "L" P/ PERFILADO METÁLICO 38X38MM - CHAPA 18 | C126: UN | D126: 6 | E126: 22.84 | F126: 137.04
A127: 6.20.1.5.3 | B127: FORNECIMENTO E INSTALAÇÃO DE EMENDA INTERNA TIPO "T" P/ PERFILADO METÁLICO 38X38MM - CHAPA 18 | C127: UN | D127: 5 | E127: 37.17 | F127: 185.85
A128: 6.20.1.5.4 | B128: FORNECIMENTO E INSTALAÇÃO DE PERFILADO PERFURADO METÁLICO 38X38MM, COM TAMPA - CHAPA 18 | C128: M | D128: 114 | E128: 30.59 | F128: 3487.26
A129: 6.20.1.5.5 | B129: FORNECIMENTO E INSTALAÇÃO DE SUPORTE CURTO P/ PERFILADO METÁLICO 38X38MM | C129: UN | D129: 95 | E129: 16.25 | F129: 1543.75
A131: 6.20.1.6 | B131: ELETRODUTOS | F131: =SUBTOTAL(9,F132:F132) -> 990.4
A132: 6.20.1.6.1 | B132: ELETRODUTO FLEXÍVEL CORRUGADO, PVC, DN 25 MM (3/4") - FORNECIMENTO E INSTALAÇÃO. | C132: M | D132: 160 | E132: 6.19 | F132: =ROUND(D132*E132,2) -> 990.4
A134: 6.20.1.7 | B134: LUMINÁRIAS E ACESSÓRIOS | F134: =SUBTOTAL(9,F135:F136) -> 29408.26
A135: 6.20.1.7.1 | B135: FORNECIMENTO E INSTALAÇÃO DE LUMINÁRIA QUADRADA ALETAS REFLEXIVAS DE EMBUTIR, MODULAR 60X60CM, COM 4 LÂMPADAS TUBULARES LED T8 9W, TEMPERATURA DE COR 6.000K, TOTAL DE FLUXO LUMINOSO ENTRE 3.200 A 4.000 LUMENS, COM CORPO EM CHAPA METÁLICA PINTADA ELETROSTA | C135: UN | D135: 52 | E135: 465.33 | F135: =ROUND(D135*E135,2) -> 24197.16
A136: 6.20.1.7.2 | B136: FORNECIMENTO E INSTALAÇÃO DE LUMINÁRIA QUADRADA ALETAS REFLEXIVAS DE EMBUTIR, MODULAR 60X60CM, COM 4 LÂMPADAS TUBULARES LED T8 9W, TEMPERATURA DE COR 6.000K, TOTAL DE FLUXO LUMINOSO ENTRE 3.200 A 4.000 LUMENS, COM CORPO EM CHAPA METÁLICA PINTADA ELETROSTATICAMENTE, INCLUSIVE SOQUETES T8 E ACESSÓRIOS DE FIXAÇÃO (EXCLUSIVE LUMINÁRIA, FORNECIDA PELO SESI MT) | C136: UN | D136: 41 | E136: 127.1 | F136: =ROUND(D136*E136,2) -> 5211.1
A138: 6.20.1.8 | B138: QUADRO DE DISTRIBUIÇÃO | F138: =SUBTOTAL(9,F139:F139) -> 2187.25
A139: 6.20.1.8.1 | B139: FORNECIMENTO E INSTALAÇÃO DE QUADRO DE DISTRIBUIÇÃO DE SOBREPOR, EM CHAPA PINTADA, COM BARRAMENTO TRIFÁSICO DE 150A, CAPACIDADE PARA: 44 DISJUNTORES UNIPOLARES TIPO DIN, INCLUSIVE BARRAMENTO NEUTRO E TERRA, COMPLETO | C139: UN | D139: 1 | E139: 2187.25 | F139: =ROUND(D139*E139,2) -> 2187.25
A141: 6.20.1.9 | B141: TERMINAIS | F141: =SUBTOTAL(9,F142:F148) -> 446.5
A142: 6.20.1.9.1 | B142: FORNECIMENTO E INSTALAÇÃO DE TERMINAL DE COMPRESSÃO 1,5 - 2,5MM² | C142: UN | D142: 40 | E142: 4.49 | F142: =ROUND(D142*E142,2) -> 179.6
A143: 6.20.1.9.2 | B143: FORNECIMENTO E INSTALAÇÃO DE TERMINAL DE COMPRESSÃO 4 - 6MM² | C143: UN | D143: 14 | E143: 7.88 | F143: 110.32
A144: 6.20.1.9.3 | B144: FORNECIMENTO E INSTALAÇÃO DE TERMINAL DE COMPRESSÃO 35MM² | C144: UN | D144: 2 | E144: 9.59 | F144: 19.18
A145: 6.20.1.9.4 | B145: FORNECIMENTO E INSTALAÇÃO DE TERMINAL DE COMPRESSÃO 70MM² | C145: UN | D145: 5 | E145: 13.02 | F145: 65.1
A146: 6.20.1.9.5 | B146: FORNECIMENTO E INSTALAÇÃO DE ABRAÇADEIRA NYLON 3,5X300MM | C146: UN | D146: 50 | E146: 0.33 | F146: 16.5
A147: 6.20.1.9.6 | B147: FORNECIMENTO E INSTALAÇÃO DE FITA ISOLANTE DE BORRACHA AUTO-FUSÃO | C147: UN | D147: 1 | E147: 2.04 | F147: 2.04
A148: 6.20.1.9.7 | B148: FORNECIMENTO E INSTALAÇÃO DE FITA ISOLANTE 19MMX20M | C148: UN | D148: 3 | E148: 17.92 | F148: 53.76
A150: 6.20.2 | B150: ELÉTRICA ILUMINAÇÃO EXTERNA - BLOCO E | F150: =SUBTOTAL(9,F151:F183) -> 5523.51
A151: 6.20.2.1 | B151: ACESSÓRIOS P/ELETRODUTO E USO GERAL | F151: =SUBTOTAL(9,F152:F160) -> 327.47
A152: 6.20.2.1.1 | B152: FORNECIMENTO E INSTALAÇÃO DE ABRAÇADEIRA DE AÇO, TIPO D, 3/4", COM CUNHA | C152: UN | D152: 3 | E152: 6.59 | F152: =ROUND(D152*E152,2) -> 19.77
A153: 6.20.2.1.2 | B153: FORNECIMENTO E INSTALAÇÃO DE BUCHA E ARRUELA ALUMÍNIO FUNDIDO PARA ELETRODUTO (ZAMAK) 3/4" | C153: UN | D153: 1 | E153: 2.03 | F153: 2.03
A154: 6.20.2.1.3 | B154: FORNECIMENTO E INSTALAÇÃO DE BOX RETO PARA ELETRODUTO 3/4" | C154: UN | D154: 1 | E154: 5.68 | F154: 5.68
A155: 6.20.2.1.4 | B155: FORNECIMENTO E INSTALAÇÃO DE PRENSA CABO 1/2" | C155: UN | D155: 6 | E155: 30.33 | F155: 181.98
A156: 6.20.2.1.5 | B156: CAIXA RETANGULAR 4" X 2" PVC - FORNECIMENTO E INSTALAÇÃO. | C156: UN | D156: 2 | E156: 8.96 | F156: 17.92
A157: 6.20.2.1.6 | B157: FORNECIMENTO E INSTALAÇÃO DE ARRUELA LISA GALVANIZADA 1/4" | C157: UN | D157: 1 | E157: 0.59 | F157: 0.59
A158: 6.20.2.1.7 | B158: FORNECIMENTO E INSTALAÇÃO DE BUCHA / PARAFUSO S8 | C158: UN | D158: 20 | E158: 4.44 | F158: 88.8
A159: 6.20.2.1.8 | B159: FORNECIMENTO E INSTALAÇÃO DE PARAFUSO GALVAN. CABEÇA LENTILHA 1/4X5/8" | C159: UN | D159: 2 | E159: 4.93 | F159: 9.86
A160: 6.20.2.1.9 | B160: FORNECIMENTO E INSTALAÇÃO DE PORCA SEXTAVADA GALVAN. 1/4" | C160: UN | D160: 2 | E160: 0.42 | F160: 0.84
A162: 6.20.2.2 | B162: CABOS | F162: =SUBTOTAL(9,F163:F164) -> 3812.9
A163: 6.20.2.2.1 | B163: FORNECIMENTO E INSTALAÇÃO DE CABO DE COBRE FLEXÍVEL ISOL. TERMOPLASTICO ATOX 750V - 2,5 MM² (TP SINTENAX PIRELLI OU SIMILAR) | C163: M | D163: 450 | E163: 4.83 | F163: =ROUND(D163*E163,2) -> 2173.5
A164: 6.20.2.2.2 | B164: FORNECIMENTO E INSTALAÇÃO DE CABO DE COBRE PP 4 X 2,5 MM² | C164: M | D164: 70 | E164: 23.42 | F164: 1639.4
A166: 6.20.2.3 | B166: DISPOSITIVO ELÉTRICO EMBUTIDO | F166: =SUBTOTAL(9,F167) -> 77.04
A167: 6.20.2.3.1 | B167: INTERRUPTOR SIMPLES (2 MÓDULOS), 10A/250V, INCLUINDO SUPORTE E PLACA - FORNECIMENTO E INSTALAÇÃO. AF_12/2015 | C167: UN | D167: 2 | E167: 38.52 | F167: =ROUND(D167*E167,2) -> 77.04
A169: 6.20.2.4 | B169: DISPOSITIVO ELÉTRICO SOBREPOR | F169: =SUBTOTAL(9,F170) -> 626.34
A170: 6.20.2.4.1 | B170: SENSOR DE PRESENÇA PARA ILUMINAÇÃO, 100W, 127V, COM ÂNGULO DE DETECÇÃO DE 180º, FUNÇÃO FOTOCÉLULA AJUSTÁVEL, FUNÇÃO TEMPORIZADOR AJUSTÁVEL, DISTÂNCIA DE DETECÇÃO 12 METROS, SOBREPOR - FORNECIMENTO E INSTALAÇÃO. | C170: UN | D170: 6 | E170: 104.39 | F170: =ROUND(D170*E170,2) -> 626.34
A172: 6.20.2.5 | B172: DISPOSITIVO DE PROTEÇÃO | F172: =SUBTOTAL(9,F173) -> 13.72
A173: 6.20.2.5.1 | B173: DISJUNTOR MONOPOLAR TIPO DIN, CORRENTE NOMINAL DE 16A - FORNECIMENTO E INSTALAÇÃO. AF_10/2020 | C173: UN | D173: 1 | E173: 13.72 | F173: =ROUND(D173*E173,2) -> 13.72
A175: 6.20.2.6 | B175: ELETRODUTOS | F175: =SUBTOTAL(9,F176) -> 30.95
A176: 6.20.2.6.1 | B176: ELETRODUTO FLEXÍVEL CORRUGADO, PVC, DN 25 MM (3/4") - FORNECIMENTO E INSTALAÇÃO. | C176: M | D176: 5 | E176: 6.19 | F176: =ROUND(D176*E176,2) -> 30.95
A178: 6.20.2.7 | B178: LUMINÁRIAS E ACESSÓRIOS | F178: =SUBTOTAL(9,F179) -> 594.72
A179: 6.20.2.7.1 | B179: FORNECIMENTO E INSTALAÇÃO DE REFLETOR HOLOFOTE LED 50W, IP 66, ÂNGULO DE ABERTURA DE 120°, TEMPERATURA DE COR 6000K (REF.: ILUMINIM RSPM-50WBF OU SIMILAR) | C179: UN | D179: 8 | E179: 74.34 | F179: =ROUND(D179*E179,2) -> 594.72
A181: 6.20.2.8 | B181: TERMINAIS | F181: =SUBTOTAL(9,F182:F183) -> 40.37
A182: 6.20.2.8.1 | B182: FORNECIMENTO E INSTALAÇÃO DE TERMINAL DE COMPRESSÃO 1,5 - 2,5MM² | C182: UN | D182: 5 | E182: 4.49 | F182: =ROUND(D182*E182,2) -> 22.45
A183: 6.20.2.8.2 | B183: FORNECIMENTO E INSTALAÇÃO DE FITA ISOLANTE 19MMX20M | C183: UN | D183: 1 | E183: 17.92 | F183: 17.92
A185: 6.20.3 | B185: ELÉTRICA ILUMINAÇÃO EMERGÊNCIA - BLOCO E | F185: =SUBTOTAL(9,F186:F211) -> 2267.64
A186: 6.20.3.1 | B186: ACESSÓRIOS P/ELETRODUTO E USO GERAL | F186: =SUBTOTAL(9,F187:F195) -> 492.75
A187: 6.20.3.1.1 | B187: FORNECIMENTO E INSTALAÇÃO DE ABRAÇADEIRA DE AÇO, TIPO D, 3/4", COM CUNHA | C187: UN | D187: 15 | E187: 6.59 | F187: =ROUND(D187*E187,2) -> 98.85
A188: 6.20.3.1.2 | B188: FORNECIMENTO E INSTALAÇÃO DE BUCHA E ARRUELA ALUMÍNIO FUNDIDO PARA ELETRODUTO (ZAMAK) 3/4" | C188: UN | D188: 7 | E188: 2.03 | F188: 14.21
A189: 6.20.3.1.3 | B189: FORNECIMENTO E INSTALAÇÃO DE BOX RETO PARA ELETRODUTO 3/4" | C189: UN | D189: 7 | E189: 5.68 | F189: 39.76
A190: 6.20.3.1.4 | B190: CAIXA RETANGULAR 4" X 2" PVC - FORNECIMENTO E INSTALAÇÃO. | C190: UN | D190: 9 | E190: 8.96 | F190: 80.64
A191: 6.20.3.1.5 | B191: FORNECIMENTO E INSTALAÇÃO DE SAÍDA LATERAL PERFILADO P/ ELETRODUTO 3/4" | C191: UN | D191: 7 | E191: 18.51 | F191: 129.57
A192: 6.20.3.1.6 | B192: FORNECIMENTO E INSTALAÇÃO DE ARRUELA LISA GALVANIZADA 1/4" | C192: UN | D192: 8 | E192: 0.59 | F192: 4.72
A193: 6.20.3.1.7 | B193: FORNECIMENTO E INSTALAÇÃO DE BUCHA / PARAFUSO S8 | C193: UN | D193: 15 | E193: 4.44 | F193: 66.6
A194: 6.20.3.1.8 | B194: FORNECIMENTO E INSTALAÇÃO DE PARAFUSO GALVAN. CABEÇA LOSANGULAR 1/4"X1" - AUTO TRAVANTE PERFILADO | C194: UN | D194: 8 | E194: 6.88 | F194: 55.04
A195: 6.20.3.1.9 | B195: FORNECIMENTO E INSTALAÇÃO DE PORCA SEXTAVADA GALVAN. 1/4" | C195: UN | D195: 8 | E195: 0.42 | F195: 3.36
A197: 6.20.3.2 | B197: CABOS | F197: =SUBTOTAL(9,F198:F198) -> 1304.1
A198: 6.20.3.2.1 | B198: FORNECIMENTO E INSTALAÇÃO DE CABO DE COBRE FLEXÍVEL ISOL. TERMOPLASTICO ATOX 750V - 2,5 MM² (TP SINTENAX PIRELLI OU SIMILAR) | C198: M | D198: 270 | E198: 4.83 | F198: =ROUND(D198*E198,2) -> 1304.1
A200: 6.20.3.3 | B200: DISPOSITIVO ELÉTRICO EMBUTIDO | F200: =SUBTOTAL(9,F201:F201) -> 231.57
A201: 6.20.3.3.1 | B201: TOMADA DE EMBUTIR (1 MÓDULO), 2P+T 10 A, INCLUINDO SUPORTE E PLACA - FORNECIMENTO E INSTALAÇÃO. AF_12/2015 | C201: UN | D201: 9 | E201: 25.73 | F201: =ROUND(D201*E201,2) -> 231.57
A203: 6.20.3.4 | B203: DISPOSITIVO DE PROTEÇÃO | F203: =SUBTOTAL(9,F204:F204) -> 13.15
A204: 6.20.3.4.1 | B204: DISJUNTOR MONOPOLAR TIPO DIN, CORRENTE NOMINAL DE 10A - FORNECIMENTO E INSTALAÇÃO. AF_10/2020 | C204: UN | D204: 1 | E204: 13.15 | F204: =ROUND(D204*E204,2) -> 13.15
A206: 6.20.3.5 | B206: ELETRODUTOS | F206: =SUBTOTAL(9,F207:F207) -> 185.7
A207: 6.20.3.5.1 | B207: ELETRODUTO FLEXÍVEL CORRUGADO, PVC, DN 25 MM (3/4") - FORNECIMENTO E INSTALAÇÃO. | C207: M | D207: 30 | E207: 6.19 | F207: =ROUND(D207*E207,2) -> 185.7
A209: 6.20.3.6 | B209: TERMINAIS | F209: =SUBTOTAL(9,F210:F211) -> 40.37
A210: 6.20.3.6.1 | B210: FORNECIMENTO E INSTALAÇÃO DE TERMINAL DE COMPRESSÃO 1,5 - 2,5MM² | C210: UN | D210: 5 | E210: 4.49 | F210: =ROUND(D210*E210,2) -> 22.45
A211: 6.20.3.6.2 | B211: FORNECIMENTO E INSTALAÇÃO DE FITA ISOLANTE 19MMX20M | C211: UN | D211: 1 | E211: 17.92 | F211: 17.92
A213: 6.21 | B213: LOGICA E TELEFONICA | F213: =SUBTOTAL(9,F214:F254) -> 8598
A214: 6.21.1 | B214: ACESSÓRIOS P/ELETRODUTO E USO GERAL | F214: =SUBTOTAL(9,F215:F221) -> 777.74
A215: 6.21.1.1 | B215: FORNECIMENTO E INSTALAÇÃO DE ABRAÇADEIRA DE AÇO, TIPO D, 3/4", COM CUNHA | C215: UN | D215: 100 | E215: 6.59 | F215: =ROUND(D215*E215,2) -> 659
A216: 6.21.1.2 | B216: FORNECIMENTO E INSTALAÇÃO DE BUCHA E ARRUELA ALUMÍNIO FUNDIDO PARA ELETRODUTO (ZAMAK) 3/4" | C216: UN | D216: 2 | E216: 2.03 | F216: 4.06
A217: 6.21.1.3 | B217: FORNECIMENTO E INSTALAÇÃO DE BOX RETO PARA ELETRODUTO 3/4" | C217: UN | D217: 2 | E217: 5.68 | F217: 11.36
A218: 6.21.1.4 | B218: CAIXA RETANGULAR 4" X 2" PVC - FORNECIMENTO E INSTALAÇÃO. | C218: UN | D218: 3 | E218: 8.96 | F218: 26.88
A219: 6.21.1.5 | B219: FORNECIMENTO E INSTALAÇÃO DE ARRUELA LISA GALVANIZADA 1/4" | C219: UN | D219: 6 | E219: 0.59 | F219: 3.54
A220: 6.21.1.6 | B220: FORNECIMENTO E INSTALAÇÃO DE BUCHA / PARAFUSO S8 | C220: UN | D220: 10 | E220: 4.44 | F220: 44.4
A221: 6.21.1.7 | B221: FORNECIMENTO E INSTALAÇÃO DE BUCHA / PARAFUSO S10 | C221: UN | D221: 6 | E221: 4.75 | F221: 28.5
A223: 6.21.2 | B223: CABOS | F223: =SUBTOTAL(9,F224:F224) -> 516
A224: 6.21.2.1 | B224: CABO ELETRÔNICO CATEGORIA 6, ATOX LSZH, INSTALADO EM EDIFICAÇÃO INSTITUCIONAL - FORNECIMENTO E INSTALAÇÃO. AF_11/2019 | C224: M | D224: 200 | E224: 2.58 | F224: =ROUND(D224*E224,2) -> 516
A226: 6.21.3 | B226: DISPOSITIVO CABEAMENTO EMBUTIR | F226: =SUBTOTAL(9,F227:F229) -> 235.8
A227: 6.21.3.1 | B227: FORNECIMENTO E INSTALAÇÃO DE PLACA 4X2" - BRANCA, 2 MÓDULOS P/ RJ45 | C227: UN | D227: 3 | E227: 11.84 | F227: =ROUND(D227*E227,2) -> 35.52
A228: 6.21.3.2 | B228: FORNECIMENTO E INSTALAÇÃO DE MÓDULO P/TOMADA KEYSTONE | C228: UN | D228: 6 | E228: 6.59 | F228: 39.54
A229: 6.21.3.3 | B229: FORNECIMENTO E INSTALAÇÃO DE TOMADA KEYSTONE RJ45 - CAT.6 | C229: UN | D229: 6 | E229: 26.79 | F229: 160.74
A231: 6.21.4 | B231: ELETRODUTOS | F231: =SUBTOTAL(9,F232:F232) -> 92.85
A232: 6.21.4.1 | B232: ELETRODUTO FLEXÍVEL CORRUGADO, PVC, DN 25 MM (3/4") - FORNECIMENTO E INSTALAÇÃO. | C232: M | D232: 15 | E232: 6.19 | F232: =ROUND(D232*E232,2) -> 92.85
A234: 6.21.5 | B234: RACK E ACESSÓRIOS | F234: =SUBTOTAL(9,F235:F246) -> 3852.68
A235: 6.21.5.1 | B235: FORNECIMENTO E INSTALAÇÃO DE RACK CAIXA PADRÃO 19" - PORTA ACRÍLICO FUMÊ 16U X 470 MM | C235: UN | D235: 1 | E235: 1293.03 | F235: =ROUND(D235*E235,2) -> 1293.03
A236: 6.21.5.2 | B236: FORNECIMENTO E INSTALAÇÃO DE REGUA PARA 10 TOMADAS 2P+T 20A - 1U | C236: UN | D236: 1 | E236: 150.4 | F236: 150.4
A237: 6.21.5.3 | B237: FORNECIMENTO E INSTALAÇÃO DE KIT DE VENTILAÇÃO COM 2 COOLERS | C237: UN | D237: 1 | E237: 306.91 | F237: 306.91
A238: 6.21.5.4 | B238: PATCH PANEL 24 PORTAS, CATEGORIA 6 - FORNECIMENTO E INSTALAÇÃO. AF_11/2019 | C238: UN | D238: 1 | E238: 698.58 | F238: 698.58
A239: 6.21.5.5 | B239: FORNECIMENTO E INSTALAÇÃO DE VOICE PANEL 30 PORTAS RJ45 | C239: UN | D239: 1 | E239: 652.1 | F239: 652.1
A240: 6.21.5.6 | B240: FORNECIMENTO E INSTALAÇÃO DE GUIA DE CABOS FECHADO HORIZONTAL - 1U | C240: UN | D240: 4 | E240: 34.69 | F240: 138.76
A241: 6.21.5.7 | B241: FORNECIMENTO E INSTALAÇÃO DE BANDEJA PARA RACK 19", FIXA HORIZONTAL 1U. | C241: UN | D241: 1 | E241: 97.67 | F241: 97.67
A242: 6.21.5.8 | B242: FORNECIMENTO E INSTALAÇÃO DE ANEL ORGANIZADOR DE CABOS TIPO ABRAÇADEIRA VELCRO | C242: UN | D242: 6 | E242: 2.2 | F242: 13.2
A243: 6.21.5.9 | B243: FORNECIMENTO E INSTALAÇÃO DE ANILHA DE IDENTIFICACAO PARA CABOS DE 0 A 9 (KIT 100 PECAS) | C243: UN | D243: 1 | E243: 69.38 | F243: 69.38
A244: 6.21.5.10 | B244: FORNECIMENTO E INSTALAÇÃO DE FITA ROTULADORA 12MM PRETO SOBRE BRANCO 8M | C244: UN | D244: 1 | E244: 104.85 | F244: 104.85
A245: 6.21.5.11 | B245: FORNECIMENTO E INSTALAÇÃO DE PATCH CORD CERTIFICADO CAT.6 - CONEXÃO RJ45 X RJ45 - COMP. 1,5M - LSZH | C245: UN | D245: 8 | E245: 8.86 | F245: 70.88
A246: 6.21.5.12 | B246: FORNECIMENTO DE SERVIÇO DE CERTIFICAÇÃO DE CABO DE REDE CAT-6, COM CERTIFICADO DE AFERIÇÃO DO APARELHO | C246: UN | D246: 6 | E246: 42.82 | F246: 256.92
A248: 6.21.6 | B248: FIBRA ÓPTICA E ACESSÓRIOS | F248: =SUBTOTAL(9,F249:F254) -> 3122.93
A249: 6.21.6.1 | B249: FORNECIMENTO E INSTALAÇÃO DE DISTRIBUIDOR OPTICO INTERNO PARA 12 FO - 1U PARA RACK. | C249: UN | D249: 1 | E249: 518.47 | F249: =ROUND(D249*E249,2) -> 518.47
A250: 6.21.6.2 | B250: FORNECIMENTO E INSTALAÇÃO DE EXTENSÃO PIGTAIL MULTIMODO P/ DIO - CONECTOR SC | C250: UN | D250: 12 | E250: 32.04 | F250: 384.48
A251: 6.21.6.3 | B251: FORNECIMENTO E INSTALAÇÃO DE CORDÃO ÓPTICO MULTIMODO - 2 FO CONECTOR SC/SC - 2,50 M | C251: UN | D251: 2 | E251: 101.69 | F251: 203.38
A252: 6.21.6.4 | B252: FORNECIMENTO E INSTALAÇÃO DE CONVERSOR DE MÍDIA PARA FIBRA ÓTICA MM E SM 10/100 2FO RJ45 | C252: UN | D252: 2 | E252: 281.52 | F252: 563.04
... 79 more rows

Sheet 7_MINI QUADRA (hidden)
A1: PLANILHA ORÇAMENTARIA | D1: SPN-FF-003
D3: Folha: 1 de 1 | E3: Revisão: 02 | F3: Data: 07/10/19
A5: SESI - SERVIÇO SOCIAL DA INDUSTRIA - DR/MT
A6: OBRA: CONTRATAÇÃO DE EMPRESA ESPECIALIZADA PARA CONTINUIDADE DA EXECUÇÃO DA OBRA DE REFORMA E AMPLIAÇÃO DA UNIDADE DO SESI ESCOLA VÁRZEA GRANDE/MT.
A7: UNIDADE OPERACIONAL: SESI ESCOLA VÁRZEA GRANDE
A8: ENDEREÇO: AV. DOM ORLANDO CHAVES, N.º 1.086, PONTE NOVA - CRISTO REI CIDADE: VÁRZEA GRANDE/MT
A9: CONSTRUTORA:
A10: RESPONSÁVEL TÉCNICO:
A11: BASE SINAPI UTILIZADA: 06/2021
A12: ITEM | B12: DESCRIÇÃO | C12: UNID. | D12: QUANT. | E12: Valor UNIT. (R$) | F12: Valor Total (R$)
A14: 7 | B14: MINI QUADRA COBERTA
A16: 7.0 | B16: DEMOLIÇÕES E RETIRADAS | F16: =SUBTOTAL(9,F17:F19) -> 52890.38
A17: 7.0.1 | B17: DEMOLIÇÃO | F17: =SUBTOTAL(9,F18:F19) -> 52890.38
A18: 7.0.1.1 | B18: DEMOLIÇÃO MANUAL DE PISO EM CONCRETO SIMPLES INCLUSIVE LASTRO DE CONCRETO | C18: M2 | D18: 1342.09 | E18: 34.07 | F18: =ROUND(D18*E18,2) -> 45725.01
A19: 7.0.1.2 | B19: BOTA FORA DE MATERIAL DESCARTADO, D.M.T. = 10 km - (CARGA, TRANSPORTE E DESCARGA MECÂNICA) | C19: M3 | D19: 122.13 | E19: 58.67 | F19: 7165.37
A21: 7.1 | B21: INSTALAÇÕES DE CANTEIRO | F21: =SUBTOTAL(9,F22) -> 836.8
A22: 7.1.1 | B22: TOPOGRAFO COM ENCARGOS COMPLEMENTARES PARA LOCAÇÃO DO CANTEIRO - CONSIDERADO 08H/DIA X 05 DIAS | C22: H | D22: 40 | E22: 20.92 | F22: =ROUND(D22*E22,2) -> 836.8
A24: 7.2 | B24: ADMINISTRAÇÃO | F24: =SUBTOTAL(9,F25) -> 0
A26: 7.3 | B26: TERRAPLENAGEM | F26: =SUBTOTAL(9,F27) -> 0
A28: 7.4 | B28: FUNDAÇÃO | F28: =SUBTOTAL(9,F29:F44) -> 113949.56
A29: 7.4.1 | B29: ESCAVAÇÃO MECANIZADA PARA BLOCO DE COROAMENTO OU SAPATA, SEM PREVISÃO DE FÔRMA, COM RETROESCAVADEIRA. AF_06/2017 | C29: M3 | D29: 19 | E29: 91.26 | F29: =ROUND(D29*E29,2) -> 1733.94
A30: 7.4.2 | B30: BOTA FORA DE MATERIAL DESCARTADO, D.M.T. = 10 km - (CARGA, TRANSPORTE E DESCARGA MECÂNICA) | C30: M3 | D30: 30.55 | E30: 58.67 | F30: =ROUND(D30*E30,2) -> 1792.37
A31: 7.4.3 | B31: REATERRO MANUAL DE VALAS COM COMPACTAÇÃO MECANIZADA. AF_04/2016 | C31: M3 | D31: 7.6 | E31: 27.04 | F31: 205.5
A32: 7.4.4 | B32: ESTACAS - ESTACAS RAIZ DE Ø31cm EM SOLO INCLUSIVE A INJENÇÃO DE ARGAMASSA FCK>20 MPA, INCLUSIVE LANÇAMENTO DE ARMAÇÃO / CONSUMO MÍNIMO DE CIMENTO - 600 kg/m³. | C32: M | D32: 120 | E32: 474.01 | F32: 56881.2
A33: 7.4.5 | B33: ESTACAS - ARMAÇÃO DE BLOCO, VIGA BALDRAME OU SAPATA UTILIZANDO AÇO CA-50 DE 6,3 MM - MONTAGEM. (FORNECIDA PELO SESI ESTACA MONTADA) | C33: KG | D33: 0 | E33: 25.13 | F33: 0
A34: 7.4.6 | B34: ESTACAS - ARMAÇÃO DE BLOCO, VIGA BALDRAME OU SAPATA UTILIZANDO AÇO CA-50 DE 12,5 MM - MONTAGEM. (FORNECIDA PELO SESI ESTACA MONTADA) | C34: KG | D34: 0 | E34: 18.72 | F34: =ROUND(D34*E34,2) -> 0
A35: 7.4.7 | B35: BLOCO DE COROAMENTO - LASTRO COM MATERIAL GRANULAR (PEDRA BRITADA N.1 E PEDRA BRITADA N.2), APLICADO EM PISOS OU LAJES SOBRE SOLO, ESPESSURA DE *10 CM*. AF_07/2019 | C35: M3 | D35: 0.6 | E35: 142.05 | F35: 85.23
A36: 7.4.8 | B36: BLOCO DE COROAMENTO - FABRICAÇÃO, MONTAGEM E DESMONTAGEM DE FÔRMA PARA BLOCO DE COROAMENTO, EM MADEIRA SERRADA, E=25 MM, 1 UTILIZAÇÃO. AF_06/2017 | C36: M2 | D36: 30.24 | E36: 165.28 | F36: 4998.07
A37: 7.4.9 | B37: BLOCO DE COROAMENTO - ARMAÇÃO DE BLOCO, VIGA BALDRAME OU SAPATA UTILIZANDO AÇO CA-50 DE 6,3 MM - MONTAGEM. AF_06/2017 | C37: KG | D37: 99.24 | E37: 25.13 | F37: 2493.9
A38: 7.4.10 | B38: BLOCO DE COROAMENTO - ARMAÇÃO DE BLOCO, VIGA BALDRAME OU SAPATA UTILIZANDO AÇO CA-50 DE 10 MM - MONTAGEM. AF_06/2017 | C38: KG | D38: 50 | E38: 21.99 | F38: 1099.5
A39: 7.4.11 | B39: BLOCO DE COROAMENTO - CONCRETAGEM DE BLOCOS DE COROAMENTO E VIGAS BALDRAMES, FCK 30 MPA, COM USO DE BOMBA  LANÇAMENTO, ADENSAMENTO E ACABAMENTO. AF_06/2017 | C39: M3 | D39: 6.5 | E39: 693.9 | F39: 4510.35
A40: 7.4.12 | B40: VIGA BALDRAME - LASTRO COM MATERIAL GRANULAR (PEDRA BRITADA N.1 E PEDRA BRITADA N.2), APLICADO EM PISOS OU LAJES SOBRE SOLO, ESPESSURA DE *10 CM*. AF_07/2019 | C40: M3 | D40: 0.8925 | E40: 142.05 | F40: 126.78
A41: 7.4.13 | B41: VIGA BALDRAME - FABRICAÇÃO, MONTAGEM E DESMONTAGEM DE FÔRMA PARA VIGA BALDRAME, EM MADEIRA SERRADA, E=25 MM, 1 UTILIZAÇÃO. AF_06/2017 | C41: M2 | D41: 53.5 | E41: 148.03 | F41: 7919.61
A42: 7.4.14 | B42: VIGA BALDRAME E PILARES - ARMAÇÃO DE BLOCO, VIGA BALDRAME OU SAPATA UTILIZANDO AÇO CA-50 DE 6,3 MM - MONTAGEM. | C42: KG | D42: 480 | E42: 25.13 | F42: =ROUND(D42*E42,2) -> 12062.4
A43: 7.4.15 | B43: VIGA BALDRAME E PILARES - ARMAÇÃO DE BLOCO, VIGA BALDRAME OU SAPATA UTILIZANDO AÇO CA-50 DE 12,5 MM - MONTAGEM. AF_06/2017 | C43: KG | D43: 850 | E43: 18.72 | F43: 15912
A44: 7.4.16 | B44: VIGA BALDRAME - CONCRETAGEM DE BLOCOS DE COROAMENTO E VIGAS BALDRAMES, FCK 30 MPA, COM USO DE BOMBA  LANÇAMENTO, ADENSAMENTO E ACABAMENTO. AF_06/2017 | C44: M3 | D44: 5.95 | E44: 693.9 | F44: =ROUND(D44*E44,2) -> 4128.71
A46: 7.5 | B46: IMPERMEABILIZAÇÃO | F46: =SUBTOTAL(9,F47) -> 4865.29
A47: 7.5.1 | B47: IMPERMEABILIZAÇÃO DE SUPERFÍCIE COM EMULSÃO ASFÁLTICA, 2 DEMÃOS AF_06/2018 | C47: M2 | D47: 83.74 | E47: 58.1 | F47: =ROUND(D47*E47,2) -> 4865.29
A49: 7.6 | B49: ESTRUTURAS DE CONCRETO ARMADO | F49: =SUBTOTAL(9,F50:F53) -> 26051.24
A50: 7.6.1 | B50: PILARES - MONTAGEM E DESMONTAGEM DE FÔRMA DE PILARES RETANGULARES E ESTRUTURAS SIMILARES, PÉ-DIREITO DUPLO, EM CHAPA DE MADEIRA COMPENSADA RESINADA, 2 UTILIZAÇÕES. AF_09/2020 | C50: M2 | D50: 49.5 | E50: 147.73 | F50: =ROUND(D50*E50,2) -> 7312.64
A51: 7.6.2 | B51: PILARES - CONCRETAGEM DE PILARES, FCK = 25 MPA, COM USO DE BOMBA EM EDIFICAÇÃO COM SEÇÃO MÉDIA DE PILARES MAIOR QUE 0,25 M² - LANÇAMENTO, ADENSAMENTO E ACABAMENTO. AF_12/2015 | C51: M3 | D51: 9.1 | E51: 656.15 | F51: =ROUND(D51*E51,2) -> 5970.97
A52: 7.6.3 | B52: VIGA RESPALDO - MONTAGEM E DESMONTAGEM DE FÔRMA DE VIGA, ESCORAMENTO METÁLICO, PÉ-DIREITO DUPLO, EM CHAPA DE MADEIRA RESINADA, 2 UTILIZAÇÕES. AF_09/2020 | C52: M2 | D52: 28.5 | E52: 303.12 | F52: 8638.92
A53: 7.6.4 | B53: VIGA RESPALDO - CONCRETAGEM DE BLOCOS DE COROAMENTO E VIGAS BALDRAMES, FCK 30 MPA, COM USO DE BOMBA  LANÇAMENTO, ADENSAMENTO E ACABAMENTO. AF_06/2017 | C53: M3 | D53: 5.95 | E53: 693.9 | F53: 4128.71
A55: 7.7 | B55: ALVENARIAS E PAINÉIS | F55: =SUBTOTAL(9,F56) -> 0
A57: 7.8 | B57: ESTRUTURA METALICA | F57: =SUBTOTAL(9,F58:F60) -> 103185.89
A58: 7.8.1 | B58: ESTRUTURA METALICA DA COBERTURA CONFORME PROJETO EM AÇO ESTRUTURAL | C58: KG | D58: 4395.31 | E58: 18.63 | F58: =ROUND(D58*E58,2) -> 81884.63
A59: 7.8.2 | B59: PINTURA COM TINTA ALQUÍDICA DE FUNDO (TIPO ZARCÃO) PULVERIZADA SOBRE SUPERFÍCIES METÁLICAS (EXCETO PERFIL) EXECUTADO EM OBRA (POR DEMÃO). AF_01/2020_P | C59: M2 | D59: 534 | E59: 21.31 | F59: 11379.54
A60: 7.8.3 | B60: PINTURA COM TINTA ACRÍLICA DE ACABAMENTO PULVERIZADA SOBRE SUPERFÍCIES METÁLICAS (EXCETO PERFIL) EXECUTADO EM OBRA (02 DEMÃOS). AF_01/2020_P | C60: M2 | D60: 534 | E60: 18.58 | F60: 9921.72
A62: 7.9 | B62: COBERTURA | F62: =SUBTOTAL(9,F63:F66) -> 98347.03
A63: 7.9.1 | B63: TELHAMENTO COM TELHA DE AÇO/ALUMÍNIO E = 0,5 MM, COM ATÉ 2 ÁGUAS, INCLUSO IÇAMENTO. AF_07/2019 | C63: M2 | D63: 530.99 | E63: 105.32 | F63: =ROUND(D63*E63,2) -> 55923.87
A64: 7.9.2 | B64: PLATIBANDA EM CHAPA DE AÇO ESPESSURA 2,00mm, H=870mm, DOBRA CARTOLA: 30X20X970mm, COM METALON DIM. 50X20X0,97mm NA FACE INFERIOR PARA ARREMATE COM O FORRO, FUNDO ANTICORROSIVO EM PRIMER EPÓXI NAS DUAS FACES | C64: M2 | D64: 41.09 | E64: 247.56 | F64: =ROUND(D64*E64,2) -> 10172.24
A65: 7.9.3 | B65: ALAMBRADO PARA QUADRA POLIESPORTIVA, ESTRUTURADO POR TUBOS DE ACO GALVANIZADO, (MONTANTES COM DIAMETRO 2", TRAVESSAS E ESCORAS COM DIÂMETRO 1 ¼), COM TELA DE ARAME GALVANIZADO, FIO 14 BWG E MALHA QUADRADA 5X5CM (EXCETO MURETA), INCLUSO PORTINHOLA DE ACESSO NAS LATERAIS CONFORME PROJETO ARQUITETÔNICO. | C65: M2 | D65: 130.2 | E65: 223.31 | F65: 29074.96
A66: 7.9.4 | B66: REDE DE PROTEÇÃO ESPORTIVA SOB MEDIDA PARA CAMPO/QUADRA DE FUTSAL, FUTEBOL, SOCIETY FIO 2 MALHA 10CM | C66: M2 | D66: 294.07 | E66: 10.8 | F66: =ROUND(D66*E66,2) -> 3175.96
A68: 7.10 | B68: ESQUADRIAS | F68: =SUBTOTAL(9,F69:F69) -> 11106.57
A69: 7.10.1 | B69: GRADIL FIXO EM TELA ONDULADA, MEDINDO 5,95M X 2,50M,SUBDIVIDIDOS EM 03 MODULOS, REQUADRO EM TUBO DE 2''. | C69: M2 | D69: 29.75 | E69: 373.33 | F69: =ROUND(D69*E69,2) -> 11106.57
A71: 7.11 | B71: PISOS | F71: =SUBTOTAL(9,F72:F77) -> 153884.94
A72: 7.11.1 | B72: PISO DE CONCRETO POLIDO INDUSTRIAL FCK 20MPA, ESP. 7CM SOBRE CONTRAPISO, COM FORNECIMENTO DE MATERIAL, ADENSAMENTO, SARRAFEAMENTO, POLIMENTO COM MÁQUINA POLITRIZ INDUSTRIAL, COM CONFECÇÃO DE JUNTAS DE DILATAÇÃO EM PANOS DE NO MÁXIMO 5,00X5,00M, EXECUTADAS CORTE COM MÁQUINA DE CORTE DE PISO INDUSTRIAL COM DISCO DIAMANTADO, INCLUSIVE ADITIVOS PARA O CONCRETO | C72: M2 | D72: 461.82 | E72: 75.93 | F72: =ROUND(D72*E72,2) -> 35065.99
A73: 7.11.2 | B73: ARMAÇÃO PARA EXECUÇÃO DE RADIER, COM USO DE TELA Q-92. AF_09/2017 - CONSIDERADO 1,48KG/M² DE ÁREA (CONFORME TABELA DA FABRICANTE PARA A TELA Q-92). | C73: KG | D73: 683.4936 | E73: 34.2 | F73: 23375.48
A74: 7.11.3 | B74: LASTRO COM MATERIAL GRANULAR (PEDRA BRITADA N.1 E PEDRA BRITADA N.2), APLICADO EM PISOS OU LAJES SOBRE SOLO, ESPESSURA DE *10 CM*. AF_07/2019 | C74: M3 | D74: 23.091 | E74: 142.05 | F74: =ROUND(D74*E74,2) -> 3280.08
A75: 7.11.4 | B75: LONA PLASTICA EXTRA FORTE PRETA, E = 200 MICRA | C75: M2 | D75: 461.82 | E75: 3.02 | F75: 1394.7
A76: 7.11.5 | B76: EXECUÇÃO DE PASSEIO (CALÇADA) OU PISO DE CONCRETO COM CONCRETO MOLDADO IN LOCO, USINADO, ACABAMENTO CONVENCIONAL, NÃO ARMADO. AF_07/2016 | C76: M3 | D76: 61.6189 | E76: 749.98 | F76: =ROUND(D76*E76,2) -> 46212.94
A77: 7.11.6 | B77: ARMAÇÃO PARA EXECUÇÃO DE RADIER, COM USO DE TELA Q-92. AF_09/2017 - CONSIDERADO 1,48KG/M² DE ÁREA (CONFORME TABELA DA FABRICANTE PARA A TELA Q-92). | C77: KG | D77: 1302.7996 | E77: 34.2 | F77: 44555.75
A79: 7.12 | B79: REVESTIMENTOS | F79: =SUBTOTAL(9,F80) -> 0
A81: 7.13 | B81: GRANITO | F81: =SUBTOTAL(9,F82) -> 0
A83: 7.14 | B83: FORRO | F83: =SUBTOTAL(9,F84) -> 0
A85: 7.15 | B85: PINTURA | F85: =SUBTOTAL(9,F86:F89) -> 16823.98
A86: 7.15.1 | B86: PINTURA DE PISO COM TINTA ACRÍLICA, APLICAÇÃO MANUAL, 2 DEMÃOS, INCLUSO FUNDO PREPARADOR. AF_05/2021 | C86: M2 | D86: 53.66 | E86: 17.8 | F86: =ROUND(D86*E86,2) -> 955.15
A87: 7.15.2 | B87: PINTURA DE PISO COM TINTA EPÓXI, APLICAÇÃO MECÂNICA, 2 DEMÃOS. AF_05/2021 | C87: M2 | D87: 240 | E87: 44.9 | F87: =ROUND(D87*E87,2) -> 10776
A88: 7.15.3 | B88: PINTURA DE DEMARCAÇÃO DE QUADRA POLIESPORTIVA COM TINTA EPÓXI, E = 5 CM, APLICAÇÃO MANUAL. AF_05/2021 | C88: M | D88: 239 | E88: 9.58 | F88: 2289.62
A89: 7.15.4 | B89: PINTURA COM TINTA ALQUÍDICA DE FUNDO E ACABAMENTO (ESMALTE SINTÉTICO GRAFITE) PULVERIZADA SOBRE SUPERFÍCIES METÁLICAS (EXCETO PERFIL) EXECUTADO EM OBRA (POR DEMÃO) - PINTURA DO ALAMBRADO - COR A SER DEFINIDA PELA FISCALIZAÇÃO | C89: M2 | D89: 130.2 | E89: 21.53 | F89: =ROUND(D89*E89,2) -> 2803.21
A91: 7.16 | B91: CALÇAMENTO, PÁTIOS E PASSARELAS | F91: =SUBTOTAL(9,F92) -> 0
A93: 7.17 | B93: SERVIÇOS COMPLEMENTARES | F93: =SUBTOTAL(9,F94:F97) -> 28140.35
A94: 7.17.1 | B94: ACESSORIOS QUADRA POLIESPORTIVA | F94: =SUBTOTAL(9,F95:F97) -> 28140.35
A95: 7.17.1.1 | B95: CONJUNTO PARA FUTSAL COM TRAVES OFICIAIS DE 3,00 X 2,00 M EM TUBO DE ACO GALVANIZADO 3" COM REQUADRO EM TUBO DE 1", PINTURA EM PRIMER COM TINTA ESMALTE SINTETICO E REDES DE POLIETILENO FIO 4 MM | C95: UN | D95: 1 | E95: 7232.9 | F95: =ROUND(D95*E95,2) -> 7232.9
A96: 7.17.1.2 | B96: CONJUNTO PARA QUADRA DE VOLEI COM POSTES EM TUBO DE ACO GALVANIZADO 3", H = *255* CM, PINTURA EM TINTA ESMALTE SINTETICO, REDE DE NYLON COM 2 MM, MALHA 10 X 10 CM E ANTENAS OFICIAIS EM FIBRA DE VIDRO | C96: UN | D96: 1 | E96: 4391 | F96: =ROUND(D96*E96,2) -> 4391
A97: 7.17.1.3 | B97: PAR DE TABELAS DE BASQUETE EM COMPENSADO NAVAL DE *1,80 X 1,20* M, COM ARO DE METAL E REDE, INCLUSO SUPORTE EM FERRO GALVANIZADO REMOVÍVEL (ASSENT./ PINTADOS) - 2 UNID. | C97: CJ | D97: 1 | E97: 16516.45 | F97: 16516.45
A99: 7.18 | B99: INSTALAÇÕES DE SPDA | F99: =SUBTOTAL(9,F100:F113) -> 11045.37
A100: 7.18.1 | B100: ELETRODUTO PVC 40MM (1 ¼ ) PARA SPDA - FORNECIMENTO E INSTALAÇÃO. AF_12/2017 | C100: UN | D100: 1 | E100: 53.7 | F100: =ROUND(D100*E100,2) -> 53.7
A101: 7.18.2 | B101: FIXAÇÃO DE TUBOS HORIZONTAIS DE PVC, CPVC OU COBRE DIÂMETROS MENORES OU IGUAIS A 40 MM OU ELETROCALHAS ATÉ 150MM DE LARGURA, COM ABRAÇADEIRA METÁLICA RÍGIDA TIPO D 1/2, FIXADA EM PERFILADO EM LAJE. AF_05/2015 | C101: M | D101: 2 | E101: 3.18 | F101: =ROUND(D101*E101,2) -> 6.36
A102: 7.18.3 | B102: TERMINAL OU CONECTOR DE PRESSAO - PARA CABO 50MM2 - FORNECIMENTO E INSTALACAO | C102: UN | D102: 13 | E102: 26.83 | F102: 348.79
A103: 7.18.4 | B103: BUCHA DE NYLON SEM ABA S6, COM PARAFUSO DE 4,20 X 40 MM EM ACO ZINCADO COM ROSCA SOBERBA, CABECA CHATA E FENDA PHILLIPS | C103: UN | D103: 2 | E103: 0.41 | F103: 0.82
A104: 7.18.5 | B104: PARAFUSO ZINCADO, SEXTAVADO, COM ROSCA INTEIRA, DIAMETRO 1/4", COMPRIMENTO 1/2" | C104: UN | D104: 20 | E104: 0.21 | F104: 4.2
A105: 7.18.6 | B105: PORCA ZINCADA, SEXTAVADA, DIAMETRO 1/4" | C105: UN | D105: 20 | E105: 0.29 | F105: 5.8
A106: 7.18.7 | B106: CORDOALHA DE COBRE NU 50 MM², ENTERRADA, SEM ISOLADOR - FORNECIMENTO E INSTALAÇÃO. AF_12/2017 | C106: M | D106: 160 | E106: 48.59 | F106: 7774.4
A107: 7.18.8 | B107: HASTE DE ATERRAMENTO 5/8 PARA SPDA - FORNECIMENTO E INSTALAÇÃO. AF_12/2017 | C107: UN | D107: 10 | E107: 61.98 | F107: 619.8
A108: 7.18.9 | B108: CAIXA DE INSPEÇÃO PARA ATERRAMENTO, CIRCULAR, EM POLIETILENO, DIÂMETRO INTERNO = 0,3 M. AF_12/2020 | C108: UN | D108: 2 | E108: 29.87 | F108: 59.74
A109: 7.18.10 | B109: FORNECIMENTO E INSTALAÇÃO DE CAIXA DE EQUIPOTENCIALIZAÇÃO 20 X 20 X10 CM, P/ 11 TERMINAIS DE PRESSÃO C/ BARRAMENTO | C109: UN | D109: 1 | E109: 229.36 | F109: =ROUND(D109*E109,2) -> 229.36
A110: 7.18.11 | B110: ESCAVAÇÃO MECANIZADA DE VALA COM PROF. ATÉ 1,5 M (MÉDIA ENTRE MONTANTE E JUSANTE/UMA COMPOSIÇÃO POR TRECHO), COM RETROESCAVADEIRA (0,26 M3/88 HP), LARG. MENOR QUE 0,8 M, EM SOLO DE 2A CATEGORIA, EM LOCAIS COM ALTO NÍVEL DE INTERFERÊNCIA. AF_02/2021 | C110: M3 | D110: 24 | E110: 16.85 | F110: 404.4
A111: 7.18.12 | B111: REATERRO MECANIZADO DE VALA COM RETROESCAVADEIRA (CAPACIDADE DA CAÇAMBA DA RETRO: 0,26 M³ / POTÊNCIA: 88 HP), LARGURA ATÉ 0,8 M, PROFUNDIDADE ATÉ 1,5 M, COM SOLO (SEM SUBSTITUIÇÃO) DE 1ª CATEGORIA EM LOCAIS COM ALTO NÍVEL DE INTERFERÊNCIA. AF_04/2016 | C111: M3 | D111: 24 | E111: 21.55 | F111: 517.2
A112: 7.18.13 | B112: FORNECIMENTO E INSTALAÇÃO DE SOLDA EXOTÉRMICA CABO-HASTE COM CARTUCHO Nº 90 E MOLDE CABO 35mm²- HASTE 5/8" | C112: UN | D112: 30 | E112: 18.34 | F112: 550.2
A113: 7.18.14 | B113: FORNECIMENTO E INSTALAÇÃO DE SOLDA EXOTÉRMICA CABO-HASTE COM CARTUCHO Nº115 E MOLDE CABO 50mm²- HASTE 5/8" | C113: UN | D113: 20 | E113: 23.53 | F113: =ROUND(D113*E113,2) -> 470.6
A115: 7.19 | B115: INSTALAÇÃO DE COMBATE A INCÊNDIO | F115: =SUBTOTAL(9,F116) -> 0
A117: 7.20 | B117: INSTALAÇÕES ELÉTRICA | F117: =SUBTOTAL(9,F118:F175) -> 18067.04
A118: 7.20.1 | B118: INSTALAÇÕES ELÉTRICA BAIXA TENSÃO | F118: =SUBTOTAL(9,F119:F175) -> 18067.04
A119: 7.20.1.1 | B119: ACESSÓRIOS P/ELETRODUTO E USO GERAL | F119: =SUBTOTAL(9,F120:F136) -> 4775.78
A120: 7.20.1.1.1 | B120: FORNECIMENTO E INSTALAÇÃO DE ABRAÇADEIRA DE AÇO, TIPO D, 3/4", COM CUNHA | C120: UN | D120: 123 | E120: 6.59 | F120: =ROUND(D120*E120,2) -> 810.57
A121: 7.20.1.1.2 | B121: FORNECIMENTO E INSTALAÇÃO DE ABRAÇADEIRA DE AÇO, TIPO D, 1", COM CUNHA | C121: UN | D121: 6 | E121: 6.75 | F121: 40.5
A122: 7.20.1.1.3 | B122: FORNECIMENTO E INSTALAÇÃO DE ABRAÇADEIRA DE AÇO, TIPO D, 1.1/2", COM CUNHA | C122: UN | D122: 12 | E122: 8.56 | F122: 102.72
A123: 7.20.1.1.4 | B123: FORNECIMENTO E INSTALAÇÃO DE BUCHA E ARRUELA ALUMÍNIO FUNDIDO PARA ELETRODUTO (ZAMAK) 3/4" | C123: UN | D123: 80 | E123: 2.03 | F123: 162.4
A124: 7.20.1.1.5 | B124: FORNECIMENTO E INSTALAÇÃO DE BUCHA E ARRUELA ALUMÍNIO FUNDIDO PARA ELETRODUTO (ZAMAK) 1" | C124: UN | D124: 2 | E124: 2.41 | F124: 4.82
A125: 7.20.1.1.6 | B125: FORNECIMENTO E INSTALAÇÃO DE BUCHA E ARRUELA ALUMÍNIO FUNDIDO PARA ELETRODUTO (ZAMAK) 1.1/2" | C125: UN | D125: 3 | E125: 5.36 | F125: 16.08
A126: 7.20.1.1.7 | B126: FORNECIMENTO E INSTALAÇÃO DE BOX RETO PARA ELETRODUTO 3/4" | C126: UN | D126: 80 | E126: 5.68 | F126: 454.4
A127: 7.20.1.1.8 | B127: FORNECIMENTO E INSTALAÇÃO DE BOX RETO PARA ELETRODUTO 1" | C127: UN | D127: 2 | E127: 8.04 | F127: 16.08
A128: 7.20.1.1.9 | B128: FORNECIMENTO E INSTALAÇÃO DE BOX RETO PARA ELETRODUTO 1.1/2" | C128: UN | D128: 3 | E128: 15.71 | F128: 47.13
A129: 7.20.1.1.10 | B129: CONDULETE DE ALUMÍNIO, TIPO X, PARA ELETRODUTO DE AÇO GALVANIZADO DN 20 MM (3/4''), APARENTE - FORNECIMENTO E INSTALAÇÃO. AF_11/2016_P | C129: UN | D129: 38 | E129: 38.12 | F129: 1448.56
A130: 7.20.1.1.11 | B130: FORNECIMENTO E INSTALAÇÃO DE PLACA CEGA DE ALUMÍNIO P/ CONDULETE | C130: UN | D130: 34 | E130: 32.7 | F130: 1111.8
A131: 7.20.1.1.12 | B131: FORNECIMENTO E INSTALAÇÃO DE PLACA 4X2" EM ALUMINIO, COM 1 FUNÇÃO RETANGULAR | C131: UN | D131: 4 | E131: 8.01 | F131: 32.04
A132: 7.20.1.1.13 | B132: FORNECIMENTO E INSTALAÇÃO DE ARAME AÇO GALVANIZADO 18 BWG, 1,24MM (0,009 KG/M) | C132: M | D132: 111 | E132: 0.77 | F132: 85.47
A133: 7.20.1.1.14 | B133: FORNECIMENTO E INSTALAÇÃO DE ARRUELA LISA GALVANIZADA 1/4" | C133: UN | D133: 283 | E133: 0.59 | F133: 166.97
A134: 7.20.1.1.15 | B134: FORNECIMENTO E INSTALAÇÃO DE PARAFUSO ZINCADO, AUTOBROCANTE, FLANGEADO, 4,2 MM X 19 MM | C134: CENTO | D134: 3 | E134: 64.38 | F134: 193.14
A135: 7.20.1.1.16 | B135: FORNECIMENTO E INSTALAÇÃO DE BUCHA / PARAFUSO S10 | C135: UN | D135: 10 | E135: 4.75 | F135: 47.5
A136: 7.20.1.1.17 | B136: FORNECIMENTO E INSTALAÇÃO DE VERGALHÃO GALVANIZADO ROSCA TOTAL 1/4" | C136: M | D136: 2 | E136: 17.8 | F136: 35.6
A138: 7.20.1.2 | B138: ACESSÓRIOS P/ELETRODUTO E USO GERAL | F138: =SUBTOTAL(9,F139:F141) -> 236.43
A139: 7.20.1.2.1 | B139: CAIXA DE PASSAGEM 15X15X10CM (EMBUTIR), FORNECIMENTO E INSTALACAO. AF_11/2019 | C139: UN | D139: 1 | E139: 44.78 | F139: =ROUND(D139*E139,2) -> 44.78
A140: 7.20.1.2.2 | B140: FORNECIMENTO E INSTALAÇÃO DE CONECTOR RETO DE ALUMÍNIO P/ ELETRODUTO 3/4" | C140: UN | D140: 1 | E140: 3.38 | F140: 3.38
A141: 7.20.1.2.3 | B141: CAIXA ENTERRADA ELÉTRICA RETANGULAR, EM ALVENARIA COM TIJOLOS CERÂMICOS MACIÇOS, COM TAMPA, FUNDO COM BRITA, DIMENSÕES INTERNAS: 0,3X0,3X0,3 M. AF_12/2020 | C141: UN | D141: 1 | E141: 188.27 | F141: 188.27
A143: 7.20.1.3 | B143: CABOS | F143: =SUBTOTAL(9,F144:F146) -> 6038.95
A144: 7.20.1.3.1 | B144: FORNECIMENTO E INSTALAÇÃO DE CABO DE COBRE FLEXÍVEL ISOL. TERMOPLASTICO ATOX 750V - 4 MM² (TP SINTENAX PIRELLI OU SIMILAR) | C144: M | D144: 700 | E144: 7.06 | F144: =ROUND(D144*E144,2) -> 4942
A145: 7.20.1.3.2 | B145: FORNECIMENTO E INSTALAÇÃO DE CABO DE COBRE FLEXÍVEL ISOLADO, 10 MM², ANTI-CHAMA 0,6/1,0 KV - ATOX | C145: M | D145: 70 | E145: 12.54 | F145: 877.8
A146: 7.20.1.3.3 | B146: FORNECIMENTO E INSTALAÇÃO DE CABO DE COBRE PP 3X2,5MM² - ISOL. TERMOPLASTICO ATOX 750V | C146: M | D146: 45 | E146: 4.87 | F146: 219.15
A148: 7.20.1.4 | B148: DISPOSITIVO ELÉTRICO EMBUTIDO | F148: =SUBTOTAL(9,F149) -> 91.32
A149: 7.20.1.4.1 | B149: FORNECIMENTO E INSTALAÇÃO DE MODULO DE TOMADA ELETRICA 2P+T - 20A | C149: UN | D149: 4 | E149: 22.83 | F149: =ROUND(D149*E149,2) -> 91.32
A151: 7.20.1.5 | B151: DISPOSITIVO DE PROTEÇÃO | F151: =SUBTOTAL(9,F152:F154) -> 665.54
A152: 7.20.1.5.1 | B152: DISJUNTOR MONOPOLAR TIPO DIN, CORRENTE NOMINAL DE 16A - FORNECIMENTO E INSTALAÇÃO. AF_10/2020 | C152: UN | D152: 4 | E152: 13.72 | F152: =ROUND(D152*E152,2) -> 54.88
A153: 7.20.1.5.2 | B153: DISJUNTOR TRIPOLAR TIPO DIN, CORRENTE NOMINAL DE 40A - FORNECIMENTO E INSTALAÇÃO. AF_10/2020 | C153: UN | D153: 1 | E153: 97.7 | F153: 97.7
A154: 7.20.1.5.3 | B154: FORNECIMENTO E INSTALAÇÃO DE DISPOSITIVO DPS, 1 POLO, 175 V, 45 KA | C154: UN | D154: 4 | E154: 128.24 | F154: 512.96
A156: 7.20.1.6 | B156: ELETRODUTOS | F156: =SUBTOTAL(9,F157:F163) -> 1977.42
A157: 7.20.1.6.1 | B157: ELETRODUTO RÍGIDO ROSCÁVEL, PVC, DN 25 MM (3/4") - FORNECIMENTO E INSTALAÇÃO. | C157: M | D157: 123 | E157: 8.61 | F157: =ROUND(D157*E157,2) -> 1059.03
A158: 7.20.1.6.2 | B158: ELETRODUTO RÍGIDO ROSCÁVEL, PVC, DN 32 MM (1") - FORNECIMENTO E INSTALAÇÃO. AF_12/2015 | C158: M | D158: 6 | E158: 11.95 | F158: 71.7
A159: 7.20.1.6.3 | B159: ELETRODUTO RÍGIDO ROSCÁVEL, PVC, DN 50 MM (1 1/2") - FORNECIMENTO E INSTALAÇÃO. AF_12/2015 | C159: M | D159: 12 | E159: 15.01 | F159: 180.12
A160: 7.20.1.6.4 | B160: ELETRODUTO FLEXÍVEL CORRUGADO, PEAD, DN 50 (1 ½) - FORNECIMENTO E INSTALAÇÃO. AF_04/2016 | C160: M | D160: 20 | E160: 7.73 | F160: 154.6
A161: 7.20.1.6.5 | B161: FORNECIMENTO E INSTALAÇÃO DE ELETRODUTO METÁLICO FLEXIVEL, COM PROTEÇÃO EM PVC PRETO (SEALTUBO) - 3/4" | C161: M | D161: 4 | E161: 21.53 | F161: 86.12
A162: 7.20.1.6.6 | B162: ESCAVAÇÃO MANUAL DE VALA COM PROFUNDIDADE MENOR OU IGUAL A 1,30 M. AF_02/2021 | C162: M3 | D162: 3.5 | E162: 75.75 | F162: =ROUND(D162*E162,2) -> 265.13
A163: 7.20.1.6.7 | B163: REATERRO MANUAL APILOADO COM SOQUETE. AF_10/2017 | C163: M3 | D163: 3.5 | E163: 45.92 | F163: =ROUND(D163*E163,2) -> 160.72
A165: 7.20.1.7 | B165: LUMINÁRIAS E ACESSÓRIOS | F165: =SUBTOTAL(9,F166:F166) -> 3663.9
A166: 7.20.1.7.1 | B166: FORNECIMENTO E INSTALAÇÃO DE REFLETOR HOLOFOTE LED 100W, IP 66, ÂNGULO DE ABERTURA DE 120°, TEMPERATURA DE COR 6000K (REF.: ILUMINIM RSPM-50WBF OU SIMILAR) | C166: UN | D166: 30 | E166: 122.13 | F166: =ROUND(D166*E166,2) -> 3663.9
A168: 7.20.1.8 | B168: QUADRO DE DISTRIBUIÇÃO | F168: =SUBTOTAL(9,F169:F169) -> 434.34
A169: 7.20.1.8.1 | B169: FORNECIMENTO E INSTALAÇÃO DE QUADRO DISTRIBUIÇÃO DE EMBUTIR, EM PVC BRANCO, COM BARRAMENTO TRIFÁSICO 100A TIPO PENTE, CAPACIDADE PARA: 24 DISJUNTORES UNIPOLARES TIPO DIN, COM BARRAMENTO NEUTRO E TERRA, CONFORME DIAGRAMA DE PROJETO (QD.QDA), EXCETO DISJUN | C169: UN | D169: 1 | E169: 434.34 | F169: =ROUND(D169*E169,2) -> 434.34
A171: 7.20.1.9 | B171: TERMINAIS | F171: =SUBTOTAL(9,F172:F175) -> 183.36
A172: 7.20.1.9.1 | B172: FORNECIMENTO E INSTALAÇÃO DE TERMINAL DE COMPRESSÃO 4 - 6MM² | C172: UN | D172: 12 | E172: 7.88 | F172: =ROUND(D172*E172,2) -> 94.56
A173: 7.20.1.9.2 | B173: FORNECIMENTO E INSTALAÇÃO DE ABRAÇADEIRA NYLON 3,5X300MM | C173: UN | D173: 100 | E173: 0.33 | F173: 33
A174: 7.20.1.9.3 | B174: FORNECIMENTO E INSTALAÇÃO DE FITA ISOLANTE DE BORRACHA AUTO-FUSÃO | C174: UN | D174: 1 | E174: 2.04 | F174: 2.04
A175: 7.20.1.9.4 | B175: FORNECIMENTO E INSTALAÇÃO DE FITA ISOLANTE 19MMX20M | C175: UN | D175: 3 | E175: 17.92 | F175: 53.76
A177: 7.21 | B177: LOGICA E TELEFONICA | F177: =SUBTOTAL(9,F178) -> 0
A179: 7.22 | B179: CLIMATIZAÇÃO - AR CONDICIONADO | F179: =SUBTOTAL(9,F180) -> 0
A181: 7.23 | B181: INFRAESTRUTURA PARA INSTALAÇÃO DE AUDIO E VÍDEO | F181: =SUBTOTAL(9,F182) -> 0
A183: 7.24 | B183: INSTALAÇÕES HIDRAULICAS | F183: =SUBTOTAL(9,F184:F184) -> 0
A185: 7.25 | B185: ÁGUAS PLUVIAIS DE COBERTURA | F185: =SUBTOTAL(9,F186:F186) -> 0
A187: 7.26 | B187: INSTALAÇÕES SANITÁRIAS | F187: =SUBTOTAL(9,F188:F188) -> 0
A189: 7.27 | B189: LOUÇAS E METÁIS | F189: =SUBTOTAL(9,F190:F190) -> 0
A191: 7.28 | B191: SISTEMA DE TRATAMENTO DE ESGOTO | F191: =SUBTOTAL(9,F192) -> 0
A193: 7.29 | B193: LIMPEZA CONTÍNUA DA OBRA | F193: =SUBTOTAL(9,F194) -> 0
A195: 7.30 | B195: LIMPEZA FINAL PARA ENTREGA | F195: =SUBTOTAL(9,F196) -> 1244.13
A196: 7.30.1 | B196: LIMPEZA FINAL PARA ENTREGA | C196: M2 | D196: 407.91 | E196: 3.05 | F196: =ROUND(D196*E196,2) -> 1244.13
A198: VALOR TOTAL | F198: =SUBTOTAL(9,F14:F197) -> 640438.57

Sheet 8_SALA DE DANÇA (hidden)
A1: PLANILHA ORÇAMENTARIA | D1: SPN-FF-003
D3: Folha: 1 de 1 | E3: Revisão: 02 | F3: Data: 07/10/19
A5: SESI - SERVIÇO SOCIAL DA INDUSTRIA - DR/MT
A6: OBRA: CONTRATAÇÃO DE EMPRESA ESPECIALIZADA PARA CONTINUIDADE DA EXECUÇÃO DA OBRA DE REFORMA E AMPLIAÇÃO DA UNIDADE DO SESI ESCOLA VÁRZEA GRANDE/MT.
A7: UNIDADE OPERACIONAL: SESI ESCOLA VÁRZEA GRANDE
A8: ENDEREÇO: AV. DOM ORLANDO CHAVES, N.º 1.086, PONTE NOVA - CRISTO REI CIDADE: VÁRZEA GRANDE/MT
A9: CONSTRUTORA:
A10: RESPONSÁVEL TÉCNICO:
A11: BASE SINAPI UTILIZADA: 06/2021
A12: ITEM | B12: DESCRIÇÃO | C12: UNID. | D12: QUANT. | E12: Valor UNIT. (R$) | F12: Valor Total (R$)
A14: 8 | B14: SALA DE DANÇA
A16: 8.0 | B16: DEMOLIÇÕES E RETIRADAS | F16: =SUBTOTAL(9,F17:F29) -> 19200.31
A17: 8.0.1 | B17: DEMOLIÇÃO | F17: =SUBTOTAL(9,F18:F29) -> 19200.31
A18: 8.0.1.1 | B18: DEMOLIÇÃO DE ALVENARIA DE BLOCO FURADO, DE FORMA MANUAL, SEM REAPROVEITAMENTO. AF_12/2017 | C18: M3 | D18: 16.85 | E18: 49.97 | F18: =ROUND(D18*E18,2) -> 841.99
A19: 8.0.1.2 | B19: REMOÇÃO DE PINTURA LÁTEX OU TEXTURA (RASPAGEM E/OU LIXAMENTO E/OU ESCOVAÇÃO | C19: M2 | D19: 206.99 | E19: 7.66 | F19: 1585.54
A20: 8.0.1.3 | B20: REMOÇÃO DE LOUÇAS, DE FORMA MANUAL, SEM REAPROVEITAMENTO, ARMAZENAMENTO EM LOCAL INDICADO PELA FISCALIZAÇÃO | C20: UN | D20: 29 | E20: 10.86 | F20: 314.94
A21: 8.0.1.4 | B21: REMOÇÃO DE PORTAS, DE FORMA MANUAL, SEM REAPROVEITAMENTO, ARMAZENAMENTO EM LOCAL INDICADO PELA FISCALIZAÇÃO | C21: M2 | D21: 26.67 | E21: 8.14 | F21: 217.09
A22: 8.0.1.5 | B22: DEMOLIÇÃO DE REVESTIMENTO CERÂMICO, DE FORMA MECANIZADA COM MARTELETE, SEM REAPROVEITAMENTO. AF_12/2017 | C22: M2 | D22: 494.03 | E22: 10.45 | F22: 5162.61
A23: 8.0.1.6 | B23: DEMOLIÇÃO MANUAL DE PISO EM CONCRETO SIMPLES INCLUSIVE LASTRO DE CONCRETO | C23: M2 | D23: 152.69 | E23: 34.07 | F23: 5202.15
A24: 8.0.1.7 | B24: REMOÇÃO DE TRAMA DE MADEIRA PARA COBERTURA, DE FORMA MANUAL, SEM REAPROVEITAMENTO. | C24: M2 | D24: 55.44 | E24: 6.73 | F24: 373.11
A25: 8.0.1.8 | B25: REMOÇÃO DE TELHAS, DE FIBROCIMENTO, METÁLICA E CERÂMICA, DE FORMA MANUAL, SEM REAPROVEITAMENTO. | C25: M2 | D25: 184.8 | E25: 3.12 | F25: 576.58
A26: 8.0.1.9 | B26: LIMPEZA DE CONTRAPISO COM VASSOURA A SECO - LIMPEZA DA LAJE DA COBERTURA | C26: M2 | D26: 184.8 | E26: 3.16 | F26: 583.97
A27: 8.0.1.10 | B27: DEMOLIÇÃO DE PISO, SOLEIRAS, BANCADAS EM REVESTIDO DE GRANITO | C27: M2 | D27: 2.87 | E27: 20.84 | F27: 59.81
A28: 8.0.1.11 | B28: RETIRADA DE CIRCUITOS ELÉTRICOS EM GERAL, INCLUSO: TOMADAS ELÉTRICAS, LÓGICAS E TELEFONE, CABEAMENTOS, ELETRODUTOS, ETC, INCLUSO TRANSPORTE E DEPOSITO EM LOCAL A SER INDICADO PELA FISCALIZAÇÃO | C28: M2 | D28: 163.98 | E28: 6.86 | F28: 1124.9
A29: 8.0.1.12 | B29: BOTA FORA DE MATERIAL DESCARTADO, D.M.T. = 10 km - (CARGA, TRANSPORTE E DESCARGA MECÂNICA) | C29: M3 | D29: 53.82 | E29: 58.67 | F29: 3157.62
A31: 8.1 | B31: INSTALAÇÕES DE CANTEIRO | F31: =SUBTOTAL(9,F32) -> 0
A33: 8.2 | B33: ADMINISTRAÇÃO | F33: =SUBTOTAL(9,F34) -> 0
A35: 8.3 | B35: TERRAPLENAGEM | F35: =SUBTOTAL(9,F36) -> 0
A37: 8.4 | B37: FUNDAÇÃO | F37: =SUBTOTAL(9,F38:F38) -> 0
A39: 8.5 | B39: IMPERMEABILIZAÇÃO | F39: =SUBTOTAL(9,F40) -> 2499.46
A40: 8.5.1 | B40: IMPERMEABILIZAÇÃO DE SUPERFÍCIE COM EMULSÃO ASFÁLTICA, 2 DEMÃOS - (DAS CALHAS DE CONCRETO DA LAJE EXISTENTE) | C40: M2 | D40: 43.02 | E40: 58.1 | F40: =ROUND(D40*E40,2) -> 2499.46
A42: 8.6 | B42: ESTRUTURAS DE CONCRETO ARMADO | F42: =SUBTOTAL(9,F43) -> 0
A44: 8.7 | B44: ALVENARIAS E PAINÉIS | F44: =SUBTOTAL(9,F45:F47) -> 4570.52
A45: 8.7.1 | B45: ALVENARIA DE VEDAÇÃO DE BLOCOS CERÂMICOS FURADOS NA HORIZONTAL DE 9X19X19CM (ESPESSURA 9CM) DE PAREDES COM ÁREA LÍQUIDA MAIOR OU IGUAL A 6M² COM VÃOS E ARGAMASSA DE ASSENTAMENTO COM PREPARO EM BETONEIRA. AF_06/2014 | C45: M2 | D45: 14.04 | E45: 89.93 | F45: =ROUND(D45*E45,2) -> 1262.62
A46: 8.7.2 | B46: ALVENARIA DE BLOCOS DE CONCRETO ESTRUTURAL 14X19X39 CM, (ESPESSURA 14 CM), FBK = 4,5 MPA, PARA PAREDES COM ÁREA LÍQUIDA MAIOR OU IGUAL A 6M², SEM VÃOS, UTILIZANDO PALHETA. AF_12/2014 | C46: M2 | D46: 39.36 | E46: 78.12 | F46: 3074.8
A47: 8.7.3 | B47: VERGA MOLDADA IN LOCO EM CONCRETO PARA PORTAS COM MAIS DE 1,5 M DE VÃO. AF_03/2016 | C47: M | D47: 2.52 | E47: 92.5 | F47: 233.1
A49: 8.8 | B49: ESTRUTURA METALICA - REFORÇO EM LAJE | F49: =SUBTOTAL(9,F50:F51) -> 8161.68
A50: 8.8.1 | B50: VIGA METÁLICA EM PERFIL LAMINADO OU SOLDADO EM AÇO ESTRUTURAL, COM CONEXÕES SOLDADAS, INCLUSOS MÃO DE OBRA, TRANSPORTE E IÇAMENTO UTILIZANDO GUINDASTE - FORNECIMENTO E INSTALAÇÃO - REFORÇO EM LAJE COM VIGA METÁLICA 2C200X75X25CH2,65 CHUMBADA EM PILARES EXISTENTES | C50: KG | D50: 385.89 | E50: 21.01 | F50: =ROUND(D50*E50,2) -> 8107.55
A51: 8.8.2 | B51: PINTURA COM TINTA ALQUÍDICA DE FUNDO (TIPO ZARCÃO) PULVERIZADA SOBRE SUPERFÍCIES METÁLICAS (EXCETO PERFIL) EXECUTADO EM OBRA (POR DEMÃO). AF_01/2020_P | C51: M2 | D51: 2.54 | E51: 21.31 | F51: 54.13
A53: 8.9 | B53: COBERTURA | F53: =SUBTOTAL(9,F54:F57) -> 27975.06
A54: 8.9.1 | B54: CUMEEIRA METÁLICA AÇO GALVALUME TRAPEZOIDAL 40 40X60CM - FORNECIMENTO E INSTALAÇÃO | C54: M | D54: 23.9 | E54: 84.19 | F54: =ROUND(D54*E54,2) -> 2012.14
A55: 8.9.2 | B55: TELHAMENTO COM TELHA DE AÇO/ALUMÍNIO E = 0,5 MM, COM ATÉ 2 ÁGUAS, INCLUSO IÇAMENTO. AF_07/2019 | C55: M2 | D55: 184.8 | E55: 105.32 | F55: 19463.14
A56: 8.9.3 | B56: RECOMPOSIÇÃO DE TRAMA DE MADEIRA COMPOSTA POR TERÇAS PARA TELHADOS DE ATÉ 2 ÁGUAS PARA TELHA ONDULADA DE FIBROCIMENTO, METÁLICA, PLÁSTICA OU TERMOACÚSTICA, INCLUSO TRANSPORTE VERTICAL - CONSIDERADO 30% DA COBERTURA. | C56: M2 | D56: 55.44 | E56: 15.94 | F56: 883.71
A57: 8.9.4 | B57: EXECUÇÃO DE TRATAMENTO EM ESTRUTURA DE MADEIRA DE COBERTURA COM APLICAÇÃO DE FUNGICIDA | C57: M2 | D57: 184.8 | E57: 30.39 | F57: 5616.07
A59: 8.10 | B59: ESQUADRIAS | F59: =SUBTOTAL(9,F60:F60) -> 10083.45
A60: 8.10.1 | B60: P1 E P5 - PORTA EM ALUMÍNIO DE ABRIR TIPO VENEZIANA COM GUARNIÇÃO, FIXAÇÃO COM PARAFUSOS - FORNECIMENTO E INSTALAÇÃO | C60: M2 | D60: 14.85 | E60: 679.02 | F60: =ROUND(D60*E60,2) -> 10083.45
A62: 8.11 | B62: PISOS | F62: =SUBTOTAL(9,F63:F66) -> 42165.58
A63: 8.11.1 | B63: CONTRAPISO DE CONCRETO, ESPESSURA 7CM, PREPARO MECANICO | C63: M2 | D63: 197.22 | E63: 42.03 | F63: =ROUND(D63*E63,2) -> 8289.16
A64: 8.11.2 | B64: REVESTIMENTO CERÂMICO PARA PISO COM PLACAS TIPO PORCELANATO DE DIMENSÕES 90X90 CM APLICADA EM AMBIENTES INTERNOS - MODELO ELIANE MUNARI BRANCO AC OU SIMILAR | C64: M2 | D64: 42.4 | E64: 115.35 | F64: 4890.84
A65: 8.11.3 | B65: PISO FLUTUANTE PARA AULAS DE DANÇA EM COMPENSADO NAVAL, 18MM REVESTIDO DE LINÓLEO | C65: M² | D65: 110.29 | E65: 241.09 | F65: 26589.82
A66: 8.11.4 | B66: RODAPÉ EM POLIESTIRENO, ALTURA 10 CM, REF. SANTA LUZIA LEV102 OU SIMILAR, NA COR BRANCA | C66: M | D66: 44.44 | E66: 53.91 | F66: =ROUND(D66*E66,2) -> 2395.76
A68: 8.12 | B68: REVESTIMENTOS | F68: =SUBTOTAL(9,F69:F72) -> 22211.73
A69: 8.12.1 | B69: CHAPISCO APLICADO EM ALVENARIAS E ESTRUTURAS DE CONCRETO INTERNAS, COM ROLO PARA TEXTURA ACRÍLICA. ARGAMASSA TRAÇO 1:4 E EMULSÃO POLIMÉRICA (ADESIVO) COM PREPARO EM BETONEIRA 400L. AF_06/2014 | C69: M2 | D69: 84.93 | E69: 8.59 | F69: =ROUND(D69*E69,2) -> 729.55
A70: 8.12.2 | B70: EMBOÇO OU MASSA ÚNICA EM ARGAMASSA TRAÇO 1:2:8, PREPARO MECÂNICO COM BETONEIRA 400 L, APLICADA MANUALMENTE EM PANOS DE FACHADA COM PRESENÇA DE VÃOS, ESPESSURA DE 25 MM. AF_06/2014 | C70: M2 | D70: 84.93 | E70: 55.05 | F70: 4675.4
A71: 8.12.3 | B71: REVESTIMENTO CERAMICO PORTOBELLO GLACIE WHITE 30X60CM, INCLUSO E REJUNTE - FORNECIMENTO E INSTALAÇÃO (AZULEJO FORNECIDO PELO SESI) | C71: M2 | D71: 141.97 | E71: 84.59 | F71: 12009.24
A72: 8.12.4 | B72: REVESTIMENTO CERÂMICO PARA PAREDES EXTERNAS EM PASTILHAS JATOBÁ DE PORCELANA 5 X 5 CM (PLACAS DE 30 X 30 CM), ALINHADAS A PRUMO, JD. 4102 - PÉROLA OCEANO (JATOBÁ OU SIMILAR) | C72: M2 | D72: 23.66 | E72: 202.77 | F72: 4797.54
A74: 8.13 | B74: GRANITO | F74: =SUBTOTAL(9,F75:F76) -> 1882.82
A75: 8.13.1 | B75: BANCADA DE GRANITO CINZA ANDORINHA, SOBRE MÃOS-FRANCESAS METÁLICAS, ESP=2cm COM FRONTÃO 20cm, SAIA COM ACAB. DE MEIA ESQUADRIA E REFORÇO INFERIOR DE BORDA E CORTE PARA INST. DE CUBAS DE LOUÇA OVAL DE EMBUTIR LOCAL | C75: M2 | D75: 2.08 | E75: 782.35 | F75: =ROUND(D75*E75,2) -> 1627.29
A76: 8.13.2 | B76: SOLEIRA EM GRANITO, LARGURA 15 CM, ESPESSURA 2,0 CM. AF_09/2020 | C76: M | D76: 2.7 | E76: 94.64 | F76: 255.53
A78: 8.14 | B78: FORRO | F78: =SUBTOTAL(9,F79:F81) -> 8791.19
